{"text_format":"1","workbook":"xlsx","n_sheets":5,"sheets":["NOMBRE","B","B17","Control","MACROS"],"not_rendered":{"charts":0,"images":1,"macros":1,"external_links":0,"defined_names":3,"comments":0,"pivot_tables":0},"unopened":[],"bounds":{"document_bytes":16777216,"sheet_cells":100000,"rows_first":2000,"rows_last":500,"rows_between":2000,"halvings":0,"cell_chars":16384,"cell_head_chars":4096},"cells_cut":0,"cells_raw":0,"read":"whole","date_system":"1900"}

{"sheet":"NOMBRE","index":0,"n_rows":35,"n_cols":33,"rows_kept":35,"cut":false,"hidden":false,"merged":[[16,1,18,1],[0,0,0,1],[0,2,0,6],[1,8,1,13],[2,8,2,13],[8,0,8,1],[14,0,14,1]]}
["DATOS DEL ESTABLECIMIENTO",null,"CÓDIGOS"]
["NOMBRE DE COMUNA",null,null,null,null,null,null,null,{"$f":"IF(OR(NOMBRE!C2=\"\",NOMBRE!D2=\"\",NOMBRE!E2=\"\",NOMBRE!F2=\"\",NOMBRE!G2=\"\"),\"Falta Cód. Com.\",\"\")","v":"Falta Cód. Com."},null,null,null,null,null,null,null,null,null,null,null,null,null,{"$f":"IF(OR(C2=\"\",D2=\"\",E2=\"\",F2=\"\",G2=\"\"),1,0)","v":1},null,null,null,null,null,null,null,null,null,{"$f":"IF(I2>\"\",1,0)","v":1}]
["NOMBRE ESTABLECIMIENTO/ESTRATEGIA",null,null,null,null,null,null,null,{"$f":"IF(OR(NOMBRE!C3=\"\",NOMBRE!D3=\"\",NOMBRE!E3=\"\",NOMBRE!F3=\"\",NOMBRE!G3=\"\",NOMBRE!H3=\"\"),\"Falta Cód. Est.\",\"\")","v":"Falta Cód. Est."},null,null,null,null,null,null,null,null,null,null,null,null,null,{"$f":"IF(OR(C3=\"\",D3=\"\",E3=\"\",F3=\"\",G3=\"\",H3=\"\"),1,0)","v":1},null,null,null,null,null,null,null,null,null,{"$f":"IF(I3>\"\",1,0)","v":1}]
[]
[]
["MES:",null,{"$f":"IF(X10<>\"\",IF(LEN(X10)<2,\"0\",LEFT(X10,1)),\"\")","v":""},{"$f":"IF(X10<>\"\",RIGHT(X10,1),\"\")","v":""},null,null,null,null,{"$f":"IF(OR(C6=\"\",D6=\"\"),\"Falta Cód. Mes.\",\"\")","v":"Falta Cód. Mes."},null,null,null,null,null,null,null,null,null,null,null,null,null,{"$f":"IF(OR(C6=\"\",D6=\"\"),1,0)","v":1},null,null,null,null,null,null,null,null,null,{"$f":"IF(I6>\"\",1,0)","v":1}]
["AÑO:",2026,null,null,null,null,null,null,null,null,null,null,null,null,null,null,null,null,null,null,null,null,null,null,null,null,null,null,null,null,null,null,{"$f":"SUM(AG2:AG6)","v":3}]
[]
["Versión 1.1: Febrero 2026"]
[null,null,null,null,null,null,null,null,null,null,null,null,null,null,null,null,null,null,null,null,null,null,{"$f":"B6","v":0},{"$f":"IFERROR(VLOOKUP(W10,$W$11:$X$22,2,FALSE),\"\")","v":""}]
["Director/a Servicio de Salud o Director/a Establecimiento",null,null,null,null,null,null,null,null,null,null,null,null,null,null,null,null,null,null,null,null,null,"ENERO",1,null,null,"ENERO","Establecimiento de Mayor Complejidad (EMAYC)","SERVICIO DE SALUD"]
["Jefe/a de Estadísticas",null,null,null,null,null,null,null,null,null,null,null,null,null,null,null,null,null,null,null,null,null,"FEBRERO",2,null,null,"FEBRERO","Establecimiento de Mediana Complejidad (EMEDC)","MUNICIPAL"]
[null,null,null,null,null,null,null,null,null,null,null,null,null,null,null,null,null,null,null,null,null,null,"MARZO",3,null,null,"MARZO","Establecimiento de Menor Complejidad (EMENC)","OTRA INSTITUCIÓN (Delegado)"]
[null,null,null,null,null,null,null,null,null,null,null,null,null,null,null,null,null,null,null,null,null,null,"ABRIL",4,null,null,"ABRIL","Centros de Diagnóstico Terapéutico (CDT)"]
["MINSAL - DEIS",null,null,null,null,null,null,null,null,null,null,null,null,null,null,null,null,null,null,null,null,null,"MAYO",5,null,null,"MAYO","Centro de Referencia de Salud (CRS)"]
[null,null,null,null,null,null,null,null,null,null,null,null,null,null,null,null,null,null,null,null,null,null,"JUNIO",6,null,null,"JUNIO","Consultorio General Urbano(CGU) con SAPU/SUR/SAR"]
[null,"SERIE BS",null,null,null,null,null,null,null,null,null,null,null,null,null,null,null,null,null,null,null,null,"JULIO",7,null,null,"JULIO","Consultorio General Urbano (CGU) - CESFAM con SAPU/SAR"]
[null,null,null,null,null,null,null,null,null,null,null,null,null,null,null,null,null,null,null,null,null,null,"AGOSTO",8,null,null,"AGOSTO","Consultorio General Rural (CGR)"]
[null,null,null,null,null,null,null,null,null,null,null,null,null,null,null,null,null,null,null,null,null,null,"SEPTIEMBRE",9,null,null,"SEPTIEMBRE","Consultorio General Rural (CGR) - CESFAM"]
[null,null,null,null,null,null,null,null,null,null,null,null,null,null,null,null,null,null,null,null,null,null,"OCTUBRE",10,null,null,"OCTUBRE","Consultorio General Rural (CGR) con SAPU/SUR/SAR"]
[null,null,null,null,null,null,null,null,null,null,null,null,null,null,null,null,null,null,null,null,null,null,"NOVIEMBRE",11,null,null,"NOVIEMBRE","Consultorio General Rural (CGR) - CESFAM con SAPU/SUR/SAR"]
[null,null,null,null,null,null,null,null,null,null,null,null,null,null,null,null,null,null,null,null,null,null,"DICIEMBRE",12,null,null,"DICIEMBRE","Posta de Salud Rural (PSR)"]
[null,null,null,null,null,null,null,null,null,null,null,null,null,null,null,null,null,null,null,null,null,null,null,null,null,null,null,"Centro Comunitario de Salud Familiar (CECOF)"]
[null,null,null,null,null,null,null,null,null,null,null,null,null,null,null,null,null,null,null,null,null,"Filtro",112100,{"$f":"IF(W24<>\"\",CONCATENATE(\"{\"\"EstablecimientoCodigo\"\":\"\"\",W24,\"\"\"}\"),\"\")","v":"{\"EstablecimientoCodigo\":\"112100\"}"},null,null,null,"Consultorio de Salud Mental (COSAM)"]
[null,null,null,null,null,null,null,null,null,null,null,null,null,null,null,null,null,null,null,null,null,"URL + Encoding","https://datos.gob.cl/api/3/action/datastore_search?resource_id=2c44d782-3365-44e3-aefb-2c8b8363a1bc&limit=1&filters=",{"$f":"_xlfn.ENCODEURL(X24)","v":"%7B%22EstablecimientoCodigo%22%3A%22112100%22%7D"},null,null,null,"Programa de Reparación y Atención Integral de Salud (PRAIS)"]
[null,null,null,null,null,null,null,null,null,null,null,null,null,null,null,null,null,null,null,null,null,"ServicioWeb",{"$f":"IF($W$24<>\"\",_xlfn.WEBSERVICE(CONCATENATE(W25,X25)),\"\")","v":"{\"help\": \"https://datos.gob.cl/api/3/action/help_show?name=datastore_search\", \"success\": true, \"result\": {\"filters\": {\"EstablecimientoCodigo\": \"112100\"}, \"include_total\": true, \"limit\": 1, \"records_format\": \"objects\", \"resource_id\": \"2c44d782-3365-44e3-aefb-2c8b8363a1bc\", \"total_estimation_threshold\": null, \"records\": [{\"_id\":2887,\"EstablecimientoCodigo\":\"112100\",\"EstablecimientoGlosa\":\"Hospital Del Salvador de Santiago\",\"EstablecimientoCodigoAntiguo\":\"12-100\",\"EstablecimientoCodigoMadreAntiguo\":null,\"EstablecimientoCodigoMadreNuevo\":null,\"RegionCodigo\":\"13\",\"RegionGlosa\":\"Región Metropolitana de Santiago\",\"SeremiSaludCodigo_ServicioDeSaludCodigo\":\"12\",\"SeremiSaludGlosa_ServicioDeSaludGlosa\":\"Servicio de Salud Metropolitano Oriente\",\"TipoPertenenciaEstabGlosa\":\"Perteneciente al Sistema Nacional de Servicios de Salud\",\"TipoEstablecimientoGlosa\":\"Hospital\",\"AmbitoFuncionamiento\":\"Establecimiento de Salud\",\"Certificacion\":\"Autogestionado en Red (EAR)\",\"DependenciaAdministrativa\":\"Servicio de Salud\",\"NivelAtencionEstabglosa\":\"Terciario\",\"ComunaCodigo\":\"13123\",\"ComunaGlosa\":\"Providencia\",\"TipoViaGlosa\":\"Avenida\",\"Numero\":\"364\",\"NombreVia\":\"Salvador\",\"TelefonoMovil_TelefonoFijo\":\"225754000\",\"FechaInicioFuncionamientoEstab\":null,\"TieneServicioUrgencia\":\"SI\",\"TipoUrgencia\":\"Urgencia Hospitalaria (UEH)\",\"ClasificacionTipoSapu\":\"No Aplica\",\"Latitud\":\"-33.43664\",\"Longitud\":\"-70.624493\",\"TipoSistemaSaludGlosa\":\"Público\",\"EstadoFuncionamiento\":\"Vigente en Operación Habitual\",\"NivelComplejidadEstabGlosa\":\"Alta Complejidad\",\"TipoAtencionEstabGlosa\":\"Atención Cerrada-Hospitalaria\",\"FechaIncorporacion\":null}], \"fields\": [{\"id\": \"_id\", \"type\": \"int\"}, {\"id\": \"EstablecimientoCodigo\", \"type\": \"text\"}, {\"id\": \"EstablecimientoGlosa\", \"type\": \"text\"}, {\"id\": \"EstablecimientoCodigoAntiguo\", \"type\": \"text\"}, {\"id\": \"EstablecimientoCodigoMadreAntiguo\", \"type\": \"text\"}, {\"id\": \"EstablecimientoCodigoMadreNuevo\", \"type\": \"text\"}, {\"id\": \"RegionCodigo\", \"type\": \"text\"}, {\"id\": \"RegionGlosa\", \"type\": \"text\"}, {\"id\": \"SeremiSaludCodigo_ServicioDeSaludCodigo\", \"type\": \"text\"}, {\"id\": \"SeremiSaludGlosa_ServicioDeSaludGlosa\", \"type\": \"text\"}, {\"id\": \"TipoPertenenciaEstabGlosa\", \"type\": \"text\"}, {\"id\": \"TipoEstablecimientoGlosa\", \"type\": \"text\"}, {\"id\": \"AmbitoFuncionamiento\", \"type\": \"text\"}, {\"id\": \"Certificacion\", \"type\": \"text\"}, {\"id\": \"DependenciaAdministrativa\", \"type\": \"text\"}, {\"id\": \"NivelAtencionEstabglosa\", \"type\": \"text\"}, {\"id\": \"ComunaCodigo\", \"type\": \"text\"}, {\"id\": \"ComunaGlosa\", \"type\": \"text\"}, {\"id\": \"TipoViaGlosa\", \"type\": \"text\"}, {\"id\": \"Numero\", \"type\": \"text\"}, {\"id\": \"NombreVia\", \"type\": \"text\"}, {\"id\": \"TelefonoMovil_TelefonoFijo\", \"type\": \"text\"}, {\"id\": \"FechaInicioFuncionamientoEstab\", \"type\": \"text\"}, {\"id\": \"TieneServicioUrgencia\", \"type\": \"text\"}, {\"id\": \"TipoUrgencia\", \"type\": \"text\"}, {\"id\": \"ClasificacionTipoSapu\", \"type\": \"text\"}, {\"id\": \"Latitud\", \"type\": \"text\"}, {\"id\": \"Longitud\", \"type\": \"text\"}, {\"id\": \"TipoSistemaSaludGlosa\", \"type\": \"text\"}, {\"id\": \"EstadoFuncionamiento\", \"type\": \"text\"}, {\"id\": \"NivelComplejidadEstabGlosa\", \"type\": \"text\"}, {\"id\": \"TipoAtencionEstabGlosa\", \"type\": \"text\"}, {\"id\": \"FechaIncorporacion\", \"type\": \"text\"}], \"_links\": {\"start\": \"/api/3/action/datastore_search?resource_id=2c44d782-3365-44e3-aefb-2c8b8363a1bc&limit=1&filters=%7B%22EstablecimientoCodigo%22%3A%22112100%22%7D\", \"next\": \"/api/3/action/datastore_search?resource_id=2c44d782-3365-44e3-aefb-2c8b8363a1bc&limit=1&filters=%7B%22EstablecimientoCodigo%22%3A%22112100%22%7D&offset=1\"}, \"total\": 1, \"total_was_estimated\": false}}"},null,null,null,null,"Centro de Atención Funcionarios (CAF)"]
[null,null,null,null,null,null,null,null,null,null,null,null,null,null,null,null,null,null,null,null,null,"Hay Registros",{"$f":"IFERROR(IF($W$26<>\"\",MID($W$26,FIND(\"\"\"total\"\":\",$W$26)+9,1),\"0\"),\"0\")","v":"1"},null,null,null,null,"Clínica Dental Móvil (CDM)"]
[null,null,null,null,null,null,null,null,null,null,null,null,null,null,null,null,null,null,null,null,null,"Establecimiento",{"$f":"IF(AND($W$26<>\"\",$W$27=\"1\"),MID($W$26,FIND(\"EstablecimientoGlosa\",$W$26)+23,(FIND(\"EstablecimientoCodigoAntiguo\",$W$26)-3)-(FIND(\"EstablecimientoGlosa\",$W$26)+23)),\"\")","v":"Hospital Del Salvador de Santiago"},null,null,null,null,"Dirección Servicio de Salud (DSS)"]
[null,null,null,null,null,null,null,null,null,null,null,null,null,null,null,null,null,null,null,null,null,"Comuna",{"$f":"IF(AND($W$26<>\"\",$W$27=\"1\"),MID($W$26,FIND(\"ComunaCodigo\",$W$26)+15,(FIND(\"ComunaGlosa\",$W$26)-3)-(FIND(\"ComunaCodigo\",$W$26)+15)),\"\")","v":"13123"},null,null,null,null,"Servicio de Atención Primaria de Urgencia (SAPU)"]
[null,null,null,null,null,null,null,null,null,null,null,null,null,null,null,null,null,null,null,null,null,"Comuna Glosa",{"$f":"IF(AND($W$26<>\"\",$W$27=\"1\"),MID($W$26,FIND(\"ComunaGlosa\",$W$26)+14,(FIND(\"TipoVia\",$W$26)-3)-(FIND(\"ComunaGlosa\",$W$26)+14)),\"\")","v":"Providencia"},null,null,null,null,"Servicio de Atención Primaria de Urgencia Alta Resolución (SAR)"]
[null,null,null,null,null,null,null,null,null,null,null,null,null,null,null,null,null,null,null,null,null,"Comuna Dividida por Celdas en sgte linea:",null,null,null,null,null,"Laboratorio Clínico o Dental"]
[null,null,null,null,null,null,null,null,null,null,null,null,null,null,null,null,null,null,null,null,null,null,null,null,null,null,null,"Servicio de Atención Primaria de Urgencia Dental (SAPUDENT)"]
[null,null,null,null,null,null,null,null,null,null,null,null,null,null,null,null,null,null,null,null,null,{"$f":"IF($W$29<> \"\",IF(LEN($W$29)>4,LEFT($W$29,1),\"0\"),\"\")","v":"1"},{"$f":"IF($W$29<>\"\",LEFT(RIGHT($W$29,4),1),\"\")","v":"3"},{"$f":"IF($W$29<>\"\",LEFT(RIGHT($W$29,3),1),\"\")","v":"1"},{"$f":"IF($W$29<>\"\",LEFT(RIGHT($W$29,2),1),\"\")","v":"2"},{"$f":"IF($W$29<>\"\",RIGHT($W$29,1),\"\")","v":"3"},null,"Centro de Rehabilitación (CR)"]
[null,null,null,null,null,null,null,null,null,null,null,null,null,null,null,null,null,null,null,null,null,null,null,null,null,null,null,"Hospital de Campaña"]
[null,null,null,null,null,null,null,null,null,null,null,null,null,null,null,null,null,null,null,null,null,null,null,null,null,null,null,"Centro Oncologico"]

{"sheet":"B","index":1,"n_rows":3201,"n_cols":108,"rows_kept":562,"cut":true,"hidden":false,"merged":[[3055,0,3055,1],[3055,7,3055,25],[3056,0,3056,1],[3056,2,3056,39],[3062,0,3062,1],[3062,7,3062,25],[3044,0,3044,1],[3044,2,3044,39],[3047,0,3047,1],[3047,7,3047,25],[3048,0,3048,1],[3048,2,3048,35],[3005,0,3005,1],[3006,0,3006,1],[3006,2,3006,39],[3043,0,3043,1],[3043,7,3043,25],[2895,0,2895,1],[2895,2,2895,39],[2928,0,2928,1],[2928,7,2928,25],[2929,0,2929,1],[2929,2,2929,39],[3008,36,3008,37],[2876,0,2876,1],[2876,7,2876,25],[2877,0,2877,1],[2877,2,2877,39],[2894,0,2894,1],[2894,7,2894,25],[2841,0,2841,1],[2841,2,2841,39],[2857,0,2857,1],[2857,7,2857,25],[2858,0,2858,1],[2858,2,2858,39],[2857,36,2857,37],[2831,0,2831,1],[2831,2,2831,39],[2839,0,2839,1],[2839,7,2839,25],[2840,0,2840,6],[2822,0,2822,1],[2822,7,2822,25],[2823,0,2823,1],[2823,2,2823,39],[2830,0,2830,1],[2830,7,2830,25],[2822,36,2822,37],[2830,36,2830,37],[2839,36,2839,37],[2774,0,2774,1],[2774,2,2774,39],[2782,0,2782,1],[2782,7,2782,25],[2783,0,2783,1],[2783,2,2783,39],[2768,0,2768,1],[2768,3,2768,6],[2769,0,2769,1],[2769,2,2769,39],[2773,0,2773,1],[2773,3,2773,6],[2539,0,2539,1],[2540,0,2540,1],[2540,2,2540,39],[2554,0,2554,1],[2555,0,2555,1],[2555,2,2555,39],[2485,0,2485,1],[2485,2,2485,39],[2524,0,2524,1],[2524,3,2524,6],[2525,0,2525,1],[2525,2,2525,39],[2477,0,2477,1],[2477,7,2477,25],[2478,0,2478,1],[2478,2,2478,39],[2484,0,2484,1],[2484,3,2484,6],[2368,0,2368,1],[2368,2,2368,39],[2448,0,2448,1],[2448,3,2448,6],[2449,0,2449,1],[2449,2,2449,39],[2355,0,2355,1],[2355,7,2355,25],[2356,0,2356,6],[2357,0,2357,1],[2357,2,2357,39],[2367,0,2367,1],[2367,7,2367,25],[2291,0,2291,1],[2291,2,2291,39],[2330,0,2330,1],[2330,3,2330,6],[2331,0,2331,1],[2331,2,2331,39],[2175,0,2175,1],[2175,7,2175,25],[2176,0,2176,1],[2176,2,2176,39],[2290,0,2290,1],[2290,3,2290,6],[2076,0,2076,1],[2077,0,2077,1],[2077,2,2077,39],[2118,0,2118,1],[2118,7,2118,25],[2119,0,2119,1],[2119,2,2119,39],[1895,0,1895,1],[1895,7,1895,25],[1896,0,1896,1],[1896,2,1896,39],[1978,0,1978,1],[1979,0,1979,1],[1979,2,1979,39],[1793,0,1793,1],[1793,7,1793,25],[1794,0,1794,1],[1794,2,1794,39],[1819,0,1819,1],[1820,0,1820,1],[1820,2,1820,39],[1703,0,1703,1],[1703,3,1703,6],[1704,0,1704,1],[1704,2,1704,39],[1776,0,1776,1],[1777,0,1777,1],[1777,2,1777,39],[1639,0,1639,1],[1640,0,1640,1],[1640,2,1640,39],[1642,0,1642,1],[1642,7,1642,25],[1643,0,1643,1],[1643,2,1643,39],[1476,0,1476,1],[1477,0,1477,1],[1477,2,1477,39],[1529,0,1529,1],[1529,7,1529,25],[1530,0,1530,1],[1530,2,1530,39],[1334,0,1334,1],[1335,0,1335,1],[1335,2,1335,39],[1390,0,1390,1],[1390,7,1390,25],[1391,0,1391,1],[1391,2,1391,39],[1201,0,1201,6],[1202,0,1202,1],[1202,2,1202,39],[1251,0,1251,1],[1251,7,1251,25],[1252,0,1252,1],[1252,2,1252,39],[1191,0,1191,1],[1191,7,1191,25],[1192,0,1192,1],[1192,2,1192,39],[1200,0,1200,1],[1200,7,1200,25],[1191,36,1191,37],[1200,36,1200,37],[1164,0,1164,1],[1164,2,1164,39],[1179,0,1179,1],[1179,7,1179,25],[1180,0,1180,1],[1180,2,1180,39],[1118,0,1118,1],[1118,7,1118,25],[1119,0,1119,1],[1119,2,1119,39],[1163,0,1163,1],[1163,7,1163,25],[1118,36,1118,37],[1163,36,1163,37],[1179,36,1179,37],[1052,0,1052,1],[1052,2,1052,39],[1056,0,1056,1],[1057,0,1057,1],[1057,2,1057,39],[1039,0,1039,1],[1039,2,1039,39],[1048,0,1048,1],[1048,7,1048,25],[1049,0,1049,1],[1049,2,1049,39],[1051,0,1051,1],[1032,0,1032,1],[1032,7,1032,25],[1033,0,1033,6],[1034,0,1034,1],[1034,2,1034,39],[1038,0,1038,1],[1038,7,1038,25],[1022,0,1022,1],[1022,2,1022,35],[1024,0,1024,1],[1024,7,1024,25],[1025,0,1025,6],[1026,0,1026,1],[1026,2,1026,39],[1018,0,1018,1],[1018,7,1018,25],[1019,0,1019,1],[1019,2,1019,35],[1021,0,1021,1],[1021,7,1021,25],[1007,0,1007,1],[1007,2,1007,39],[1010,0,1010,1],[1010,7,1010,25],[1011,0,1011,1],[1011,2,1011,39],[1002,0,1002,1],[1002,7,1002,25],[1003,0,1003,1],[1003,2,1003,39],[1006,0,1006,1],[1006,7,1006,25],[992,0,992,1],[992,2,992,39],[998,0,998,1],[998,7,998,25],[999,0,999,1],[999,2,999,39],[981,0,981,1],[981,7,981,25],[982,0,982,1],[982,2,982,39],[991,0,991,1],[991,7,991,25],[965,0,965,1],[965,2,965,39],[972,0,972,1],[972,7,972,25],[973,0,973,1],[973,2,973,39],[956,0,956,6],[957,0,957,1],[957,2,957,39],[958,0,958,1],[958,2,958,39],[964,0,964,1],[964,7,964,25],[936,0,936,1],[936,7,936,25],[937,0,937,1],[937,2,937,39],[955,0,955,1],[955,7,955,25],[870,0,870,1],[870,2,870,39],[894,0,894,1],[894,7,894,25],[895,0,895,1],[895,2,895,39],[839,0,839,1],[839,7,839,25],[840,0,840,1],[840,2,840,39],[869,0,869,1],[869,7,869,25],[758,0,758,6],[759,0,759,1],[759,2,759,39],[817,0,817,1],[817,7,817,25],[818,0,818,1],[818,2,818,39],[715,0,715,1],[715,7,715,25],[716,0,716,1],[716,2,716,39],[757,0,757,1],[757,7,757,25],[715,36,715,37],[757,36,757,37],[653,0,653,1],[653,2,653,39],[663,0,663,1],[663,7,663,25],[664,0,664,1],[664,2,664,39],[642,0,642,1],[642,7,642,25],[643,0,643,1],[643,2,643,39],[652,0,652,1],[652,7,652,25],[642,36,642,37],[652,36,652,37],[663,36,663,37],[573,0,573,1],[573,2,573,39],[592,0,592,1],[592,7,592,25],[593,0,593,1],[593,2,593,39],[513,0,513,6],[514,0,514,1],[514,2,514,39],[572,0,572,1],[572,7,572,25],[572,36,572,37],[592,36,592,37],[432,0,432,1],[432,7,432,25],[433,0,433,1],[433,2,433,39],[512,0,512,1],[512,7,512,25],[372,0,372,1],[372,2,372,39],[417,0,417,1],[417,7,417,25],[418,0,418,1],[418,2,418,39],[417,36,417,37],[432,36,432,37],[512,36,512,37],[289,0,289,1],[289,7,289,25],[290,0,290,1],[290,2,290,39],[371,0,371,1],[371,7,371,25],[211,0,211,1],[211,7,211,25],[212,0,212,6],[212,7,212,39],[213,0,213,1],[213,2,213,39],[211,36,211,37],[289,36,289,37],[371,36,371,37],[178,0,178,1],[178,2,178,39],[190,0,190,1],[190,7,190,25],[191,0,191,1],[191,2,191,39],[143,0,143,1],[143,7,143,25],[144,0,144,1],[144,2,144,39],[177,0,177,1],[177,7,177,25],[143,36,143,37],[177,36,177,37],[190,36,190,37],[134,0,134,1],[134,7,134,25],[135,0,135,1],[135,2,135,39],[121,0,121,1],[121,7,121,25],[122,0,122,1],[122,2,122,39],[125,0,125,1],[125,7,125,25],[121,36,121,37],[125,36,125,37],[134,36,134,37],[5,0,6,39],[7,33,8,34],[7,35,9,35],[8,3,9,3],[8,4,8,5],[8,6,9,6],[8,7,9,7],[8,8,8,10],[8,11,8,13],[7,17,8,19],[7,20,8,22],[7,23,8,25],[7,26,8,28],[7,29,8,31],[7,32,9,32],[7,36,8,37],[7,39,9,39],[7,38,9,38],[3063,0,3063,1],[3063,2,3063,39],[3177,0,3177,1],[3177,7,3177,25],[7,0,9,0],[7,1,9,1],[7,2,9,2],[7,3,7,6],[7,7,7,13],[7,14,8,16],[71,0,71,1],[71,7,71,25],[72,0,72,1],[73,0,73,1],[73,2,73,39],[10,0,10,1],[10,2,10,39],[60,0,60,1],[60,7,60,25],[61,0,61,1],[60,36,60,37],[71,36,71,37],[126,0,126,1],[126,2,126,39]],"bounds":{"rows_first":250,"rows_last":62,"rows_between":250,"halvings":3}}
["SERVICIO DE SALUD "]
[{"$f":"CONCATENATE(\"COMUNA: \",NOMBRE!B2,\" (\",NOMBRE!C2,NOMBRE!D2,NOMBRE!E2,NOMBRE!F2,NOMBRE!G2,\" )\")","v":"COMUNA:  ( )"}]
[{"$f":"CONCATENATE(\"ESTABLECIMIENTO/ESTRATEGIA: \",NOMBRE!B3,\" (\",NOMBRE!C3,NOMBRE!D3,NOMBRE!E3,NOMBRE!F3,NOMBRE!G3,NOMBRE!H3,\" )\")","v":"ESTABLECIMIENTO/ESTRATEGIA:  ( )"}]
[{"$f":"CONCATENATE(\"MES: \", NOMBRE!B6, \" (\", NOMBRE!C6,NOMBRE!D6,\")\")","v":"MES:  ()"}]
[{"$f":"CONCATENATE(\"AÑO: \",NOMBRE!B7)","v":"AÑO: 2026"}]
["REM-B: ATENCIONES Y ACTIVIDADES DE APOYO DIAGNÓSTICO Y TERAPÉUTICO"]
[]
["CÓDIGO","GLOSA","TOTAL","ACTIVIDADES",null,null,null,"INTERVENCIONES QUIRÚRGICAS",null,null,null,null,null,null,"INTERVENCIONES QUIRÚRGICAS MAYORES NO AMBULATORIAS ELECTIVAS",null,null,"INTERVENCIONES QUIRÚRGICAS MAYORES AMBULATORIAS ELECTIVA",null,null,"INTERVENCIONES QUIRÚRGICAS MAYORES AMBULATORIAS URGENCIA",null,null,"INTERVENCIONES QUIRÚRGICAS MAYORES NO AMBULATORIAS URGENCIA",null,null,"PROCEDENCIA",null,null,"PRODUCCIÓN INTRAHOSPITAL",null,null,"OPERATIVO","COMPRAS REALIZADAS",null,"VENTAS DE SERVICIOS","PROCEDIMIENTOS EN USUARIOS CON REQUERIMIENTOS ESPECIALES",null,"CIRUGÍA MENOR REALIZADAS EN QX  MAYOR","CIRUGÍA MENOR ELECTIVA"]
[null,null,null,"Total Beneficiarios","Beneficiarios",null,"No Beneficiarios","Total Beneficiarios","Principal",null,null,"Secundaria",null,null,null,null,null,"< 15 AÑOS",null,null,"< 15 AÑOS",null,null,"< 15 AÑOS"]
[null,null,null,null,"MAI","MLE",null,null,"MAI","MLE","No Beneficiarios","MAI","MLE","No Beneficiarios","Total","< 15 años","15 años y más","Total","< 15 años","15 años y más","Total","< 15 años","15 años y más","Total","< 15 años","15 años y más","Atención Cerrada","Atención Abierta","Emergencia","Honorarios","Convenios","Consultores de llamada",null,"Al Sistema","Extrasistema",null,"Quirófano Cirugía Mayor","Asistencia Anestésica"]
["CONSULTAS Y ATENCIÓN MEDICA "]
["0101201","Consulta Médica de Especialidad en Dermatología",{"$f":"SUM(D12+G12)","v":0},{"$f":"SUM(E12:F12)","v":0},null,null,null,null,null,null,null,null,null,null,null,null,null,null,null,null,null,null,null,null,null,null,null,null,null,null,null,null,null,null,null,null,null,null,null,null,{"$f":"CC12&CD12&CE12&CF12&CG12&CH12&CI12&CJ12&CK12&CL12&CM12","v":""},null,null,null,null,null,null,null,null,null,null,null,null,null,null,null,null,null,null,null,null,null,null,null,null,null,null,null,null,null,null,null,null,null,null,null,null,null,null,null,{"$f":"IF(AND($C12>0,AA12=\"\"),\" * No olvide digitar la variable \"&$AA$8&\"\"&\": Atención Cerrada. Digite Cero si no tiene.\",\"\")","v":""},{"$f":"IF(AND($C12>0,AB12=\"\"),\" * No olvide digitar la variable \"&$AA$8&\"\"&\": Atención Abierta. Digite Cero si no tiene.\",\"\")","v":""},{"$f":"IF(AND($C12>0,AC12=\"\"),\" * No olvide digitar la variable \"&$AA$8&\"\"&\": Emergencia. Digite Cero si no tiene.\",\"\")","v":""},{"$f":"IF(AND(C12<AA12+AB12+AC12),\" * La Suma de la variable \"&$AA$8&\"\"&\" no puede ser mayor al Total.\",\"\")","v":""},{"$f":"IF(AND($C12>0,AD12=\"\"),\" * No olvide digitar la variable \"&$AD$8&\"\"&\": Honorarios. Digite Cero si no tiene.\",\"\")","v":""},{"$f":"IF(AND($C12>0,AE12=\"\"),\" * No olvide digitar la variable \"&$AD$8&\"\"&\": Convenios. Digite Cero si no tiene.\",\"\")","v":""},{"$f":"IF(AND($C12>0,AF12=\"\"),\" * No olvide digitar la variable \"&$AD$8&\"\"&\": Consultores de llamada. Digite Cero si no tiene.\",\"\")","v":""},null,{"$f":"IF(AND($C12>0,AH12=\"\"),\" * No olvide digitar la variable \"&$AH$8&\"\"&\" Al Sistema. Digite Cero si no tiene.\",\"\")","v":""},{"$f":"IF(AND($C12>0,AI12=\"\"),\" * No olvide digitar la variable \"&$AH$8&\"\"&\" al Extrasistema. Digite Cero si no tiene.\",\"\")","v":""},null,null,null,null,null,{"$f":"IF(AND($C12>0,AA12=\"\"),1,0)","v":0},{"$f":"IF(AND($C12>0,AB12=\"\"),1,0)","v":0},{"$f":"IF(AND($C12>0,AC12=\"\"),1,0)","v":0},{"$f":"IF(AND(C12<AA12+AB12+AC12),1,0)","v":0},{"$f":"IF(AND($C12>0,AD12=\"\"),1,0)","v":0},{"$f":"IF(AND($C12>0,AE12=\"\"),1,0)","v":0},{"$f":"IF(AND($C12>0,AF12=\"\"),1,0)","v":0},null,{"$f":"IF(AND($C12>0,AH12=\"\"),1,0)","v":0},{"$f":"IF(AND($C12>0,AI12=\"\"),1,0)","v":0}]
["0101202","Consulta Médica de Especialidad en Geriatría",{"$f":"SUM(D13+G13)","v":0},{"$f":"SUM(E13:F13)","v":0},null,null,null,null,null,null,null,null,null,null,null,null,null,null,null,null,null,null,null,null,null,null,null,null,null,null,null,null,null,null,null,null,null,null,null,null,{"$f":"CC13&CD13&CE13&CF13&CG13&CH13&CI13&CJ13&CK13&CL13&CM13","v":""},null,null,null,null,null,null,null,null,null,null,null,null,null,null,null,null,null,null,null,null,null,null,null,null,null,null,null,null,null,null,null,null,null,null,null,null,null,null,null,"","","","","","","",null,"","",null,null,null,null,null,0,0,0,0,0,0,0,null,0,0]
["0101203","Consulta Médica de Especialidad en Neurocirugía",0,0,null,null,null,null,null,null,null,null,null,null,null,null,null,null,null,null,null,null,null,null,null,null,null,null,null,null,null,null,null,null,null,null,null,null,null,null,"",null,null,null,null,null,null,null,null,null,null,null,null,null,null,null,null,null,null,null,null,null,null,null,null,null,null,null,null,null,null,null,null,null,null,null,null,null,null,null,"","","","","","","",null,"","",null,null,null,null,null,0,0,0,0,0,0,0,null,0,0]
["0101204","Consulta Médica de Especialidad en Oftalmología",0,0,null,null,null,null,null,null,null,null,null,null,null,null,null,null,null,null,null,null,null,null,null,null,null,null,null,null,null,null,null,null,null,null,null,null,null,null,"",null,null,null,null,null,null,null,null,null,null,null,null,null,null,null,null,null,null,null,null,null,null,null,null,null,null,null,null,null,null,null,null,null,null,null,null,null,null,null,"","","","","","","",null,"","",null,null,null,null,null,0,0,0,0,0,0,0,null,0,0]
["0101205","Consulta Médica de Especialidad en Otorrinolaringología",0,0,null,null,null,null,null,null,null,null,null,null,null,null,null,null,null,null,null,null,null,null,null,null,null,null,null,null,null,null,null,null,null,null,null,null,null,null,"",null,null,null,null,null,null,null,null,null,null,null,null,null,null,null,null,null,null,null,null,null,null,null,null,null,null,null,null,null,null,null,null,null,null,null,null,null,null,null,"","","","","","","",null,"","",null,null,null,null,null,0,0,0,0,0,0,0,null,0,0]
["0101206","Consulta Médica de Especialidad en Reumatología",0,0,null,null,null,null,null,null,null,null,null,null,null,null,null,null,null,null,null,null,null,null,null,null,null,null,null,null,null,null,null,null,null,null,null,null,null,null,"",null,null,null,null,null,null,null,null,null,null,null,null,null,null,null,null,null,null,null,null,null,null,null,null,null,null,null,null,null,null,null,null,null,null,null,null,null,null,null,"","","","","","","",null,"","",null,null,null,null,null,0,0,0,0,0,0,0,null,0,0]
["0101207","Consulta Médica de Especialidad en Endocrinología Adulto",0,0,null,null,null,null,null,null,null,null,null,null,null,null,null,null,null,null,null,null,null,null,null,null,null,null,null,null,null,null,null,null,null,null,null,null,null,null,"",null,null,null,null,null,null,null,null,null,null,null,null,null,null,null,null,null,null,null,null,null,null,null,null,null,null,null,null,null,null,null,null,null,null,null,null,null,null,null,"","","","","","","",null,"","",null,null,null,null,null,0,0,0,0,0,0,0,null,0,0]
["0101208","Consulta Médica de Especialidad en Endocrinología Pediátrica",0,0,null,null,null,null,null,null,null,null,null,null,null,null,null,null,null,null,null,null,null,null,null,null,null,null,null,null,null,null,null,null,null,null,null,null,null,null,"",null,null,null,null,null,null,null,null,null,null,null,null,null,null,null,null,null,null,null,null,null,null,null,null,null,null,null,null,null,null,null,null,null,null,null,null,null,null,null,"","","","","","","",null,"","",null,null,null,null,null,0,0,0,0,0,0,0,null,0,0]
["0101209","Consulta Médica de Especialidad en Neurología Adultos",0,0,null,null,null,null,null,null,null,null,null,null,null,null,null,null,null,null,null,null,null,null,null,null,null,null,null,null,null,null,null,null,null,null,null,null,null,null,"",null,null,null,null,null,null,null,null,null,null,null,null,null,null,null,null,null,null,null,null,null,null,null,null,null,null,null,null,null,null,null,null,null,null,null,null,null,null,null,"","","","","","","",null,"","",null,null,null,null,null,0,0,0,0,0,0,0,null,0,0]
["0101210","Consulta Médica de Especialidad en Neurología Pediátrica",0,0,null,null,null,null,null,null,null,null,null,null,null,null,null,null,null,null,null,null,null,null,null,null,null,null,null,null,null,null,null,null,null,null,null,null,null,null,"",null,null,null,null,null,null,null,null,null,null,null,null,null,null,null,null,null,null,null,null,null,null,null,null,null,null,null,null,null,null,null,null,null,null,null,null,null,null,null,"","","","","","","",null,"","",null,null,null,null,null,0,0,0,0,0,0,0,null,0,0]
["0101211","Consulta Médica de Especialidad en Oncología Médica",0,0,null,null,null,null,null,null,null,null,null,null,null,null,null,null,null,null,null,null,null,null,null,null,null,null,null,null,null,null,null,null,null,null,null,null,null,null,"",null,null,null,null,null,null,null,null,null,null,null,null,null,null,null,null,null,null,null,null,null,null,null,null,null,null,null,null,null,null,null,null,null,null,null,null,null,null,null,"","","","","","","",null,"","",null,null,null,null,null,0,0,0,0,0,0,0,null,0,0]
["0101212","Consulta Médica de Especialidad en Psiquiatría adultos",0,0,null,null,null,null,null,null,null,null,null,null,null,null,null,null,null,null,null,null,null,null,null,null,null,null,null,null,null,null,null,null,null,null,null,null,null,null,"",null,null,null,null,null,null,null,null,null,null,null,null,null,null,null,null,null,null,null,null,null,null,null,null,null,null,null,null,null,null,null,null,null,null,null,null,null,null,null,"","","","","","","",null,"","",null,null,null,null,null,0,0,0,0,0,0,0,null,0,0]
["0101213","Consulta Médica de Especialidad en Psiquiatría pediátrica y de la adolescencia",0,0,null,null,null,null,null,null,null,null,null,null,null,null,null,null,null,null,null,null,null,null,null,null,null,null,null,null,null,null,null,null,null,null,null,null,null,null,"",null,null,null,null,null,null,null,null,null,null,null,null,null,null,null,null,null,null,null,null,null,null,null,null,null,null,null,null,null,null,null,null,null,null,null,null,null,null,null,"","","","","","","",null,"","",null,null,null,null,null,0,0,0,0,0,0,0,null,0,0]
["0101300","Consulta Médica otras Especialidades",0,0,null,null,null,null,null,null,null,null,null,null,null,null,null,null,null,null,null,null,null,null,null,null,null,null,null,null,null,null,null,null,null,null,null,null,null,null,"",null,null,null,null,null,null,null,null,null,null,null,null,null,null,null,null,null,null,null,null,null,null,null,null,null,null,null,null,null,null,null,null,null,null,null,null,null,null,null,"",{"$f":"IF(AND($C25>0,AB25=\"\"),\" * No olvide digitar la variable \"&$AA$8&\"\"&\": Atención Abierta. Digite Cero si no tiene.\",\"\")","v":""},"",{"$f":"IF(AND(C25<AA25+AB25+AC25),\" * La Suma de la variable \"&$AA$8&\"\"&\" no puede ser mayor al Total.\",\"\")","v":""},"","","",null,"","",null,null,null,null,null,0,{"$f":"IF(AND($C25>0,AB25=\"\"),1,0)","v":0},0,{"$f":"IF(AND(C25<AA25+AB25+AC25),1,0)","v":0},0,0,0,null,0,0]
["0101301","Consulta Médica de Especialidad en Cardiología",0,0,null,null,null,null,null,null,null,null,null,null,null,null,null,null,null,null,null,null,null,null,null,null,null,null,null,null,null,null,null,null,null,null,null,null,null,null,"",null,null,null,null,null,null,null,null,null,null,null,null,null,null,null,null,null,null,null,null,null,null,null,null,null,null,null,null,null,null,null,null,null,null,null,null,null,null,null,"","","","","","","",null,"","",null,null,null,null,null,0,0,0,0,0,0,0,null,0,0]
["0101302","Consulta Médica de Especialidad en Hematología",0,0,null,null,null,null,null,null,null,null,null,null,null,null,null,null,null,null,null,null,null,null,null,null,null,null,null,null,null,null,null,null,null,null,null,null,null,null,"",null,null,null,null,null,null,null,null,null,null,null,null,null,null,null,null,null,null,null,null,null,null,null,null,null,null,null,null,null,null,null,null,null,null,null,null,null,null,null,"","","","","","","",null,"","",null,null,null,null,null,0,0,0,0,0,0,0,null,0,0]
["0101303","Consulta Médica de Especialidad en Infectología",0,0,null,null,null,null,null,null,null,null,null,null,null,null,null,null,null,null,null,null,null,null,null,null,null,null,null,null,null,null,null,null,null,null,null,null,null,null,"",null,null,null,null,null,null,null,null,null,null,null,null,null,null,null,null,null,null,null,null,null,null,null,null,null,null,null,null,null,null,null,null,null,null,null,null,null,null,null,"","","","","","","",null,"","",null,null,null,null,null,0,0,0,0,0,0,0,null,0,0]
["0101304","Consulta Médica de Especialidad en Inmunología",0,0,null,null,null,null,null,null,null,null,null,null,null,null,null,null,null,null,null,null,null,null,null,null,null,null,null,null,null,null,null,null,null,null,null,null,null,null,"",null,null,null,null,null,null,null,null,null,null,null,null,null,null,null,null,null,null,null,null,null,null,null,null,null,null,null,null,null,null,null,null,null,null,null,null,null,null,null,"","","","","","","",null,"","",null,null,null,null,null,0,0,0,0,0,0,0,null,0,0]
["0101305","Consulta Médica de Especialidad en Medicina Familiar",0,0,null,null,null,null,null,null,null,null,null,null,null,null,null,null,null,null,null,null,null,null,null,null,null,null,null,null,null,null,null,null,null,null,null,null,null,null,"",null,null,null,null,null,null,null,null,null,null,null,null,null,null,null,null,null,null,null,null,null,null,null,null,null,null,null,null,null,null,null,null,null,null,null,null,null,null,null,"","","","","","","",null,"","",null,null,null,null,null,0,0,0,0,0,0,0,null,0,0]
["0101306","Consulta Médica de Especialidad en Medicina Física y Rehabilitación",0,0,null,null,null,null,null,null,null,null,null,null,null,null,null,null,null,null,null,null,null,null,null,null,null,null,null,null,null,null,null,null,null,null,null,null,null,null,"",null,null,null,null,null,null,null,null,null,null,null,null,null,null,null,null,null,null,null,null,null,null,null,null,null,null,null,null,null,null,null,null,null,null,null,null,null,null,null,"","","","","","","",null,"","",null,null,null,null,null,0,0,0,0,0,0,0,null,0,0]
["0101307","Consulta Médica de Especialidad en Medicina Interna",0,0,null,null,null,null,null,null,null,null,null,null,null,null,null,null,null,null,null,null,null,null,null,null,null,null,null,null,null,null,null,null,null,null,null,null,null,null,"",null,null,null,null,null,null,null,null,null,null,null,null,null,null,null,null,null,null,null,null,null,null,null,null,null,null,null,null,null,null,null,null,null,null,null,null,null,null,null,"","","","","","","",null,"","",null,null,null,null,null,0,0,0,0,0,0,0,null,0,0]
["0101308","Consulta Médica de Especialidad en Obstetricia y Ginecología",0,0,null,null,null,null,null,null,null,null,null,null,null,null,null,null,null,null,null,null,null,null,null,null,null,null,null,null,null,null,null,null,null,null,null,null,null,null,"",null,null,null,null,null,null,null,null,null,null,null,null,null,null,null,null,null,null,null,null,null,null,null,null,null,null,null,null,null,null,null,null,null,null,null,null,null,null,null,"","","","","","","",null,"","",null,null,null,null,null,0,0,0,0,0,0,0,null,0,0]
["0101309","Consulta Médica de Especialidad en Pediatría",0,0,null,null,null,null,null,null,null,null,null,null,null,null,null,null,null,null,null,null,null,null,null,null,null,null,null,null,null,null,null,null,null,null,null,null,null,null,"",null,null,null,null,null,null,null,null,null,null,null,null,null,null,null,null,null,null,null,null,null,null,null,null,null,null,null,null,null,null,null,null,null,null,null,null,null,null,null,"","","","","","","",null,"","",null,null,null,null,null,0,0,0,0,0,0,0,null,0,0]
["0101310","Consulta Médica de Especialidad en Traumatología y Ortopedia",0,0,null,null,null,null,null,null,null,null,null,null,null,null,null,null,null,null,null,null,null,null,null,null,null,null,null,null,null,null,null,null,null,null,null,null,null,null,"",null,null,null,null,null,null,null,null,null,null,null,null,null,null,null,null,null,null,null,null,null,null,null,null,null,null,null,null,null,null,null,null,null,null,null,null,null,null,null,"","","","","","","",null,"","",null,null,null,null,null,0,0,0,0,0,0,0,null,0,0]
["0101311","Consulta Médica de Especialidad en Urología",0,0,null,null,null,null,null,null,null,null,null,null,null,null,null,null,null,null,null,null,null,null,null,null,null,null,null,null,null,null,null,null,null,null,null,null,null,null,"",null,null,null,null,null,null,null,null,null,null,null,null,null,null,null,null,null,null,null,null,null,null,null,null,null,null,null,null,null,null,null,null,null,null,null,null,null,null,null,"","","","","","","",null,"","",null,null,null,null,null,0,0,0,0,0,0,0,null,0,0]
["0101312","Consulta Médica de Especialidad en Cirugía General",0,0,null,null,null,null,null,null,null,null,null,null,null,null,null,null,null,null,null,null,null,null,null,null,null,null,null,null,null,null,null,null,null,null,null,null,null,null,"",null,null,null,null,null,null,null,null,null,null,null,null,null,null,null,null,null,null,null,null,null,null,null,null,null,null,null,null,null,null,null,null,null,null,null,null,null,null,null,"","","","","","","",null,"","",null,null,null,null,null,0,0,0,0,0,0,0,null,0,0]
["0101313","Consulta Médica de Especialidad en Cirugía de Cabeza, Cuello y Maxilofacial",0,0,null,null,null,null,null,null,null,null,null,null,null,null,null,null,null,null,null,null,null,null,null,null,null,null,null,null,null,null,null,null,null,null,null,null,null,null,"",null,null,null,null,null,null,null,null,null,null,null,null,null,null,null,null,null,null,null,null,null,null,null,null,null,null,null,null,null,null,null,null,null,null,null,null,null,null,null,"","","","","","","",null,"","",null,null,null,null,null,0,0,0,0,0,0,0,null,0,0]
["0101314","Consulta Médica de Especialidad en Cirugía Cardiovascular",0,0,null,null,null,null,null,null,null,null,null,null,null,null,null,null,null,null,null,null,null,null,null,null,null,null,null,null,null,null,null,null,null,null,null,null,null,null,"",null,null,null,null,null,null,null,null,null,null,null,null,null,null,null,null,null,null,null,null,null,null,null,null,null,null,null,null,null,null,null,null,null,null,null,null,null,null,null,"",{"$f":"IF(AND($C39>0,AB39=\"\"),\" * No olvide digitar la variable \"&$AA$8&\"\"&\": Atención Abierta. Digite Cero si no tiene.\",\"\")","v":""},"",{"$f":"IF(AND(C39<AA39+AB39+AC39),\" * La Suma de la variable \"&$AA$8&\"\"&\" no puede ser mayor al Total.\",\"\")","v":""},"","","",null,"","",null,null,null,null,null,0,{"$f":"IF(AND($C39>0,AB39=\"\"),1,0)","v":0},0,{"$f":"IF(AND(C39<AA39+AB39+AC39),1,0)","v":0},0,0,0,null,0,0]
["0101315","Consulta Médica de Especialidad en Cirugía de Tórax",0,0,null,null,null,null,null,null,null,null,null,null,null,null,null,null,null,null,null,null,null,null,null,null,null,null,null,null,null,null,null,null,null,null,null,null,null,null,"",null,null,null,null,null,null,null,null,null,null,null,null,null,null,null,null,null,null,null,null,null,null,null,null,null,null,null,null,null,null,null,null,null,null,null,null,null,null,null,"","","","","","","",null,"","",null,null,null,null,null,0,0,0,0,0,0,0,null,0,0]
["0101316","Consulta Médica de Especialidad en Cirugía Plástica y Reparadora",0,0,null,null,null,null,null,null,null,null,null,null,null,null,null,null,null,null,null,null,null,null,null,null,null,null,null,null,null,null,null,null,null,null,null,null,null,null,"",null,null,null,null,null,null,null,null,null,null,null,null,null,null,null,null,null,null,null,null,null,null,null,null,null,null,null,null,null,null,null,null,null,null,null,null,null,null,null,"","","","","","","",null,"","",null,null,null,null,null,0,0,0,0,0,0,0,null,0,0]
["0101317","Consulta Médica de Especialidad en Cirugía Pediátrica",0,0,null,null,null,null,null,null,null,null,null,null,null,null,null,null,null,null,null,null,null,null,null,null,null,null,null,null,null,null,null,null,null,null,null,null,null,null,"",null,null,null,null,null,null,null,null,null,null,null,null,null,null,null,null,null,null,null,null,null,null,null,null,null,null,null,null,null,null,null,null,null,null,null,null,null,null,null,"","","","","","","",null,"","",null,null,null,null,null,0,0,0,0,0,0,0,null,0,0]
["0101318","Consulta Médica de Especialidad en Cirugía Vascular Periférica",0,0,null,null,null,null,null,null,null,null,null,null,null,null,null,null,null,null,null,null,null,null,null,null,null,null,null,null,null,null,null,null,null,null,null,null,null,null,"",null,null,null,null,null,null,null,null,null,null,null,null,null,null,null,null,null,null,null,null,null,null,null,null,null,null,null,null,null,null,null,null,null,null,null,null,null,null,null,"","","","","","","",null,"","",null,null,null,null,null,0,0,0,0,0,0,0,null,0,0]
["0101319","Consulta Médica de Especialidad en Coloproctología",0,0,null,null,null,null,null,null,null,null,null,null,null,null,null,null,null,null,null,null,null,null,null,null,null,null,null,null,null,null,null,null,null,null,null,null,null,null,"",null,null,null,null,null,null,null,null,null,null,null,null,null,null,null,null,null,null,null,null,null,null,null,null,null,null,null,null,null,null,null,null,null,null,null,null,null,null,null,{"$f":"IF(AND($C44>0,AA44=\"\"),\" * No olvide digitar la variable \"&$AA$8&\"\"&\": Atención Cerrada. Digite Cero si no tiene.\",\"\")","v":""},{"$f":"IF(AND($C44>0,AB44=\"\"),\" * No olvide digitar la variable \"&$AA$8&\"\"&\": Atención Abierta. Digite Cero si no tiene.\",\"\")","v":""},{"$f":"IF(AND($C44>0,AC44=\"\"),\" * No olvide digitar la variable \"&$AA$8&\"\"&\": Emergencia. Digite Cero si no tiene.\",\"\")","v":""},{"$f":"IF(AND(C44<AA44+AB44+AC44),\" * La Suma de la variable \"&$AA$8&\"\"&\" no puede ser mayor al Total.\",\"\")","v":""},{"$f":"IF(AND($C44>0,AD44=\"\"),\" * No olvide digitar la variable \"&$AD$8&\"\"&\": Honorarios. Digite Cero si no tiene.\",\"\")","v":""},{"$f":"IF(AND($C44>0,AE44=\"\"),\" * No olvide digitar la variable \"&$AD$8&\"\"&\": Convenios. Digite Cero si no tiene.\",\"\")","v":""},{"$f":"IF(AND($C44>0,AF44=\"\"),\" * No olvide digitar la variable \"&$AD$8&\"\"&\": Consultores de llamada. Digite Cero si no tiene.\",\"\")","v":""},null,{"$f":"IF(AND($C44>0,AH44=\"\"),\" * No olvide digitar la variable \"&$AH$8&\"\"&\" Al Sistema. Digite Cero si no tiene.\",\"\")","v":""},{"$f":"IF(AND($C44>0,AI44=\"\"),\" * No olvide digitar la variable \"&$AH$8&\"\"&\" al Extrasistema. Digite Cero si no tiene.\",\"\")","v":""},null,null,null,null,null,{"$f":"IF(AND($C44>0,AA44=\"\"),1,0)","v":0},{"$f":"IF(AND($C44>0,AB44=\"\"),1,0)","v":0},{"$f":"IF(AND($C44>0,AC44=\"\"),1,0)","v":0},{"$f":"IF(AND(C44<AA44+AB44+AC44),1,0)","v":0},{"$f":"IF(AND($C44>0,AD44=\"\"),1,0)","v":0},{"$f":"IF(AND($C44>0,AE44=\"\"),1,0)","v":0},{"$f":"IF(AND($C44>0,AF44=\"\"),1,0)","v":0},null,{"$f":"IF(AND($C44>0,AH44=\"\"),1,0)","v":0},{"$f":"IF(AND($C44>0,AI44=\"\"),1,0)","v":0}]
["0101320","Consulta Médica de Especialidad en Diabetología",0,0,null,null,null,null,null,null,null,null,null,null,null,null,null,null,null,null,null,null,null,null,null,null,null,null,null,null,null,null,null,null,null,null,null,null,null,null,"",null,null,null,null,null,null,null,null,null,null,null,null,null,null,null,null,null,null,null,null,null,null,null,null,null,null,null,null,null,null,null,null,null,null,null,null,null,null,null,"","","","","","","",null,"","",null,null,null,null,null,0,0,0,0,0,0,0,null,0,0]
["0101321","Consulta Médica de Especialidad en Enfermedades Respiratorias Adulto",0,0,null,null,null,null,null,null,null,null,null,null,null,null,null,null,null,null,null,null,null,null,null,null,null,null,null,null,null,null,null,null,null,null,null,null,null,null,"",null,null,null,null,null,null,null,null,null,null,null,null,null,null,null,null,null,null,null,null,null,null,null,null,null,null,null,null,null,null,null,null,null,null,null,null,null,null,null,"","","","","","","",null,"","",null,null,null,null,null,0,0,0,0,0,0,0,null,0,0]
["0101322","Consulta Médica de Especialidad en Enfermedades Respiratorias Pediátricas",0,0,null,null,null,null,null,null,null,null,null,null,null,null,null,null,null,null,null,null,null,null,null,null,null,null,null,null,null,null,null,null,null,null,null,null,null,null,"",null,null,null,null,null,null,null,null,null,null,null,null,null,null,null,null,null,null,null,null,null,null,null,null,null,null,null,null,null,null,null,null,null,null,null,null,null,null,null,"","","","","","","",null,"","",null,null,null,null,null,0,0,0,0,0,0,0,null,0,0]
["0101323","Consulta Médica de Especialidad en Gastroenterología Adulto",0,0,null,null,null,null,null,null,null,null,null,null,null,null,null,null,null,null,null,null,null,null,null,null,null,null,null,null,null,null,null,null,null,null,null,null,null,null,"",null,null,null,null,null,null,null,null,null,null,null,null,null,null,null,null,null,null,null,null,null,null,null,null,null,null,null,null,null,null,null,null,null,null,null,null,null,null,null,"","","","","","","",null,"","",null,null,null,null,null,0,0,0,0,0,0,0,null,0,0]
["0101324","Consulta Médica de Especialidad en Gastroenterología Pediátrico",0,0,null,null,null,null,null,null,null,null,null,null,null,null,null,null,null,null,null,null,null,null,null,null,null,null,null,null,null,null,null,null,null,null,null,null,null,null,"",null,null,null,null,null,null,null,null,null,null,null,null,null,null,null,null,null,null,null,null,null,null,null,null,null,null,null,null,null,null,null,null,null,null,null,null,null,null,null,"","","","","","","",null,"","",null,null,null,null,null,0,0,0,0,0,0,0,null,0,0]
["0101325","Consulta Médica de Especialidad en Genética Clínica",0,0,null,null,null,null,null,null,null,null,null,null,null,null,null,null,null,null,null,null,null,null,null,null,null,null,null,null,null,null,null,null,null,null,null,null,null,null,"",null,null,null,null,null,null,null,null,null,null,null,null,null,null,null,null,null,null,null,null,null,null,null,null,null,null,null,null,null,null,null,null,null,null,null,null,null,null,null,"","","","","","","",null,"","",null,null,null,null,null,0,0,0,0,0,0,0,null,0,0]
["0101326","Consulta Médica de Especialidad en Nefrología Adulto",0,0,null,null,null,null,null,null,null,null,null,null,null,null,null,null,null,null,null,null,null,null,null,null,null,null,null,null,null,null,null,null,null,null,null,null,null,null,"",null,null,null,null,null,null,null,null,null,null,null,null,null,null,null,null,null,null,null,null,null,null,null,null,null,null,null,null,null,null,null,null,null,null,null,null,null,null,null,"","","","","","","",null,"","",null,null,null,null,null,0,0,0,0,0,0,0,null,0,0]
["0101327","Consulta Médica de Especialidad en Nefrología Pediátrico",0,0,null,null,null,null,null,null,null,null,null,null,null,null,null,null,null,null,null,null,null,null,null,null,null,null,null,null,null,null,null,null,null,null,null,null,null,null,"",null,null,null,null,null,null,null,null,null,null,null,null,null,null,null,null,null,null,null,null,null,null,null,null,null,null,null,null,null,null,null,null,null,null,null,null,null,null,null,"","","","","","","",null,"","",null,null,null,null,null,0,0,0,0,0,0,0,null,0,0]
["0101328","Consulta Médica de Especialidad en Neonatología",0,0,null,null,null,null,null,null,null,null,null,null,null,null,null,null,null,null,null,null,null,null,null,null,null,null,null,null,null,null,null,null,null,null,null,null,null,null,"",null,null,null,null,null,null,null,null,null,null,null,null,null,null,null,null,null,null,null,null,null,null,null,null,null,null,null,null,null,null,null,null,null,null,null,null,null,null,null,"","","","","","","",null,"","",null,null,null,null,null,0,0,0,0,0,0,0,null,0,0]
["0101329","Consulta Médica de Especialidad en Anestesiología",0,0,null,null,null,null,null,null,null,null,null,null,null,null,null,null,null,null,null,null,null,null,null,null,null,null,null,null,null,null,null,null,null,null,null,null,null,null,"",null,null,null,null,null,null,null,null,null,null,null,null,null,null,null,null,null,null,null,null,null,null,null,null,null,null,null,null,null,null,null,null,null,null,null,null,null,null,null,"","","","","","","",null,"","",null,null,null,null,null,0,0,0,0,0,0,0,null,0,0]
["0101331","Consulta Médica de Especialidad en Radioterapia Oncológica",0,0,null,null,null,null,null,null,null,null,null,null,null,null,null,null,null,null,null,null,null,null,null,null,null,null,null,null,null,null,null,null,null,null,null,null,null,null,"",null,null,null,null,null,null,null,null,null,null,null,null,null,null,null,null,null,null,null,null,null,null,null,null,null,null,null,null,null,null,null,null,null,null,null,null,null,null,null,"","","","","","","",null,"","",null,null,null,null,null,0,0,0,0,0,0,0,null,0,0]
["0101332","Consulta Médica de Especialidad en Ginecología Pediátrica y de la Adolescencia",0,0,null,null,null,null,null,null,null,null,null,null,null,null,null,null,null,null,null,null,null,null,null,null,null,null,null,null,null,null,null,null,null,null,null,null,null,null,"",null,null,null,null,null,null,null,null,null,null,null,null,null,null,null,null,null,null,null,null,null,null,null,null,null,null,null,null,null,null,null,null,null,null,null,null,null,null,null,"","","","","","","",null,"","",null,null,null,null,null,0,0,0,0,0,0,0,null,0,0]
["0101334","Consulta Médica de Especialidad en Medicina Nuclear",0,0,null,null,null,null,null,null,null,null,null,null,null,null,null,null,null,null,null,null,null,null,null,null,null,null,null,null,null,null,null,null,null,null,null,null,null,null,"",null,null,null,null,null,null,null,null,null,null,null,null,null,null,null,null,null,null,null,null,null,null,null,null,null,null,null,null,null,null,null,null,null,null,null,null,null,null,null,"","","","","","","",null,"","",null,null,null,null,null,0,0,0,0,0,0,0,null,0,0]
["0101001","Consulta Medicina General",{"$f":"SUM(D58+G58)","v":0},{"$f":"SUM(E58:F58)","v":0},null,null,null,null,null,null,null,null,null,null,null,null,null,null,null,null,null,null,null,null,null,null,null,null,null,null,null,null,null,null,null,null,null,null,null,null,"",null,null,null,null,null,null,null,null,null,null,null,null,null,null,null,null,null,null,null,null,null,null,null,null,null,null,null,null,null,null,null,null,null,null,null,null,null,null,null,"","","","","","","",null,"","",null,null,null,null,null,0,0,0,0,0,0,0,null,0,0]
["0101007","Atención médica del recién nacido en sala de parto o pabellón quirúrgico c/s reanimación cardio-respiratoria",{"$f":"SUM(D59+G59)","v":0},{"$f":"SUM(E59:F59)","v":0},null,null,null,null,null,null,null,null,null,null,null,null,null,null,null,null,null,null,null,null,null,null,null,null,null,null,null,null,null,null,null,null,null,null,null,null,"",null,null,null,null,null,null,null,null,null,null,null,null,null,null,null,null,null,null,null,null,null,null,null,null,null,null,null,null,null,null,null,null,null,null,null,null,null,null,null,"","","","","","","",null,"","",null,null,null,null,null,0,0,0,0,0,0,0,null,0,0]
["0101103","Consulta en Unidades de Urgencia Hospitalaria",{"$f":"SUM(D60+G60)","v":0},{"$f":"SUM(E60:F60)","v":0},null,null,null,null,null,null,null,null,null,null,null,null,null,null,null,null,null,null,null,null,null,null,null,null,null,null,null,null,null,null,null,null,null,null,null,null,"",null,null,null,null,null,null,null,null,null,null,null,null,null,null,null,null,null,null,null,null,null,null,null,null,null,null,null,null,null,null,null,null,null,null,null,null,null,null,null,"","","","","","","",null,"","",null,null,null,null,null,0,0,0,0,0,0,0,null,0,0]
["TOTAL ",null,{"$f":"SUM(C12:C60)","v":0},{"$f":"SUM(D12:D60)","v":0},{"$f":"SUM(E12:E60)","v":0},{"$f":"SUM(F12:F60)","v":0},{"$f":"SUM(G12:G60)","v":0},null,null,null,null,null,null,null,null,null,null,null,null,null,null,null,null,null,null,null,{"$f":"SUM(AA12:AA60)","v":0},{"$f":"SUM(AB12:AB60)","v":0},0,0,0,0,0,0,0,0]
["CONSULTAS POR OTROS PROFESIONALES DE LA SALUD                                   "]
["0102002","Control de salud niño con EDP por enfermera",{"$f":"SUM(D63+G63)","v":0},{"$f":"SUM(E63:F63)","v":0},null,null,null,null,null,null,null,null,null,null,null,null,null,null,null,null,null,null,null,null,null,null,null,null,null,null,null,null,null,null,null,null,null,null,null,null,"",null,null,null,null,null,null,null,null,null,null,null,null,null,null,null,null,null,null,null,null,null,null,null,null,null,null,null,null,null,null,null,null,null,null,null,null,null,null,null,{"$f":"IF(AND($C63>0,AA63=\"\"),\" * No olvide digitar la variable \"&$AA$8&\"\"&\": Atención Cerrada. Digite Cero si no tiene.\",\"\")","v":""},{"$f":"IF(AND($C63>0,AB63=\"\"),\" * No olvide digitar la variable \"&$AA$8&\"\"&\": Atención Abierta. Digite Cero si no tiene.\",\"\")","v":""},{"$f":"IF(AND($C63>0,AC63=\"\"),\" * No olvide digitar la variable \"&$AA$8&\"\"&\": Emergencia. Digite Cero si no tiene.\",\"\")","v":""},{"$f":"IF(AND(C63<AA63+AB63+AC63),\" * La Suma de la variable \"&$AA$8&\"\"&\" no puede ser mayor al Total.\",\"\")","v":""},{"$f":"IF(AND($C63>0,AD63=\"\"),\" * No olvide digitar la variable \"&$AD$8&\"\"&\": Honorarios. Digite Cero si no tiene.\",\"\")","v":""},{"$f":"IF(AND($C63>0,AE63=\"\"),\" * No olvide digitar la variable \"&$AD$8&\"\"&\": Convenios. Digite Cero si no tiene.\",\"\")","v":""},{"$f":"IF(AND($C63>0,AF63=\"\"),\" * No olvide digitar la variable \"&$AD$8&\"\"&\": Consultores de llamada. Digite Cero si no tiene.\",\"\")","v":""},null,{"$f":"IF(AND($C63>0,AH63=\"\"),\" * No olvide digitar la variable \"&$AH$8&\"\"&\" Al Sistema. Digite Cero si no tiene.\",\"\")","v":""},{"$f":"IF(AND($C63>0,AI63=\"\"),\" * No olvide digitar la variable \"&$AH$8&\"\"&\" al Extrasistema. Digite Cero si no tiene.\",\"\")","v":""},null,null,null,null,null,{"$f":"IF(AND($C63>0,AA63=\"\"),1,0)","v":0},{"$f":"IF(AND($C63>0,AB63=\"\"),1,0)","v":0},{"$f":"IF(AND($C63>0,AC63=\"\"),1,0)","v":0},{"$f":"IF(AND(C63<AA63+AB63+AC63),1,0)","v":0},{"$f":"IF(AND($C63>0,AD63=\"\"),1,0)","v":0},{"$f":"IF(AND($C63>0,AE63=\"\"),1,0)","v":0},{"$f":"IF(AND($C63>0,AF63=\"\"),1,0)","v":0},null,{"$f":"IF(AND($C63>0,AH63=\"\"),1,0)","v":0},{"$f":"IF(AND($C63>0,AI63=\"\"),1,0)","v":0}]
["0102003","Consulta o control por auxiliar de enfermería",0,0,null,null,null,null,null,null,null,null,null,null,null,null,null,null,null,null,null,null,null,null,null,null,null,null,null,null,null,null,null,null,null,null,null,null,null,null,"",null,null,null,null,null,null,null,null,null,null,null,null,null,null,null,null,null,null,null,null,null,null,null,null,null,null,null,null,null,null,null,null,null,null,null,null,null,null,null,"","","","","","","",null,"","",null,null,null,null,null,0,0,0,0,0,0,0,null,0,0]
["0102005","Consulta por fonoaudiólogo",0,0,null,null,null,null,null,null,null,null,null,null,null,null,null,null,null,null,null,null,null,null,null,null,null,null,null,null,null,null,null,null,null,null,null,null,null,null,"",null,null,null,null,null,null,null,null,null,null,null,null,null,null,null,null,null,null,null,null,null,null,null,null,null,null,null,null,null,null,null,null,null,null,null,null,null,null,null,"","","","","","","",null,"","",null,null,null,null,null,0,0,0,0,0,0,0,null,0,0]
["0102008","Consulta o control por enfermera",0,0,null,null,null,null,null,null,null,null,null,null,null,null,null,null,null,null,null,null,null,null,null,null,null,null,null,null,null,null,null,null,null,null,null,null,null,null,"",null,null,null,null,null,null,null,null,null,null,null,null,null,null,null,null,null,null,null,null,null,null,null,null,null,null,null,null,null,null,null,null,null,null,null,null,null,null,null,"","","","","","","",null,"","",null,null,null,null,null,0,0,0,0,0,0,0,null,0,0]
["0102009","Consulta o control por matrona",0,0,null,null,null,null,null,null,null,null,null,null,null,null,null,null,null,null,null,null,null,null,null,null,null,null,null,null,null,null,null,null,null,null,null,null,null,null,"",null,null,null,null,null,null,null,null,null,null,null,null,null,null,null,null,null,null,null,null,null,null,null,null,null,null,null,null,null,null,null,null,null,null,null,null,null,null,null,"","","","","","","",null,"","",null,null,null,null,null,0,0,0,0,0,0,0,null,0,0]
["0102010","Consulta o control por nutricionista",0,0,null,null,null,null,null,null,null,null,null,null,null,null,null,null,null,null,null,null,null,null,null,null,null,null,null,null,null,null,null,null,null,null,null,null,null,null,"",null,null,null,null,null,null,null,null,null,null,null,null,null,null,null,null,null,null,null,null,null,null,null,null,null,null,null,null,null,null,null,null,null,null,null,null,null,null,null,"","","","","","","",null,"","",null,null,null,null,null,0,0,0,0,0,0,0,null,0,0]
["0102011","Consulta quimico farmacéutico",0,0,null,null,null,null,null,null,null,null,null,null,null,null,null,null,null,null,null,null,null,null,null,null,null,null,null,null,null,null,null,null,null,null,null,null,null,null,"",null,null,null,null,null,null,null,null,null,null,null,null,null,null,null,null,null,null,null,null,null,null,null,null,null,null,null,null,null,null,null,null,null,null,null,null,null,null,null,"","","","","","","",null,"","",null,null,null,null,null,0,0,0,0,0,0,0,null,0,0]
["01010025","Consulta por otros profesionales ",0,0,null,null,null,null,null,null,null,null,null,null,null,null,null,null,null,null,null,null,null,null,null,null,null,null,null,null,null,null,null,null,null,null,null,null,null,null,"",null,null,null,null,null,null,null,null,null,null,null,null,null,null,null,null,null,null,null,null,null,null,null,null,null,null,null,null,null,null,null,null,null,null,null,null,null,null,null,"","","","","","","",null,"","",null,null,null,null,null,0,0,0,0,0,0,0,null,0,0]
["01012817","Consulta por Trabajador(a) Social",0,0,null,null,null,null,null,null,null,null,null,null,null,null,null,null,null,null,null,null,null,null,null,null,null,null,null,null,null,null,null,null,null,null,null,null,null,null,"",null,null,null,null,null,null,null,null,null,null,null,null,null,null,null,null,null,null,null,null,null,null,null,null,null,null,null,null,null,null,null,null,null,null,null,null,null,null,null,"","","","","","","",null,"","",null,null,null,null,null,0,0,0,0,0,0,0,null,0,0]
["TOTAL",null,{"$f":"SUM(C63:C71)","v":0},{"$f":"SUM(D63:D71)","v":0},{"$f":"SUM(E63:E71)","v":0},{"$f":"SUM(F63:F71)","v":0},{"$f":"SUM(G63:G71)","v":0},null,null,null,null,null,null,null,null,null,null,null,null,null,null,null,null,null,null,null,{"$f":"SUM(AA63:AA71)","v":0},{"$f":"SUM(AB63:AB71)","v":0},0,0,0,0,0,0,0,0]
["TELEMEDICINA"]
["TELECONSULTAS"]
["0108001","Teleconsulta Medicina General",{"$f":"SUM(D75+G75)","v":0},{"$f":"SUM(E75:F75)","v":0},null,null,null,null,null,null,null,null,null,null,null,null,null,null,null,null,null,null,null,null,null,null,null,null,null,null,null,null,null,null,null,null,null,null,null,null,"",null,null,null,null,null,null,null,null,null,null,null,null,null,null,null,null,null,null,null,null,null,null,null,null,null,null,null,null,null,null,null,null,null,null,null,null,null,null,null,{"$f":"IF(AND($C75>0,AA75=\"\"),\" * No olvide digitar la variable \"&$AA$8&\"\"&\": Atención Cerrada. Digite Cero si no tiene.\",\"\")","v":""},{"$f":"IF(AND($C75>0,AB75=\"\"),\" * No olvide digitar la variable \"&$AA$8&\"\"&\": Atención Abierta. Digite Cero si no tiene.\",\"\")","v":""},{"$f":"IF(AND($C75>0,AC75=\"\"),\" * No olvide digitar la variable \"&$AA$8&\"\"&\": Emergencia. Digite Cero si no tiene.\",\"\")","v":""},{"$f":"IF(AND(C75<AA75+AB75+AC75),\" * La Suma de la variable \"&$AA$8&\"\"&\" no puede ser mayor al Total.\",\"\")","v":""},{"$f":"IF(AND($C75>0,AD75=\"\"),\" * No olvide digitar la variable \"&$AD$8&\"\"&\": Honorarios. Digite Cero si no tiene.\",\"\")","v":""},{"$f":"IF(AND($C75>0,AE75=\"\"),\" * No olvide digitar la variable \"&$AD$8&\"\"&\": Convenios. Digite Cero si no tiene.\",\"\")","v":""},{"$f":"IF(AND($C75>0,AF75=\"\"),\" * No olvide digitar la variable \"&$AD$8&\"\"&\": Consultores de llamada. Digite Cero si no tiene.\",\"\")","v":""},null,{"$f":"IF(AND($C75>0,AH75=\"\"),\" * No olvide digitar la variable \"&$AH$8&\"\"&\" Al Sistema. Digite Cero si no tiene.\",\"\")","v":""},{"$f":"IF(AND($C75>0,AI75=\"\"),\" * No olvide digitar la variable \"&$AH$8&\"\"&\" al Extrasistema. Digite Cero si no tiene.\",\"\")","v":""},null,null,null,null,null,{"$f":"IF(AND($C75>0,AA75=\"\"),1,0)","v":0},{"$f":"IF(AND($C75>0,AB75=\"\"),1,0)","v":0},{"$f":"IF(AND($C75>0,AC75=\"\"),1,0)","v":0},{"$f":"IF(AND(C75<AA75+AB75+AC75),1,0)","v":0},{"$f":"IF(AND($C75>0,AD75=\"\"),1,0)","v":0},{"$f":"IF(AND($C75>0,AE75=\"\"),1,0)","v":0},{"$f":"IF(AND($C75>0,AF75=\"\"),1,0)","v":0},null,{"$f":"IF(AND($C75>0,AH75=\"\"),1,0)","v":0},{"$f":"IF(AND($C75>0,AI75=\"\"),1,0)","v":0}]
["0108201","Teleconsulta Médica de Especialidad en Dermatología",0,0,null,null,null,null,null,null,null,null,null,null,null,null,null,null,null,null,null,null,null,null,null,null,null,null,null,null,null,null,null,null,null,null,null,null,null,null,"",null,null,null,null,null,null,null,null,null,null,null,null,null,null,null,null,null,null,null,null,null,null,null,null,null,null,null,null,null,null,null,null,null,null,null,null,null,null,null,"","","","","","","",null,"","",null,null,null,null,null,0,0,0,0,0,0,0,null,0,0]
["0108202","Teleconsulta Médica de Especialidad en Geriatría",0,0,null,null,null,null,null,null,null,null,null,null,null,null,null,null,null,null,null,null,null,null,null,null,null,null,null,null,null,null,null,null,null,null,null,null,null,null,{"$f":"CC77&CD77&CE77&CF77&CG77&CH77&CI77&CJ77&CK77&CL77&CM77","v":""},null,null,null,null,null,null,null,null,null,null,null,null,null,null,null,null,null,null,null,null,null,null,null,null,null,null,null,null,null,null,null,null,null,null,null,null,null,null,null,"","","","","","","",null,"","",null,null,null,null,null,0,0,0,0,0,0,0,null,0,0]
["0108206","Teleconsulta Médica de Especialidad en Reumatología",0,0,null,null,null,null,null,null,null,null,null,null,null,null,null,null,null,null,null,null,null,null,null,null,null,null,null,null,null,null,null,null,null,null,null,null,null,null,"",null,null,null,null,null,null,null,null,null,null,null,null,null,null,null,null,null,null,null,null,null,null,null,null,null,null,null,null,null,null,null,null,null,null,null,null,null,null,null,"","","","","","","",null,"","",null,null,null,null,null,0,0,0,0,0,0,0,null,0,0]
["0108207","Teleconsulta Médica de Especialidad en Endocrinología Adulto",0,0,null,null,null,null,null,null,null,null,null,null,null,null,null,null,null,null,null,null,null,null,null,null,null,null,null,null,null,null,null,null,null,null,null,null,null,null,"",null,null,null,null,null,null,null,null,null,null,null,null,null,null,null,null,null,null,null,null,null,null,null,null,null,null,null,null,null,null,null,null,null,null,null,null,null,null,null,"","","","","","","",null,"","",null,null,null,null,null,0,0,0,0,0,0,0,null,0,0]
["0108208","Teleconsulta Médica de Especialidad en Endocrinología Pediátrica",0,0,null,null,null,null,null,null,null,null,null,null,null,null,null,null,null,null,null,null,null,null,null,null,null,null,null,null,null,null,null,null,null,null,null,null,null,null,"",null,null,null,null,null,null,null,null,null,null,null,null,null,null,null,null,null,null,null,null,null,null,null,null,null,null,null,null,null,null,null,null,null,null,null,null,null,null,null,"","","","","","","",null,"","",null,null,null,null,null,0,0,0,0,0,0,0,null,0,0]
["0108209","Teleconsulta Médica de Especialidad en Neurología Adultos",0,0,null,null,null,null,null,null,null,null,null,null,null,null,null,null,null,null,null,null,null,null,null,null,null,null,null,null,null,null,null,null,null,null,null,null,null,null,"",null,null,null,null,null,null,null,null,null,null,null,null,null,null,null,null,null,null,null,null,null,null,null,null,null,null,null,null,null,null,null,null,null,null,null,null,null,null,null,"","","","","","","",null,"","",null,null,null,null,null,0,0,0,0,0,0,0,null,0,0]
["0108210","Teleconsulta Médica de Especialidad en Neurología Pediátrica",0,0,null,null,null,null,null,null,null,null,null,null,null,null,null,null,null,null,null,null,null,null,null,null,null,null,null,null,null,null,null,null,null,null,null,null,null,null,"",null,null,null,null,null,null,null,null,null,null,null,null,null,null,null,null,null,null,null,null,null,null,null,null,null,null,null,null,null,null,null,null,null,null,null,null,null,null,null,"","","","","","","",null,"","",null,null,null,null,null,0,0,0,0,0,0,0,null,0,0]
["0108211","Teleconsulta Médica de Especialidad en Oncología Médica",0,0,null,null,null,null,null,null,null,null,null,null,null,null,null,null,null,null,null,null,null,null,null,null,null,null,null,null,null,null,null,null,null,null,null,null,null,null,"",null,null,null,null,null,null,null,null,null,null,null,null,null,null,null,null,null,null,null,null,null,null,null,null,null,null,null,null,null,null,null,null,null,null,null,null,null,null,null,"","","","","","","",null,"","",null,null,null,null,null,0,0,0,0,0,0,0,null,0,0]
["0108212","Teleconsulta Médica de Especialidad en Psiquiatría adultos",0,0,null,null,null,null,null,null,null,null,null,null,null,null,null,null,null,null,null,null,null,null,null,null,null,null,null,null,null,null,null,null,null,null,null,null,null,null,"",null,null,null,null,null,null,null,null,null,null,null,null,null,null,null,null,null,null,null,null,null,null,null,null,null,null,null,null,null,null,null,null,null,null,null,null,null,null,null,"","","","","","","",null,"","",null,null,null,null,null,0,0,0,0,0,0,0,null,0,0]
["0108213","Teleconsulta Médica de Especialidad en Psiquiatría pediátrica y de la adolescencia",0,0,null,null,null,null,null,null,null,null,null,null,null,null,null,null,null,null,null,null,null,null,null,null,null,null,null,null,null,null,null,null,null,null,null,null,null,null,"",null,null,null,null,null,null,null,null,null,null,null,null,null,null,null,null,null,null,null,null,null,null,null,null,null,null,null,null,null,null,null,null,null,null,null,null,null,null,null,"","","","","","","",null,"","",null,null,null,null,null,0,0,0,0,0,0,0,null,0,0]
["0108301","Teleconsulta Médica de Especialidad en Cardiología",0,0,null,null,null,null,null,null,null,null,null,null,null,null,null,null,null,null,null,null,null,null,null,null,null,null,null,null,null,null,null,null,null,null,null,null,null,null,"",null,null,null,null,null,null,null,null,null,null,null,null,null,null,null,null,null,null,null,null,null,null,null,null,null,null,null,null,null,null,null,null,null,null,null,null,null,null,null,"","","","","","","",null,"","",null,null,null,null,null,0,0,0,0,0,0,0,null,0,0]
["0108302","Teleconsulta Médica de Especialidad en Hematología",0,0,null,null,null,null,null,null,null,null,null,null,null,null,null,null,null,null,null,null,null,null,null,null,null,null,null,null,null,null,null,null,null,null,null,null,null,null,"",null,null,null,null,null,null,null,null,null,null,null,null,null,null,null,null,null,null,null,null,null,null,null,null,null,null,null,null,null,null,null,null,null,null,null,null,null,null,null,"","","","","","","",null,"","",null,null,null,null,null,0,0,0,0,0,0,0,null,0,0]
["0108303","Teleconsulta Médica de Especialidad en Infectología",0,0,null,null,null,null,null,null,null,null,null,null,null,null,null,null,null,null,null,null,null,null,null,null,null,null,null,null,null,null,null,null,null,null,null,null,null,null,"",null,null,null,null,null,null,null,null,null,null,null,null,null,null,null,null,null,null,null,null,null,null,null,null,null,null,null,null,null,null,null,null,null,null,null,null,null,null,null,"","","","","","","",null,"","",null,null,null,null,null,0,0,0,0,0,0,0,null,0,0]
["0108304","Teleconsulta Médica de Especialidad en Inmunología",0,0,null,null,null,null,null,null,null,null,null,null,null,null,null,null,null,null,null,null,null,null,null,null,null,null,null,null,null,null,null,null,null,null,null,null,null,null,"",null,null,null,null,null,null,null,null,null,null,null,null,null,null,null,null,null,null,null,null,null,null,null,null,null,null,null,null,null,null,null,null,null,null,null,null,null,null,null,"","","","","","","",null,"","",null,null,null,null,null,0,0,0,0,0,0,0,null,0,0]
["0108305","Teleconsulta Médica de Especialidad en Medicina Familiar",0,0,null,null,null,null,null,null,null,null,null,null,null,null,null,null,null,null,null,null,null,null,null,null,null,null,null,null,null,null,null,null,null,null,null,null,null,null,"",null,null,null,null,null,null,null,null,null,null,null,null,null,null,null,null,null,null,null,null,null,null,null,null,null,null,null,null,null,null,null,null,null,null,null,null,null,null,null,"","","","","","","",null,"","",null,null,null,null,null,0,0,0,0,0,0,0,null,0,0]
["0108306","Teleconsulta Médica de Especialidad en Medicina Física y Rehabilitación",0,0,null,null,null,null,null,null,null,null,null,null,null,null,null,null,null,null,null,null,null,null,null,null,null,null,null,null,null,null,null,null,null,null,null,null,null,null,"",null,null,null,null,null,null,null,null,null,null,null,null,null,null,null,null,null,null,null,null,null,null,null,null,null,null,null,null,null,null,null,null,null,null,null,null,null,null,null,"","","","","","","",null,"","",null,null,null,null,null,0,0,0,0,0,0,0,null,0,0]
["0108307","Teleconsulta Médica de Especialidad en Medicina Interna",0,0,null,null,null,null,null,null,null,null,null,null,null,null,null,null,null,null,null,null,null,null,null,null,null,null,null,null,null,null,null,null,null,null,null,null,null,null,"",null,null,null,null,null,null,null,null,null,null,null,null,null,null,null,null,null,null,null,null,null,null,null,null,null,null,null,null,null,null,null,null,null,null,null,null,null,null,null,"","","","","","","",null,"","",null,null,null,null,null,0,0,0,0,0,0,0,null,0,0]
["0108308","Teleconsulta Médica de Especialidad en Obstetricia y Ginecología",0,0,null,null,null,null,null,null,null,null,null,null,null,null,null,null,null,null,null,null,null,null,null,null,null,null,null,null,null,null,null,null,null,null,null,null,null,null,"",null,null,null,null,null,null,null,null,null,null,null,null,null,null,null,null,null,null,null,null,null,null,null,null,null,null,null,null,null,null,null,null,null,null,null,null,null,null,null,"","","","","","","",null,"","",null,null,null,null,null,0,0,0,0,0,0,0,null,0,0]
["0108309","Teleconsulta Médica de Especialidad en Pediatría",0,0,null,null,null,null,null,null,null,null,null,null,null,null,null,null,null,null,null,null,null,null,null,null,null,null,null,null,null,null,null,null,null,null,null,null,null,null,"",null,null,null,null,null,null,null,null,null,null,null,null,null,null,null,null,null,null,null,null,null,null,null,null,null,null,null,null,null,null,null,null,null,null,null,null,null,null,null,"","","","","","","",null,"","",null,null,null,null,null,0,0,0,0,0,0,0,null,0,0]
["0108310","Teleconsulta Médica de Especialidad en Traumatología y Ortopedia",0,0,null,null,null,null,null,null,null,null,null,null,null,null,null,null,null,null,null,null,null,null,null,null,null,null,null,null,null,null,null,null,null,null,null,null,null,null,"",null,null,null,null,null,null,null,null,null,null,null,null,null,null,null,null,null,null,null,null,null,null,null,null,null,null,null,null,null,null,null,null,null,null,null,null,null,null,null,"","","","","","","",null,"","",null,null,null,null,null,0,0,0,0,0,0,0,null,0,0]
["0108311","Teleconsulta Médica de Especialidad en Urología",0,0,null,null,null,null,null,null,null,null,null,null,null,null,null,null,null,null,null,null,null,null,null,null,null,null,null,null,null,null,null,null,null,null,null,null,null,null,"",null,null,null,null,null,null,null,null,null,null,null,null,null,null,null,null,null,null,null,null,null,null,null,null,null,null,null,null,null,null,null,null,null,null,null,null,null,null,null,"","","","","","","",null,"","",null,null,null,null,null,0,0,0,0,0,0,0,null,0,0]
["0108319","Teleconsulta Médica de Especialidad en Coloproctología",0,0,null,null,null,null,null,null,null,null,null,null,null,null,null,null,null,null,null,null,null,null,null,null,null,null,null,null,null,null,null,null,null,null,null,null,null,null,"",null,null,null,null,null,null,null,null,null,null,null,null,null,null,null,null,null,null,null,null,null,null,null,null,null,null,null,null,null,null,null,null,null,null,null,null,null,null,null,"","","","","","","",null,"","",null,null,null,null,null,0,0,0,0,0,0,0,null,0,0]
["0108320","Teleconsulta Médica de Especialidad en Diabetología",0,0,null,null,null,null,null,null,null,null,null,null,null,null,null,null,null,null,null,null,null,null,null,null,null,null,null,null,null,null,null,null,null,null,null,null,null,null,"",null,null,null,null,null,null,null,null,null,null,null,null,null,null,null,null,null,null,null,null,null,null,null,null,null,null,null,null,null,null,null,null,null,null,null,null,null,null,null,"","","","","","","",null,"","",null,null,null,null,null,0,0,0,0,0,0,0,null,0,0]
["0108321","Teleconsulta Médica de Especialidad en Enfermedades Respiratorias Adulto",0,0,null,null,null,null,null,null,null,null,null,null,null,null,null,null,null,null,null,null,null,null,null,null,null,null,null,null,null,null,null,null,null,null,null,null,null,null,"",null,null,null,null,null,null,null,null,null,null,null,null,null,null,null,null,null,null,null,null,null,null,null,null,null,null,null,null,null,null,null,null,null,null,null,null,null,null,null,"","","","","","","",null,"","",null,null,null,null,null,0,0,0,0,0,0,0,null,0,0]
["0108322","Teleconsulta Médica de Especialidad en Enfermedades Respiratorias Pediátricas",0,0,null,null,null,null,null,null,null,null,null,null,null,null,null,null,null,null,null,null,null,null,null,null,null,null,null,null,null,null,null,null,null,null,null,null,null,null,"",null,null,null,null,null,null,null,null,null,null,null,null,null,null,null,null,null,null,null,null,null,null,null,null,null,null,null,null,null,null,null,null,null,null,null,null,null,null,null,"","","","","","","",null,"","",null,null,null,null,null,0,0,0,0,0,0,0,null,0,0]
["0108323","Teleconsulta Médica de Especialidad en Gastroenterología Adulto",0,0,null,null,null,null,null,null,null,null,null,null,null,null,null,null,null,null,null,null,null,null,null,null,null,null,null,null,null,null,null,null,null,null,null,null,null,null,"",null,null,null,null,null,null,null,null,null,null,null,null,null,null,null,null,null,null,null,null,null,null,null,null,null,null,null,null,null,null,null,null,null,null,null,null,null,null,null,"","","","","","","",null,"","",null,null,null,null,null,0,0,0,0,0,0,0,null,0,0]
["0108324","Teleconsulta Médica de Especialidad en Gastroenterología Pediátrico",0,0,null,null,null,null,null,null,null,null,null,null,null,null,null,null,null,null,null,null,null,null,null,null,null,null,null,null,null,null,null,null,null,null,null,null,null,null,"",null,null,null,null,null,null,null,null,null,null,null,null,null,null,null,null,null,null,null,null,null,null,null,null,null,null,null,null,null,null,null,null,null,null,null,null,null,null,null,"","","","","","","",null,"","",null,null,null,null,null,0,0,0,0,0,0,0,null,0,0]
["0108325","Teleconsulta Médica de Especialidad en Genética Clínica",0,0,null,null,null,null,null,null,null,null,null,null,null,null,null,null,null,null,null,null,null,null,null,null,null,null,null,null,null,null,null,null,null,null,null,null,null,null,"",null,null,null,null,null,null,null,null,null,null,null,null,null,null,null,null,null,null,null,null,null,null,null,null,null,null,null,null,null,null,null,null,null,null,null,null,null,null,null,"","","","","","","",null,"","",null,null,null,null,null,0,0,0,0,0,0,0,null,0,0]
["0108326","Teleconsulta Médica de Especialidad en Nefrología Adulto",0,0,null,null,null,null,null,null,null,null,null,null,null,null,null,null,null,null,null,null,null,null,null,null,null,null,null,null,null,null,null,null,null,null,null,null,null,null,"",null,null,null,null,null,null,null,null,null,null,null,null,null,null,null,null,null,null,null,null,null,null,null,null,null,null,null,null,null,null,null,null,null,null,null,null,null,null,null,"","","","","","","",null,"","",null,null,null,null,null,0,0,0,0,0,0,0,null,0,0]
["0108327","Teleconsulta Médica de Especialidad en Nefrología Pediátrico",0,0,null,null,null,null,null,null,null,null,null,null,null,null,null,null,null,null,null,null,null,null,null,null,null,null,null,null,null,null,null,null,null,null,null,null,null,null,"",null,null,null,null,null,null,null,null,null,null,null,null,null,null,null,null,null,null,null,null,null,null,null,null,null,null,null,null,null,null,null,null,null,null,null,null,null,null,null,"","","","","","","",null,"","",null,null,null,null,null,0,0,0,0,0,0,0,null,0,0]
["0108331","Teleconsulta Médica de Especialidad en Radioterapia Oncológica",0,0,null,null,null,null,null,null,null,null,null,null,null,null,null,null,null,null,null,null,null,null,null,null,null,null,null,null,null,null,null,null,null,null,null,null,null,null,"",null,null,null,null,null,null,null,null,null,null,null,null,null,null,null,null,null,null,null,null,null,null,null,null,null,null,null,null,null,null,null,null,null,null,null,null,null,null,null,"","","","","","","",null,"","",null,null,null,null,null,0,0,0,0,0,0,0,null,0,0]
["0108203","Teleconsulta Médica de Especialidad en Neurocirugía",0,0,null,null,null,null,null,null,null,null,null,null,null,null,null,null,null,null,null,null,null,null,null,null,null,null,null,null,null,null,null,null,null,null,null,null,null,null,"",null,null,null,null,null,null,null,null,null,null,null,null,null,null,null,null,null,null,null,null,null,null,null,null,null,null,null,null,null,null,null,null,null,null,null,null,null,null,null,"","","","","","","",null,"","",null,null,null,null,null,0,0,0,0,0,0,0,null,0,0]
["0108204","Teleconsulta Médica de Especialidad en Oftalmología",0,0,null,null,null,null,null,null,null,null,null,null,null,null,null,null,null,null,null,null,null,null,null,null,null,null,null,null,null,null,null,null,null,null,null,null,null,null,"",null,null,null,null,null,null,null,null,null,null,null,null,null,null,null,null,null,null,null,null,null,null,null,null,null,null,null,null,null,null,null,null,null,null,null,null,null,null,null,"","","","","","","",null,"","",null,null,null,null,null,0,0,0,0,0,0,0,null,0,0]
["0108205","Teleconsulta Médica de Especialidad en Otorrinolaringología",0,0,null,null,null,null,null,null,null,null,null,null,null,null,null,null,null,null,null,null,null,null,null,null,null,null,null,null,null,null,null,null,null,null,null,null,null,null,"",null,null,null,null,null,null,null,null,null,null,null,null,null,null,null,null,null,null,null,null,null,null,null,null,null,null,null,null,null,null,null,null,null,null,null,null,null,null,null,"","","","","","","",null,"","",null,null,null,null,null,0,0,0,0,0,0,0,null,0,0]
["0108312","Teleconsulta Médica de Especialidad en Cirugía General",0,0,null,null,null,null,null,null,null,null,null,null,null,null,null,null,null,null,null,null,null,null,null,null,null,null,null,null,null,null,null,null,null,null,null,null,null,null,"",null,null,null,null,null,null,null,null,null,null,null,null,null,null,null,null,null,null,null,null,null,null,null,null,null,null,null,null,null,null,null,null,null,null,null,null,null,null,null,"","","","","","","",null,"","",null,null,null,null,null,0,0,0,0,0,0,0,null,0,0]
["0108313","Teleconsulta Médica de Especialidad en Cirugía de Cabeza, Cuello y Maxilofacial",0,0,null,null,null,null,null,null,null,null,null,null,null,null,null,null,null,null,null,null,null,null,null,null,null,null,null,null,null,null,null,null,null,null,null,null,null,null,"",null,null,null,null,null,null,null,null,null,null,null,null,null,null,null,null,null,null,null,null,null,null,null,null,null,null,null,null,null,null,null,null,null,null,null,null,null,null,null,"","","","","","","",null,"","",null,null,null,null,null,0,0,0,0,0,0,0,null,0,0]
["0108314","Teleconsulta Médica de Especialidad en Cirugía Cardiovascular",0,0,null,null,null,null,null,null,null,null,null,null,null,null,null,null,null,null,null,null,null,null,null,null,null,null,null,null,null,null,null,null,null,null,null,null,null,null,"",null,null,null,null,null,null,null,null,null,null,null,null,null,null,null,null,null,null,null,null,null,null,null,null,null,null,null,null,null,null,null,null,null,null,null,null,null,null,null,"","","","","","","",null,"","",null,null,null,null,null,0,0,0,0,0,0,0,null,0,0]
["0108315","Teleconsulta Médica de Especialidad en Cirugía de Tórax",0,0,null,null,null,null,null,null,null,null,null,null,null,null,null,null,null,null,null,null,null,null,null,null,null,null,null,null,null,null,null,null,null,null,null,null,null,null,"",null,null,null,null,null,null,null,null,null,null,null,null,null,null,null,null,null,null,null,null,null,null,null,null,null,null,null,null,null,null,null,null,null,null,null,null,null,null,null,"","","","","","","",null,"","",null,null,null,null,null,0,0,0,0,0,0,0,null,0,0]
["0108316","Teleconsulta Médica de Especialidad en Cirugía Plástica y Reparadora",0,0,null,null,null,null,null,null,null,null,null,null,null,null,null,null,null,null,null,null,null,null,null,null,null,null,null,null,null,null,null,null,null,null,null,null,null,null,"",null,null,null,null,null,null,null,null,null,null,null,null,null,null,null,null,null,null,null,null,null,null,null,null,null,null,null,null,null,null,null,null,null,null,null,null,null,null,null,"","","","","","","",null,"","",null,null,null,null,null,0,0,0,0,0,0,0,null,0,0]
["0108317","Teleconsulta Médica de Especialidad en Cirugía Pediátrica",0,0,null,null,null,null,null,null,null,null,null,null,null,null,null,null,null,null,null,null,null,null,null,null,null,null,null,null,null,null,null,null,null,null,null,null,null,null,"",null,null,null,null,null,null,null,null,null,null,null,null,null,null,null,null,null,null,null,null,null,null,null,null,null,null,null,null,null,null,null,null,null,null,null,null,null,null,null,"","","","","","","",null,"","",null,null,null,null,null,0,0,0,0,0,0,0,null,0,0]
["0108318","Teleconsulta Médica de Especialidad en Cirugía Vascular Periférica",0,0,null,null,null,null,null,null,null,null,null,null,null,null,null,null,null,null,null,null,null,null,null,null,null,null,null,null,null,null,null,null,null,null,null,null,null,null,"",null,null,null,null,null,null,null,null,null,null,null,null,null,null,null,null,null,null,null,null,null,null,null,null,null,null,null,null,null,null,null,null,null,null,null,null,null,null,null,"","","","","","","",null,"","",null,null,null,null,null,0,0,0,0,0,0,0,null,0,0]
["0108329","Teleconsulta Médica de Especialidad en Anestesiología",0,0,null,null,null,null,null,null,null,null,null,null,null,null,null,null,null,null,null,null,null,null,null,null,null,null,null,null,null,null,null,null,null,null,null,null,null,null,"",null,null,null,null,null,null,null,null,null,null,null,null,null,null,null,null,null,null,null,null,null,null,null,null,null,null,null,null,null,null,null,null,null,null,null,null,null,null,null,"","","","","","","",null,"","",null,null,null,null,null,0,0,0,0,0,0,0,null,0,0]
["0108332","Teleconsulta Médica de Especialidad en Ginecología Pediátrica y de la Adolescencia",0,0,null,null,null,null,null,null,null,null,null,null,null,null,null,null,null,null,null,null,null,null,null,null,null,null,null,null,null,null,null,null,null,null,null,null,null,null,"",null,null,null,null,null,null,null,null,null,null,null,null,null,null,null,null,null,null,null,null,null,null,null,null,null,null,null,null,null,null,null,null,null,null,null,null,null,null,null,"","","","","","","",null,"","",null,null,null,null,null,0,0,0,0,0,0,0,null,0,0]
["0108333","Teleconsulta Médica de Especialidad en Medicina Materno Fetal",0,0,null,null,null,null,null,null,null,null,null,null,null,null,null,null,null,null,null,null,null,null,null,null,null,null,null,null,null,null,null,null,null,null,null,null,null,null,"",null,null,null,null,null,null,null,null,null,null,null,null,null,null,null,null,null,null,null,null,null,null,null,null,null,null,null,null,null,null,null,null,null,null,null,null,null,null,null,"","","","","","","",null,"","",null,null,null,null,null,0,0,0,0,0,0,0,null,0,0]
["0108334","Teleconsulta Médica de Especialidad en Medicina Nuclear",0,0,null,null,null,null,null,null,null,null,null,null,null,null,null,null,null,null,null,null,null,null,null,null,null,null,null,null,null,null,null,null,null,null,null,null,null,null,"",null,null,null,null,null,null,null,null,null,null,null,null,null,null,null,null,null,null,null,null,null,null,null,null,null,null,null,null,null,null,null,null,null,null,null,null,null,null,null,"","","","","","","",null,"","",null,null,null,null,null,0,0,0,0,0,0,0,null,0,0]
["0108400","Teleconsulta: Atención Integral de Nutricionista (incluye 3 sesiones)",{"$f":"SUM(D121+G121)","v":0},{"$f":"SUM(E121:F121)","v":0},null,null,null,null,null,null,null,null,null,null,null,null,null,null,null,null,null,null,null,null,null,null,null,null,null,null,null,null,null,null,null,null,null,null,null,null,"",null,null,null,null,null,null,null,null,null,null,null,null,null,null,null,null,null,null,null,null,null,null,null,null,null,null,null,null,null,null,null,null,null,null,null,null,null,null,null,"","","","","","","",null,"","",null,null,null,null,null,0,0,0,0,0,0,0,null,0,0]
["TOTAL",null,{"$f":"SUM(C75:C121)","v":0},{"$f":"SUM(D75:D121)","v":0},{"$f":"SUM(E75:E121)","v":0},{"$f":"SUM(F75:F121)","v":0},{"$f":"SUM(G75:G121)","v":0},null,null,null,null,null,null,null,null,null,null,null,null,null,null,null,null,null,null,null,{"$f":"SUM(AA75:AA121)","v":0},0,0,0,0,0,0,0,0,0]
["TELEINTERCONSULTA (TELEMEDICINA)"]
["0109001","Teleinterconsulta médica",{"$f":"SUM(D124+G124)","v":0},{"$f":"SUM(E124:F124)","v":0},null,null,null,null,null,null,null,null,null,null,null,null,null,null,null,null,null,null,null,null,null,null,null,null,null,null,null,null,null,null,null,null,null,null,null,null,"",null,null,null,null,null,null,null,null,null,null,null,null,null,null,null,null,null,null,null,null,null,null,null,null,null,null,null,null,null,null,null,null,null,null,null,null,null,null,null,{"$f":"IF(AND($C124>0,AA124=\"\"),\" * No olvide digitar la variable \"&$AA$8&\"\"&\": Atención Cerrada. Digite Cero si no tiene.\",\"\")","v":""},{"$f":"IF(AND($C124>0,AB124=\"\"),\" * No olvide digitar la variable \"&$AA$8&\"\"&\": Atención Abierta. Digite Cero si no tiene.\",\"\")","v":""},{"$f":"IF(AND($C124>0,AC124=\"\"),\" * No olvide digitar la variable \"&$AA$8&\"\"&\": Emergencia. Digite Cero si no tiene.\",\"\")","v":""},{"$f":"IF(AND(C124<AA124+AB124+AC124),\" * La Suma de la variable \"&$AA$8&\"\"&\" no puede ser mayor al Total.\",\"\")","v":""},{"$f":"IF(AND($C124>0,AD124=\"\"),\" * No olvide digitar la variable \"&$AD$8&\"\"&\": Honorarios. Digite Cero si no tiene.\",\"\")","v":""},{"$f":"IF(AND($C124>0,AE124=\"\"),\" * No olvide digitar la variable \"&$AD$8&\"\"&\": Convenios. Digite Cero si no tiene.\",\"\")","v":""},{"$f":"IF(AND($C124>0,AF124=\"\"),\" * No olvide digitar la variable \"&$AD$8&\"\"&\": Consultores de llamada. Digite Cero si no tiene.\",\"\")","v":""},null,{"$f":"IF(AND($C124>0,AH124=\"\"),\" * No olvide digitar la variable \"&$AH$8&\"\"&\" Al Sistema. Digite Cero si no tiene.\",\"\")","v":""},{"$f":"IF(AND($C124>0,AI124=\"\"),\" * No olvide digitar la variable \"&$AH$8&\"\"&\" al Extrasistema. Digite Cero si no tiene.\",\"\")","v":""},null,null,null,null,null,{"$f":"IF(AND($C124>0,AA124=\"\"),1,0)","v":0},0,0,{"$f":"IF(AND(C124<AA124+AB124+AC124),1,0)","v":0},{"$f":"IF(AND($C124>0,AD124=\"\"),1,0)","v":0},0,0,null,{"$f":"IF(AND($C124>0,AH124=\"\"),1,0)","v":0},{"$f":"IF(AND($C124>0,AI124=\"\"),1,0)","v":0}]
["0109002","Teleinterconsulta no médica",{"$f":"SUM(D125+G125)","v":0},{"$f":"SUM(E125:F125)","v":0},null,null,null,null,null,null,null,null,null,null,null,null,null,null,null,null,null,null,null,null,null,null,null,null,null,null,null,null,null,null,null,null,null,null,null,null,"",null,null,null,null,null,null,null,null,null,null,null,null,null,null,null,null,null,null,null,null,null,null,null,null,null,null,null,null,null,null,null,null,null,null,null,null,null,null,null,{"$f":"IF(AND($C125>0,AA125=\"\"),\" * No olvide digitar la variable \"&$AA$8&\"\"&\": Atención Cerrada. Digite Cero si no tiene.\",\"\")","v":""},{"$f":"IF(AND($C125>0,AB125=\"\"),\" * No olvide digitar la variable \"&$AA$8&\"\"&\": Atención Abierta. Digite Cero si no tiene.\",\"\")","v":""},{"$f":"IF(AND($C125>0,AC125=\"\"),\" * No olvide digitar la variable \"&$AA$8&\"\"&\": Emergencia. Digite Cero si no tiene.\",\"\")","v":""},{"$f":"IF(AND(C125<AA125+AB125+AC125),\" * La Suma de la variable \"&$AA$8&\"\"&\" no puede ser mayor al Total.\",\"\")","v":""},{"$f":"IF(AND($C125>0,AD125=\"\"),\" * No olvide digitar la variable \"&$AD$8&\"\"&\": Honorarios. Digite Cero si no tiene.\",\"\")","v":""},{"$f":"IF(AND($C125>0,AE125=\"\"),\" * No olvide digitar la variable \"&$AD$8&\"\"&\": Convenios. Digite Cero si no tiene.\",\"\")","v":""},{"$f":"IF(AND($C125>0,AF125=\"\"),\" * No olvide digitar la variable \"&$AD$8&\"\"&\": Consultores de llamada. Digite Cero si no tiene.\",\"\")","v":""},null,{"$f":"IF(AND($C125>0,AH125=\"\"),\" * No olvide digitar la variable \"&$AH$8&\"\"&\" Al Sistema. Digite Cero si no tiene.\",\"\")","v":""},{"$f":"IF(AND($C125>0,AI125=\"\"),\" * No olvide digitar la variable \"&$AH$8&\"\"&\" al Extrasistema. Digite Cero si no tiene.\",\"\")","v":""},null,null,null,null,null,0,0,0,{"$f":"IF(AND(C125<AA125+AB125+AC125),1,0)","v":0},0,0,0,null,{"$f":"IF(AND($C125>0,AH125=\"\"),1,0)","v":0},{"$f":"IF(AND($C125>0,AI125=\"\"),1,0)","v":0}]
["TOTAL",null,{"$f":"SUM(C124:C125)","v":0},{"$f":"SUM(D124:D125)","v":0},{"$f":"SUM(E124:E125)","v":0},{"$f":"SUM(F124:F125)","v":0},{"$f":"SUM(G124:G125)","v":0},null,null,null,null,null,null,null,null,null,null,null,null,null,null,null,null,null,null,null,{"$f":"SUM(AA124:AA125)","v":0},{"$f":"SUM(AB124:AB125)","v":0},0,0,0,0,0,0,0,0,null,null,null,null,""]
["EDUCACIÓN DE GRUPO                                                                                         ",null,null,null,null,null,null,null,null,null,null,null,null,null,null,null,null,null,null,null,null,null,null,null,null,null,null,null,null,null,null,null,null,null,null,null,null,null,null,null,""]
["0103001","Educación de grupo por médico",{"$f":"SUM(D128+G128)","v":0},{"$f":"SUM(E128:F128)","v":0},null,null,null,null,null,null,null,null,null,null,null,null,null,null,null,null,null,null,null,null,null,null,null,null,null,null,null,null,null,null,null,null,null,null,null,null,"",null,null,null,null,null,null,null,null,null,null,null,null,null,null,null,null,null,null,null,null,null,null,null,null,null,null,null,null,null,null,null,null,null,null,null,null,null,null,null,{"$f":"IF(AND($C128>0,AA128=\"\"),\" * No olvide digitar la variable \"&$AA$8&\"\"&\": Atención Cerrada. Digite Cero si no tiene.\",\"\")","v":""},{"$f":"IF(AND($C128>0,AB128=\"\"),\" * No olvide digitar la variable \"&$AA$8&\"\"&\": Atención Abierta. Digite Cero si no tiene.\",\"\")","v":""},{"$f":"IF(AND($C128>0,AC128=\"\"),\" * No olvide digitar la variable \"&$AA$8&\"\"&\": Emergencia. Digite Cero si no tiene.\",\"\")","v":""},{"$f":"IF(AND(C128<AA128+AB128+AC128),\" * La Suma de la variable \"&$AA$8&\"\"&\" no puede ser mayor al Total.\",\"\")","v":""},{"$f":"IF(AND($C128>0,AD128=\"\"),\" * No olvide digitar la variable \"&$AD$8&\"\"&\": Honorarios. Digite Cero si no tiene.\",\"\")","v":""},{"$f":"IF(AND($C128>0,AE128=\"\"),\" * No olvide digitar la variable \"&$AD$8&\"\"&\": Convenios. Digite Cero si no tiene.\",\"\")","v":""},{"$f":"IF(AND($C128>0,AF128=\"\"),\" * No olvide digitar la variable \"&$AD$8&\"\"&\": Consultores de llamada. Digite Cero si no tiene.\",\"\")","v":""},null,{"$f":"IF(AND($C128>0,AH128=\"\"),\" * No olvide digitar la variable \"&$AH$8&\"\"&\" Al Sistema. Digite Cero si no tiene.\",\"\")","v":""},{"$f":"IF(AND($C128>0,AI128=\"\"),\" * No olvide digitar la variable \"&$AH$8&\"\"&\" al Extrasistema. Digite Cero si no tiene.\",\"\")","v":""},null,null,null,null,null,{"$f":"IF(AND($C128>0,AA128=\"\"),1,0)","v":0},0,0,{"$f":"IF(AND(C128<AA128+AB128+AC128),1,0)","v":0},{"$f":"IF(AND($C128>0,AD128=\"\"),1,0)","v":0},0,0,null,{"$f":"IF(AND($C128>0,AH128=\"\"),1,0)","v":0},0]
["0103003","Educación de grupo por trabajador/a social",0,0,null,null,null,null,null,null,null,null,null,null,null,null,null,null,null,null,null,null,null,null,null,null,null,null,null,null,null,null,null,null,null,null,null,null,null,null,"",null,null,null,null,null,null,null,null,null,null,null,null,null,null,null,null,null,null,null,null,null,null,null,null,null,null,null,null,null,null,null,null,null,null,null,null,null,null,null,"","","","","","","",null,"","",null,null,null,null,null,0,0,0,0,0,0,0,null,0,0]
["0103004","Educación de grupo por auxiliar de enfermería",0,0,null,null,null,null,null,null,null,null,null,null,null,null,null,null,null,null,null,null,null,null,null,null,null,null,null,null,null,null,null,null,null,null,null,null,null,null,"",null,null,null,null,null,null,null,null,null,null,null,null,null,null,null,null,null,null,null,null,null,null,null,null,null,null,null,null,null,null,null,null,null,null,null,null,null,null,null,"","","","","","","",null,"","",null,null,null,null,null,0,0,0,0,0,0,0,null,0,0]
["0103005","Educación de grupo por enfermera",0,0,null,null,null,null,null,null,null,null,null,null,null,null,null,null,null,null,null,null,null,null,null,null,null,null,null,null,null,null,null,null,null,null,null,null,null,null,"",null,null,null,null,null,null,null,null,null,null,null,null,null,null,null,null,null,null,null,null,null,null,null,null,null,null,null,null,null,null,null,null,null,null,null,null,null,null,null,"","","","","","","",null,"","",null,null,null,null,null,0,0,0,0,0,0,0,null,0,0]
["0103006","Educación de grupo por matrona ",0,0,null,null,null,null,null,null,null,null,null,null,null,null,null,null,null,null,null,null,null,null,null,null,null,null,null,null,null,null,null,null,null,null,null,null,null,null,"",null,null,null,null,null,null,null,null,null,null,null,null,null,null,null,null,null,null,null,null,null,null,null,null,null,null,null,null,null,null,null,null,null,null,null,null,null,null,null,"","","","","","","",null,"","",null,null,null,null,null,0,0,0,0,0,0,0,null,0,0]
["0103007","Educación de grupo por nutricionista",0,0,null,null,null,null,null,null,null,null,null,null,null,null,null,null,null,null,null,null,null,null,null,null,null,null,null,null,null,null,null,null,null,null,null,null,null,null,"",null,null,null,null,null,null,null,null,null,null,null,null,null,null,null,null,null,null,null,null,null,null,null,null,null,null,null,null,null,null,null,null,null,null,null,null,null,null,null,"","","","","","","",null,"","",null,null,null,null,null,0,0,0,0,0,0,0,null,0,0]
["01010033","Educación de grupo por otro integrante del equipo de salud",{"$f":"SUM(D134+G134)","v":0},{"$f":"SUM(E134:F134)","v":0},null,null,null,null,null,null,null,null,null,null,null,null,null,null,null,null,null,null,null,null,null,null,null,null,null,null,null,null,null,null,null,null,null,null,null,null,"",null,null,null,null,null,null,null,null,null,null,null,null,null,null,null,null,null,null,null,null,null,null,null,null,null,null,null,null,null,null,null,null,null,null,null,null,null,null,null,"","","","","","","",null,"","",null,null,null,null,null,0,0,0,0,0,0,0,null,0,0]
["TOTAL",null,{"$f":"SUM(C128:C134)","v":0},{"$f":"SUM(D128:D134)","v":0},{"$f":"SUM(E128:E134)","v":0},{"$f":"SUM(F128:F134)","v":0},{"$f":"SUM(G128:G134)","v":0},null,null,null,null,null,null,null,null,null,null,null,null,null,null,null,null,null,null,null,{"$f":"SUM(AA128:AA134)","v":0},{"$f":"SUM(AB128:AB134)","v":0},0,0,0,0,0,0,0,{"$f":"SUM(AJ128:AJ134)","v":0}]
["VISITAS DOMICILIARIAS                                                                                       "]
["0104002","Visita a domicilio por trabajador/a social",{"$f":"SUM(D137+G137)","v":0},{"$f":"SUM(E137:F137)","v":0},null,null,null,null,null,null,null,null,null,null,null,null,null,null,null,null,null,null,null,null,null,null,null,null,null,null,null,null,null,null,null,null,null,null,null,null,"",null,null,null,null,null,null,null,null,null,null,null,null,null,null,null,null,null,null,null,null,null,null,null,null,null,null,null,null,null,null,null,null,null,null,null,null,null,null,null,{"$f":"IF(AND($C137>0,AA137=\"\"),\" * No olvide digitar la variable \"&$AA$8&\"\"&\": Atención Cerrada. Digite Cero si no tiene.\",\"\")","v":""},{"$f":"IF(AND($C137>0,AB137=\"\"),\" * No olvide digitar la variable \"&$AA$8&\"\"&\": Atención Abierta. Digite Cero si no tiene.\",\"\")","v":""},{"$f":"IF(AND($C137>0,AC137=\"\"),\" * No olvide digitar la variable \"&$AA$8&\"\"&\": Emergencia. Digite Cero si no tiene.\",\"\")","v":""},{"$f":"IF(AND(C137<AA137+AB137+AC137),\" * La Suma de la variable \"&$AA$8&\"\"&\" no puede ser mayor al Total.\",\"\")","v":""},{"$f":"IF(AND($C137>0,AD137=\"\"),\" * No olvide digitar la variable \"&$AD$8&\"\"&\": Honorarios. Digite Cero si no tiene.\",\"\")","v":""},{"$f":"IF(AND($C137>0,AE137=\"\"),\" * No olvide digitar la variable \"&$AD$8&\"\"&\": Convenios. Digite Cero si no tiene.\",\"\")","v":""},{"$f":"IF(AND($C137>0,AF137=\"\"),\" * No olvide digitar la variable \"&$AD$8&\"\"&\": Consultores de llamada. Digite Cero si no tiene.\",\"\")","v":""},null,{"$f":"IF(AND($C137>0,AH137=\"\"),\" * No olvide digitar la variable \"&$AH$8&\"\"&\" Al Sistema. Digite Cero si no tiene.\",\"\")","v":""},{"$f":"IF(AND($C137>0,AI137=\"\"),\" * No olvide digitar la variable \"&$AH$8&\"\"&\" al Extrasistema. Digite Cero si no tiene.\",\"\")","v":""},null,null,null,null,null,{"$f":"IF(AND($C137>0,AA137=\"\"),1,0)","v":0},0,0,{"$f":"IF(AND(C137<AA137+AB137+AC137),1,0)","v":0},{"$f":"IF(AND($C137>0,AD137=\"\"),1,0)","v":0},0,0,null,{"$f":"IF(AND($C137>0,AH137=\"\"),1,0)","v":0},0]
["0104003","Visita a domicilio por auxiliar de enfermería",0,0,null,null,null,null,null,null,null,null,null,null,null,null,null,null,null,null,null,null,null,null,null,null,null,null,null,null,null,null,null,null,null,null,null,null,null,null,"",null,null,null,null,null,null,null,null,null,null,null,null,null,null,null,null,null,null,null,null,null,null,null,null,null,null,null,null,null,null,null,null,null,null,null,null,null,null,null,"","","","","","","",null,"","",null,null,null,null,null,0,0,0,0,0,0,0,null,0,0]
["0104004","Visita a domicilio por enfermera",0,0,null,null,null,null,null,null,null,null,null,null,null,null,null,null,null,null,null,null,null,null,null,null,null,null,null,null,null,null,null,null,null,null,null,null,null,null,"",null,null,null,null,null,null,null,null,null,null,null,null,null,null,null,null,null,null,null,null,null,null,null,null,null,null,null,null,null,null,null,null,null,null,null,null,null,null,null,"","","","","","","",null,"","",null,null,null,null,null,0,0,0,0,0,0,0,null,0,0]
["0104005","Visita a domicilio por matrona",0,0,null,null,null,null,null,null,null,null,null,null,null,null,null,null,null,null,null,null,null,null,null,null,null,null,null,null,null,null,null,null,null,null,null,null,null,null,"",null,null,null,null,null,null,null,null,null,null,null,null,null,null,null,null,null,null,null,null,null,null,null,null,null,null,null,null,null,null,null,null,null,null,null,null,null,null,null,"","","","","","","",null,"","",null,null,null,null,null,0,0,0,0,0,0,0,null,0,0]
["0104006","Visita a domicilio por nutricionista",0,0,null,null,null,null,null,null,null,null,null,null,null,null,null,null,null,null,null,null,null,null,null,null,null,null,null,null,null,null,null,null,null,null,null,null,null,null,{"$f":"CC141&CD141&CE141&CF141&CG141&CH141&CI141&CJ141&CK141&CL141&CM141","v":""},null,null,null,null,null,null,null,null,null,null,null,null,null,null,null,null,null,null,null,null,null,null,null,null,null,null,null,null,null,null,null,null,null,null,null,null,null,null,null,"","","","","","","",null,"","",null,null,null,null,null,0,0,0,0,0,0,0,null,0,0]
["01010037","Visita a domicilio por otro integrante del equipo de salud",0,0,null,null,null,null,null,null,null,null,null,null,null,null,null,null,null,null,null,null,null,null,null,null,null,null,null,null,null,null,null,null,null,null,null,null,null,null,"",null,null,null,null,null,null,null,null,null,null,null,null,null,null,null,null,null,null,null,null,null,null,null,null,null,null,null,null,null,null,null,null,null,null,null,null,null,null,null,"","","","","","","",null,"","",null,null,null,null,null,0,0,0,0,0,0,0,null,0,0]
["01010038","Visita domiciaria por otro profesional y técnicos paramédico",0,0,null,null,null,null,null,null,null,null,null,null,null,null,null,null,null,null,null,null,null,null,null,null,null,null,null,null,null,null,null,null,null,null,null,null,null,null,"",null,null,null,null,null,null,null,null,null,null,null,null,null,null,null,null,null,null,null,null,null,null,null,null,null,null,null,null,null,null,null,null,null,null,null,null,null,null,null,"","","","","","","",null,"","",null,null,null,null,null,0,0,0,0,0,0,0,null,0,0]
["TOTAL",null,{"$f":"SUM(C137:C143)","v":0},{"$f":"SUM(D137:D143)","v":0},{"$f":"SUM(E137:E143)","v":0},{"$f":"SUM(F137:F143)","v":0},{"$f":"SUM(G137:G143)","v":0},null,null,null,null,null,null,null,null,null,null,null,null,null,null,null,null,null,null,null,{"$f":"SUM(AA137:AA143)","v":0},{"$f":"SUM(AB137:AB143)","v":0},{"$f":"SUM(AC137:AC143)","v":0},{"$f":"SUM(AD137:AD143)","v":0},0,0,0,0,0,0]
["MISCELÁNEOS                                                                                            "]
["0106002","Curación simple ambulatoria",{"$f":"SUM(D146+G146)","v":0},{"$f":"SUM(E146:F146)","v":0},null,null,null,null,null,null,null,null,null,null,null,null,null,null,null,null,null,null,null,null,null,null,null,null,null,null,null,null,null,null,null,null,null,null,null,null,"",null,null,null,null,null,null,null,null,null,null,null,null,null,null,null,null,null,null,null,null,null,null,null,null,null,null,null,null,null,null,null,null,null,null,null,null,null,null,null,{"$f":"IF(AND($C146>0,AA146=\"\"),\" * No olvide digitar la variable \"&$AA$8&\"\"&\": Atención Cerrada. Digite Cero si no tiene.\",\"\")","v":""},{"$f":"IF(AND($C146>0,AB146=\"\"),\" * No olvide digitar la variable \"&$AA$8&\"\"&\": Atención Abierta. Digite Cero si no tiene.\",\"\")","v":""},{"$f":"IF(AND($C146>0,AC146=\"\"),\" * No olvide digitar la variable \"&$AA$8&\"\"&\": Emergencia. Digite Cero si no tiene.\",\"\")","v":""},{"$f":"IF(AND(C146<AA146+AB146+AC146),\" * La Suma de la variable \"&$AA$8&\"\"&\" no puede ser mayor al Total.\",\"\")","v":""},{"$f":"IF(AND($C146>0,AD146=\"\"),\" * No olvide digitar la variable \"&$AD$8&\"\"&\": Honorarios. Digite Cero si no tiene.\",\"\")","v":""},{"$f":"IF(AND($C146>0,AE146=\"\"),\" * No olvide digitar la variable \"&$AD$8&\"\"&\": Convenios. Digite Cero si no tiene.\",\"\")","v":""},{"$f":"IF(AND($C146>0,AF146=\"\"),\" * No olvide digitar la variable \"&$AD$8&\"\"&\": Consultores de llamada. Digite Cero si no tiene.\",\"\")","v":""},null,{"$f":"IF(AND($C146>0,AH146=\"\"),\" * No olvide digitar la variable \"&$AH$8&\"\"&\" Al Sistema. Digite Cero si no tiene.\",\"\")","v":""},{"$f":"IF(AND($C146>0,AI146=\"\"),\" * No olvide digitar la variable \"&$AH$8&\"\"&\" al Extrasistema. Digite Cero si no tiene.\",\"\")","v":""},null,null,null,null,null,{"$f":"IF(AND($C146>0,AA146=\"\"),1,0)","v":0},{"$f":"IF(AND($C146>0,AB146=\"\"),1,0)","v":0},{"$f":"IF(AND($C146>0,AC146=\"\"),1,0)","v":0},{"$f":"IF(AND(C146<AA146+AB146+AC146),1,0)","v":0},{"$f":"IF(AND($C146>0,AD146=\"\"),1,0)","v":0},{"$f":"IF(AND($C146>0,AE146=\"\"),1,0)","v":0},{"$f":"IF(AND($C146>0,AF146=\"\"),1,0)","v":0},null,{"$f":"IF(AND($C146>0,AH146=\"\"),1,0)","v":0},{"$f":"IF(AND($C146>0,AI146=\"\"),1,0)","v":0}]
["0106007","Oxigenoterapia Hiperbárica (1 sesión)",0,0,null,null,null,null,null,null,null,null,null,null,null,null,null,null,null,null,null,null,null,null,null,null,null,null,null,null,null,null,null,null,null,null,null,null,null,null,"",null,null,null,null,null,null,null,null,null,null,null,null,null,null,null,null,null,null,null,null,null,null,null,null,null,null,null,null,null,null,null,null,null,null,null,null,null,null,null,"","","","","","","",null,"","",null,null,null,null,null,0,0,0,0,0,0,0,null,0,0]
["0106101","Atención Integral de Acupuntura ",0,0,null,null,null,null,null,null,null,null,null,null,null,null,null,null,null,null,null,null,null,null,null,null,null,null,null,null,null,null,null,null,null,null,null,null,null,null,"",null,null,null,null,null,null,null,null,null,null,null,null,null,null,null,null,null,null,null,null,null,null,null,null,null,null,null,null,null,null,null,null,null,null,null,null,null,null,null,"","","","","","","",null,"","",null,null,null,null,null,0,0,0,0,0,0,0,null,0,0]
["01010043","Autocontrol pacientes Diabetico insulino dependiente (D.I.D. mensual)",0,0,null,null,null,null,null,null,null,null,null,null,null,null,null,null,null,null,null,null,null,null,null,null,null,null,null,null,null,null,null,null,null,null,null,null,null,null,"",null,null,null,null,null,null,null,null,null,null,null,null,null,null,null,null,null,null,null,null,null,null,null,null,null,null,null,null,null,null,null,null,null,null,null,null,null,null,null,"","","","","","","",null,"","",null,null,null,null,null,0,0,0,0,0,0,0,null,0,0]
["01010044","Oxigenoterapia domiciliaria (pacientes oxígeno dependientes)",0,0,null,null,null,null,null,null,null,null,null,null,null,null,null,null,null,null,null,null,null,null,null,null,null,null,null,null,null,null,null,null,null,null,null,null,null,null,"",null,null,null,null,null,null,null,null,null,null,null,null,null,null,null,null,null,null,null,null,null,null,null,null,null,null,null,null,null,null,null,null,null,null,null,null,null,null,null,"","","","","","","",null,"","",null,null,null,null,null,0,0,0,0,0,0,0,null,0,0]
["01010047","Procedimientos de podología",0,0,null,null,null,null,null,null,null,null,null,null,null,null,null,null,null,null,null,null,null,null,null,null,null,null,null,null,null,null,null,null,null,null,null,null,null,null,"",null,null,null,null,null,null,null,null,null,null,null,null,null,null,null,null,null,null,null,null,null,null,null,null,null,null,null,null,null,null,null,null,null,null,null,null,null,null,null,"","","","","","","",null,"","",null,null,null,null,null,0,0,0,0,0,0,0,null,0,0]
[5099048,"Hemoglucotest instantáneo",0,0,null,null,null,null,null,null,null,null,null,null,null,null,null,null,null,null,null,null,null,null,null,null,null,null,null,null,null,null,null,null,null,null,null,null,null,null,"",null,null,null,null,null,null,null,null,null,null,null,null,null,null,null,null,null,null,null,null,null,null,null,null,null,null,null,null,null,null,null,null,null,null,null,null,null,null,null,"","","","","","","",null,"","",null,null,null,null,null,0,0,0,0,0,0,0,null,0,0]
[5099008,"Actividad Básica",0,0,null,null,null,null,null,null,null,null,null,null,null,null,null,null,null,null,null,null,null,null,null,null,null,null,null,null,null,null,null,null,null,null,null,null,null,null,"",null,null,null,null,null,null,null,null,null,null,null,null,null,null,null,null,null,null,null,null,null,null,null,null,null,null,null,null,null,null,null,null,null,null,null,null,null,null,null,"","","","","","","",null,"","",null,null,null,null,null,0,0,0,0,0,0,0,null,0,0]
[5099009,"Actividad Terapeutica",0,0,null,null,null,null,null,null,null,null,null,null,null,null,null,null,null,null,null,null,null,null,null,null,null,null,null,null,null,null,null,null,null,null,null,null,null,null,"",null,null,null,null,null,null,null,null,null,null,null,null,null,null,null,null,null,null,null,null,null,null,null,null,null,null,null,null,null,null,null,null,null,null,null,null,null,null,null,"","","","","","","",null,"","",null,null,null,null,null,0,0,0,0,0,0,0,null,0,0]
[5099010,"Evaluación Actividad",0,0,null,null,null,null,null,null,null,null,null,null,null,null,null,null,null,null,null,null,null,null,null,null,null,null,null,null,null,null,null,null,null,null,null,null,null,null,"",null,null,null,null,null,null,null,null,null,null,null,null,null,null,null,null,null,null,null,null,null,null,null,null,null,null,null,null,null,null,null,null,null,null,null,null,null,null,null,"","","","","","","",null,"","",null,null,null,null,null,0,0,0,0,0,0,0,null,0,0]
[5099011,"Evaluación  prevocaciónal",0,0,null,null,null,null,null,null,null,null,null,null,null,null,null,null,null,null,null,null,null,null,null,null,null,null,null,null,null,null,null,null,null,null,null,null,null,null,"",null,null,null,null,null,null,null,null,null,null,null,null,null,null,null,null,null,null,null,null,null,null,null,null,null,null,null,null,null,null,null,null,null,null,null,null,null,null,null,"","","","","","","",null,"","",null,null,null,null,null,0,0,0,0,0,0,0,null,0,0]
[5099063,"Evaluación cognitiva",0,0,null,null,null,null,null,null,null,null,null,null,null,null,null,null,null,null,null,null,null,null,null,null,null,null,null,null,null,null,null,null,null,null,null,null,null,null,"",null,null,null,null,null,null,null,null,null,null,null,null,null,null,null,null,null,null,null,null,null,null,null,null,null,null,null,null,null,null,null,null,null,null,null,null,null,null,null,"","","","","","","",null,"","",null,null,null,null,null,0,0,0,0,0,0,0,null,0,0]
[5099064,"Estimulación cognitiva",0,0,null,null,null,null,null,null,null,null,null,null,null,null,null,null,null,null,null,null,null,null,null,null,null,null,null,null,null,null,null,null,null,null,null,null,null,null,"",null,null,null,null,null,null,null,null,null,null,null,null,null,null,null,null,null,null,null,null,null,null,null,null,null,null,null,null,null,null,null,null,null,null,null,null,null,null,null,"","","","","","","",null,"","",null,null,null,null,null,0,0,0,0,0,0,0,null,0,0]
[5099111,"Curación avanzada de herida",0,0,null,null,null,null,null,null,null,null,null,null,null,null,null,null,null,null,null,null,null,null,null,null,null,null,null,null,null,null,null,null,null,null,null,null,null,null,"",null,null,null,null,null,null,null,null,null,null,null,null,null,null,null,null,null,null,null,null,null,null,null,null,null,null,null,null,null,null,null,null,null,null,null,null,null,null,null,"","","","","","","",null,"","",null,null,null,null,null,0,0,0,0,0,0,0,null,0,0]
["0102701","Evaluación Motriz Funcional",0,0,null,null,null,null,null,null,null,null,null,null,null,null,null,null,null,null,null,null,null,null,null,null,null,null,null,null,null,null,null,null,null,null,null,null,null,null,"",null,null,null,null,null,null,null,null,null,null,null,null,null,null,null,null,null,null,null,null,null,null,null,null,null,null,null,null,null,null,null,null,null,null,null,null,null,null,null,"","","","","","","",null,"","",null,null,null,null,null,0,0,0,0,0,0,0,null,0,0]
["0102702","Evaluación cognitiva-perceptual",0,0,null,null,null,null,null,null,null,null,null,null,null,null,null,null,null,null,null,null,null,null,null,null,null,null,null,null,null,null,null,null,null,null,null,null,null,null,"",null,null,null,null,null,null,null,null,null,null,null,null,null,null,null,null,null,null,null,null,null,null,null,null,null,null,null,null,null,null,null,null,null,null,null,null,null,null,null,"","","","","","","",null,"","",null,null,null,null,null,0,0,0,0,0,0,0,null,0,0]
["0102703","Evaluación independencia en actividades de la vida diaria",0,0,null,null,null,null,null,null,null,null,null,null,null,null,null,null,null,null,null,null,null,null,null,null,null,null,null,null,null,null,null,null,null,null,null,null,null,null,"",null,null,null,null,null,null,null,null,null,null,null,null,null,null,null,null,null,null,null,null,null,null,null,null,null,null,null,null,null,null,null,null,null,null,null,null,null,null,null,"","","","","","","",null,"","",null,null,null,null,null,0,0,0,0,0,0,0,null,0,0]
["0102704","Evaluación barreras arquitectónicas",0,0,null,null,null,null,null,null,null,null,null,null,null,null,null,null,null,null,null,null,null,null,null,null,null,null,null,null,null,null,null,null,null,null,null,null,null,null,"",null,null,null,null,null,null,null,null,null,null,null,null,null,null,null,null,null,null,null,null,null,null,null,null,null,null,null,null,null,null,null,null,null,null,null,null,null,null,null,"","","","","","","",null,"","",null,null,null,null,null,0,0,0,0,0,0,0,null,0,0]
["0102705","Evaluación puesto de trabajo",0,0,null,null,null,null,null,null,null,null,null,null,null,null,null,null,null,null,null,null,null,null,null,null,null,null,null,null,null,null,null,null,null,null,null,null,null,null,"",null,null,null,null,null,null,null,null,null,null,null,null,null,null,null,null,null,null,null,null,null,null,null,null,null,null,null,null,null,null,null,null,null,null,null,null,null,null,null,"","","","","","","",null,"","",null,null,null,null,null,0,0,0,0,0,0,0,null,0,0]
["0102706","Evaluación del desarrollo Psicomotor",0,0,null,null,null,null,null,null,null,null,null,null,null,null,null,null,null,null,null,null,null,null,null,null,null,null,null,null,null,null,null,null,null,null,null,null,null,null,"",null,null,null,null,null,null,null,null,null,null,null,null,null,null,null,null,null,null,null,null,null,null,null,null,null,null,null,null,null,null,null,null,null,null,null,null,null,null,null,"","","","","","","",null,"","",null,null,null,null,null,0,0,0,0,0,0,0,null,0,0]
["0102707","Reentrenamiento de las funciones cognitiva-perceptual",0,0,null,null,null,null,null,null,null,null,null,null,null,null,null,null,null,null,null,null,null,null,null,null,null,null,null,null,null,null,null,null,null,null,null,null,null,null,"",null,null,null,null,null,null,null,null,null,null,null,null,null,null,null,null,null,null,null,null,null,null,null,null,null,null,null,null,null,null,null,null,null,null,null,null,null,null,null,"","","","","","","",null,"","",null,null,null,null,null,0,0,0,0,0,0,0,null,0,0]
["0102708","Reentrenamiento de las actividades de la vida diaria",0,0,null,null,null,null,null,null,null,null,null,null,null,null,null,null,null,null,null,null,null,null,null,null,null,null,null,null,null,null,null,null,null,null,null,null,null,null,"",null,null,null,null,null,null,null,null,null,null,null,null,null,null,null,null,null,null,null,null,null,null,null,null,null,null,null,null,null,null,null,null,null,null,null,null,null,null,null,"","","","","","","",null,"","",null,null,null,null,null,0,0,0,0,0,0,0,null,0,0]
["0102709","Reentrenamiento laboral",0,0,null,null,null,null,null,null,null,null,null,null,null,null,null,null,null,null,null,null,null,null,null,null,null,null,null,null,null,null,null,null,null,null,null,null,null,null,"",null,null,null,null,null,null,null,null,null,null,null,null,null,null,null,null,null,null,null,null,null,null,null,null,null,null,null,null,null,null,null,null,null,null,null,null,null,null,null,"","","","","","","",null,"","",null,null,null,null,null,0,0,0,0,0,0,0,null,0,0]
["01010065","Comité junta médica",0,0,null,null,null,null,null,null,null,null,null,null,null,null,null,null,null,null,null,null,null,null,null,null,null,null,null,null,null,null,null,null,null,null,null,null,null,null,"",null,null,null,null,null,null,null,null,null,null,null,null,null,null,null,null,null,null,null,null,null,null,null,null,null,null,null,null,null,null,null,null,null,null,null,null,null,null,null,"","","","","","","",null,"","",null,null,null,null,null,0,0,0,0,0,0,0,null,0,0]
["01010066","Consultorías médicas de especialidades",0,0,null,null,null,null,null,null,null,null,null,null,null,null,null,null,null,null,null,null,null,null,null,null,null,null,null,null,null,null,null,null,null,null,null,null,null,null,"",null,null,null,null,null,null,null,null,null,null,null,null,null,null,null,null,null,null,null,null,null,null,null,null,null,null,null,null,null,null,null,null,null,null,null,null,null,null,null,"","","","","","","",null,"","",null,null,null,null,null,0,0,0,0,0,0,0,null,0,0]
["01010067","Consultorías odontólogos",0,0,null,null,null,null,null,null,null,null,null,null,null,null,null,null,null,null,null,null,null,null,null,null,null,null,null,null,null,null,null,null,null,null,null,null,null,null,"",null,null,null,null,null,null,null,null,null,null,null,null,null,null,null,null,null,null,null,null,null,null,null,null,null,null,null,null,null,null,null,null,null,null,null,null,null,null,null,"","","","","","","",null,"","",null,null,null,null,null,0,0,0,0,0,0,0,null,0,0]
["01010068","Consejeria Individual por profesional de salud",0,0,null,null,null,null,null,null,null,null,null,null,null,null,null,null,null,null,null,null,null,null,null,null,null,null,null,null,null,null,null,null,null,null,null,null,null,null,"",null,null,null,null,null,null,null,null,null,null,null,null,null,null,null,null,null,null,null,null,null,null,null,null,null,null,null,null,null,null,null,null,null,null,null,null,null,null,null,"","","","","","","",null,"","",null,null,null,null,null,0,0,0,0,0,0,0,null,0,0]
["01010069","Consejeria Familiar por profesionales de salud",0,0,null,null,null,null,null,null,null,null,null,null,null,null,null,null,null,null,null,null,null,null,null,null,null,null,null,null,null,null,null,null,null,null,null,null,null,null,"",null,null,null,null,null,null,null,null,null,null,null,null,null,null,null,null,null,null,null,null,null,null,null,null,null,null,null,null,null,null,null,null,null,null,null,null,null,null,null,"","","","","","","",null,"","",null,null,null,null,null,0,0,0,0,0,0,0,null,0,0]
["01010071","Instalación vendaje compresivo (Coban)",0,0]
[null,"Entrega de Glucómetro",0,0]
[null,"Curación Avanzada Pie Diabético",0,0]
[null,"Curación Avanzada Úlcera Venosa",0,0]
["TOTAL",null,{"$f":"SUM(C146:C177)","v":0},{"$f":"SUM(D146:D177)","v":0},{"$f":"SUM(E146:E177)","v":0},{"$f":"SUM(F146:F177)","v":0},{"$f":"SUM(G146:G177)","v":0},null,null,null,null,null,null,null,null,null,null,null,null,null,null,null,null,null,null,null,{"$f":"SUM(AA146:AA177)","v":0},0,0,0,0,0,0,0,0,0]
["TRASPLANTES"]
["01010072","Estudio receptor donante cadáver ",0,{"$f":"SUM(E180:F180)","v":0},null,null,null,null,null,null,null,null,null,null,null,null,null,null,null,null,null,null,null,null,null,null,null,null,null,null,null,null,null,null,null,null,null,null,null,null,"",null,null,null,null,null,null,null,null,null,null,null,null,null,null,null,null,null,null,null,null,null,null,null,null,null,null,null,null,null,null,null,null,null,null,null,null,null,null,null,{"$f":"IF(AND($C180>0,AA180=\"\"),\" * No olvide digitar la variable \"&$AA$8&\"\"&\": Atención Cerrada. Digite Cero si no tiene.\",\"\")","v":""},{"$f":"IF(AND($C180>0,AB180=\"\"),\" * No olvide digitar la variable \"&$AA$8&\"\"&\": Atención Abierta. Digite Cero si no tiene.\",\"\")","v":""},{"$f":"IF(AND($C180>0,AC180=\"\"),\" * No olvide digitar la variable \"&$AA$8&\"\"&\": Emergencia. Digite Cero si no tiene.\",\"\")","v":""},{"$f":"IF(AND(C180<AA180+AB180+AC180),\" * La Suma de la variable \"&$AA$8&\"\"&\" no puede ser mayor al Total.\",\"\")","v":""},{"$f":"IF(AND($C180>0,AD180=\"\"),\" * No olvide digitar la variable \"&$AD$8&\"\"&\": Honorarios. Digite Cero si no tiene.\",\"\")","v":""},{"$f":"IF(AND($C180>0,AE180=\"\"),\" * No olvide digitar la variable \"&$AD$8&\"\"&\": Convenios. Digite Cero si no tiene.\",\"\")","v":""},{"$f":"IF(AND($C180>0,AF180=\"\"),\" * No olvide digitar la variable \"&$AD$8&\"\"&\": Consultores de llamada. Digite Cero si no tiene.\",\"\")","v":""},null,{"$f":"IF(AND($C180>0,AH180=\"\"),\" * No olvide digitar la variable \"&$AH$8&\"\"&\" Al Sistema. Digite Cero si no tiene.\",\"\")","v":""},{"$f":"IF(AND($C180>0,AI180=\"\"),\" * No olvide digitar la variable \"&$AH$8&\"\"&\" al Extrasistema. Digite Cero si no tiene.\",\"\")","v":""},null,null,null,null,null,{"$f":"IF(AND($C180>0,AA180=\"\"),1,0)","v":0},{"$f":"IF(AND($C180>0,AB180=\"\"),1,0)","v":0},{"$f":"IF(AND($C180>0,AC180=\"\"),1,0)","v":0},{"$f":"IF(AND(C180<AA180+AB180+AC180),1,0)","v":0},{"$f":"IF(AND($C180>0,AD180=\"\"),1,0)","v":0},{"$f":"IF(AND($C180>0,AE180=\"\"),1,0)","v":0},{"$f":"IF(AND($C180>0,AF180=\"\"),1,0)","v":0},null,{"$f":"IF(AND($C180>0,AH180=\"\"),1,0)","v":0},{"$f":"IF(AND($C180>0,AI180=\"\"),1,0)","v":0}]
["01010073","Estudio receptor donante vivo ",0,0,null,null,null,null,null,null,null,null,null,null,null,null,null,null,null,null,null,null,null,null,null,null,null,null,null,null,null,null,null,null,null,null,null,null,null,null,"",null,null,null,null,null,null,null,null,null,null,null,null,null,null,null,null,null,null,null,null,null,null,null,null,null,null,null,null,null,null,null,null,null,null,null,null,null,null,null,"","","","","","","",null,"","",null,null,null,null,null,0,0,0,0,0,0,0,null,0,0]
["01010074","Estudio receptores corazón-pulmón ",0,0,null,null,null,null,null,null,null,null,null,null,null,null,null,null,null,null,null,null,null,null,null,null,null,null,null,null,null,null,null,null,null,null,null,null,null,null,"",null,null,null,null,null,null,null,null,null,null,null,null,null,null,null,null,null,null,null,null,null,null,null,null,null,null,null,null,null,null,null,null,null,null,null,null,null,null,null,"","","","","","","",null,"","",null,null,null,null,null,0,0,0,0,0,0,0,null,0,0]
["01010075","Estudio pacientes trasplante medula ósea ",0,0,null,null,null,null,null,null,null,null,null,null,null,null,null,null,null,null,null,null,null,null,null,null,null,null,null,null,null,null,null,null,null,null,null,null,null,null,"",null,null,null,null,null,null,null,null,null,null,null,null,null,null,null,null,null,null,null,null,null,null,null,null,null,null,null,null,null,null,null,null,null,null,null,null,null,null,null,"","","","","","","",null,"","",null,null,null,null,null,0,0,0,0,0,0,0,null,0,0]
["01010076","Trasplante de medula autólogo",0,0,null,null,null,null,null,null,null,null,null,null,null,null,null,null,null,null,null,null,null,null,null,null,null,null,null,null,null,null,null,null,null,null,null,null,null,null,"",null,null,null,null,null,null,null,null,null,null,null,null,null,null,null,null,null,null,null,null,null,null,null,null,null,null,null,null,null,null,null,null,null,null,null,null,null,null,null,"","","","","","","",null,"","",null,null,null,null,null,0,0,0,0,0,0,0,null,0,0]
["01010077","Trasplante de medula alógeno",0,0,null,null,null,null,null,null,null,null,null,null,null,null,null,null,null,null,null,null,null,null,null,null,null,null,null,null,null,null,null,null,null,null,null,null,null,null,"",null,null,null,null,null,null,null,null,null,null,null,null,null,null,null,null,null,null,null,null,null,null,null,null,null,null,null,null,null,null,null,null,null,null,null,null,null,null,null,"","","","","","","",null,"","",null,null,null,null,null,0,0,0,0,0,0,0,null,0,0]
["01010078","Trasplante medula de cordón",0,0,null,null,null,null,null,null,null,null,null,null,null,null,null,null,null,null,null,null,null,null,null,null,null,null,null,null,null,null,null,null,null,null,null,null,null,null,"",null,null,null,null,null,null,null,null,null,null,null,null,null,null,null,null,null,null,null,null,null,null,null,null,null,null,null,null,null,null,null,null,null,null,null,null,null,null,null,"","","","","","","",null,"","",null,null,null,null,null,0,0,0,0,0,0,0,null,0,0]
["01010079","Trasplante medula haploidéntico",0,0,null,null,null,null,null,null,null,null,null,null,null,null,null,null,null,null,null,null,null,null,null,null,null,null,null,null,null,null,null,null,null,null,null,null,null,null,"",null,null,null,null,null,null,null,null,null,null,null,null,null,null,null,null,null,null,null,null,null,null,null,null,null,null,null,null,null,null,null,null,null,null,null,null,null,null,null,"","","","","","","",null,"","",null,null,null,null,null,0,0,0,0,0,0,0,null,0,0]
["01010080","Trasplante de córnea (incluye procuramiento y seguimiento por un año)",0,0,null,null,null,null,null,null,null,null,null,null,null,null,null,null,null,null,null,null,null,null,null,null,null,null,null,null,null,null,null,null,null,null,null,null,null,null,"",null,null,null,null,null,null,null,null,null,null,null,null,null,null,null,null,null,null,null,null,null,null,null,null,null,null,null,null,null,null,null,null,null,null,null,null,null,null,null,"","","","","","","",null,"","",null,null,null,null,null,0,0,0,0,0,0,0,null,0,0]
["01010081","Soporte pretrasplante hepático extracorporeo por sesión ",0,0,null,null,null,null,null,null,null,null,null,null,null,null,null,null,null,null,null,null,null,null,null,null,null,null,null,null,null,null,null,null,null,null,null,null,null,null,"",null,null,null,null,null,null,null,null,null,null,null,null,null,null,null,null,null,null,null,null,null,null,null,null,null,null,null,null,null,null,null,null,null,null,null,null,null,null,null,"","","","","","","",null,"","",null,null,null,null,null,0,0,0,0,0,0,0,null,0,0]
["01010082","Mantención donante cadáver (pulmón, corazón o hígado) (muerte cerebral) ",0,0,null,null,null,null,null,null,null,null,null,null,null,null,null,null,null,null,null,null,null,null,null,null,null,null,null,null,null,null,null,null,null,null,null,null,null,null,"",null,null,null,null,null,null,null,null,null,null,null,null,null,null,null,null,null,null,null,null,null,null,null,null,null,null,null,null,null,null,null,null,null,null,null,null,null,null,null,"","","","","","","",null,"","",null,null,null,null,null,0,0,0,0,0,0,0,null,0,0]
["TOTAL",null,{"$f":"SUM(C180:C190)","v":0},{"$f":"SUM(D180:D190)","v":0},{"$f":"SUM(E180:E190)","v":0},{"$f":"SUM(F180:F190)","v":0},{"$f":"SUM(G180:G190)","v":0},null,null,null,null,null,null,null,null,null,null,null,null,null,null,null,null,null,null,null,{"$f":"SUM(AA180:AA190)","v":0},{"$f":"SUM(AB180:AB190)","v":0},0,0,0,0,0,0,0,0]
["ATENCIÓN CERRADA "]
["0201010","Dia Cama de Hospitalización Integral Cuidados Básicos",0,{"$f":"SUM(E193:F193)","v":0},null,null,null,null,null,null,null,null,null,null,null,null,null,null,null,null,null,null,null,null,null,null,null,null,null,null,null,null,null,null,null,null,null,null,null,null,"",null,null,null,null,null,null,null,null,null,null,null,null,null,null,null,null,null,null,null,null,null,null,null,null,null,null,null,null,null,null,null,null,null,null,null,null,null,null,null,{"$f":"IF(AND($C193>0,AA193=\"\"),\" * No olvide digitar la variable \"&$AA$8&\"\"&\": Atención Cerrada. Digite Cero si no tiene.\",\"\")","v":""},{"$f":"IF(AND($C193>0,AB193=\"\"),\" * No olvide digitar la variable \"&$AA$8&\"\"&\": Atención Abierta. Digite Cero si no tiene.\",\"\")","v":""},{"$f":"IF(AND($C193>0,AC193=\"\"),\" * No olvide digitar la variable \"&$AA$8&\"\"&\": Emergencia. Digite Cero si no tiene.\",\"\")","v":""},{"$f":"IF(AND(C193<AA193+AB193+AC193),\" * La Suma de la variable \"&$AA$8&\"\"&\" no puede ser mayor al Total.\",\"\")","v":""},{"$f":"IF(AND($C193>0,AD193=\"\"),\" * No olvide digitar la variable \"&$AD$8&\"\"&\": Honorarios. Digite Cero si no tiene.\",\"\")","v":""},{"$f":"IF(AND($C193>0,AE193=\"\"),\" * No olvide digitar la variable \"&$AD$8&\"\"&\": Convenios. Digite Cero si no tiene.\",\"\")","v":""},{"$f":"IF(AND($C193>0,AF193=\"\"),\" * No olvide digitar la variable \"&$AD$8&\"\"&\": Consultores de llamada. Digite Cero si no tiene.\",\"\")","v":""},null,{"$f":"IF(AND($C193>0,AH193=\"\"),\" * No olvide digitar la variable \"&$AH$8&\"\"&\" Al Sistema. Digite Cero si no tiene.\",\"\")","v":""},{"$f":"IF(AND($C193>0,AI193=\"\"),\" * No olvide digitar la variable \"&$AH$8&\"\"&\" al Extrasistema. Digite Cero si no tiene.\",\"\")","v":""},null,null,null,null,null,{"$f":"IF(AND($C193>0,AA193=\"\"),1,0)","v":0},{"$f":"IF(AND($C193>0,AB193=\"\"),1,0)","v":0},{"$f":"IF(AND($C193>0,AC193=\"\"),1,0)","v":0},{"$f":"IF(AND(C193<AA193+AB193+AC193),1,0)","v":0},{"$f":"IF(AND($C193>0,AD193=\"\"),1,0)","v":0},{"$f":"IF(AND($C193>0,AE193=\"\"),1,0)","v":0},{"$f":"IF(AND($C193>0,AF193=\"\"),1,0)","v":0},null,{"$f":"IF(AND($C193>0,AH193=\"\"),1,0)","v":0},{"$f":"IF(AND($C193>0,AI193=\"\"),1,0)","v":0}]
["0201110","Dia Cama de Hospitalización Integral Cuidados Medios",0,{"$f":"SUM(E194:F194)","v":0},null,null,null,null,null,null,null,null,null,null,null,null,null,null,null,null,null,null,null,null,null,null,null,null,null,null,null,null,null,null,null,null,null,null,null,null,"",null,null,null,null,null,null,null,null,null,null,null,null,null,null,null,null,null,null,null,null,null,null,null,null,null,null,null,null,null,null,null,null,null,null,null,null,null,null,null,"","","","","","","",null,"","",null,null,null,null,null,0,0,0,0,0,0,0,null,0,0]
["0201301","Día Cama de Hospitalización Integral Adulto en Unidad de Tratamiento Intermedio (U.T.I)",0,0,null,null,null,null,null,null,null,null,null,null,null,null,null,null,null,null,null,null,null,null,null,null,null,null,null,null,null,null,null,null,null,null,null,null,null,null,"",null,null,null,null,null,null,null,null,null,null,null,null,null,null,null,null,null,null,null,null,null,null,null,null,null,null,null,null,null,null,null,null,null,null,null,null,null,null,null,"","","","","","","",null,"","",null,null,null,null,null,0,0,0,0,0,0,0,null,0,0]
["0201302","Día Cama de Hospitalización Integral Pediátrica en Unidad de Tratamiento Intermedio (U.T.I)",0,0,null,null,null,null,null,null,null,null,null,null,null,null,null,null,null,null,null,null,null,null,null,null,null,null,null,null,null,null,null,null,null,null,null,null,null,null,"",null,null,null,null,null,null,null,null,null,null,null,null,null,null,null,null,null,null,null,null,null,null,null,null,null,null,null,null,null,null,null,null,null,null,null,null,null,null,null,"","","","","","","",null,"","",null,null,null,null,null,0,0,0,0,0,0,0,null,0,0]
["0201303","Día Cama de Hospitalización Integral Neonatal en Unidad de Tratamiento Intermedio (U.T.I)",0,0,null,null,null,null,null,null,null,null,null,null,null,null,null,null,null,null,null,null,null,null,null,null,null,null,null,null,null,null,null,null,null,null,null,null,null,null,"",null,null,null,null,null,null,null,null,null,null,null,null,null,null,null,null,null,null,null,null,null,null,null,null,null,null,null,null,null,null,null,null,null,null,null,null,null,null,null,"","","","","","","",null,"","",null,null,null,null,null,0,0,0,0,0,0,0,null,0,0]
["0201201","Día Cama de Hospitalización Integral Adulto en Unidad de Cuidado Intensivo (U.C.I.) ",0,0,null,null,null,null,null,null,null,null,null,null,null,null,null,null,null,null,null,null,null,null,null,null,null,null,null,null,null,null,null,null,null,null,null,null,null,null,"",null,null,null,null,null,null,null,null,null,null,null,null,null,null,null,null,null,null,null,null,null,null,null,null,null,null,null,null,null,null,null,null,null,null,null,null,null,null,null,"","","","","","","",null,"","",null,null,null,null,null,0,0,0,0,0,0,0,null,0,0]
["0201202","Día Cama de Hospitalización Integral Pediátrica en Unidad de Cuidado Intensivo (U.C.I). ",0,0,null,null,null,null,null,null,null,null,null,null,null,null,null,null,null,null,null,null,null,null,null,null,null,null,null,null,null,null,null,null,null,null,null,null,null,null,"",null,null,null,null,null,null,null,null,null,null,null,null,null,null,null,null,null,null,null,null,null,null,null,null,null,null,null,null,null,null,null,null,null,null,null,null,null,null,null,"","","","","","","",null,"","",null,null,null,null,null,0,0,0,0,0,0,0,null,0,0]
["0201203","Día Cama de Hospitalización Integral Neonatal en Unidad de Cuidado Intensivo (U.C.I.)",0,0,null,null,null,null,null,null,null,null,null,null,null,null,null,null,null,null,null,null,null,null,null,null,null,null,null,null,null,null,null,null,null,null,null,null,null,null,"",null,null,null,null,null,null,null,null,null,null,null,null,null,null,null,null,null,null,null,null,null,null,null,null,null,null,null,null,null,null,null,null,null,null,null,null,null,null,null,"","","","","","","",null,"","",null,null,null,null,null,0,0,0,0,0,0,0,null,0,0]
["0201410","Día Cama de Hospitalización Integral Obstetricia ",0,0,null,null,null,null,null,null,null,null,null,null,null,null,null,null,null,null,null,null,null,null,null,null,null,null,null,null,null,null,null,null,null,null,null,null,null,null,"",null,null,null,null,null,null,null,null,null,null,null,null,null,null,null,null,null,null,null,null,null,null,null,null,null,null,null,null,null,null,null,null,null,null,null,null,null,null,null,"","","","","","","",null,"","",null,null,null,null,null,0,0,0,0,0,0,0,null,0,0]
["0201403","Día Cama de Hospitalización Integral Sala Cuna",0,0,null,null,null,null,null,null,null,null,null,null,null,null,null,null,null,null,null,null,null,null,null,null,null,null,null,null,null,null,null,null,null,null,null,null,null,null,"",null,null,null,null,null,null,null,null,null,null,null,null,null,null,null,null,null,null,null,null,null,null,null,null,null,null,null,null,null,null,null,null,null,null,null,null,null,null,null,"","","","","","","",null,"","",null,null,null,null,null,0,0,0,0,0,0,0,null,0,0]
["0201404","Día Cama de Hospitalización Integral Incubadora",0,0,null,null,null,null,null,null,null,null,null,null,null,null,null,null,null,null,null,null,null,null,null,null,null,null,null,null,null,null,null,null,null,null,null,null,null,null,"",null,null,null,null,null,null,null,null,null,null,null,null,null,null,null,null,null,null,null,null,null,null,null,null,null,null,null,null,null,null,null,null,null,null,null,null,null,null,null,"","","","","","","",null,"","",null,null,null,null,null,0,0,0,0,0,0,0,null,0,0]
["0201405","Día Cama de Hospitalización Integral Psiquiatría Cuidados Básicos",0,0,null,null,null,null,null,null,null,null,null,null,null,null,null,null,null,null,null,null,null,null,null,null,null,null,null,null,null,null,null,null,null,null,null,null,null,null,"",null,null,null,null,null,null,null,null,null,null,null,null,null,null,null,null,null,null,null,null,null,null,null,null,null,null,null,null,null,null,null,null,null,null,null,null,null,null,null,"","","","","","","",null,"","",null,null,null,null,null,0,0,0,0,0,0,0,null,0,0]
["0201406","Día Cama de Hospitalización Integral Psiquiatría Cuidados Medios",0,0,null,null,null,null,null,null,null,null,null,null,null,null,null,null,null,null,null,null,null,null,null,null,null,null,null,null,null,null,null,null,null,null,null,null,null,null,"",null,null,null,null,null,null,null,null,null,null,null,null,null,null,null,null,null,null,null,null,null,null,null,null,null,null,null,null,null,null,null,null,null,null,null,null,null,null,null,"","","","","","","",null,"","",null,null,null,null,null,0,0,0,0,0,0,0,null,0,0]
["0201407","Día Cama de Hospitalización Integral de Observación - Ambulatorio",0,0,null,null,null,null,null,null,null,null,null,null,null,null,null,null,null,null,null,null,null,null,null,null,null,null,null,null,null,null,null,null,null,null,null,null,null,null,"",null,null,null,null,null,null,null,null,null,null,null,null,null,null,null,null,null,null,null,null,null,null,null,null,null,null,null,null,null,null,null,null,null,null,null,null,null,null,null,"","","","","","","",null,"","",null,null,null,null,null,0,0,0,0,0,0,0,null,0,0]
["0201501","Dia Cama Hospitalización Domiciliaria Cuidados Básicos",0,0,null,null,null,null,null,null,null,null,null,null,null,null,null,null,null,null,null,null,null,null,null,null,null,null,null,null,null,null,null,null,null,null,null,null,null,null,"",null,null,null,null,null,null,null,null,null,null,null,null,null,null,null,null,null,null,null,null,null,null,null,null,null,null,null,null,null,null,null,null,null,null,null,null,null,null,null,"","","","","","","",null,"","",null,null,null,null,null,0,0,0,0,0,0,0,null,0,0]
["0201502","Dia Cama Hospitalización Domiciliaria Cuidados Medios ",0,0,null,null,null,null,null,null,null,null,null,null,null,null,null,null,null,null,null,null,null,null,null,null,null,null,null,null,null,null,null,null,null,null,null,null,null,null,{"$f":"CC208&CD208&CE208&CF208&CG208&CH208&CI208&CJ208&CK208&CL208&CM208","v":""},null,null,null,null,null,null,null,null,null,null,null,null,null,null,null,null,null,null,null,null,null,null,null,null,null,null,null,null,null,null,null,null,null,null,null,null,null,null,null,"","","","","","","",null,"","",null,null,null,null,null,0,0,0,0,0,0,0,null,0,0]
["0201503","Dia Cama Hospitalización Domiciliaria Cuidados Alta Complejidad ",{"$f":"SUM(D209+G209)","v":0},{"$f":"SUM(E209:F209)","v":0},null,null,null,null,null,null,null,null,null,null,null,null,null,null,null,null,null,null,null,null,null,null,null,null,null,null,null,null,null,null,null,null,null,null,null,null,"",null,null,null,null,null,null,null,null,null,null,null,null,null,null,null,null,null,null,null,null,null,null,null,null,null,null,null,null,null,null,null,null,null,null,null,null,null,null,null,"","","","","","","",null,"","",null,null,null,null,null,0,0,0,0,0,0,0,null,0,0]
["0203211","Día Cama Residencia Protegida",{"$f":"SUM(D210+G210)","v":0},{"$f":"SUM(E210:F210)","v":0},null,null,null,null,null,null,null,null,null,null,null,null,null,null,null,null,null,null,null,null,null,null,null,null,null,null,null,null,null,null,null,null,null,null,null,null,"",null,null,null,null,null,null,null,null,null,null,null,null,null,null,null,null,null,null,null,null,null,null,null,null,null,null,null,null,null,null,null,null,null,null,null,null,null,null,null,"","","","","","","",null,"","",null,null,null,null,null,0,0,0,0,0,0,0,null,0,0]
[null,"Pensionado",{"$f":"SUM(D211+G211)","v":0},{"$f":"SUM(E211:F211)","v":0},null,null,null,null,null,null,null,null,null,null,null,null,null,null,null,null,null,null,null,null,null,null,null,null,null,null,null,null,null,null,null,null,null,null,null,null,"",null,null,null,null,null,null,null,null,null,null,null,null,null,null,null,null,null,null,null,null,null,null,null,null,null,null,null,null,null,null,null,null,null,null,null,null,null,null,null,"","","","","","","",null,"","",null,null,null,null,null,0,0,0,0,0,0,0,null,0,0]
["TOTAL ",null,{"$f":"SUM(C193:C211)","v":0},{"$f":"SUM(D193:D211)","v":0},{"$f":"SUM(E193:E211)","v":0},{"$f":"SUM(F193:F211)","v":0},{"$f":"SUM(G193:G211)","v":0},null,null,null,null,null,null,null,null,null,null,null,null,null,null,null,null,null,null,null,{"$f":"SUM(AA193:AA211)","v":0},{"$f":"SUM(AB193:AB211)","v":0},0,0,0,0,0,0,0,0]
["EXAMENES DE LABORATORIO "]
["SANGRE, HEMATOLOGIA"]
["0301002","Acido fólico o folatos",{"$f":"SUM(D215+G215)","v":0},{"$f":"SUM(E215:F215)","v":0},null,null,null,null,null,null,null,null,null,null,null,null,null,null,null,null,null,null,null,null,null,null,null,null,null,null,null,null,null,null,null,null,null,null,null,null,"",null,null,null,null,null,null,null,null,null,null,null,null,null,null,null,null,null,null,null,null,null,null,null,null,null,null,null,null,null,null,null,null,null,null,null,null,null,null,null,{"$f":"IF(AND($C215>0,AA215=\"\"),\" * No olvide digitar la variable \"&$AA$8&\"\"&\": Atención Cerrada. Digite Cero si no tiene.\",\"\")","v":""},{"$f":"IF(AND($C215>0,AB215=\"\"),\" * No olvide digitar la variable \"&$AA$8&\"\"&\": Atención Abierta. Digite Cero si no tiene.\",\"\")","v":""},{"$f":"IF(AND($C215>0,AC215=\"\"),\" * No olvide digitar la variable \"&$AA$8&\"\"&\": Emergencia. Digite Cero si no tiene.\",\"\")","v":""},{"$f":"IF(AND(C215<AA215+AB215+AC215),\" * La Suma de la variable \"&$AA$8&\"\"&\" no puede ser mayor al Total.\",\"\")","v":""},{"$f":"IF(AND($C215>0,AD215=\"\"),\" * No olvide digitar la variable \"&$AD$8&\"\"&\": Honorarios. Digite Cero si no tiene.\",\"\")","v":""},{"$f":"IF(AND($C215>0,AE215=\"\"),\" * No olvide digitar la variable \"&$AD$8&\"\"&\": Convenios. Digite Cero si no tiene.\",\"\")","v":""},{"$f":"IF(AND($C215>0,AF215=\"\"),\" * No olvide digitar la variable \"&$AD$8&\"\"&\": Consultores de llamada. Digite Cero si no tiene.\",\"\")","v":""},null,{"$f":"IF(AND($C215>0,AH215=\"\"),\" * No olvide digitar la variable \"&$AH$8&\"\"&\" Al Sistema. Digite Cero si no tiene.\",\"\")","v":""},{"$f":"IF(AND($C215>0,AI215=\"\"),\" * No olvide digitar la variable \"&$AH$8&\"\"&\" al Extrasistema. Digite Cero si no tiene.\",\"\")","v":""},null,null,null,null,null,{"$f":"IF(AND($C215>0,AA215=\"\"),1,0)","v":0},{"$f":"IF(AND($C215>0,AB215=\"\"),1,0)","v":0},{"$f":"IF(AND($C215>0,AC215=\"\"),1,0)","v":0},{"$f":"IF(AND(C215<AA215+AB215+AC215),1,0)","v":0},{"$f":"IF(AND($C215>0,AD215=\"\"),1,0)","v":0},{"$f":"IF(AND($C215>0,AE215=\"\"),1,0)","v":0},{"$f":"IF(AND($C215>0,AF215=\"\"),1,0)","v":0},null,{"$f":"IF(AND($C215>0,AH215=\"\"),1,0)","v":0},{"$f":"IF(AND($C215>0,AI215=\"\"),1,0)","v":0}]
["0301003","Adenograma, mielograma, c/u",0,{"$f":"SUM(E216:F216)","v":0},null,null,null,null,null,null,null,null,null,null,null,null,null,null,null,null,null,null,null,null,null,null,null,null,null,null,null,null,null,null,null,null,null,null,null,null,"",null,null,null,null,null,null,null,null,null,null,null,null,null,null,null,null,null,null,null,null,null,null,null,null,null,null,null,null,null,null,null,null,null,null,null,null,null,null,null,"","","","","","","",null,"","",null,null,null,null,null,0,0,0,0,0,0,0,null,0,0]
["0301006","Agregación plaquetaria con diferentes agonistas",0,0,null,null,null,null,null,null,null,null,null,null,null,null,null,null,null,null,null,null,null,null,null,null,null,null,null,null,null,null,null,null,null,null,null,null,null,null,"",null,null,null,null,null,null,null,null,null,null,null,null,null,null,null,null,null,null,null,null,null,null,null,null,null,null,null,null,null,null,null,null,null,null,null,null,null,null,null,"","","","","","","",null,"","",null,null,null,null,null,0,0,0,0,0,0,0,null,0,0]
["0301007","Anticoagulantes circulantes o anticoagulante lúpico",0,0,null,null,null,null,null,null,null,null,null,null,null,null,null,null,null,null,null,null,null,null,null,null,null,null,null,null,null,null,null,null,null,null,null,null,null,null,"",null,null,null,null,null,null,null,null,null,null,null,null,null,null,null,null,null,null,null,null,null,null,null,null,null,null,null,null,null,null,null,null,null,null,null,null,null,null,null,"","","","","","","",null,"","",null,null,null,null,null,0,0,0,0,0,0,0,null,0,0]
["0301008","Antitrombina III",0,0,null,null,null,null,null,null,null,null,null,null,null,null,null,null,null,null,null,null,null,null,null,null,null,null,null,null,null,null,null,null,null,null,null,null,null,null,"",null,null,null,null,null,null,null,null,null,null,null,null,null,null,null,null,null,null,null,null,null,null,null,null,null,null,null,null,null,null,null,null,null,null,null,null,null,null,null,"","","","","","","",null,"","",null,null,null,null,null,0,0,0,0,0,0,0,null,0,0]
["0301011","Coagulación, tiempo de",0,0,null,null,null,null,null,null,null,null,null,null,null,null,null,null,null,null,null,null,null,null,null,null,null,null,null,null,null,null,null,null,null,null,null,null,null,null,"",null,null,null,null,null,null,null,null,null,null,null,null,null,null,null,null,null,null,null,null,null,null,null,null,null,null,null,null,null,null,null,null,null,null,null,null,null,null,null,"","","","","","","",null,"","",null,null,null,null,null,0,0,0,0,0,0,0,null,0,0]
["0301013","Tiempo de lisis del coágulo",0,0,null,null,null,null,null,null,null,null,null,null,null,null,null,null,null,null,null,null,null,null,null,null,null,null,null,null,null,null,null,null,null,null,null,null,null,null,"",null,null,null,null,null,null,null,null,null,null,null,null,null,null,null,null,null,null,null,null,null,null,null,null,null,null,null,null,null,null,null,null,null,null,null,null,null,null,null,"","","","","","","",null,"","",null,null,null,null,null,0,0,0,0,0,0,0,null,0,0]
["0301014","Prueba de antiglobulina directa",0,0,null,null,null,null,null,null,null,null,null,null,null,null,null,null,null,null,null,null,null,null,null,null,null,null,null,null,null,null,null,null,null,null,null,null,null,null,"",null,null,null,null,null,null,null,null,null,null,null,null,null,null,null,null,null,null,null,null,null,null,null,null,null,null,null,null,null,null,null,null,null,null,null,null,null,null,null,"","","","","","","",null,"","",null,null,null,null,null,0,0,0,0,0,0,0,null,0,0]
["0301017","Deshidrogenasa glucosa-6-fosfato en eritrocitos",0,0,null,null,null,null,null,null,null,null,null,null,null,null,null,null,null,null,null,null,null,null,null,null,null,null,null,null,null,null,null,null,null,null,null,null,null,null,"",null,null,null,null,null,null,null,null,null,null,null,null,null,null,null,null,null,null,null,null,null,null,null,null,null,null,null,null,null,null,null,null,null,null,null,null,null,null,null,"","","","","","","",null,"","",null,null,null,null,null,0,0,0,0,0,0,0,null,0,0]
["0301020","Tiempo de lisis de euglobulinas",0,0,null,null,null,null,null,null,null,null,null,null,null,null,null,null,null,null,null,null,null,null,null,null,null,null,null,null,null,null,null,null,null,null,null,null,null,null,"",null,null,null,null,null,null,null,null,null,null,null,null,null,null,null,null,null,null,null,null,null,null,null,null,null,null,null,null,null,null,null,null,null,null,null,null,null,null,null,"","","","","","","",null,"","",null,null,null,null,null,0,0,0,0,0,0,0,null,0,0]
["0301021","Fibrinógeno",0,0,null,null,null,null,null,null,null,null,null,null,null,null,null,null,null,null,null,null,null,null,null,null,null,null,null,null,null,null,null,null,null,null,null,null,null,null,"",null,null,null,null,null,null,null,null,null,null,null,null,null,null,null,null,null,null,null,null,null,null,null,null,null,null,null,null,null,null,null,null,null,null,null,null,null,null,null,"","","","","","","",null,"","",null,null,null,null,null,0,0,0,0,0,0,0,null,0,0]
["0301022","Test de neutralización plaquetaria",0,0,null,null,null,null,null,null,null,null,null,null,null,null,null,null,null,null,null,null,null,null,null,null,null,null,null,null,null,null,null,null,null,null,null,null,null,null,"",null,null,null,null,null,null,null,null,null,null,null,null,null,null,null,null,null,null,null,null,null,null,null,null,null,null,null,null,null,null,null,null,null,null,null,null,null,null,null,"","","","","","","",null,"","",null,null,null,null,null,0,0,0,0,0,0,0,null,0,0]
["0301024","Factor V",0,0,null,null,null,null,null,null,null,null,null,null,null,null,null,null,null,null,null,null,null,null,null,null,null,null,null,null,null,null,null,null,null,null,null,null,null,null,"",null,null,null,null,null,null,null,null,null,null,null,null,null,null,null,null,null,null,null,null,null,null,null,null,null,null,null,null,null,null,null,null,null,null,null,null,null,null,null,"","","","","","","",null,"","",null,null,null,null,null,0,0,0,0,0,0,0,null,0,0]
["0301025","Factores VII, VIII, IX, X, XI, XII, XIII, c/u",0,0,null,null,null,null,null,null,null,null,null,null,null,null,null,null,null,null,null,null,null,null,null,null,null,null,null,null,null,null,null,null,null,null,null,null,null,null,"",null,null,null,null,null,null,null,null,null,null,null,null,null,null,null,null,null,null,null,null,null,null,null,null,null,null,null,null,null,null,null,null,null,null,null,null,null,null,null,"","","","","","","",null,"","",null,null,null,null,null,0,0,0,0,0,0,0,null,0,0]
["0301026","Ferritina",0,0,null,null,null,null,null,null,null,null,null,null,null,null,null,null,null,null,null,null,null,null,null,null,null,null,null,null,null,null,null,null,null,null,null,null,null,null,"",null,null,null,null,null,null,null,null,null,null,null,null,null,null,null,null,null,null,null,null,null,null,null,null,null,null,null,null,null,null,null,null,null,null,null,null,null,null,null,"","","","","","","",null,"","",null,null,null,null,null,0,0,0,0,0,0,0,null,0,0]
["0301027","Fibrinógeno, productos de degradación del",0,0,null,null,null,null,null,null,null,null,null,null,null,null,null,null,null,null,null,null,null,null,null,null,null,null,null,null,null,null,null,null,null,null,null,null,null,null,"",null,null,null,null,null,null,null,null,null,null,null,null,null,null,null,null,null,null,null,null,null,null,null,null,null,null,null,null,null,null,null,null,null,null,null,null,null,null,null,"","","","","","","",null,"","",null,null,null,null,null,0,0,0,0,0,0,0,null,0,0]
["0301028","Fierro sérico",0,0,null,null,null,null,null,null,null,null,null,null,null,null,null,null,null,null,null,null,null,null,null,null,null,null,null,null,null,null,null,null,null,null,null,null,null,null,"",null,null,null,null,null,null,null,null,null,null,null,null,null,null,null,null,null,null,null,null,null,null,null,null,null,null,null,null,null,null,null,null,null,null,null,null,null,null,null,"","","","","","","",null,"","",null,null,null,null,null,0,0,0,0,0,0,0,null,0,0]
["0301029","Fierro, capacidad de fijación del (incluye fierro sérico)",0,0,null,null,null,null,null,null,null,null,null,null,null,null,null,null,null,null,null,null,null,null,null,null,null,null,null,null,null,null,null,null,null,null,null,null,null,null,"",null,null,null,null,null,null,null,null,null,null,null,null,null,null,null,null,null,null,null,null,null,null,null,null,null,null,null,null,null,null,null,null,null,null,null,null,null,null,null,"","","","","","","",null,"","",null,null,null,null,null,0,0,0,0,0,0,0,null,0,0]
["0301030","Fierro, cinética del (cada determinación)",0,0,null,null,null,null,null,null,null,null,null,null,null,null,null,null,null,null,null,null,null,null,null,null,null,null,null,null,null,null,null,null,null,null,null,null,null,null,"",null,null,null,null,null,null,null,null,null,null,null,null,null,null,null,null,null,null,null,null,null,null,null,null,null,null,null,null,null,null,null,null,null,null,null,null,null,null,null,"","","","","","","",null,"","",null,null,null,null,null,0,0,0,0,0,0,0,null,0,0]
["0301034","Clasificación sanguínea AB0 y RhD",0,0,null,null,null,null,null,null,null,null,null,null,null,null,null,null,null,null,null,null,null,null,null,null,null,null,null,null,null,null,null,null,null,null,null,null,null,null,"",null,null,null,null,null,null,null,null,null,null,null,null,null,null,null,null,null,null,null,null,null,null,null,null,null,null,null,null,null,null,null,null,null,null,null,null,null,null,null,"","","","","","","",null,"","",null,null,null,null,null,0,0,0,0,0,0,0,null,0,0]
["0301035","Haptoglobina cuantitativa",0,0,null,null,null,null,null,null,null,null,null,null,null,null,null,null,null,null,null,null,null,null,null,null,null,null,null,null,null,null,null,null,null,null,null,null,null,null,"",null,null,null,null,null,null,null,null,null,null,null,null,null,null,null,null,null,null,null,null,null,null,null,null,null,null,null,null,null,null,null,null,null,null,null,null,null,null,null,"","","","","","","",null,"","",null,null,null,null,null,0,0,0,0,0,0,0,null,0,0]
["0301036","Hematocrito (proc. aut.)",0,0,null,null,null,null,null,null,null,null,null,null,null,null,null,null,null,null,null,null,null,null,null,null,null,null,null,null,null,null,null,null,null,null,null,null,null,null,"",null,null,null,null,null,null,null,null,null,null,null,null,null,null,null,null,null,null,null,null,null,null,null,null,null,null,null,null,null,null,null,null,null,null,null,null,null,null,null,"","","","","","","",null,"","",null,null,null,null,null,0,0,0,0,0,0,0,null,0,0]
["0301038","Hemoglobina en sangre total (proc. aut.)",0,0,null,null,null,null,null,null,null,null,null,null,null,null,null,null,null,null,null,null,null,null,null,null,null,null,null,null,null,null,null,null,null,null,null,null,null,null,"",null,null,null,null,null,null,null,null,null,null,null,null,null,null,null,null,null,null,null,null,null,null,null,null,null,null,null,null,null,null,null,null,null,null,null,null,null,null,null,"","","","","","","",null,"","",null,null,null,null,null,0,0,0,0,0,0,0,null,0,0]
["0301040","Hemoglobina fetal cuantitativa en eritrocitos",0,0,null,null,null,null,null,null,null,null,null,null,null,null,null,null,null,null,null,null,null,null,null,null,null,null,null,null,null,null,null,null,null,null,null,null,null,null,"",null,null,null,null,null,null,null,null,null,null,null,null,null,null,null,null,null,null,null,null,null,null,null,null,null,null,null,null,null,null,null,null,null,null,null,null,null,null,null,"","","","","","","",null,"","",null,null,null,null,null,0,0,0,0,0,0,0,null,0,0]
["0301041","Hemoglobina glicada A1c",0,0,null,null,null,null,null,null,null,null,null,null,null,null,null,null,null,null,null,null,null,null,null,null,null,null,null,null,null,null,null,null,null,null,null,null,null,null,"",null,null,null,null,null,null,null,null,null,null,null,null,null,null,null,null,null,null,null,null,null,null,null,null,null,null,null,null,null,null,null,null,null,null,null,null,null,null,null,"","","","","","","",null,"","",null,null,null,null,null,0,0,0,0,0,0,0,null,0,0]
["0301042","Hemoglobina plasmática",0,0,null,null,null,null,null,null,null,null,null,null,null,null,null,null,null,null,null,null,null,null,null,null,null,null,null,null,null,null,null,null,null,null,null,null,null,null,"",null,null,null,null,null,null,null,null,null,null,null,null,null,null,null,null,null,null,null,null,null,null,null,null,null,null,null,null,null,null,null,null,null,null,null,null,null,null,null,"","","","","","","",null,"","",null,null,null,null,null,0,0,0,0,0,0,0,null,0,0]
["0301044","Electroforesis de hemoglobina",0,0,null,null,null,null,null,null,null,null,null,null,null,null,null,null,null,null,null,null,null,null,null,null,null,null,null,null,null,null,null,null,null,null,null,null,null,null,"",null,null,null,null,null,null,null,null,null,null,null,null,null,null,null,null,null,null,null,null,null,null,null,null,null,null,null,null,null,null,null,null,null,null,null,null,null,null,null,"","","","","","","",null,"","",null,null,null,null,null,0,0,0,0,0,0,0,null,0,0]
["0301045","Hemograma (incluye recuentos de leucocitos, eritrocitos, plaquetas, hemoglobina, hematocrito, fórmula leucocitaria, características de los elementos figurados y velocidad de eritrosedimentación)",0,0,null,null,null,null,null,null,null,null,null,null,null,null,null,null,null,null,null,null,null,null,null,null,null,null,null,null,null,null,null,null,null,null,null,null,null,null,"",null,null,null,null,null,null,null,null,null,null,null,null,null,null,null,null,null,null,null,null,null,null,null,null,null,null,null,null,null,null,null,null,null,null,null,null,null,null,null,"","","","","","","",null,"","",null,null,null,null,null,0,0,0,0,0,0,0,null,0,0]
["0301048","Hemosiderina medular",0,0,null,null,null,null,null,null,null,null,null,null,null,null,null,null,null,null,null,null,null,null,null,null,null,null,null,null,null,null,null,null,null,null,null,null,null,null,"",null,null,null,null,null,null,null,null,null,null,null,null,null,null,null,null,null,null,null,null,null,null,null,null,null,null,null,null,null,null,null,null,null,null,null,null,null,null,null,"","","","","","","",null,"","",null,null,null,null,null,0,0,0,0,0,0,0,null,0,0]
["0301049","Cuantificación de heparina",0,0,null,null,null,null,null,null,null,null,null,null,null,null,null,null,null,null,null,null,null,null,null,null,null,null,null,null,null,null,null,null,null,null,null,null,null,null,"",null,null,null,null,null,null,null,null,null,null,null,null,null,null,null,null,null,null,null,null,null,null,null,null,null,null,null,null,null,null,null,null,null,null,null,null,null,null,null,"","","","","","","",null,"","",null,null,null,null,null,0,0,0,0,0,0,0,null,0,0]
["0301051","Identificación de anticuerpos irregulares eritrocitarios",0,0,null,null,null,null,null,null,null,null,null,null,null,null,null,null,null,null,null,null,null,null,null,null,null,null,null,null,null,null,null,null,null,null,null,null,null,null,"",null,null,null,null,null,null,null,null,null,null,null,null,null,null,null,null,null,null,null,null,null,null,null,null,null,null,null,null,null,null,null,null,null,null,null,null,null,null,null,"","","","","","","",null,"","",null,null,null,null,null,0,0,0,0,0,0,0,null,0,0]
["0301054","Metahemoglobina",0,0,null,null,null,null,null,null,null,null,null,null,null,null,null,null,null,null,null,null,null,null,null,null,null,null,null,null,null,null,null,null,null,null,null,null,null,null,"",null,null,null,null,null,null,null,null,null,null,null,null,null,null,null,null,null,null,null,null,null,null,null,null,null,null,null,null,null,null,null,null,null,null,null,null,null,null,null,"","","","","","","",null,"","",null,null,null,null,null,0,0,0,0,0,0,0,null,0,0]
["0301059","Tiempo de protrombina (incluye INR, Razón Internacional Normalizada)",0,0,null,null,null,null,null,null,null,null,null,null,null,null,null,null,null,null,null,null,null,null,null,null,null,null,null,null,null,null,null,null,null,null,null,null,null,null,"",null,null,null,null,null,null,null,null,null,null,null,null,null,null,null,null,null,null,null,null,null,null,null,null,null,null,null,null,null,null,null,null,null,null,null,null,null,null,null,{"$f":"IF(AND($C247>0,AA247=\"\"),\" * No olvide digitar la variable \"&$AA$8&\"\"&\": Atención Cerrada. Digite Cero si no tiene.\",\"\")","v":""},{"$f":"IF(AND($C247>0,AB247=\"\"),\" * No olvide digitar la variable \"&$AA$8&\"\"&\": Atención Abierta. Digite Cero si no tiene.\",\"\")","v":""},{"$f":"IF(AND($C247>0,AC247=\"\"),\" * No olvide digitar la variable \"&$AA$8&\"\"&\": Emergencia. Digite Cero si no tiene.\",\"\")","v":""},{"$f":"IF(AND(C247<AA247+AB247+AC247),\" * La Suma de la variable \"&$AA$8&\"\"&\" no puede ser mayor al Total.\",\"\")","v":""},{"$f":"IF(AND($C247>0,AD247=\"\"),\" * No olvide digitar la variable \"&$AD$8&\"\"&\": Honorarios. Digite Cero si no tiene.\",\"\")","v":""},{"$f":"IF(AND($C247>0,AE247=\"\"),\" * No olvide digitar la variable \"&$AD$8&\"\"&\": Convenios. Digite Cero si no tiene.\",\"\")","v":""},{"$f":"IF(AND($C247>0,AF247=\"\"),\" * No olvide digitar la variable \"&$AD$8&\"\"&\": Consultores de llamada. Digite Cero si no tiene.\",\"\")","v":""},null,{"$f":"IF(AND($C247>0,AH247=\"\"),\" * No olvide digitar la variable \"&$AH$8&\"\"&\" Al Sistema. Digite Cero si no tiene.\",\"\")","v":""},{"$f":"IF(AND($C247>0,AI247=\"\"),\" * No olvide digitar la variable \"&$AH$8&\"\"&\" al Extrasistema. Digite Cero si no tiene.\",\"\")","v":""},null,null,null,null,null,{"$f":"IF(AND($C247>0,AA247=\"\"),1,0)","v":0},{"$f":"IF(AND($C247>0,AB247=\"\"),1,0)","v":0},{"$f":"IF(AND($C247>0,AC247=\"\"),1,0)","v":0},{"$f":"IF(AND(C247<AA247+AB247+AC247),1,0)","v":0},{"$f":"IF(AND($C247>0,AD247=\"\"),1,0)","v":0},{"$f":"IF(AND($C247>0,AE247=\"\"),1,0)","v":0},{"$f":"IF(AND($C247>0,AF247=\"\"),1,0)","v":0},null,{"$f":"IF(AND($C247>0,AH247=\"\"),1,0)","v":0},{"$f":"IF(AND($C247>0,AI247=\"\"),1,0)","v":0}]
["0301062","Recuento de basófilos (absoluto)",0,0,null,null,null,null,null,null,null,null,null,null,null,null,null,null,null,null,null,null,null,null,null,null,null,null,null,null,null,null,null,null,null,null,null,null,null,null,"",null,null,null,null,null,null,null,null,null,null,null,null,null,null,null,null,null,null,null,null,null,null,null,null,null,null,null,null,null,null,null,null,null,null,null,null,null,null,null,"","","","","","","",null,"","",null,null,null,null,null,0,0,0,0,0,0,0,null,0,0]
["0301063","Recuento de eosinófilos (absoluto)",0,0,null,null,null,null,null,null,null,null,null,null,null,null,null,null,null,null,null,null,null,null,null,null,null,null,null,null,null,null,null,null,null,null,null,null,null,null,"",null,null,null,null,null,null,null,null,null,null,null,null,null,null,null,null,null,null,null,null,null,null,null,null,null,null,null,null,null,null,null,null,null,null,null,null,null,null,null,"","","","","","","",null,"","",null,null,null,null,null,0,0,0,0,0,0,0,null,0,0]
["0301064","Recuento de eritrocitos, absoluto (proc. aut.)",0,0,null,null,null,null,null,null,null,null,null,null,null,null,null,null,null,null,null,null,null,null,null,null,null,null,null,null,null,null,null,null,null,null,null,null,null,null,"",null,null,null,null,null,null,null,null,null,null,null,null,null,null,null,null,null,null,null,null,null,null,null,null,null,null,null,null,null,null,null,null,null,null,null,null,null,null,null,"","","","","","","",null,"","",null,null,null,null,null,0,0,0,0,0,0,0,null,0,0]
["0301068","Recuento de reticulocitos (absoluto o porcentual)",0,0,null,null,null,null,null,null,null,null,null,null,null,null,null,null,null,null,null,null,null,null,null,null,null,null,null,null,null,null,null,null,null,null,null,null,null,null,"",null,null,null,null,null,null,null,null,null,null,null,null,null,null,null,null,null,null,null,null,null,null,null,null,null,null,null,null,null,null,null,null,null,null,null,null,null,null,null,"","","","","","","",null,"","",null,null,null,null,null,0,0,0,0,0,0,0,null,0,0]
["0301099","Tiempo de veneno de víbora de Russell diluído",0,0,null,null,null,null,null,null,null,null,null,null,null,null,null,null,null,null,null,null,null,null,null,null,null,null,null,null,null,null,null,null,null,null,null,null,null,null,{"$f":"CC272&CD272&CE272&CF272&CG272&CH272&CI272&CJ272&CK272&CL272&CM272","v":""},null,null,null,null,null,null,null,null,null,null,null,null,null,null,null,null,null,null,null,null,null,null,null,null,null,null,null,null,null,null,null,null,null,null,null,null,null,null,null,"","","","","","","",null,"","",null,null,null,null,null,0,0,0,0,0,0,0,null,0,0]
["0301109","Multimeros del factor Von Willebrand",0,0,null,null,null,null,null,null,null,null,null,null,null,null,null,null,null,null,null,null,null,null,null,null,null,null,null,null,null,null,null,null,null,null,null,null,null,null,"",null,null,null,null,null,null,null,null,null,null,null,null,null,null,null,null,null,null,null,null,null,null,null,null,null,null,null,null,null,null,null,null,null,null,null,null,null,null,null,"","","","","","","",null,"","",null,null,null,null,null,0,0,0,0,0,0,0,null,0,0]
["0302002","Acido cítrico",0,0,null,null,null,null,null,null,null,null,null,null,null,null,null,null,null,null,null,null,null,null,null,null,null,null,null,null,null,null,null,null,null,null,null,null,null,null,"",null,null,null,null,null,null,null,null,null,null,null,null,null,null,null,null,null,null,null,null,null,null,null,null,null,null,null,null,null,null,null,null,null,null,null,null,null,null,null,"","","","","","","",null,"","",null,null,null,null,null,0,0,0,0,0,0,0,null,0,0]
["0302070","Apolipoproteínas (A1, B u otras) c/u",0,0,null,null,null,null,null,null,null,null,null,null,null,null,null,null,null,null,null,null,null,null,null,null,null,null,null,null,null,null,null,null,null,null,null,null,null,null,"",null,null,null,null,null,null,null,null,null,null,null,null,null,null,null,null,null,null,null,null,null,null,null,null,null,null,null,null,null,null,null,null,null,null,null,null,null,null,null,"","","","","","","",null,"","",null,null,null,null,null,0,0,0,0,0,0,0,null,0,0]
["0302021","Colinesterasa en suero o plasma",0,0,null,null,null,null,null,null,null,null,null,null,null,null,null,null,null,null,null,null,null,null,null,null,null,null,null,null,null,null,null,null,null,null,null,null,null,null,"",null,null,null,null,null,null,null,null,null,null,null,null,null,null,null,null,null,null,null,null,null,null,null,null,null,null,null,null,null,null,null,null,null,null,null,null,null,null,null,"","","","","","","",null,"","",null,null,null,null,null,0,0,0,0,0,0,0,null,0,0]
["0302045","Gamma glutamiltranspeptidasa (GGT)",0,0,null,null,null,null,null,null,null,null,null,null,null,null,null,null,null,null,null,null,null,null,null,null,null,null,null,null,null,null,null,null,null,null,null,null,null,null,"",null,null,null,null,null,null,null,null,null,null,null,null,null,null,null,null,null,null,null,null,null,null,null,null,null,null,null,null,null,null,null,null,null,null,null,null,null,null,null,"","","","","","","",null,"","",null,null,null,null,null,0,0,0,0,0,0,0,null,0,0]
["0302050","Adenosindeaminasa en sangre u otro fluido biológico (ADA)",0,0,null,null,null,null,null,null,null,null,null,null,null,null,null,null,null,null,null,null,null,null,null,null,null,null,null,null,null,null,null,null,null,null,null,null,null,null,"",null,null,null,null,null,null,null,null,null,null,null,null,null,null,null,null,null,null,null,null,null,null,null,null,null,null,null,null,null,null,null,null,null,null,null,null,null,null,null,"","","","","","","",null,"","",null,null,null,null,null,0,0,0,0,0,0,0,null,0,0]
["0302064","Triglicéridos en sangre (proc.aut.)",0,0,null,null,null,null,null,null,null,null,null,null,null,null,null,null,null,null,null,null,null,null,null,null,null,null,null,null,null,null,null,null,null,null,null,null,null,null,"",null,null,null,null,null,null,null,null,null,null,null,null,null,null,null,null,null,null,null,null,null,null,null,null,null,null,null,null,null,null,null,null,null,null,null,null,null,null,null,"","","","","","","",null,"","",null,null,null,null,null,0,0,0,0,0,0,0,null,0,0]
["0302094","CK isoenzimas",0,0,null,null,null,null,null,null,null,null,null,null,null,null,null,null,null,null,null,null,null,null,null,null,null,null,null,null,null,null,null,null,null,null,null,null,null,null,"",null,null,null,null,null,null,null,null,null,null,null,null,null,null,null,null,null,null,null,null,null,null,null,null,null,null,null,null,null,null,null,null,null,null,null,null,null,null,null,"","","","","","","",null,"","",null,null,null,null,null,0,0,0,0,0,0,0,null,0,0]
["HORMONAS  "]
["0303007","Crecimiento, hormona de (HGH) (somatotrofina)",0,0,null,null,null,null,null,null,null,null,null,null,null,null,null,null,null,null,null,null,null,null,null,null,null,null,null,null,null,null,null,null,null,null,null,null,null,null,"",null,null,null,null,null,null,null,null,null,null,null,null,null,null,null,null,null,null,null,null,null,null,null,null,null,null,null,null,null,null,null,null,null,null,null,null,null,null,null,"","","","","","","",null,"","",null,null,null,null,null,0,0,0,0,0,0,0,null,0,0]
["0303046","SHBG (Sex-Hormone Binding Globulin)",0,0,null,null,null,null,null,null,null,null,null,null,null,null,null,null,null,null,null,null,null,null,null,null,null,null,null,null,null,null,null,null,null,null,null,null,null,null,"",null,null,null,null,null,null,null,null,null,null,null,null,null,null,null,null,null,null,null,null,null,null,null,null,null,null,null,null,null,null,null,null,null,null,null,null,null,null,null,"","","","","","","",null,"","",null,null,null,null,null,0,0,0,0,0,0,0,null,0,0]
["0303029","17 - Hidroxiprogesterona",0,0,null,null,null,null,null,null,null,null,null,null,null,null,null,null,null,null,null,null,null,null,null,null,null,null,null,null,null,null,null,null,null,null,null,null,null,null,"",null,null,null,null,null,null,null,null,null,null,null,null,null,null,null,null,null,null,null,null,null,null,null,null,null,null,null,null,null,null,null,null,null,null,null,null,null,null,null,"","","","","","","",null,"","",null,null,null,null,null,0,0,0,0,0,0,0,null,0,0]
["0303050","Metanefrinas urinarias (incluye determinación de Metanefrina y Normetanefrina por separado por métodos cromatográficos)",0,0,null,null,null,null,null,null,null,null,null,null,null,null,null,null,null,null,null,null,null,null,null,null,null,null,null,null,null,null,null,null,null,null,null,null,null,null,"",null,null,null,null,null,null,null,null,null,null,null,null,null,null,null,null,null,null,null,null,null,null,null,null,null,null,null,null,null,null,null,null,null,null,null,null,null,null,null,"","","","","","","",null,"","",null,null,null,null,null,0,0,0,0,0,0,0,null,0,0]
["0304015","FISH en frotis frescos de médula ósea, sangre, concentrado de células plasmáticas seleccionadas, búsqueda de alteraciones adquiridas",{"$f":"SUM(D431+G431)","v":0},{"$f":"SUM(E431:F431)","v":0},null,null,null,null,null,null,null,null,null,null,null,null,null,null,null,null,null,null,null,null,null,null,null,null,null,null,null,null,null,null,null,null,null,null,null,null,"",null,null,null,null,null,null,null,null,null,null,null,null,null,null,null,null,null,null,null,null,null,null,null,null,null,null,null,null,null,null,null,null,null,null,null,null,null,null,null,"","","","","","","",null,"","",null,null,null,null,null,0,0,0,0,0,0,0,null,0,0]
["0305002","Alfa -2- macroglobulina",0,0,null,null,null,null,null,null,null,null,null,null,null,null,null,null,null,null,null,null,null,null,null,null,null,null,null,null,null,null,null,null,null,null,null,null,null,null,"",null,null,null,null,null,null,null,null,null,null,null,null,null,null,null,null,null,null,null,null,null,null,null,null,null,null,null,null,null,null,null,null,null,null,null,null,null,null,null,"","","","","","","",null,"","",null,null,null,null,null,0,0,0,0,0,0,0,null,0,0]
["0305030","Proteína C reactiva por técnica de látex u otras similares",0,0,null,null,null,null,null,null,null,null,null,null,null,null,null,null,null,null,null,null,null,null,null,null,null,null,null,null,null,null,null,null,null,null,null,null,null,null,"",null,null,null,null,null,null,null,null,null,null,null,null,null,null,null,null,null,null,null,null,null,null,null,null,null,null,null,null,null,null,null,null,null,null,null,null,null,null,null,"","","","","","","",null,"","",null,null,null,null,null,0,0,0,0,0,0,0,null,0,0]
["0305098","Cromogranina A",0,0,null,null,null,null,null,null,null,null,null,null,null,null,null,null,null,null,null,null,null,null,null,null,null,null,null,null,null,null,null,null,null,null,null,null,null,null,"",null,null,null,null,null,null,null,null,null,null,null,null,null,null,null,null,null,null,null,null,null,null,null,null,null,null,null,null,null,null,null,null,null,null,null,null,null,null,null,"","","","","","","",null,"","",null,null,null,null,null,0,0,0,0,0,0,0,null,0,0]
["0305126","Subclases de IgG (1,2,3,4)",0,0,null,null,null,null,null,null,null,null,null,null,null,null,null,null,null,null,null,null,null,null,null,null,null,null,null,null,null,null,null,null,null,null,null,null,null,null,"",null,null,null,null,null,null,null,null,null,null,null,null,null,null,null,null,null,null,null,null,null,null,null,null,null,null,null,null,null,null,null,null,null,null,null,null,null,null,null,"","","","","","","",null,"","",null,null,null,null,null,0,0,0,0,0,0,0,null,0,0]
["0305039","Fagocitosis: ingestión y digestión (killing) de bacterias por polimorfonucleares",0,0,null,null,null,null,null,null,null,null,null,null,null,null,null,null,null,null,null,null,null,null,null,null,null,null,null,null,null,null,null,null,null,null,null,null,null,null,"",null,null,null,null,null,null,null,null,null,null,null,null,null,null,null,null,null,null,null,null,null,null,null,null,null,null,null,null,null,null,null,null,null,null,null,null,null,null,null,"","","","","","","",null,"","",null,null,null,null,null,0,0,0,0,0,0,0,null,0,0]
["0305110","Alocross Match Linfocitos T y Linfocitos B (Citometría De Flujo)",0,0,null,null,null,null,null,null,null,null,null,null,null,null,null,null,null,null,null,null,null,null,null,null,null,null,null,null,null,null,null,null,null,null,null,null,null,null,"",null,null,null,null,null,null,null,null,null,null,null,null,null,null,null,null,null,null,null,null,null,null,null,null,null,null,null,null,null,null,null,null,null,null,null,null,null,null,null,{"$f":"IF(AND($C499>0,AA499=\"\"),\" * No olvide digitar la variable \"&$AA$8&\"\"&\": Atención Cerrada. Digite Cero si no tiene.\",\"\")","v":""},{"$f":"IF(AND($C499>0,AB499=\"\"),\" * No olvide digitar la variable \"&$AA$8&\"\"&\": Atención Abierta. Digite Cero si no tiene.\",\"\")","v":""},{"$f":"IF(AND($C499>0,AC499=\"\"),\" * No olvide digitar la variable \"&$AA$8&\"\"&\": Emergencia. Digite Cero si no tiene.\",\"\")","v":""},{"$f":"IF(AND(C499<AA499+AB499+AC499),\" * La Suma de la variable \"&$AA$8&\"\"&\" no puede ser mayor al Total.\",\"\")","v":""},{"$f":"IF(AND($C499>0,AD499=\"\"),\" * No olvide digitar la variable \"&$AD$8&\"\"&\": Honorarios. Digite Cero si no tiene.\",\"\")","v":""},{"$f":"IF(AND($C499>0,AE499=\"\"),\" * No olvide digitar la variable \"&$AD$8&\"\"&\": Convenios. Digite Cero si no tiene.\",\"\")","v":""},{"$f":"IF(AND($C499>0,AF499=\"\"),\" * No olvide digitar la variable \"&$AD$8&\"\"&\": Consultores de llamada. Digite Cero si no tiene.\",\"\")","v":""},null,{"$f":"IF(AND($C499>0,AH499=\"\"),\" * No olvide digitar la variable \"&$AH$8&\"\"&\" Al Sistema. Digite Cero si no tiene.\",\"\")","v":""},{"$f":"IF(AND($C499>0,AI499=\"\"),\" * No olvide digitar la variable \"&$AH$8&\"\"&\" al Extrasistema. Digite Cero si no tiene.\",\"\")","v":""},null,null,null,null,null,{"$f":"IF(AND($C499>0,AA499=\"\"),1,0)","v":0},{"$f":"IF(AND($C499>0,AB499=\"\"),1,0)","v":0},{"$f":"IF(AND($C499>0,AC499=\"\"),1,0)","v":0},{"$f":"IF(AND(C499<AA499+AB499+AC499),1,0)","v":0},{"$f":"IF(AND($C499>0,AD499=\"\"),1,0)","v":0},{"$f":"IF(AND($C499>0,AE499=\"\"),1,0)","v":0},{"$f":"IF(AND($C499>0,AF499=\"\"),1,0)","v":0},null,{"$f":"IF(AND($C499>0,AH499=\"\"),1,0)","v":0},{"$f":"IF(AND($C499>0,AI499=\"\"),1,0)","v":0}]
["0305122","HLA-DR Tipificación  (Biología Molecular)",0,0,null,null,null,null,null,null,null,null,null,null,null,null,null,null,null,null,null,null,null,null,null,null,null,null,null,null,null,null,null,null,null,null,null,null,null,null,"",null,null,null,null,null,null,null,null,null,null,null,null,null,null,null,null,null,null,null,null,null,null,null,null,null,null,null,null,null,null,null,null,null,null,null,null,null,null,null,"","","","","","","",null,"","",null,null,null,null,null,0,0,0,0,0,0,0,null,0,0]
["0306001","Baciloscopía por método de concentración",{"$f":"SUM(D516+G516)","v":0},{"$f":"SUM(E516:F516)","v":0},null,null,null,null,null,null,null,null,null,null,null,null,null,null,null,null,null,null,null,null,null,null,null,null,null,null,null,null,null,null,null,null,null,null,null,null,"",null,null,null,null,null,null,null,null,null,null,null,null,null,null,null,null,null,null,null,null,null,null,null,null,null,null,null,null,null,null,null,null,null,null,null,null,null,null,null,{"$f":"IF(AND($C516>0,AA516=\"\"),\" * No olvide digitar la variable \"&$AA$8&\"\"&\": Atención Cerrada. Digite Cero si no tiene.\",\"\")","v":""},{"$f":"IF(AND($C516>0,AB516=\"\"),\" * No olvide digitar la variable \"&$AA$8&\"\"&\": Atención Abierta. Digite Cero si no tiene.\",\"\")","v":""},{"$f":"IF(AND($C516>0,AC516=\"\"),\" * No olvide digitar la variable \"&$AA$8&\"\"&\": Emergencia. Digite Cero si no tiene.\",\"\")","v":""},{"$f":"IF(AND(C516<AA516+AB516+AC516),\" * La Suma de la variable \"&$AA$8&\"\"&\" no puede ser mayor al Total.\",\"\")","v":""},{"$f":"IF(AND($C516>0,AD516=\"\"),\" * No olvide digitar la variable \"&$AD$8&\"\"&\": Honorarios. Digite Cero si no tiene.\",\"\")","v":""},{"$f":"IF(AND($C516>0,AE516=\"\"),\" * No olvide digitar la variable \"&$AD$8&\"\"&\": Convenios. Digite Cero si no tiene.\",\"\")","v":""},{"$f":"IF(AND($C516>0,AF516=\"\"),\" * No olvide digitar la variable \"&$AD$8&\"\"&\": Consultores de llamada. Digite Cero si no tiene.\",\"\")","v":""},null,{"$f":"IF(AND($C516>0,AH516=\"\"),\" * No olvide digitar la variable \"&$AH$8&\"\"&\" Al Sistema. Digite Cero si no tiene.\",\"\")","v":""},{"$f":"IF(AND($C516>0,AI516=\"\"),\" * No olvide digitar la variable \"&$AH$8&\"\"&\" al Extrasistema. Digite Cero si no tiene.\",\"\")","v":""},null,null,null,null,null,{"$f":"IF(AND($C516>0,AA516=\"\"),1,0)","v":0},{"$f":"IF(AND($C516>0,AB516=\"\"),1,0)","v":0},{"$f":"IF(AND($C516>0,AC516=\"\"),1,0)","v":0},{"$f":"IF(AND(C516<AA516+AB516+AC516),1,0)","v":0},{"$f":"IF(AND($C516>0,AD516=\"\"),1,0)","v":0},{"$f":"IF(AND($C516>0,AE516=\"\"),1,0)","v":0},{"$f":"IF(AND($C516>0,AF516=\"\"),1,0)","v":0},null,{"$f":"IF(AND($C516>0,AH516=\"\"),1,0)","v":0},{"$f":"IF(AND($C516>0,AI516=\"\"),1,0)","v":0}]
["0306091","Hemocultivo automatizado. Incluye Antibiograma con CIM",0,0,null,null,null,null,null,null,null,null,null,null,null,null,null,null,null,null,null,null,null,null,null,null,null,null,null,null,null,null,null,null,null,null,null,null,null,null,"",null,null,null,null,null,null,null,null,null,null,null,null,null,null,null,null,null,null,null,null,null,null,null,null,null,null,null,null,null,null,null,null,null,null,null,null,null,null,null,"","","","","","","",null,"","",null,null,null,null,null,0,0,0,0,0,0,0,null,0,0]
["0306090","Test rápido de detección de streptococcus grupo A (Pyogenes)",0,0,null,null,null,null,null,null,null,null,null,null,null,null,null,null,null,null,null,null,null,null,null,null,null,null,null,null,null,null,null,null,null,null,null,null,null,null,"",null,null,null,null,null,null,null,null,null,null,null,null,null,null,null,null,null,null,null,null,null,null,null,null,null,null,null,null,null,null,null,null,null,null,null,null,null,null,null,"","","","","","","",null,"","",null,null,null,null,null,0,0,0,0,0,0,0,null,0,0]
["0306138","Clostridium Difficile por técnica de biología molecular en tiempo real",{"$f":"SUM(D558+G558)","v":0},{"$f":"SUM(E558:F558)","v":0},null,null,null,null,null,null,null,null,null,null,null,null,null,null,null,null,null,null,null,null,null,null,null,null,null,null,null,null,null,null,null,null,null,null,null,null,"",null,null,null,null,null,null,null,null,null,null,null,null,null,null,null,null,null,null,null,null,null,null,null,null,null,null,null,null,null,null,null,null,null,null,null,null,null,null,null,"","","","","","","",null,"","",null,null,null,null,null,0,0,0,0,0,0,0,null,0,0]
["0306038","R.P.R.",0,0,null,null,null,null,null,null,null,null,null,null,null,null,null,null,null,null,null,null,null,null,null,null,null,null,null,null,null,null,null,null,null,null,null,null,null,null,"",null,null,null,null,null,null,null,null,null,null,null,null,null,null,null,null,null,null,null,null,null,null,null,null,null,null,null,null,null,null,null,null,null,null,null,null,null,null,null,"","","","","","","",null,"","",null,null,null,null,null,0,0,0,0,0,0,0,null,0,0]
["0306048","Coproparasitológico seriado simple (incluye diagnóstico de gusanos macroscópicos y examen microscópico por concentración de tres muestras separadas método Telemann ) (proc. aut.)",0,0,null,null,null,null,null,null,null,null,null,null,null,null,null,null,null,null,null,null,null,null,null,null,null,null,null,null,null,null,null,null,null,null,null,null,null,null,"",null,null,null,null,null,null,null,null,null,null,null,null,null,null,null,null,null,null,null,null,null,null,null,null,null,null,null,null,null,null,null,null,null,null,null,null,null,null,null,"","","","","","","",null,"","",null,null,null,null,null,0,0,0,0,0,0,0,null,0,0]
["0306095","Parásitos: determinación por reacción de polimerasa en cadena (PCR)",0,0,null,null,null,null,null,null,null,null,null,null,null,null,null,null,null,null,null,null,null,null,null,null,null,null,null,null,null,null,null,null,null,null,null,null,null,null,"",null,null,null,null,null,null,null,null,null,null,null,null,null,null,null,null,null,null,null,null,null,null,null,null,null,null,null,null,null,null,null,null,null,null,null,null,null,null,null,"","","","","","","",null,"","",null,null,null,null,null,0,0,0,0,0,0,0,null,0,0]
["0306270","Antígenos virales determ. de virus sincicial, por cualquier técnica ",0,0,null,null,null,null,null,null,null,null,null,null,null,null,null,null,null,null,null,null,null,null,null,null,null,null,null,null,null,null,null,null,null,null,null,null,null,null,"",null,null,null,null,null,null,null,null,null,null,null,null,null,null,null,null,null,null,null,null,null,null,null,null,null,null,null,null,null,null,null,null,null,null,null,null,null,null,null,"","","","","","","",null,"","",null,null,null,null,null,0,0,0,0,0,0,0,null,0,0]
["0306087","Virus Epstein Barr (VEB) carga viral. Técnica PCR",0,0,null,null,null,null,null,null,null,null,null,null,null,null,null,null,null,null,null,null,null,null,null,null,null,null,null,null,null,null,null,null,null,null,null,null,null,null,"",null,null,null,null,null,null,null,null,null,null,null,null,null,null,null,null,null,null,null,null,null,null,null,null,null,null,null,null,null,null,null,null,null,null,null,null,null,null,null,"","","","","","","",null,"","",null,null,null,null,null,0,0,0,0,0,0,0,null,0,0]
["0306113","VIH, reacción de polimerasa en cadena (P.C.R.) en líquido cefaloraquídeo",0,0,null,null,null,null,null,null,null,null,null,null,null,null,null,null,null,null,null,null,null,null,null,null,null,null,null,null,null,null,null,null,null,null,null,null,null,null,"",null,null,null,null,null,null,null,null,null,null,null,null,null,null,null,null,null,null,null,null,null,null,null,null,null,null,null,null,null,null,null,null,null,null,null,null,null,null,null,"","","","","","","",null,"","",null,null,null,null,null,0,0,0,0,0,0,0,null,0,0]
["0306129","Norovirus detección por inmunocromatografia",0,0,null,null,null,null,null,null,null,null,null,null,null,null,null,null,null,null,null,null,null,null,null,null,null,null,null,null,null,null,null,null,null,null,null,null,null,null,"",null,null,null,null,null,null,null,null,null,null,null,null,null,null,null,null,null,null,null,null,null,null,null,null,null,null,null,null,null,null,null,null,null,null,null,null,null,null,null,"","","","","","","",null,"","",null,null,null,null,null,0,0,0,0,0,0,0,null,0,0]
["0307008","Vasopresina test o similares (incluye además mediciones de diuresis)",0,0,null,null,null,null,null,null,null,null,null,null,null,null,null,null,null,null,null,null,null,null,null,null,null,null,null,null,null,null,null,null,null,null,null,null,null,null,"",null,null,null,null,null,null,null,null,null,null,null,null,null,null,null,null,null,null,null,null,null,null,null,null,null,null,null,null,null,null,null,null,null,null,null,null,null,null,null,"","","","","","","",null,"","",null,null,null,null,null,0,0,0,0,0,0,0,null,0,0]
["0307018","Toma de muestra por punción medular ósea",0,0,null,null,null,null,null,null,null,null,null,null,null,null,null,null,null,null,null,null,null,null,null,null,null,null,null,null,null,null,null,null,null,null,null,null,null,null,"",null,null,null,null,null,null,null,null,null,null,null,null,null,null,null,null,null,null,null,null,null,null,null,null,null,null,null,null,null,null,null,null,null,null,null,null,null,null,null,"","","","","","","",null,"","",null,null,null,null,null,0,0,0,0,0,0,0,null,0,0]
["0308003","Grasas neutras (Sudán III)",0,0,null,null,null,null,null,null,null,null,null,null,null,null,null,null,null,null,null,null,null,null,null,null,null,null,null,null,null,null,null,null,null,null,null,null,null,null,"",null,null,null,null,null,null,null,null,null,null,null,null,null,null,null,null,null,null,null,null,null,null,null,null,null,null,null,null,null,null,null,null,null,null,null,null,null,null,null,"","","","","","","",null,"","",null,null,null,null,null,0,0,0,0,0,0,0,null,0,0]
["0308017","pH en exudados, secreciones y otros líquidos (proc. aut.)",0,0,null,null,null,null,null,null,null,null,null,null,null,null,null,null,null,null,null,null,null,null,null,null,null,null,null,null,null,null,null,null,null,null,null,null,null,null,"",null,null,null,null,null,null,null,null,null,null,null,null,null,null,null,null,null,null,null,null,null,null,null,null,null,null,null,null,null,null,null,null,null,null,null,null,null,null,null,"","","","","","","",null,"","",null,null,null,null,null,0,0,0,0,0,0,0,null,0,0]
["0308031","Fructosa seminal",0,0,null,null,null,null,null,null,null,null,null,null,null,null,null,null,null,null,null,null,null,null,null,null,null,null,null,null,null,null,null,null,null,null,null,null,null,null,"",null,null,null,null,null,null,null,null,null,null,null,null,null,null,null,null,null,null,null,null,null,null,null,null,null,null,null,null,null,null,null,null,null,null,null,null,null,null,null,"","","","","","","",null,"","",null,null,null,null,null,0,0,0,0,0,0,0,null,0,0]
["0308038","Índice lecitina/esfingomielina",0,0,null,null,null,null,null,null,null,null,null,null,null,null,null,null,null,null,null,null,null,null,null,null,null,null,null,null,null,null,null,null,null,null,null,null,null,null,"",null,null,null,null,null,null,null,null,null,null,null,null,null,null,null,null,null,null,null,null,null,null,null,null,null,null,null,null,null,null,null,null,null,null,null,null,null,null,null,"","","","","","","",null,"","",null,null,null,null,null,0,0,0,0,0,0,0,null,0,0]
["0309007","Aminoácidos en orina (cualitativo)(excepto fenilalanina, PKU)",0,0,null,null,null,null,null,null,null,null,null,null,null,null,null,null,null,null,null,null,null,null,null,null,null,null,null,null,null,null,null,null,null,null,null,null,null,null,{"$f":"CC723&CD723&CE723&CF723&CG723&CH723&CI723&CJ723&CK723&CL723&CM723","v":""},null,null,null,null,null,null,null,null,null,null,null,null,null,null,null,null,null,null,null,null,null,null,null,null,null,null,null,null,null,null,null,null,null,null,null,null,null,null,null,"","","","","","","",null,"","",null,null,null,null,null,0,0,0,0,0,0,0,null,0,0]
["0309019","Mucopolisacáridos",0,0,null,null,null,null,null,null,null,null,null,null,null,null,null,null,null,null,null,null,null,null,null,null,null,null,null,null,null,null,null,null,null,null,null,null,null,null,"",null,null,null,null,null,null,null,null,null,null,null,null,null,null,null,null,null,null,null,null,null,null,null,null,null,null,null,null,null,null,null,null,null,null,null,null,null,null,null,"","","","","","","",null,"","",null,null,null,null,null,0,0,0,0,0,0,0,null,0,0]
["0309025","Osmolalidad",0,0,null,null,null,null,null,null,null,null,null,null,null,null,null,null,null,null,null,null,null,null,null,null,null,null,null,null,null,null,null,null,null,null,null,null,null,null,"",null,null,null,null,null,null,null,null,null,null,null,null,null,null,null,null,null,null,null,null,null,null,null,null,null,null,null,null,null,null,null,null,null,null,null,null,null,null,null,"","","","","","","",null,"","",null,null,null,null,null,0,0,0,0,0,0,0,null,0,0]
["0309045","Ácido orótico, orina",0,0,null,null,null,null,null,null,null,null,null,null,null,null,null,null,null,null,null,null,null,null,null,null,null,null,null,null,null,null,null,null,null,null,null,null,null,null,"",null,null,null,null,null,null,null,null,null,null,null,null,null,null,null,null,null,null,null,null,null,null,null,null,null,null,null,null,null,null,null,null,null,null,null,null,null,null,null,"","","","","","","",null,"","",null,null,null,null,null,0,0,0,0,0,0,0,null,0,0]
["0401008","Radiografía de tórax  frontal o lateral con equipo móvil fuera del departamento de rayos.",0,0,null,null,null,null,null,null,null,null,null,null,null,null,null,null,null,null,null,null,null,null,null,null,null,null,null,null,null,null,null,null,null,null,null,null,null,null,"",null,null,null,null,null,null,null,null,null,null,null,null,null,null,null,null,null,null,null,null,null,null,null,null,null,null,null,null,null,null,null,null,null,null,null,null,null,null,null,"","","","","","","",null,"","",null,null,"",null,null,0,0,0,0,0,0,0,null,0,0,null,null,0]
["0401015","Colangiografía intra o postoperatoria (por sonda T, o similar)",0,0,null,null,null,null,null,null,null,null,null,null,null,null,null,null,null,null,null,null,null,null,null,null,null,null,null,null,null,null,null,null,null,null,null,null,null,null,"",null,null,null,null,null,null,null,null,null,null,null,null,null,null,null,null,null,null,null,null,null,null,null,null,null,null,null,null,null,null,null,null,null,null,null,null,null,null,null,"","","","","","","",null,"","",null,null,"",null,null,0,0,0,0,0,0,0,null,0,0,null,null,0]
["0401029","Radiografía vesical simple o perivesical (proc. aut.)",0,0,null,null,null,null,null,null,null,null,null,null,null,null,null,null,null,null,null,null,null,null,null,null,null,null,null,null,null,null,null,null,null,null,null,null,null,null,"",null,null,null,null,null,null,null,null,null,null,null,null,null,null,null,null,null,null,null,null,null,null,null,null,null,null,null,null,null,null,null,null,null,null,null,null,null,null,null,"","","","","","","",null,"","",null,null,"",null,null,0,0,0,0,0,0,0,null,0,0,null,null,0]
["0401051","Radiografía de pelvis, cadera o coxofemoral",0,0,null,null,null,null,null,null,null,null,null,null,null,null,null,null,null,null,null,null,null,null,null,null,null,null,null,null,null,null,null,null,null,null,null,null,null,null,"",null,null,null,null,null,null,null,null,null,null,null,null,null,null,null,null,null,null,null,null,null,null,null,null,null,null,null,null,null,null,null,null,null,null,null,null,null,null,null,"","","","","","","",null,"","",null,null,"",null,null,0,0,0,0,0,0,0,null,0,0,null,null,0]
["0401057","Radiografía Edad ósea : rodilla frontal",0,0,null,null,null,null,null,null,null,null,null,null,null,null,null,null,null,null,null,null,null,null,null,null,null,null,null,null,null,null,null,null,null,null,null,null,null,null,"",null,null,null,null,null,null,null,null,null,null,null,null,null,null,null,null,null,null,null,null,null,null,null,null,null,null,null,null,null,null,null,null,null,null,null,null,null,null,null,"","","","","","","",null,"","",null,null,"",null,null,0,0,0,0,0,0,0,null,0,0,null,null,0]
["0402015","Artrografía facetaria",0,0,null,null,null,null,null,null,null,null,null,null,null,null,null,null,null,null,null,null,null,null,null,null,null,null,null,null,null,null,null,null,null,null,null,null,null,null,"",null,null,null,null,null,null,null,null,null,null,null,null,null,null,null,null,null,null,null,null,null,null,null,null,null,null,null,null,null,null,null,null,null,null,null,null,null,null,null,"","","","","","","",null,"","",null,null,"",null,null,0,0,0,0,0,0,0,null,0,0,null,null,0]
["0402050","Mielografía por punción lumbar con contraste hidrosoluble",0,0,null,null,null,null,null,null,null,null,null,null,null,null,null,null,null,null,null,null,null,null,null,null,null,null,null,null,null,null,null,null,null,null,null,null,null,null,"",null,null,null,null,null,null,null,null,null,null,null,null,null,null,null,null,null,null,null,null,null,null,null,null,null,null,null,null,null,null,null,null,null,null,null,null,null,null,null,"","","","","","","",null,"","",null,null,"",null,null,0,0,0,0,0,0,0,null,0,0,null,null,0]
["0403003","Tomografía Computarizada de fosa posterior",0,0,null,null,null,null,null,null,null,null,null,null,null,null,null,null,null,null,null,null,null,null,null,null,null,null,null,null,null,null,null,null,null,null,null,null,null,null,"",null,null,null,null,null,null,null,null,null,null,null,null,null,null,null,null,null,null,null,null,null,null,null,null,null,null,null,null,null,null,null,null,null,null,null,null,null,null,null,"","","","","","","",null,"","",null,null,"",null,null,0,0,0,0,0,0,0,null,0,0,null,null,0]
["0403022","Tomografía Computarizada Urografía",0,0,null,null,null,null,null,null,null,null,null,null,null,null,null,null,null,null,null,null,null,null,null,null,null,null,null,null,null,null,null,null,null,null,null,null,null,null,"",null,null,null,null,null,null,null,null,null,null,null,null,null,null,null,null,null,null,null,null,null,null,null,null,null,null,null,null,null,null,null,null,null,null,null,null,null,null,null,"","","","","","","",null,"","",null,null,"",null,null,0,0,0,0,0,0,0,null,0,0,null,null,0]
["0403026","Tomografía computarizada de enterografía ",0,0,null,null,null,null,null,null,null,null,null,null,null,null,null,null,null,null,null,null,null,null,null,null,null,null,null,null,null,null,null,null,null,null,null,null,null,null,"",null,null,null,null,null,null,null,null,null,null,null,null,null,null,null,null,null,null,null,null,null,null,null,null,null,null,null,null,null,null,null,null,null,null,null,null,null,null,null,"","","","","","","",null,"","",null,null,"",null,null,0,0,0,0,0,0,0,null,0,0,null,null,0]
["0404009","Ecografía pélvica masculina (incluye vejiga y próstata)",0,0,null,null,null,null,null,null,null,null,null,null,null,null,null,null,null,null,null,null,null,null,null,null,null,null,null,null,null,null,null,null,null,null,null,null,null,null,"",null,null,null,null,null,null,null,null,null,null,null,null,null,null,null,null,null,null,null,null,null,null,null,null,null,null,null,null,null,null,null,null,null,null,null,null,null,null,null,"","","","","","","",null,"","",null,null,"",null,null,0,0,0,0,0,0,0,null,0,0,null,null,0]
["0404119","Ecografía doppler de vasos del cuello",0,0,null,null,null,null,null,null,null,null,null,null,null,null,null,null,null,null,null,null,null,null,null,null,null,null,null,null,null,null,null,null,null,null,null,null,null,null,"",null,null,null,null,null,null,null,null,null,null,null,null,null,null,null,null,null,null,null,null,null,null,null,null,null,null,null,null,null,null,null,null,null,null,null,null,null,null,null,"","","","","","","",null,"","",null,null,"",null,null,0,0,0,0,0,0,0,null,0,0,null,null,0]
["0405020","Resonancia Magnética Angiografía de Abdomen ",0,0,null,null,null,null,null,null,null,null,null,null,null,null,null,null,null,null,null,null,null,null,null,null,null,null,null,null,null,null,null,null,null,null,null,null,null,null,"",null,null,null,null,null,null,null,null,null,null,null,null,null,null,null,null,null,null,null,null,null,null,null,null,null,null,null,null,null,null,null,null,null,null,null,null,null,null,null,"","","","","","","",null,"","",null,null,"",null,null,0,0,0,0,0,0,0,null,0,0,null,null,0]
["0405026","Resonancia Magnética de Codo ",0,0,null,null,null,null,null,null,null,null,null,null,null,null,null,null,null,null,null,null,null,null,null,null,null,null,null,null,null,null,null,null,null,null,null,null,null,null,"",null,null,null,null,null,null,null,null,null,null,null,null,null,null,null,null,null,null,null,null,null,null,null,null,null,null,null,null,null,null,null,null,null,null,null,null,null,null,null,"","","","","","","",null,"","",null,null,"",null,null,0,0,0,0,0,0,0,null,0,0,null,null,0]
["0405031","Resonancia Magnética de Mama (bilateral)",0,0,null,null,null,null,null,null,null,null,null,null,null,null,null,null,null,null,null,null,null,null,null,null,null,null,null,null,null,null,null,null,null,null,null,null,null,null,"",null,null,null,null,null,null,null,null,null,null,null,null,null,null,null,null,null,null,null,null,null,null,null,null,null,null,null,null,null,null,null,null,null,null,null,null,null,null,null,"","","","","","","",null,"","",null,null,"",null,null,0,0,0,0,0,0,0,null,0,0,null,null,0]
["01010755","Ecotomografia portátil (traslado desde imagenología al servicio que lo requiere)",0,0,null,null,null,null,null,null,null,null,null,null,null,null,null,null,null,null,null,null,null,null,null,null,null,null,null,null,null,null,null,null,null,null,null,null,null,null,"",null,null,null,null,null,null,null,null,null,null,null,null,null,null,null,null,null,null,null,null,null,null,null,null,null,null,null,null,null,null,null,null,null,null,null,null,null,null,null,"","","","","","","",null,"","",null,null,{"$f":"IF(AND($C940>0,AL940=\"\"),\" * No olvide digitar la variable Asistencia Anestésica. Digite Cero si no tiene.\",IF(AL940>$C940,\" *  La variable Asistencia Anestésica No puede ser mayor al Total.\",\"\"))","v":""},null,null,0,0,0,0,0,0,0,null,0,0,null,null,{"$f":"IF(AND($C940>0,AL940=\"\"),1,IF(AL940>$C940,1,0))","v":0}]
["01010789","Biopsia de tiroides con aguja fina PAAF",0,0,null,null,null,null,null,null,null,null,null,null,null,null,null,null,null,null,null,null,null,null,null,null,null,null,null,null,null,null,null,null,null,null,null,null,null,null,"",null,null,null,null,null,null,null,null,null,null,null,null,null,null,null,null,null,null,null,null,null,null,null,null,null,null,null,null,null,null,null,null,null,null,null,null,null,null,null,"","","","","","","",null,"","",null,null,"",null,null,0,0,0,0,0,0,0,null,0,0,null,null,0]
["0501101","Cintigrafía tiroidea, cualquier radioisótopo",0,0,null,null,null,null,null,null,null,null,null,null,null,null,null,null,null,null,null,null,null,null,null,null,null,null,null,null,null,null,null,null,null,null,null,null,null,null,"",null,null,null,null,null,null,null,null,null,null,null,null,null,null,null,null,null,null,null,null,null,null,null,null,null,null,null,null,null,null,null,null,null,null,null,null,null,null,null,{"$f":"IF(AND($C961>0,AA961=\"\"),\" * No olvide digitar la variable \"&$AA$8&\"\"&\": Atención Cerrada. Digite Cero si no tiene.\",\"\")","v":""},{"$f":"IF(AND($C961>0,AB961=\"\"),\" * No olvide digitar la variable \"&$AA$8&\"\"&\": Atención Abierta. Digite Cero si no tiene.\",\"\")","v":""},{"$f":"IF(AND($C961>0,AC961=\"\"),\" * No olvide digitar la variable \"&$AA$8&\"\"&\": Emergencia. Digite Cero si no tiene.\",\"\")","v":""},{"$f":"IF(AND(C961<AA961+AB961+AC961),\" * La Suma de la variable \"&$AA$8&\"\"&\" no puede ser mayor al Total.\",\"\")","v":""},{"$f":"IF(AND($C961>0,AD961=\"\"),\" * No olvide digitar la variable \"&$AD$8&\"\"&\": Honorarios. Digite Cero si no tiene.\",\"\")","v":""},{"$f":"IF(AND($C961>0,AE961=\"\"),\" * No olvide digitar la variable \"&$AD$8&\"\"&\": Convenios. Digite Cero si no tiene.\",\"\")","v":""},{"$f":"IF(AND($C961>0,AF961=\"\"),\" * No olvide digitar la variable \"&$AD$8&\"\"&\": Consultores de llamada. Digite Cero si no tiene.\",\"\")","v":""},null,{"$f":"IF(AND($C961>0,AH961=\"\"),\" * No olvide digitar la variable \"&$AH$8&\"\"&\" Al Sistema. Digite Cero si no tiene.\",\"\")","v":""},{"$f":"IF(AND($C961>0,AI961=\"\"),\" * No olvide digitar la variable \"&$AH$8&\"\"&\" al Extrasistema. Digite Cero si no tiene.\",\"\")","v":""},null,null,{"$f":"IF(AND($C961>0,AL961=\"\"),\" * No olvide digitar la variable Asistencia Anestésica. Digite Cero si no tiene.\",IF(AL961>$C961,\" *  La variable Asistencia Anestésica No puede ser mayor al Total.\",\"\"))","v":""},null,null,0,0,0,{"$f":"IF(AND(C961<AA961+AB961+AC961),1,0)","v":0},0,0,0,null,0,0,null,null,{"$f":"IF(AND($C961>0,AL961=\"\"),1,IF(AL961>$C961,1,0))","v":0}]
["0501142","Cintigrama óseo de cuerpo entero con Spect",0,0,null,null,null,null,null,null,null,null,null,null,null,null,null,null,null,null,null,null,null,null,null,null,null,null,null,null,null,null,null,null,null,null,null,null,null,null,"",null,null,null,null,null,null,null,null,null,null,null,null,null,null,null,null,null,null,null,null,null,null,null,null,null,null,null,null,null,null,null,null,null,null,null,null,null,null,null,"","","","","","","",null,"","",null,null,"",null,null,0,0,0,0,0,0,0,null,0,0,null,null,0]
["0501112","Vaciamiento gástrico líquido o sólido",0,0,null,null,null,null,null,null,null,null,null,null,null,null,null,null,null,null,null,null,null,null,null,null,null,null,null,null,null,null,null,null,null,null,null,null,null,null,"",null,null,null,null,null,null,null,null,null,null,null,null,null,null,null,null,null,null,null,null,null,null,null,null,null,null,null,null,null,null,null,null,null,null,null,null,null,null,null,"","","","","","","",null,"","",null,null,"",null,null,0,0,0,0,0,0,0,null,0,0,null,null,0]
["0501116","Spect hepatoesplénico, evaluación hemangioma o hiperplasia (incluye mediciones fase precoz y tardía)",0,0,null,null,null,null,null,null,null,null,null,null,null,null,null,null,null,null,null,null,null,null,null,null,null,null,null,null,null,null,null,null,null,null,null,null,null,null,"",null,null,null,null,null,null,null,null,null,null,null,null,null,null,null,null,null,null,null,null,null,null,null,null,null,null,null,null,null,null,null,null,null,null,null,null,null,null,null,"","","","","","","",null,"","",null,null,"",null,null,0,0,0,0,0,0,0,null,0,0,null,null,0]
["TOTAL",null,{"$f":"SUM(C1009:C1010)","v":0},{"$f":"SUM(D1009:D1010)","v":0},{"$f":"SUM(E1009:E1010)","v":0},{"$f":"SUM(F1009:F1010)","v":0},{"$f":"SUM(G1009:G1010)","v":0},null,null,null,null,null,null,null,null,null,null,null,null,null,null,null,null,null,null,null,{"$f":"SUM(AA1009:AA1010)","v":0},0,0,0,0,0,0,0,0,0,null,{"$f":"SUM(AL1009:AL1010)","v":0},{"$f":"SUM(AM1009:AM1010)","v":0},0]
["0501135","PET-CT ",{"$f":"SUM(D1024+G1024)","v":0},{"$f":"SUM(E1024:F1024)","v":0},null,null,null,null,null,null,null,null,null,null,null,null,null,null,null,null,null,null,null,null,null,null,null,null,null,null,null,null,null,null,null,null,null,null,null,null,{"$f":"CC1024&CD1024&CE1024&CF1024&CG1024&CH1024&CI1024&CJ1024&CK1024&CL1024&CM1024&CN1024&CO1024","v":""},null,null,null,null,null,null,null,null,null,null,null,null,null,null,null,null,null,null,null,null,null,null,null,null,null,null,null,null,null,null,null,null,null,null,null,null,null,null,null,{"$f":"IF(AND($C1024>0,AA1024=\"\"),\" * No olvide digitar la variable \"&$AA$8&\"\"&\": Atención Cerrada. Digite Cero si no tiene.\",\"\")","v":""},{"$f":"IF(AND($C1024>0,AB1024=\"\"),\" * No olvide digitar la variable \"&$AA$8&\"\"&\": Atención Abierta. Digite Cero si no tiene.\",\"\")","v":""},{"$f":"IF(AND($C1024>0,AC1024=\"\"),\" * No olvide digitar la variable \"&$AA$8&\"\"&\": Emergencia. Digite Cero si no tiene.\",\"\")","v":""},{"$f":"IF(AND(C1024<AA1024+AB1024+AC1024),\" * La Suma de la variable \"&$AA$8&\"\"&\" no puede ser mayor al Total.\",\"\")","v":""},{"$f":"IF(AND($C1024>0,AD1024=\"\"),\" * No olvide digitar la variable \"&$AD$8&\"\"&\": Honorarios. Digite Cero si no tiene.\",\"\")","v":""},{"$f":"IF(AND($C1024>0,AE1024=\"\"),\" * No olvide digitar la variable \"&$AD$8&\"\"&\": Convenios. Digite Cero si no tiene.\",\"\")","v":""},{"$f":"IF(AND($C1024>0,AF1024=\"\"),\" * No olvide digitar la variable \"&$AD$8&\"\"&\": Consultores de llamada. Digite Cero si no tiene.\",\"\")","v":""},null,{"$f":"IF(AND($C1024>0,AH1024=\"\"),\" * No olvide digitar la variable \"&$AH$8&\"\"&\" Al Sistema. Digite Cero si no tiene.\",\"\")","v":""},{"$f":"IF(AND($C1024>0,AI1024=\"\"),\" * No olvide digitar la variable \"&$AH$8&\"\"&\" al Extrasistema. Digite Cero si no tiene.\",\"\")","v":""},null,null,"",null,null,{"$f":"IF(AND($C1024>0,AA1024=\"\"),1,0)","v":0},{"$f":"IF(AND($C1024>0,AB1024=\"\"),1,0)","v":0},{"$f":"IF(AND($C1024>0,AC1024=\"\"),1,0)","v":0},{"$f":"IF(AND(C1024<AA1024+AB1024+AC1024),1,0)","v":0},{"$f":"IF(AND($C1024>0,AD1024=\"\"),1,0)","v":0},{"$f":"IF(AND($C1024>0,AE1024=\"\"),1,0)","v":0},{"$f":"IF(AND($C1024>0,AF1024=\"\"),1,0)","v":0},null,{"$f":"IF(AND($C1024>0,AH1024=\"\"),1,0)","v":0},{"$f":"IF(AND($C1024>0,AI1024=\"\"),1,0)","v":0},null,null,0]
["0502001","Dosis terapéuticas con I-131 hasta 30 mCi.",{"$f":"SUM(D1028+G1028)","v":0},{"$f":"SUM(E1028:F1028)","v":0},null,null,null,null,null,null,null,null,null,null,null,null,null,null,null,null,null,null,null,null,null,null,null,null,null,null,null,null,null,null,null,null,null,null,null,null,{"$f":"CC1028&CD1028&CE1028&CF1028&CG1028&CH1028&CI1028&CJ1028&CK1028&CL1028&CM1028&CN1028&CO1028","v":""},null,null,null,null,null,null,null,null,null,null,null,null,null,null,null,null,null,null,null,null,null,null,null,null,null,null,null,null,null,null,null,null,null,null,null,null,null,null,null,{"$f":"IF(AND($C1028>0,AA1028=\"\"),\" * No olvide digitar la variable \"&$AA$8&\"\"&\": Atención Cerrada. Digite Cero si no tiene.\",\"\")","v":""},{"$f":"IF(AND($C1028>0,AB1028=\"\"),\" * No olvide digitar la variable \"&$AA$8&\"\"&\": Atención Abierta. Digite Cero si no tiene.\",\"\")","v":""},{"$f":"IF(AND($C1028>0,AC1028=\"\"),\" * No olvide digitar la variable \"&$AA$8&\"\"&\": Emergencia. Digite Cero si no tiene.\",\"\")","v":""},{"$f":"IF(AND(C1028<AA1028+AB1028+AC1028),\" * La Suma de la variable \"&$AA$8&\"\"&\" no puede ser mayor al Total.\",\"\")","v":""},{"$f":"IF(AND($C1028>0,AD1028=\"\"),\" * No olvide digitar la variable \"&$AD$8&\"\"&\": Honorarios. Digite Cero si no tiene.\",\"\")","v":""},{"$f":"IF(AND($C1028>0,AE1028=\"\"),\" * No olvide digitar la variable \"&$AD$8&\"\"&\": Convenios. Digite Cero si no tiene.\",\"\")","v":""},{"$f":"IF(AND($C1028>0,AF1028=\"\"),\" * No olvide digitar la variable \"&$AD$8&\"\"&\": Consultores de llamada. Digite Cero si no tiene.\",\"\")","v":""},null,{"$f":"IF(AND($C1028>0,AH1028=\"\"),\" * No olvide digitar la variable \"&$AH$8&\"\"&\" Al Sistema. Digite Cero si no tiene.\",\"\")","v":""},{"$f":"IF(AND($C1028>0,AI1028=\"\"),\" * No olvide digitar la variable \"&$AH$8&\"\"&\" al Extrasistema. Digite Cero si no tiene.\",\"\")","v":""},null,null,"",null,null,{"$f":"IF(AND($C1028>0,AA1028=\"\"),1,0)","v":0},0,0,{"$f":"IF(AND(C1028<AA1028+AB1028+AC1028),1,0)","v":0},{"$f":"IF(AND($C1028>0,AD1028=\"\"),1,0)","v":0},0,0,null,{"$f":"IF(AND($C1028>0,AH1028=\"\"),1,0)","v":0},0,null,null,0]
[2902001,"Tratamiento integral de radioterapia altamente compleja con Linac ",{"$f":"SUM(D1041+G1041)","v":0},{"$f":"SUM(E1041:F1041)","v":0},null,null,null,null,null,null,null,null,null,null,null,null,null,null,null,null,null,null,null,null,null,null,null,null,null,null,null,null,null,null,null,null,null,null,null,null,{"$f":"CC1041&CD1041&CE1041&CF1041&CG1041&CH1041&CI1041&CJ1041&CK1041&CL1041&CM1041&CN1041&CO1041","v":""},null,null,null,null,null,null,null,null,null,null,null,null,null,null,null,null,null,null,null,null,null,null,null,null,null,null,null,null,null,null,null,null,null,null,null,null,null,null,null,{"$f":"IF(AND($C1041>0,AA1041=\"\"),\" * No olvide digitar la variable \"&$AA$8&\"\"&\": Atención Cerrada. Digite Cero si no tiene.\",\"\")","v":""},{"$f":"IF(AND($C1041>0,AB1041=\"\"),\" * No olvide digitar la variable \"&$AA$8&\"\"&\": Atención Abierta. Digite Cero si no tiene.\",\"\")","v":""},{"$f":"IF(AND($C1041>0,AC1041=\"\"),\" * No olvide digitar la variable \"&$AA$8&\"\"&\": Emergencia. Digite Cero si no tiene.\",\"\")","v":""},{"$f":"IF(AND(C1041<AA1041+AB1041+AC1041),\" * La Suma de la variable \"&$AA$8&\"\"&\" no puede ser mayor al Total.\",\"\")","v":""},{"$f":"IF(AND($C1041>0,AD1041=\"\"),\" * No olvide digitar la variable \"&$AD$8&\"\"&\": Honorarios. Digite Cero si no tiene.\",\"\")","v":""},{"$f":"IF(AND($C1041>0,AE1041=\"\"),\" * No olvide digitar la variable \"&$AD$8&\"\"&\": Convenios. Digite Cero si no tiene.\",\"\")","v":""},{"$f":"IF(AND($C1041>0,AF1041=\"\"),\" * No olvide digitar la variable \"&$AD$8&\"\"&\": Consultores de llamada. Digite Cero si no tiene.\",\"\")","v":""},null,{"$f":"IF(AND($C1041>0,AH1041=\"\"),\" * No olvide digitar la variable \"&$AH$8&\"\"&\" Al Sistema. Digite Cero si no tiene.\",\"\")","v":""},{"$f":"IF(AND($C1041>0,AI1041=\"\"),\" * No olvide digitar la variable \"&$AH$8&\"\"&\" al Extrasistema. Digite Cero si no tiene.\",\"\")","v":""},null,null,{"$f":"IF(AND($C1041>0,AL1041=\"\"),\" * No olvide digitar la variable Asistencia Anestésica. Digite Cero si no tiene.\",IF(AL1041>$C1041,\" *  La variable Asistencia Anestésica No puede ser mayor al Total.\",\"\"))","v":""},null,null,{"$f":"IF(AND($C1041>0,AA1041=\"\"),1,0)","v":0},0,0,{"$f":"IF(AND(C1041<AA1041+AB1041+AC1041),1,0)","v":0},{"$f":"IF(AND($C1041>0,AD1041=\"\"),1,0)","v":0},0,0,null,{"$f":"IF(AND($C1041>0,AH1041=\"\"),1,0)","v":0},0,null,null,{"$f":"IF(AND($C1041>0,AL1041=\"\"),1,IF(AL1041>$C1041,1,0))","v":0}]
["2905911","Neutropenia febril nivel riesgo muy alto atención secundaria",{"$f":"SUM(D1056+G1056)","v":0},{"$f":"SUM(E1056:F1056)","v":0},null,null,null,null,null,null,null,null,null,null,null,null,null,null,null,null,null,null,null,null,null,null,null,null,null,null,null,null,null,null,null,null,null,null,null,null,{"$f":"CC1056&CD1056&CE1056&CF1056&CG1056&CH1056&CI1056&CJ1056&CK1056&CL1056&CM1056&CN1056&CO1056","v":""},null,null,null,null,null,null,null,null,null,null,null,null,null,null,null,null,null,null,null,null,null,null,null,null,null,null,null,null,null,null,null,null,null,null,null,null,null,null,null,{"$f":"IF(AND($C1056>0,AA1056=\"\"),\" * No olvide digitar la variable \"&$AA$8&\"\"&\": Atención Cerrada. Digite Cero si no tiene.\",\"\")","v":""},{"$f":"IF(AND($C1056>0,AB1056=\"\"),\" * No olvide digitar la variable \"&$AA$8&\"\"&\": Atención Abierta. Digite Cero si no tiene.\",\"\")","v":""},{"$f":"IF(AND($C1056>0,AC1056=\"\"),\" * No olvide digitar la variable \"&$AA$8&\"\"&\": Emergencia. Digite Cero si no tiene.\",\"\")","v":""},{"$f":"IF(AND(C1056<AA1056+AB1056+AC1056),\" * La Suma de la variable \"&$AA$8&\"\"&\" no puede ser mayor al Total.\",\"\")","v":""},{"$f":"IF(AND($C1056>0,AD1056=\"\"),\" * No olvide digitar la variable \"&$AD$8&\"\"&\": Honorarios. Digite Cero si no tiene.\",\"\")","v":""},{"$f":"IF(AND($C1056>0,AE1056=\"\"),\" * No olvide digitar la variable \"&$AD$8&\"\"&\": Convenios. Digite Cero si no tiene.\",\"\")","v":""},{"$f":"IF(AND($C1056>0,AF1056=\"\"),\" * No olvide digitar la variable \"&$AD$8&\"\"&\": Consultores de llamada. Digite Cero si no tiene.\",\"\")","v":""},null,{"$f":"IF(AND($C1056>0,AH1056=\"\"),\" * No olvide digitar la variable \"&$AH$8&\"\"&\" Al Sistema. Digite Cero si no tiene.\",\"\")","v":""},{"$f":"IF(AND($C1056>0,AI1056=\"\"),\" * No olvide digitar la variable \"&$AH$8&\"\"&\" al Extrasistema. Digite Cero si no tiene.\",\"\")","v":""},null,null,null,null,null,0,0,0,{"$f":"IF(AND(C1056<AA1056+AB1056+AC1056),1,0)","v":0},0,0,0,null,0,0]
["0601105","Atención Kinesiológica Integral Ambulatoria",{"$f":"SUM(D1062+G1062)","v":0},{"$f":"SUM(E1062:F1062)","v":0},null,null,null,null,null,null,null,null,null,null,null,null,null,null,null,null,null,null,null,null,null,null,null,null,null,null,null,null,null,null,null,null,null,null,null,null,"",null,null,null,null,null,null,null,null,null,null,null,null,null,null,null,null,null,null,null,null,null,null,null,null,null,null,null,null,null,null,null,null,null,null,null,null,null,null,null,"","","","","","","",null,"","",null,null,null,null,null,0,0,0,0,0,0,0,null,0,0]
["0601006","Tanque de Hubbard con ejercicios (hiper o hipo-termal sobre 1.000 lts de capacidad) (proc.aut.)",0,0,null,null,null,null,null,null,null,null,null,null,null,null,null,null,null,null,null,null,null,null,null,null,null,null,null,null,null,null,null,null,null,null,null,null,null,null,"",null,null,null,null,null,null,null,null,null,null,null,null,null,null,null,null,null,null,null,null,null,null,null,null,null,null,null,null,null,null,null,null,null,null,null,null,null,null,null,"","","","","","","",null,"","",null,null,null,null,null,0,0,0,0,0,0,0,null,0,0]
["0601020","Entrenamiento protésico extremidades (proc.aut.)",0,0,null,null,null,null,null,null,null,null,null,null,null,null,null,null,null,null,null,null,null,null,null,null,null,null,null,null,null,null,null,null,null,null,null,null,null,null,"",null,null,null,null,null,null,null,null,null,null,null,null,null,null,null,null,null,null,null,null,null,null,null,null,null,null,null,null,null,null,null,null,null,null,null,null,null,null,null,{"$f":"IF(AND($C1091>0,AA1091=\"\"),\" * No olvide digitar la variable \"&$AA$8&\"\"&\": Atención Cerrada. Digite Cero si no tiene.\",\"\")","v":""},{"$f":"IF(AND($C1091>0,AB1091=\"\"),\" * No olvide digitar la variable \"&$AA$8&\"\"&\": Atención Abierta. Digite Cero si no tiene.\",\"\")","v":""},{"$f":"IF(AND($C1091>0,AC1091=\"\"),\" * No olvide digitar la variable \"&$AA$8&\"\"&\": Emergencia. Digite Cero si no tiene.\",\"\")","v":""},{"$f":"IF(AND(C1091<AA1091+AB1091+AC1091),\" * La Suma de la variable \"&$AA$8&\"\"&\" no puede ser mayor al Total.\",\"\")","v":""},{"$f":"IF(AND($C1091>0,AD1091=\"\"),\" * No olvide digitar la variable \"&$AD$8&\"\"&\": Honorarios. Digite Cero si no tiene.\",\"\")","v":""},{"$f":"IF(AND($C1091>0,AE1091=\"\"),\" * No olvide digitar la variable \"&$AD$8&\"\"&\": Convenios. Digite Cero si no tiene.\",\"\")","v":""},{"$f":"IF(AND($C1091>0,AF1091=\"\"),\" * No olvide digitar la variable \"&$AD$8&\"\"&\": Consultores de llamada. Digite Cero si no tiene.\",\"\")","v":""},null,{"$f":"IF(AND($C1091>0,AH1091=\"\"),\" * No olvide digitar la variable \"&$AH$8&\"\"&\" Al Sistema. Digite Cero si no tiene.\",\"\")","v":""},{"$f":"IF(AND($C1091>0,AI1091=\"\"),\" * No olvide digitar la variable \"&$AH$8&\"\"&\" al Extrasistema. Digite Cero si no tiene.\",\"\")","v":""},null,null,null,null,null,{"$f":"IF(AND($C1091>0,AA1091=\"\"),1,0)","v":0},{"$f":"IF(AND($C1091>0,AB1091=\"\"),1,0)","v":0},{"$f":"IF(AND($C1091>0,AC1091=\"\"),1,0)","v":0},{"$f":"IF(AND(C1091<AA1091+AB1091+AC1091),1,0)","v":0},{"$f":"IF(AND($C1091>0,AD1091=\"\"),1,0)","v":0},{"$f":"IF(AND($C1091>0,AE1091=\"\"),1,0)","v":0},{"$f":"IF(AND($C1091>0,AF1091=\"\"),1,0)","v":0},null,{"$f":"IF(AND($C1091>0,AH1091=\"\"),1,0)","v":0},{"$f":"IF(AND($C1091>0,AI1091=\"\"),1,0)","v":0}]
["0102501","Reeducación de la tos y respiración en pacientes con traqueostomía",0,0,null,null,null,null,null,null,null,null,null,null,null,null,null,null,null,null,null,null,null,null,null,null,null,null,null,null,null,null,null,null,null,null,null,null,null,null,"",null,null,null,null,null,null,null,null,null,null,null,null,null,null,null,null,null,null,null,null,null,null,null,null,null,null,null,null,null,null,null,null,null,null,null,null,null,null,null,"","","","","","","",null,"","",null,null,null,null,null,0,0,0,0,0,0,0,null,0,0]
["01010923","Rehabilitación vestibular",0,0,null,null,null,null,null,null,null,null,null,null,null,null,null,null,null,null,null,null,null,null,null,null,null,null,null,null,null,null,null,null,null,null,null,null,null,null,"",null,null,null,null,null,null,null,null,null,null,null,null,null,null,null,null,null,null,null,null,null,null,null,null,null,null,null,null,null,null,null,null,null,null,null,null,null,null,null,"","","","","","","",null,"","",null,null,null,null,null,0,0,0,0,0,0,0,null,0,0]
["0702105","Producción de concentrado de glóbulos rojos por aféresis automática ",0,0,null,null,null,null,null,null,null,null,null,null,null,null,null,null,null,null,null,null,null,null,null,null,null,null,null,null,null,null,null,null,null,null,null,null,null,null,"",null,null,null,null,null,null,null,null,null,null,null,null,null,null,null,null,null,null,null,null,null,null,null,null,null,null,null,null,null,null,null,null,null,null,null,null,null,null,null,"","","","","","","",null,"","",null,null,null,null,null,0,0,0,0,0,0,0,null,0,0]
["0702206","Genotipificación D variante (incluye D parcial y débil)",0,0,null,null,null,null,null,null,null,null,null,null,null,null,null,null,null,null,null,null,null,null,null,null,null,null,null,null,null,null,null,null,null,null,null,null,null,null,"",null,null,null,null,null,null,null,null,null,null,null,null,null,null,null,null,null,null,null,null,null,null,null,null,null,null,null,null,null,null,null,null,null,null,null,null,null,null,null,"","","","","","","",null,"","",null,null,null,null,null,0,0,0,0,0,0,0,null,0,0]
["0702307","Depleción plaquetaria por aféresis terapéutica",0,0,null,null,null,null,null,null,null,null,null,null,null,null,null,null,null,null,null,null,null,null,null,null,null,null,null,null,null,null,null,null,null,null,null,null,null,null,"",null,null,null,null,null,null,null,null,null,null,null,null,null,null,null,null,null,null,null,null,null,null,null,null,null,null,null,null,null,null,null,null,null,null,null,null,null,null,null,"","","","","","","",null,"","",null,null,null,null,null,0,0,0,0,0,0,0,null,0,0]
["0704029","Fragmento de hueso largo ( o de soporte), c/u",0,0,null,null,null,null,null,null,null,null,null,null,null,null,null,null,null,null,null,null,null,null,null,null,null,null,null,null,null,null,null,null,null,null,null,null,null,null,"",null,null,null,null,null,null,null,null,null,null,null,null,null,null,null,null,null,null,null,null,null,null,null,null,null,null,null,null,null,null,null,null,null,null,null,null,null,null,null,"","","","","","","",null,"","",null,null,null,null,null,0,0,0,0,0,0,0,null,0,0]
["0801002","Citología no ginecológica (por cada placa o frasco) (máximo 6)",0,0,null,null,null,null,null,null,null,null,null,null,null,null,null,null,null,null,null,null,null,null,null,null,null,null,null,null,null,null,null,null,null,null,null,null,null,null,"",null,null,null,null,null,null,null,null,null,null,null,null,null,null,null,null,null,null,null,null,null,null,null,null,null,null,null,null,null,null,null,null,null,null,null,null,null,null,null,"","","","","","","",null,"","",null,null,null,null,null,0,0,0,0,0,0,0,null,0,0]
["0801011","PCR tiempo real para marcadores tumorales en cortes histológicos (incluye microdisección y extracción de ADN)",0,0,null,null,null,null,null,null,null,null,null,null,null,null,null,null,null,null,null,null,null,null,null,null,null,null,null,null,null,null,null,null,null,null,null,null,null,null,"",null,null,null,null,null,null,null,null,null,null,null,null,null,null,null,null,null,null,null,null,null,null,null,null,null,null,null,null,null,null,null,null,null,null,null,null,null,null,null,"","","","","","","",null,"","",null,null,null,null,null,0,0,0,0,0,0,0,null,0,0]
["0901003","Sesión de terapia electroconvulsivante (hasta 6 sesiones por ciclo o sesiones de mantención) c/ sesión",0,0,null,null,null,null,null,null,null,null,null,null,null,null,null,null,null,null,null,null,null,null,null,null,null,null,null,null,null,null,null,null,null,null,null,null,null,null,"",null,null,null,null,null,null,null,null,null,null,null,null,null,null,null,null,null,null,null,null,null,null,null,null,null,null,null,null,null,null,null,null,null,null,null,null,null,null,null,"","","","","","","",null,"","",null,null,null,null,null,0,0,0,0,0,0,0,null,0,0]
[1101142,"Esclerosis Múltiple Remitente Recurrente,  Tratamiento Brote",0,0,null,null,null,null,null,null,null,null,null,null,null,null,null,null,null,null,null,null,null,null,null,null,null,null,null,null,null,null,null,null,null,null,null,null,null,null,"",null,null,null,null,null,null,null,null,null,null,null,null,null,null,null,null,null,null,null,null,null,null,null,null,null,null,null,null,null,null,null,null,null,null,null,null,null,null,null,"","","","","","","",null,"","",null,null,null,null,null,0,0,0,0,0,0,0,null,0,0]
[1101003,"Punción Lumbar c/s manometría c/s Queckensted",0,0,null,null,null,null,null,null,null,null,null,null,null,null,null,null,null,null,null,null,null,null,null,null,null,null,null,null,null,null,null,null,null,null,null,null,null,null,"",null,null,null,null,null,null,null,null,null,null,null,null,null,null,null,null,null,null,null,null,null,null,null,null,null,null,null,null,null,null,null,null,null,null,null,null,null,null,null,"","","","","","","",null,"","",null,"","",null,null,0,0,0,0,0,0,0,null,0,0,null,0,0]
[1101011,"Potenciales evocados en corteza ( por ej.: auditivo, ocular o corporales), c/u",0,0,null,null,null,null,null,null,null,null,null,null,null,null,null,null,null,null,null,null,null,null,null,null,null,null,null,null,null,null,null,null,null,null,null,null,null,null,"",null,null,null,null,null,null,null,null,null,null,null,null,null,null,null,null,null,null,null,null,null,null,null,null,null,null,null,null,null,null,null,null,null,null,null,null,null,null,null,"","","","","","","",null,"","",null,null,null,null,null,0,0,0,0,0,0,0,null,0,0]
[1101033,"Infiltración o bloqueo suboccipital u otros nervios cervicales",0,0,null,null,null,null,null,null,null,null,null,null,null,null,null,null,null,null,null,null,null,null,null,null,null,null,null,null,null,null,null,null,null,null,null,null,null,null,"",null,null,null,null,null,null,null,null,null,null,null,null,null,null,null,null,null,null,null,null,null,null,null,null,null,null,null,null,null,null,null,null,null,null,null,null,null,null,null,"","","","","","","",null,"","",null,"","",null,null,0,0,0,0,0,0,0,null,0,0,null,0,0]
[5099019,"Inyección interferon",0,0,null,null,null,null,null,null,null,null,null,null,null,null,null,null,null,null,null,null,null,null,null,null,null,null,null,null,null,null,null,null,null,null,null,null,null,null,"",null,null,null,null,null,null,null,null,null,null,null,null,null,null,null,null,null,null,null,null,null,null,null,null,null,null,null,null,null,null,null,null,null,null,null,null,null,null,null,"","","","","","","",null,"","",null,null,null,null,null,0,0,0,0,0,0,0,null,0,0]
[1103004,"Craneoplastía con autoinjerto",0,null,null,null,null,0,null,null,null,null,null,null,0,null,null,0,null,null,0,null,null,0,null,null,null,null,null,null,null,null,null,null,null,null,null,null,null,null,"",null,null,null,null,null,null,null,null,null,null,null,null,null,null,null,null,null,null,null,null,null,null,null,null,null,null,null,null,null,null,null,null,null,null,null,null,null,null,null,"","","","","","","",null,"","",null,null,null,null,null,0,0,0,0,0,0,0,null,0,0]
[1103016,"Hematoma, empiema o colección subdural, vaciamiento de",0,null,null,null,null,0,null,null,null,null,null,null,0,null,null,0,null,null,0,null,null,0,null,null,null,null,null,null,null,null,null,null,null,null,null,null,null,null,"",null,null,null,null,null,null,null,null,null,null,null,null,null,null,null,null,null,null,null,null,null,null,null,null,null,null,null,null,null,null,null,null,null,null,null,null,null,null,null,{"$f":"IF(AND($C1268>0,AA1268=\"\"),\" * No olvide digitar la variable \"&$AA$8&\"\"&\": Atención Cerrada. Digite Cero si no tiene.\",\"\")","v":""},{"$f":"IF(AND($C1268>0,AB1268=\"\"),\" * No olvide digitar la variable \"&$AA$8&\"\"&\": Atención Abierta. Digite Cero si no tiene.\",\"\")","v":""},{"$f":"IF(AND($C1268>0,AC1268=\"\"),\" * No olvide digitar la variable \"&$AA$8&\"\"&\": Emergencia. Digite Cero si no tiene.\",\"\")","v":""},{"$f":"IF(AND(C1268<AA1268+AB1268+AC1268),\" * La Suma de la variable \"&$AA$8&\"\"&\" no puede ser mayor al Total.\",\"\")","v":""},{"$f":"IF(AND($C1268>0,AD1268=\"\"),\" * No olvide digitar la variable \"&$AD$8&\"\"&\": Honorarios. Digite Cero si no tiene.\",\"\")","v":""},{"$f":"IF(AND($C1268>0,AE1268=\"\"),\" * No olvide digitar la variable \"&$AD$8&\"\"&\": Convenios. Digite Cero si no tiene.\",\"\")","v":""},{"$f":"IF(AND($C1268>0,AF1268=\"\"),\" * No olvide digitar la variable \"&$AD$8&\"\"&\": Consultores de llamada. Digite Cero si no tiene.\",\"\")","v":""},null,{"$f":"IF(AND($C1268>0,AH1268=\"\"),\" * No olvide digitar la variable \"&$AH$8&\"\"&\" Al Sistema. Digite Cero si no tiene.\",\"\")","v":""},{"$f":"IF(AND($C1268>0,AI1268=\"\"),\" * No olvide digitar la variable \"&$AH$8&\"\"&\" al Extrasistema. Digite Cero si no tiene.\",\"\")","v":""},null,null,null,null,null,{"$f":"IF(AND($C1268>0,AA1268=\"\"),1,0)","v":0},{"$f":"IF(AND($C1268>0,AB1268=\"\"),1,0)","v":0},{"$f":"IF(AND($C1268>0,AC1268=\"\"),1,0)","v":0},{"$f":"IF(AND(C1268<AA1268+AB1268+AC1268),1,0)","v":0},{"$f":"IF(AND($C1268>0,AD1268=\"\"),1,0)","v":0},{"$f":"IF(AND($C1268>0,AE1268=\"\"),1,0)","v":0},{"$f":"IF(AND($C1268>0,AF1268=\"\"),1,0)","v":0},null,{"$f":"IF(AND($C1268>0,AH1268=\"\"),1,0)","v":0},{"$f":"IF(AND($C1268>0,AI1268=\"\"),1,0)","v":0}]
[1103036,"Cirugía descompresiva de fosa posterior u occipito-vertebral en Malformación de Chiari y/o siringomielia",0,null,null,null,null,0,null,null,null,null,null,null,0,null,null,0,null,null,0,null,null,0,null,null,null,null,null,null,null,null,null,null,null,null,null,null,null,null,"",null,null,null,null,null,null,null,null,null,null,null,null,null,null,null,null,null,null,null,null,null,null,null,null,null,null,null,null,null,null,null,null,null,null,null,null,null,null,null,"","","","","","","",null,"","",null,null,null,null,null,0,0,0,0,0,0,0,null,0,0]
[1103039,"Neurotomías",0,null,null,null,null,0,null,null,null,null,null,null,0,null,null,0,null,null,0,null,null,0,null,null,null,null,null,null,null,null,null,null,null,null,null,null,null,null,"",null,null,null,null,null,null,null,null,null,null,null,null,null,null,null,null,null,null,null,null,null,null,null,null,null,null,null,null,null,null,null,null,null,null,null,null,null,null,null,"","","","","","","",null,"","",null,null,null,null,null,0,0,0,0,0,0,0,null,0,0]
[1103056,"Mielotomía, DREZtomía",0,null,null,null,null,0,null,null,null,null,null,null,0,null,null,0,null,null,0,null,null,0,null,null,null,null,null,null,null,null,null,null,null,null,null,null,null,null,"",null,null,null,null,null,null,null,null,null,null,null,null,null,null,null,null,null,null,null,null,null,null,null,null,null,null,null,null,null,null,null,null,null,null,null,null,null,null,null,"","","","","","","",null,"","",null,null,null,null,null,0,0,0,0,0,0,0,null,0,0]
[1103082,"Fusión intersomática dorsal y lumbar larga",{"$f":"SUM(I1320:N1320)","v":0},null,null,null,null,{"$f":"SUM(I1320:J1320)","v":0},null,null,null,null,null,null,{"$f":"SUM(P1320:Q1320)","v":0},null,null,{"$f":"SUM(S1320:T1320)","v":0},null,null,{"$f":"SUM(V1320:W1320)","v":0},null,null,{"$f":"SUM(Y1320:Z1320)","v":0},null,null,null,null,null,null,null,null,null,null,null,null,null,null,null,null,"",null,null,null,null,null,null,null,null,null,null,null,null,null,null,null,null,null,null,null,null,null,null,null,null,null,null,null,null,null,null,null,null,null,null,null,null,null,null,null,"","","","","","","",null,"","",null,null,null,null,null,0,0,0,0,0,0,0,null,0,0]
[1103067,"Liberación de nervio cubital a nivel del codo, cualquier técnica",0,null,null,null,null,0,null,null,null,null,null,null,0,null,null,0,null,null,0,null,null,0,null,null,null,null,null,null,null,null,null,null,null,null,null,null,null,null,"",null,null,null,null,null,null,null,null,null,null,null,null,null,null,null,null,null,null,null,null,null,null,null,null,null,null,null,null,null,null,null,null,null,null,null,null,null,null,null,"","","","","","","",null,"","",null,null,null,null,null,0,0,0,0,0,0,0,null,0,0]
[1201006,"Electromiografía músculos oculares adultos, unilateral",0,0,null,null,null,null,null,null,null,null,null,null,null,null,null,null,null,null,null,null,null,null,null,null,null,null,null,null,null,null,null,null,null,null,null,null,null,null,"",null,null,null,null,null,null,null,null,null,null,null,null,null,null,null,null,null,null,null,null,null,null,null,null,null,null,null,null,null,null,null,null,null,null,null,null,null,null,null,"","","","","","","",null,"","",null,null,null,null,null,0,0,0,0,0,0,0,null,0,0]
[1201015,"Tratamiento ortóptico y/o pleóptico (por sesión), bilateral",0,0,null,null,null,null,null,null,null,null,null,null,null,null,null,null,null,null,null,null,null,null,null,null,null,null,null,null,null,null,null,null,null,null,null,null,null,null,"",null,null,null,null,null,null,null,null,null,null,null,null,null,null,null,null,null,null,null,null,null,null,null,null,null,null,null,null,null,null,null,null,null,null,null,null,null,null,null,"","","","","","","",null,"","",null,null,null,null,null,0,0,0,0,0,0,0,null,0,0]
[1201043,"Topografía corneal computarizada, unilateral",0,0,null,null,null,null,null,null,null,null,null,null,null,null,null,null,null,null,null,null,null,null,null,null,null,null,null,null,null,null,null,null,null,null,null,null,null,null,"",null,null,null,null,null,null,null,null,null,null,null,null,null,null,null,null,null,null,null,null,null,null,null,null,null,null,null,null,null,null,null,null,null,null,null,null,null,null,null,"","","","","","","",null,"","",null,null,null,null,null,0,0,0,0,0,0,0,null,0,0]
[1201040,"Puntos lagrimales; electrotermocoagulación",0,0,null,null,null,null,null,null,null,null,null,null,null,null,null,null,null,null,null,null,null,null,null,null,null,null,null,null,null,null,null,null,null,null,null,null,null,null,"",null,null,null,null,null,null,null,null,null,null,null,null,null,null,null,null,null,null,null,null,null,null,null,null,null,null,null,null,null,null,null,null,null,null,null,null,null,null,null,"","","","","","","",null,"","",null,null,"",null,null,0,0,0,0,0,0,0,null,0,0,null,null,0]
[1202002,"Puntos lagrimales, plastía de",{"$f":"SUM(I1394:N1394)","v":0},null,null,null,null,{"$f":"SUM(I1394:J1394)","v":0},null,null,null,null,null,null,null,null,null,null,null,null,null,null,null,null,null,null,null,null,null,null,null,null,null,null,null,null,null,null,null,null,"",null,null,null,null,null,null,null,null,null,null,null,null,null,null,null,null,null,null,null,null,null,null,null,null,null,null,null,null,null,null,null,null,null,null,null,null,null,null,null,"","","","","","","",null,"","",null,"","",null,null,0,0,0,0,0,0,0,null,0,0,null,0,0]
[1202004,"Absceso, vaciamiento y/o drenaje de saco y/o glándula lagrimal",0,null,null,null,null,0,null,null,null,null,null,null,null,null,null,null,null,null,null,null,null,null,null,null,null,null,null,null,null,null,null,null,null,null,null,null,null,null,"",null,null,null,null,null,null,null,null,null,null,null,null,null,null,null,null,null,null,null,null,null,null,null,null,null,null,null,null,null,null,null,null,null,null,null,null,null,null,null,"","","","","","","",null,"","",null,"","",null,null,0,0,0,0,0,0,0,null,0,0,null,0,0]
[1202023,"Tumor maligno de párpado o ceja, trat. quir. completo",0,null,null,null,null,0,null,null,null,null,null,null,0,null,null,0,null,null,0,null,null,0,null,null,null,null,null,null,null,null,null,null,null,null,null,null,null,null,"",null,null,null,null,null,null,null,null,null,null,null,null,null,null,null,null,null,null,null,null,null,null,null,null,null,null,null,null,null,null,null,null,null,null,null,null,null,null,null,"","","","","","","",null,"","",null,null,null,null,null,0,0,0,0,0,0,0,null,0,0]
[1202028,"Extirpación de tumor benigno de la conjuntiva",0,null,null,null,null,0,null,null,null,null,null,null,null,null,null,null,null,null,null,null,null,null,null,null,null,null,null,null,null,null,null,null,null,null,null,null,null,null,"",null,null,null,null,null,null,null,null,null,null,null,null,null,null,null,null,null,null,null,null,null,null,null,null,null,null,null,null,null,null,null,null,null,null,null,null,null,null,null,"","","","","","","",null,"","",null,{"$f":"IF(AND($C1424>0,AK1424=\"\"),\" * No olvide digitar la variable Quirófano Cirugía Mayor. Digite Cero si no tiene.\",IF(AK1424>$C1424,\" *  La variable Quirófano Cirugía Mayor No puede ser mayor al Total.\",\"\"))","v":""},{"$f":"IF(AND($C1424>0,AL1424=\"\"),\" * No olvide digitar la variable Asistencia Anestésica. Digite Cero si no tiene.\",IF(AL1424>$C1424,\" *  La variable Asistencia Anestésica No puede ser mayor al Total.\",\"\"))","v":""},null,null,0,0,0,0,0,0,0,null,0,0,null,{"$f":"IF(AND($C1424>0,AK1424=\"\"),1,IF(AK1424>$C1424,1,0))","v":0},{"$f":"IF(AND($C1424>0,AL1424=\"\"),1,IF(AL1424>$C1424,1,0))","v":0}]
[1202035,"Biopsia de globo ocular (proc. aut.)",0,null,null,null,null,0,null,null,null,null,null,null,0,null,null,0,null,null,0,null,null,0,null,null,null,null,null,null,null,null,null,null,null,null,null,null,null,null,"",null,null,null,null,null,null,null,null,null,null,null,null,null,null,null,null,null,null,null,null,null,null,null,null,null,null,null,null,null,null,null,null,null,null,null,null,null,null,null,"","","","","","","",null,"","",null,null,null,null,null,0,0,0,0,0,0,0,null,0,0]
[1202044,"Extracción quir. de cuerpo extraño en cornea y/o esclera",0,null,null,null,null,0,null,null,null,null,null,null,null,null,null,null,null,null,null,null,null,null,null,null,null,null,null,null,null,null,null,null,null,null,null,null,null,null,"",null,null,null,null,null,null,null,null,null,null,null,null,null,null,null,null,null,null,null,null,null,null,null,null,null,null,null,null,null,null,null,null,null,null,null,null,null,null,null,"","","","","","","",null,"","",null,"","",null,null,0,0,0,0,0,0,0,null,0,0,null,0,0]
[1202053,"Iridectomía periférica y/u óptica, (proc. aut.)",0,null,null,null,null,0,null,null,null,null,null,null,0,null,null,0,null,null,0,null,null,0,null,null,null,null,null,null,null,null,null,null,null,null,null,null,null,null,"",null,null,null,null,null,null,null,null,null,null,null,null,null,null,null,null,null,null,null,null,null,null,null,null,null,null,null,null,null,null,null,null,null,null,null,null,null,null,null,"","","","","","","",null,"","",null,null,null,null,null,0,0,0,0,0,0,0,null,0,0]
[1202066,"Aspiración esferular c/s capsulotomía",0,null,null,null,null,{"$f":"SUM(I1469:J1469)","v":0},null,null,null,null,null,null,{"$f":"SUM(P1469:Q1469)","v":0},null,null,{"$f":"SUM(S1469:T1469)","v":0},null,null,{"$f":"SUM(V1469:W1469)","v":0},null,null,{"$f":"SUM(Y1469:Z1469)","v":0},null,null,null,null,null,null,null,null,null,null,null,null,null,null,null,null,"",null,null,null,null,null,null,null,null,null,null,null,null,null,null,null,null,null,null,null,null,null,null,null,null,null,null,null,null,null,null,null,null,null,null,null,null,null,null,null,"","","","","","","",null,"","",null,null,null,null,null,0,0,0,0,0,0,0,null,0,0]
[1301021,"Audiometría adultos",{"$f":"SUM(D1486+G1486)","v":0},{"$f":"SUM(E1486:F1486)","v":0},null,null,null,null,null,null,null,null,null,null,null,null,null,null,null,null,null,null,null,null,null,null,null,null,null,null,null,null,null,null,null,null,null,null,null,null,{"$f":"CC1486&CD1486&CE1486&CF1486&CG1486&CH1486&CI1486&CJ1486&CK1486&CL1486&CM1486&CN1486&CO1486","v":""},null,null,null,null,null,null,null,null,null,null,null,null,null,null,null,null,null,null,null,null,null,null,null,null,null,null,null,null,null,null,null,null,null,null,null,null,null,null,null,"","","","","","","",null,"","",null,null,null,null,null,0,0,0,0,0,0,0,null,0,0]
[1301019,"Test de glicerol (con 3 audiometrías)",0,0,null,null,null,null,null,null,null,null,null,null,null,null,null,null,null,null,null,null,null,null,null,null,null,null,null,null,null,null,null,null,null,null,null,null,null,null,"",null,null,null,null,null,null,null,null,null,null,null,null,null,null,null,null,null,null,null,null,null,null,null,null,null,null,null,null,null,null,null,null,null,null,null,null,null,null,null,"","","","","","","",null,"","",null,null,null,null,null,0,0,0,0,0,0,0,null,0,0]
[1301050,"Audiometría campo libre. Niños y adultos",0,0,null,null,null,null,null,null,null,null,null,null,null,null,null,null,null,null,null,null,null,null,null,null,null,null,null,null,null,null,null,null,null,null,null,null,null,null,"",null,null,null,null,null,null,null,null,null,null,null,null,null,null,null,null,null,null,null,null,null,null,null,null,null,null,null,null,null,null,null,null,null,null,null,null,null,null,null,"","","","","","","",null,"","",null,null,null,null,null,0,0,0,0,0,0,0,null,0,0]
[1301039,"Cuerpo extraño extracción en hipofaringe y/o esófago (por tubo rígido) - En adultos",0,0,null,null,null,null,null,null,null,null,null,null,null,null,null,null,null,null,null,null,null,null,null,null,null,null,null,null,null,null,null,null,null,null,null,null,null,null,"",null,null,null,null,null,null,null,null,null,null,null,null,null,null,null,null,null,null,null,null,null,null,null,null,null,null,null,null,null,null,null,null,null,null,null,null,null,null,null,"","","","","","","",null,"","",null,"","",null,null,0,0,0,0,0,0,0,null,0,0,null,0,0]
[1302001,"Absceso y/o hematomas oído externo, trat. quir.",{"$f":"SUM(I1532:N1532)","v":0},null,null,null,null,{"$f":"SUM(I1532:J1532)","v":0},null,null,null,null,null,null,null,null,null,null,null,null,null,null,null,null,null,null,null,null,null,null,null,null,null,null,null,null,null,null,null,null,{"$f":"CC1532&CD1532&CE1532&CF1532&CG1532&CH1532&CI1532&CJ1532&CK1532&CL1532&CM1532&CN1532&CO1532","v":""},null,null,null,null,null,null,null,null,null,null,null,null,null,null,null,null,null,null,null,null,null,null,null,null,null,null,null,null,null,null,null,null,null,null,null,null,null,null,null,{"$f":"IF(AND($C1532>0,AA1532=\"\"),\" * No olvide digitar la variable \"&$AA$8&\"\"&\": Atención Cerrada. Digite Cero si no tiene.\",\"\")","v":""},{"$f":"IF(AND($C1532>0,AB1532=\"\"),\" * No olvide digitar la variable \"&$AA$8&\"\"&\": Atención Abierta. Digite Cero si no tiene.\",\"\")","v":""},{"$f":"IF(AND($C1532>0,AC1532=\"\"),\" * No olvide digitar la variable \"&$AA$8&\"\"&\": Emergencia. Digite Cero si no tiene.\",\"\")","v":""},{"$f":"IF(AND(C1532<AA1532+AB1532+AC1532),\" * La Suma de la variable \"&$AA$8&\"\"&\" no puede ser mayor al Total.\",\"\")","v":""},{"$f":"IF(AND($C1532>0,AD1532=\"\"),\" * No olvide digitar la variable \"&$AD$8&\"\"&\": Honorarios. Digite Cero si no tiene.\",\"\")","v":""},{"$f":"IF(AND($C1532>0,AE1532=\"\"),\" * No olvide digitar la variable \"&$AD$8&\"\"&\": Convenios. Digite Cero si no tiene.\",\"\")","v":""},{"$f":"IF(AND($C1532>0,AF1532=\"\"),\" * No olvide digitar la variable \"&$AD$8&\"\"&\": Consultores de llamada. Digite Cero si no tiene.\",\"\")","v":""},null,{"$f":"IF(AND($C1532>0,AH1532=\"\"),\" * No olvide digitar la variable \"&$AH$8&\"\"&\" Al Sistema. Digite Cero si no tiene.\",\"\")","v":""},{"$f":"IF(AND($C1532>0,AI1532=\"\"),\" * No olvide digitar la variable \"&$AH$8&\"\"&\" al Extrasistema. Digite Cero si no tiene.\",\"\")","v":""},null,{"$f":"IF(AND($C1532>0,AK1532=\"\"),\" * No olvide digitar la variable Quirófano Cirugía Mayor. Digite Cero si no tiene.\",IF(AK1532>$C1532,\" *  La variable Quirófano Cirugía Mayor No puede ser mayor al Total.\",\"\"))","v":""},{"$f":"IF(AND($C1532>0,AL1532=\"\"),\" * No olvide digitar la variable Asistencia Anestésica. Digite Cero si no tiene.\",IF(AL1532>$C1532,\" *  La variable Asistencia Anestésica No puede ser mayor al Total.\",\"\"))","v":""},null,null,{"$f":"IF(AND($C1532>0,AA1532=\"\"),1,0)","v":0},{"$f":"IF(AND($C1532>0,AB1532=\"\"),1,0)","v":0},{"$f":"IF(AND($C1532>0,AC1532=\"\"),1,0)","v":0},{"$f":"IF(AND(C1532<AA1532+AB1532+AC1532),1,0)","v":0},{"$f":"IF(AND($C1532>0,AD1532=\"\"),1,0)","v":0},{"$f":"IF(AND($C1532>0,AE1532=\"\"),1,0)","v":0},{"$f":"IF(AND($C1532>0,AF1532=\"\"),1,0)","v":0},null,{"$f":"IF(AND($C1532>0,AH1532=\"\"),1,0)","v":0},{"$f":"IF(AND($C1532>0,AI1532=\"\"),1,0)","v":0},null,{"$f":"IF(AND($C1532>0,AK1532=\"\"),1,IF(AK1532>$C1532,1,0))","v":0},{"$f":"IF(AND($C1532>0,AL1532=\"\"),1,IF(AL1532>$C1532,1,0))","v":0}]
[1302078,"Tumor de conducto auditivo externo, extirpación con reparación (injerto) del conducto",0,null,null,null,null,0,null,null,null,null,null,null,{"$f":"SUM(P1537:Q1537)","v":0},null,null,{"$f":"SUM(S1537:T1537)","v":0},null,null,{"$f":"SUM(V1537:W1537)","v":0},null,null,{"$f":"SUM(Y1537:Z1537)","v":0},null,null,null,null,null,null,null,null,null,null,null,null,null,null,null,null,"",null,null,null,null,null,null,null,null,null,null,null,null,null,null,null,null,null,null,null,null,null,null,null,null,null,null,null,null,null,null,null,null,null,null,null,null,null,null,null,"","","","","","","",null,"","",null,null,null,null,null,0,0,0,0,0,0,0,null,0,0]
[1302077,"Implante activo de oído medio",0,null,null,null,null,0,null,null,null,null,null,null,{"$f":"SUM(P1545:Q1545)","v":0},null,null,{"$f":"SUM(S1545:T1545)","v":0},null,null,{"$f":"SUM(V1545:W1545)","v":0},null,null,{"$f":"SUM(Y1545:Z1545)","v":0},null,null,null,null,null,null,null,null,null,null,null,null,null,null,null,null,"",null,null,null,null,null,null,null,null,null,null,null,null,null,null,null,null,null,null,null,null,null,null,null,null,null,null,null,null,null,null,null,null,null,null,null,null,null,null,null,"","","","","","","",null,"","",null,null,null,null,null,0,0,0,0,0,0,0,null,0,0]
[1302091,"Tumor glómico petro-tímpano-mástoídeo, tratamiento quirúrgico",0,null,null,null,null,0,null,null,null,null,null,null,0,null,null,0,null,null,0,null,null,0,null,null,null,null,null,null,null,null,null,null,null,null,null,null,null,null,"",null,null,null,null,null,null,null,null,null,null,null,null,null,null,null,null,null,null,null,null,null,null,null,null,null,null,null,null,null,null,null,null,null,null,null,null,null,null,null,"","","","","","","",null,"","",null,null,null,null,null,0,0,0,0,0,0,0,null,0,0]
[1302026,"Drenaje de absceso o flegmón retrofaríngeo o faringolaríngeo",0,null,null,null,null,0,null,null,null,null,null,null,null,null,null,null,null,null,null,null,null,null,null,null,null,null,null,null,null,null,null,null,null,null,null,null,null,null,"",null,null,null,null,null,null,null,null,null,null,null,null,null,null,null,null,null,null,null,null,null,null,null,null,null,null,null,null,null,null,null,null,null,null,null,null,null,null,null,"","","","","","","",null,"","",null,"","",null,null,0,0,0,0,0,0,0,null,0,0,null,0,0]
[1302040,"Arteria maxilar interna, ligadura de (por vía transmaxilar)",0,null,null,null,null,0,null,null,null,null,null,null,{"$f":"SUM(P1587:Q1587)","v":0},null,null,{"$f":"SUM(S1587:T1587)","v":0},null,null,{"$f":"SUM(V1587:W1587)","v":0},null,null,{"$f":"SUM(Y1587:Z1587)","v":0},null,null,null,null,null,null,null,null,null,null,null,null,null,null,null,null,"",null,null,null,null,null,null,null,null,null,null,null,null,null,null,null,null,null,null,null,null,null,null,null,null,null,null,null,null,null,null,null,null,null,null,null,null,null,null,null,"","","","","","","",null,"","",null,null,null,null,null,0,0,0,0,0,0,0,null,0,0]
[1302052,"Rinoplastía y/o septoplastía, cualquier técnica",0,null,null,null,null,0,null,null,null,null,null,null,0,null,null,0,null,null,0,null,null,0,null,null,null,null,null,null,null,null,null,null,null,null,null,null,null,null,"",null,null,null,null,null,null,null,null,null,null,null,null,null,null,null,null,null,null,null,null,null,null,null,null,null,null,null,null,null,null,null,null,null,null,null,null,null,null,null,"","","","","","","",null,"","",null,null,null,null,null,0,0,0,0,0,0,0,null,0,0]
[1302094,"Resección de tumor de base de cráneo anterior con reparación de duramadre (colgajo pediculado de haddad o similar)",0,null,null,null,null,0,null,null,null,null,null,null,0,null,null,0,null,null,0,null,null,0,null,null,null,null,null,null,null,null,null,null,null,null,null,null,null,null,"",null,null,null,null,null,null,null,null,null,null,null,null,null,null,null,null,null,null,null,null,null,null,null,null,null,null,null,null,null,null,null,null,null,null,null,null,null,null,null,"","","","","","","",null,"","",null,null,null,null,null,0,0,0,0,0,0,0,null,0,0]
[1302104,"Cordectomía, sinequia y otras malformaciones, tratatamiento quirúrgico por endoscópica (incluye laser)",0,null,null,null,null,0,null,null,null,null,null,null,{"$f":"SUM(P1621:Q1621)","v":0},null,null,{"$f":"SUM(S1621:T1621)","v":0},null,null,{"$f":"SUM(V1621:W1621)","v":0},null,null,{"$f":"SUM(Y1621:Z1621)","v":0},null,null,null,null,null,null,null,null,null,null,null,null,null,null,null,null,"",null,null,null,null,null,null,null,null,null,null,null,null,null,null,null,null,null,null,null,null,null,null,null,null,null,null,null,null,null,null,null,null,null,null,null,null,null,null,null,"","","","","","","",null,"","",null,null,null,null,null,0,0,0,0,0,0,0,null,0,0]
[1302073,"Estenosis laringotraqueales y faríngeas, trat. quir. por vía endoscópica (incluye laser) ",0,null,null,null,null,0,null,null,null,null,null,null,null,null,null,null,null,null,null,null,null,null,null,null,null,null,null,null,null,null,null,null,null,null,null,null,null,null,"",null,null,null,null,null,null,null,null,null,null,null,null,null,null,null,null,null,null,null,null,null,null,null,null,null,null,null,null,null,null,null,null,null,null,null,null,null,null,null,"","","","","","","",null,"","",null,{"$f":"IF(AND($C1636>0,AK1636=\"\"),\" * No olvide digitar la variable Quirófano Cirugía Mayor. Digite Cero si no tiene.\",IF(AK1636>$C1636,\" *  La variable Quirófano Cirugía Mayor No puede ser mayor al Total.\",\"\"))","v":""},{"$f":"IF(AND($C1636>0,AL1636=\"\"),\" * No olvide digitar la variable Asistencia Anestésica. Digite Cero si no tiene.\",IF(AL1636>$C1636,\" *  La variable Asistencia Anestésica No puede ser mayor al Total.\",\"\"))","v":""},null,null,0,0,0,0,0,0,0,null,0,0,null,{"$f":"IF(AND($C1636>0,AK1636=\"\"),1,IF(AK1636>$C1636,1,0))","v":0},{"$f":"IF(AND($C1636>0,AL1636=\"\"),1,IF(AL1636>$C1636,1,0))","v":0}]
[1302108,"Inyección de cuerda vocal vía endoscópica",0,null,null,null,null,0,null,null,null,null,null,null,{"$f":"SUM(P1638:Q1638)","v":0},null,null,{"$f":"SUM(S1638:T1638)","v":0},null,null,{"$f":"SUM(V1638:W1638)","v":0},null,null,{"$f":"SUM(Y1638:Z1638)","v":0},null,null,null,null,null,null,null,null,null,null,null,null,null,null,null,null,"",null,null,null,null,null,null,null,null,null,null,null,null,null,null,null,null,null,null,null,null,null,null,null,null,null,null,null,null,null,null,null,null,null,null,null,null,null,null,null,"","","","","","","",null,"","",null,null,null,null,null,0,0,0,0,0,0,0,null,0,0]
[1402009,"Paratiroidectomía o exploración de paratiroides (abordaje cervical, clásico o mínimamente invasivo)",0,null,null,null,null,0,null,null,null,null,null,null,0,null,null,0,null,null,0,null,null,0,null,null,null,null,null,null,null,null,null,null,null,null,null,null,null,null,"",null,null,null,null,null,null,null,null,null,null,null,null,null,null,null,null,null,null,null,null,null,null,null,null,null,null,null,null,null,null,null,null,null,null,null,null,null,null,null,"","","","","","","",null,"","",null,null,null,null,null,0,0,0,0,0,0,0,null,0,0]
[1402027,"Biopsia quir., piel  y mucosa cara (proc. aut.)",0,null,null,null,null,0,null,null,null,null,null,null,null,null,null,null,null,null,null,null,null,null,null,null,null,null,null,null,null,null,null,null,null,null,null,null,null,null,"",null,null,null,null,null,null,null,null,null,null,null,null,null,null,null,null,null,null,null,null,null,null,null,null,null,null,null,null,null,null,null,null,null,null,null,null,null,null,null,"","","","","","","",null,"","",null,"","",null,null,0,0,0,0,0,0,0,null,0,0,null,0,0]
[1402033,"Resección total y cirugía reparadora nariz",0,null,null,null,null,0,null,null,null,null,null,null,0,null,null,0,null,null,0,null,null,0,null,null,null,null,null,null,null,null,null,null,null,null,null,null,null,null,"",null,null,null,null,null,null,null,null,null,null,null,null,null,null,null,null,null,null,null,null,null,null,null,null,null,null,null,null,null,null,null,null,null,null,null,null,null,null,null,{"$f":"IF(AND($C1677>0,AA1677=\"\"),\" * No olvide digitar la variable \"&$AA$8&\"\"&\": Atención Cerrada. Digite Cero si no tiene.\",\"\")","v":""},{"$f":"IF(AND($C1677>0,AB1677=\"\"),\" * No olvide digitar la variable \"&$AA$8&\"\"&\": Atención Abierta. Digite Cero si no tiene.\",\"\")","v":""},{"$f":"IF(AND($C1677>0,AC1677=\"\"),\" * No olvide digitar la variable \"&$AA$8&\"\"&\": Emergencia. Digite Cero si no tiene.\",\"\")","v":""},{"$f":"IF(AND(C1677<AA1677+AB1677+AC1677),\" * La Suma de la variable \"&$AA$8&\"\"&\" no puede ser mayor al Total.\",\"\")","v":""},{"$f":"IF(AND($C1677>0,AD1677=\"\"),\" * No olvide digitar la variable \"&$AD$8&\"\"&\": Honorarios. Digite Cero si no tiene.\",\"\")","v":""},{"$f":"IF(AND($C1677>0,AE1677=\"\"),\" * No olvide digitar la variable \"&$AD$8&\"\"&\": Convenios. Digite Cero si no tiene.\",\"\")","v":""},{"$f":"IF(AND($C1677>0,AF1677=\"\"),\" * No olvide digitar la variable \"&$AD$8&\"\"&\": Consultores de llamada. Digite Cero si no tiene.\",\"\")","v":""},null,{"$f":"IF(AND($C1677>0,AH1677=\"\"),\" * No olvide digitar la variable \"&$AH$8&\"\"&\" Al Sistema. Digite Cero si no tiene.\",\"\")","v":""},{"$f":"IF(AND($C1677>0,AI1677=\"\"),\" * No olvide digitar la variable \"&$AH$8&\"\"&\" al Extrasistema. Digite Cero si no tiene.\",\"\")","v":""},null,null,null,null,null,{"$f":"IF(AND($C1677>0,AA1677=\"\"),1,0)","v":0},{"$f":"IF(AND($C1677>0,AB1677=\"\"),1,0)","v":0},{"$f":"IF(AND($C1677>0,AC1677=\"\"),1,0)","v":0},{"$f":"IF(AND(C1677<AA1677+AB1677+AC1677),1,0)","v":0},{"$f":"IF(AND($C1677>0,AD1677=\"\"),1,0)","v":0},{"$f":"IF(AND($C1677>0,AE1677=\"\"),1,0)","v":0},{"$f":"IF(AND($C1677>0,AF1677=\"\"),1,0)","v":0},null,{"$f":"IF(AND($C1677>0,AH1677=\"\"),1,0)","v":0},{"$f":"IF(AND($C1677>0,AI1677=\"\"),1,0)","v":0}]
[1402048,"Extirpación de tumor intraoral amplia en tercio posterior cavidad oral (región faringea) ",0,null,null,null,null,0,null,null,null,null,null,null,0,null,null,0,null,null,0,null,null,0,null,null,null,null,null,null,null,null,null,null,null,null,null,null,null,null,"",null,null,null,null,null,null,null,null,null,null,null,null,null,null,null,null,null,null,null,null,null,null,null,null,null,null,null,null,null,null,null,null,null,null,null,null,null,null,null,"","","","","","","",null,"","",null,null,null,null,null,0,0,0,0,0,0,0,null,0,0]
[1402058,"Reconstrucciones de partes duras y blandas de la cara, mediante abordajes múltiples y hemicoronal o coronal",0,null,null,null,null,0,null,null,null,null,null,null,0,null,null,0,null,null,0,null,null,0,null,null,null,null,null,null,null,null,null,null,null,null,null,null,null,null,"",null,null,null,null,null,null,null,null,null,null,null,null,null,null,null,null,null,null,null,null,null,null,null,null,null,null,null,null,null,null,null,null,null,null,null,null,null,null,null,"","","","","","","",null,"","",null,null,null,null,null,0,0,0,0,0,0,0,null,0,0]
[1502011,"Piel total, cualquier tamaño (incluye tratamiento zona dadora y receptora)",0,null,null,null,null,0,null,null,null,null,null,null,0,null,null,0,null,null,0,null,null,0,null,null,null,null,null,null,null,null,null,null,null,null,null,null,null,null,"",null,null,null,null,null,null,null,null,null,null,null,null,null,null,null,null,null,null,null,null,null,null,null,null,null,null,null,null,null,null,null,null,null,null,null,null,null,null,null,"","","","","","","",null,"","",null,null,null,null,null,0,0,0,0,0,0,0,null,0,0]
[1502070,"Expansor de piel (único) primer tiempo",0,null,null,null,null,0,null,null,null,null,null,null,0,null,null,0,null,null,0,null,null,0,null,null,null,null,null,null,null,null,null,null,null,null,null,null,null,null,"",null,null,null,null,null,null,null,null,null,null,null,null,null,null,null,null,null,null,null,null,null,null,null,null,null,null,null,null,null,null,null,null,null,null,null,null,null,null,null,"","","","","","","",null,"","",null,null,null,null,null,0,0,0,0,0,0,0,null,0,0]
[1502030,"Blefaroplastia párpados superiores, uni o bilateral",0,null,null,null,null,0,null,null,null,null,null,null,0,null,null,0,null,null,0,null,null,0,null,null,null,null,null,null,null,null,null,null,null,null,null,null,null,null,"",null,null,null,null,null,null,null,null,null,null,null,null,null,null,null,null,null,null,null,null,null,null,null,null,null,null,null,null,null,null,null,null,null,null,null,null,null,null,null,"","","","","","","",null,"","",null,null,null,null,null,0,0,0,0,0,0,0,null,0,0]
[1502033,"Cierre de paladar duro y/o cierre de comunicación oro-nasal",0,null,null,null,null,0,null,null,null,null,null,null,0,null,null,0,null,null,0,null,null,0,null,null,null,null,null,null,null,null,null,null,null,null,null,null,null,null,"",null,null,null,null,null,null,null,null,null,null,null,null,null,null,null,null,null,null,null,null,null,null,null,null,null,null,null,null,null,null,null,null,null,null,null,null,null,null,null,"","","","","","","",null,"","",null,null,null,null,null,0,0,0,0,0,0,0,null,0,0]
[1502047,"Ginecomastia, corrección plástica",0,null,null,null,null,0,null,null,null,null,null,null,0,null,null,0,null,null,0,null,null,0,null,null,null,null,null,null,null,null,null,null,null,null,null,null,null,null,"",null,null,null,null,null,null,null,null,null,null,null,null,null,null,null,null,null,null,null,null,null,null,null,null,null,null,null,null,null,null,null,null,null,null,null,null,null,null,null,"","","","","","","",null,"","",null,null,null,null,null,0,0,0,0,0,0,0,null,0,0]
[1502054,"Escarectomía con resección ósea c/s colgajo de rotación",0,null,null,null,null,0,null,null,null,null,null,null,0,null,null,0,null,null,0,null,null,0,null,null,null,null,null,null,null,null,null,null,null,null,null,null,null,null,"",null,null,null,null,null,null,null,null,null,null,null,null,null,null,null,null,null,null,null,null,null,null,null,null,null,null,null,null,null,null,null,null,null,null,null,null,null,null,null,"","","","","","","",null,"","",null,null,null,null,null,0,0,0,0,0,0,0,null,0,0]
[1601117,"Crioterapia 6 a 10 lesiones por sesión",0,0,null,null,null,null,null,null,null,null,null,null,null,null,null,null,null,null,null,null,null,null,null,null,null,null,null,null,null,null,null,null,null,null,null,null,null,null,"",null,null,null,null,null,null,null,null,null,null,null,null,null,null,null,null,null,null,null,null,null,null,null,null,null,null,null,null,null,null,null,null,null,null,null,null,null,null,null,"","","","","","","",null,"","",null,null,null,null,null,0,0,0,0,0,0,0,null,0,0]
[1601126,"Dermatoscopía digital con registro gráfico o digital hasta 5 lesiones",0,0,null,null,null,null,null,null,null,null,null,null,null,null,null,null,null,null,null,null,null,null,null,null,null,null,null,null,null,null,null,null,null,null,null,null,null,null,"",null,null,null,null,null,null,null,null,null,null,null,null,null,null,null,null,null,null,null,null,null,null,null,null,null,null,null,null,null,null,null,null,null,null,null,null,null,null,null,"","","","","","","",null,"","",null,null,null,null,null,0,0,0,0,0,0,0,null,0,0]
[1602214,"Resto del cuerpo: ampliación de márgenes quirúrgicos de tumor maligno extirpado previamente",0,null,null,null,null,0,null,null,null,null,null,null,null,null,null,null,null,null,null,null,null,null,null,null,null,null,null,null,null,null,null,null,null,null,null,null,null,null,"",null,null,null,null,null,null,null,null,null,null,null,null,null,null,null,null,null,null,null,null,null,null,null,null,null,null,null,null,null,null,null,null,null,null,null,null,null,null,null,"","","","","","","",null,"","",null,"","",null,null,0,0,0,0,0,0,0,null,0,0,null,0,0]
["TOTAL",null,{"$f":"SUM(C1796:C1819)","v":0},null,null,null,null,{"$f":"SUM(H1796:H1819)","v":0},0,0,0,0,0,0,0,0,0,0,0,0,0,0,0,0,0,0,0,0,0,0,0,0,0,0,0,0,{"$f":"SUM(AK1796:AK1819)","v":0},0,0,0]
[1701003,"Electrocardiograma de esfuerzo",{"$f":"SUM(D1823+G1823)","v":0},{"$f":"SUM(E1823:F1823)","v":0},null,null,null,null,null,null,null,null,null,null,null,null,null,null,null,null,null,null,null,null,null,null,null,null,null,null,null,null,null,null,null,null,null,null,null,null,"",null,null,null,null,null,null,null,null,null,null,null,null,null,null,null,null,null,null,null,null,null,null,null,null,null,null,null,null,null,null,null,null,null,null,null,null,null,null,null,"","","","","","","",null,"","",null,null,null,null,null,0,0,0,0,0,0,0,null,0,0]
[1701132,"Angioplastía Intraluminal periférica (incluye proc. rad., balón, Stent o similar)",0,0,null,null,null,null,null,null,null,null,null,null,null,null,null,null,null,null,null,null,null,null,null,null,null,null,null,null,null,null,null,null,null,null,null,null,null,null,"",null,null,null,null,null,null,null,null,null,null,null,null,null,null,null,null,null,null,null,null,null,null,null,null,null,null,null,null,null,null,null,null,null,null,null,null,null,null,null,"","","","","","","",null,"","",null,"","",null,null,0,0,0,0,0,0,0,null,0,0,null,0,0]
[1701017,"Pletismografía en reposo, esfuerzo c/u (por sesión)",0,0,null,null,null,null,null,null,null,null,null,null,null,null,null,null,null,null,null,null,null,null,null,null,null,null,null,null,null,null,null,null,null,null,null,null,null,null,"",null,null,null,null,null,null,null,null,null,null,null,null,null,null,null,null,null,null,null,null,null,null,null,null,null,null,null,null,null,null,null,null,null,null,null,null,null,null,null,"","","","","","","",null,"","",null,null,null,null,null,0,0,0,0,0,0,0,null,0,0]
[1701051,"Ablación con corriente continua o con radiofrecuencia de vías accesorias y otros",0,0,null,null,null,null,null,null,null,null,null,null,null,null,null,null,null,null,null,null,null,null,null,null,null,null,null,null,null,null,null,null,null,null,null,null,null,null,"",null,null,null,null,null,null,null,null,null,null,null,null,null,null,null,null,null,null,null,null,null,null,null,null,null,null,null,null,null,null,null,null,null,null,null,null,null,null,null,"","","","","","","",null,"","",null,"","",null,null,0,0,0,0,0,0,0,null,0,0,null,0,0]
[1701079,"Retiro de reservorio subcutáneo (catéter de quimioterapia) ",0,0,null,null,null,null,null,null,null,null,null,null,null,null,null,null,null,null,null,null,null,null,null,null,null,null,null,null,null,null,null,null,null,null,null,null,null,null,"",null,null,null,null,null,null,null,null,null,null,null,null,null,null,null,null,null,null,null,null,null,null,null,null,null,null,null,null,null,null,null,null,null,null,null,null,null,null,null,"","","","","","","",null,"","",null,"","",null,null,0,0,0,0,0,0,0,null,0,0,null,0,0]
["01011654","Estudio de Puentes Coronarios",0,0,null,null,null,null,null,null,null,null,null,null,null,null,null,null,null,null,null,null,null,null,null,null,null,null,null,null,null,null,null,null,null,null,null,null,null,null,"",null,null,null,null,null,null,null,null,null,null,null,null,null,null,null,null,null,null,null,null,null,null,null,null,null,null,null,null,null,null,null,null,null,null,null,null,null,null,null,"","","","","","","",null,"","",null,"","",null,null,0,0,0,0,0,0,0,null,0,0,null,0,0]
[1703001,"Embolectomía y/o trombectomía, unilateral, miembro superior o inferior (proc. aut.)",{"$f":"SUM(I1898:N1898)","v":0},null,null,null,null,{"$f":"+I1898+J1898","v":0},null,null,null,null,null,null,{"$f":"SUM(P1898:Q1898)","v":0},null,null,{"$f":"SUM(S1898:T1898)","v":0},null,null,{"$f":"SUM(V1898:W1898)","v":0},null,null,{"$f":"SUM(Y1898:Z1898)","v":0},null,null,null,null,null,null,null,null,null,null,null,null,null,null,null,null,{"$f":"CC1898&CD1898&CE1898&CF1898&CG1898&CH1898&CI1898&CJ1898&CK1898&CL1898&CM1898&CN1898&CO1898","v":""},null,null,null,null,null,null,null,null,null,null,null,null,null,null,null,null,null,null,null,null,null,null,null,null,null,null,null,null,null,null,null,null,null,null,null,null,null,null,null,{"$f":"IF(AND($C1898>0,AA1898=\"\"),\" * No olvide digitar la variable \"&$AA$8&\"\"&\": Atención Cerrada. Digite Cero si no tiene.\",\"\")","v":""},{"$f":"IF(AND($C1898>0,AB1898=\"\"),\" * No olvide digitar la variable \"&$AA$8&\"\"&\": Atención Abierta. Digite Cero si no tiene.\",\"\")","v":""},{"$f":"IF(AND($C1898>0,AC1898=\"\"),\" * No olvide digitar la variable \"&$AA$8&\"\"&\": Emergencia. Digite Cero si no tiene.\",\"\")","v":""},{"$f":"IF(AND(C1898<AA1898+AB1898+AC1898),\" * La Suma de la variable \"&$AA$8&\"\"&\" no puede ser mayor al Total.\",\"\")","v":""},{"$f":"IF(AND($C1898>0,AD1898=\"\"),\" * No olvide digitar la variable \"&$AD$8&\"\"&\": Honorarios. Digite Cero si no tiene.\",\"\")","v":""},{"$f":"IF(AND($C1898>0,AE1898=\"\"),\" * No olvide digitar la variable \"&$AD$8&\"\"&\": Convenios. Digite Cero si no tiene.\",\"\")","v":""},{"$f":"IF(AND($C1898>0,AF1898=\"\"),\" * No olvide digitar la variable \"&$AD$8&\"\"&\": Consultores de llamada. Digite Cero si no tiene.\",\"\")","v":""},null,{"$f":"IF(AND($C1898>0,AH1898=\"\"),\" * No olvide digitar la variable \"&$AH$8&\"\"&\" Al Sistema. Digite Cero si no tiene.\",\"\")","v":""},{"$f":"IF(AND($C1898>0,AI1898=\"\"),\" * No olvide digitar la variable \"&$AH$8&\"\"&\" al Extrasistema. Digite Cero si no tiene.\",\"\")","v":""},null,null,null,null,null,{"$f":"IF(AND($C1898>0,AA1898=\"\"),1,0)","v":0},{"$f":"IF(AND($C1898>0,AB1898=\"\"),1,0)","v":0},{"$f":"IF(AND($C1898>0,AC1898=\"\"),1,0)","v":0},{"$f":"IF(AND(C1898<AA1898+AB1898+AC1898),1,0)","v":0},{"$f":"IF(AND($C1898>0,AD1898=\"\"),1,0)","v":0},{"$f":"IF(AND($C1898>0,AE1898=\"\"),1,0)","v":0},{"$f":"IF(AND($C1898>0,AF1898=\"\"),1,0)","v":0},null,{"$f":"IF(AND($C1898>0,AH1898=\"\"),1,0)","v":0},{"$f":"IF(AND($C1898>0,AI1898=\"\"),1,0)","v":0}]
[1703009,"Aneurisma tóraco-abdominal trat. quir.",0,null,null,null,null,0,null,null,null,null,null,null,0,null,null,0,null,null,0,null,null,0,null,null,null,null,null,null,null,null,null,null,null,null,null,null,null,null,"",null,null,null,null,null,null,null,null,null,null,null,null,null,null,null,null,null,null,null,null,null,null,null,null,null,null,null,null,null,null,null,null,null,null,null,null,null,null,null,"","","","","","","",null,"","",null,null,null,null,null,0,0,0,0,0,0,0,null,0,0]
[1703018,"Puente fémoro-poplíteo",0,null,null,null,null,0,null,null,null,null,null,null,0,null,null,0,null,null,0,null,null,0,null,null,null,null,null,null,null,null,null,null,null,null,null,null,null,null,"",null,null,null,null,null,null,null,null,null,null,null,null,null,null,null,null,null,null,null,null,null,null,null,null,null,null,null,null,null,null,null,null,null,null,null,null,null,null,null,"","","","","","","",null,"","",null,null,null,null,null,0,0,0,0,0,0,0,null,0,0]
[1703026,"Ligadura cayado safena interna, unilateral",0,null,null,null,null,0,null,null,null,null,null,null,0,null,null,0,null,null,0,null,null,0,null,null,null,null,null,null,null,null,null,null,null,null,null,null,null,null,"",null,null,null,null,null,null,null,null,null,null,null,null,null,null,null,null,null,null,null,null,null,null,null,null,null,null,null,null,null,null,null,null,null,null,null,null,null,null,null,"","","","","","","",null,"","",null,null,null,null,null,0,0,0,0,0,0,0,null,0,0]
[1703035,"Biopsia quir. ganglionar (cualquier región periférica superficial o profunda) (proc. aut.)",0,null,null,null,null,0,null,null,null,null,null,null,null,null,null,null,null,null,null,null,null,null,null,null,null,null,null,null,null,null,null,null,null,null,null,null,null,null,"",null,null,null,null,null,null,null,null,null,null,null,null,null,null,null,null,null,null,null,null,null,null,null,null,null,null,null,null,null,null,null,null,null,null,null,null,null,null,null,"","","","","","","",null,"","",null,"","",null,null,0,0,0,0,0,0,0,null,0,0,null,0,0]
[1703070,"Vaciamiento mediastínico ántero-superior",0,null,null,null,null,0,null,null,null,null,null,null,0,null,null,0,null,null,0,null,null,0,null,null,null,null,null,null,null,null,null,null,null,null,null,null,null,null,"",null,null,null,null,null,null,null,null,null,null,null,null,null,null,null,null,null,null,null,null,null,null,null,null,null,null,null,null,null,null,null,null,null,null,null,null,null,null,null,"","","","","","","",null,"","",null,null,null,null,null,0,0,0,0,0,0,0,null,0,0]
[1703057,"Pericardiorrafia o miopericardiorrafia en heridas penetrantes",0,null,null,null,null,0,null,null,null,null,null,null,0,null,null,0,null,null,0,null,null,0,null,null,null,null,null,null,null,null,null,null,null,null,null,null,null,null,"",null,null,null,null,null,null,null,null,null,null,null,null,null,null,null,null,null,null,null,null,null,null,null,null,null,null,null,null,null,null,null,null,null,null,null,null,null,null,null,"","","","","","","",null,"","",null,null,null,null,null,0,0,0,0,0,0,0,null,0,0]
[null,"Reparación bolsillo de marcapaso",0,null,null,null,null,0,null,null,null,null,null,null,null,null,null,null,null,null,null,null,null,null,null,null,null,null,null,null,null,null,null,null,null,null,null,null,null,null,"",null,null,null,null,null,null,null,null,null,null,null,null,null,null,null,null,null,null,null,null,null,null,null,null,null,null,null,null,null,null,null,null,null,null,null,null,null,null,null,"","","","","","","",null,"","",null,{"$f":"IF(AND($C1978>0,AK1978=\"\"),\" * No olvide digitar la variable Quirófano Cirugía Mayor. Digite Cero si no tiene.\",IF(AK1978>$C1978,\" *  La variable Quirófano Cirugía Mayor No puede ser mayor al Total.\",\"\"))","v":""},{"$f":"IF(AND($C1978>0,AL1978=\"\"),\" * No olvide digitar la variable Asistencia Anestésica. Digite Cero si no tiene.\",IF(AL1978>$C1978,\" *  La variable Asistencia Anestésica No puede ser mayor al Total.\",\"\"))","v":""},null,null,0,0,0,0,0,0,0,null,0,0,null,{"$f":"IF(AND($C1978>0,AK1978=\"\"),1,IF(AK1978>$C1978,1,0))","v":0},{"$f":"IF(AND($C1978>0,AL1978=\"\"),1,IF(AL1978>$C1978,1,0))","v":0}]
[1704005,"Resección de costillas y/o pared costal y/o cartílago y/o esternón s/plastía (proc. aut.)",0,null,null,null,null,0,null,null,null,null,null,null,0,null,null,0,null,null,0,null,null,0,null,null,null,null,null,null,null,null,null,null,null,null,null,null,null,null,"",null,null,null,null,null,null,null,null,null,null,null,null,null,null,null,null,null,null,null,null,null,null,null,null,null,null,null,null,null,null,null,null,null,null,null,null,null,null,null,"","","","","","","",null,"","",null,null,null,null,null,0,0,0,0,0,0,0,null,0,0]
[1704081,"Conducto torácico, ligadura por vía videotoracoscopica",0,null,null,null,null,0,null,null,null,null,null,null,0,null,null,0,null,null,0,null,null,0,null,null,null,null,null,null,null,null,null,null,null,null,null,null,null,null,"",null,null,null,null,null,null,null,null,null,null,null,null,null,null,null,null,null,null,null,null,null,null,null,null,null,null,null,null,null,null,null,null,null,null,null,null,null,null,null,"","","","","","","",null,"","",null,null,null,null,null,0,0,0,0,0,0,0,null,0,0]
[1704067,"Cirugía del diafragma con cirugía de vísceras abdominales o torácicas por vía toracoscopia",{"$f":"SUM(I2012:N2012)","v":0},null,null,null,null,{"$f":"+I2012+J2012","v":0},null,null,null,null,null,null,{"$f":"SUM(P2012:Q2012)","v":0},null,null,{"$f":"SUM(S2012:T2012)","v":0},null,null,{"$f":"SUM(V2012:W2012)","v":0},null,null,{"$f":"SUM(Y2012:Z2012)","v":0},null,null,null,null,null,null,null,null,null,null,null,null,null,null,null,null,"",null,null,null,null,null,null,null,null,null,null,null,null,null,null,null,null,null,null,null,null,null,null,null,null,null,null,null,null,null,null,null,null,null,null,null,null,null,null,null,"","","","","","","",null,"","",null,null,null,null,null,0,0,0,0,0,0,0,null,0,0]
[1704028,"Tratamiento resectivo de tumores pleurales",0,null,null,null,null,0,null,null,null,null,null,null,0,null,null,0,null,null,0,null,null,0,null,null,null,null,null,null,null,null,null,null,null,null,null,null,null,null,"",null,null,null,null,null,null,null,null,null,null,null,null,null,null,null,null,null,null,null,null,null,null,null,null,null,null,null,null,null,null,null,null,null,null,null,null,null,null,null,"","","","","","","",null,"","",null,null,null,null,null,0,0,0,0,0,0,0,null,0,0]
[1704091,"Lobectomía o bilobectomía por vía videotoracoscopica",0,null,null,null,null,0,null,null,null,null,null,null,0,null,null,0,null,null,0,null,null,0,null,null,null,null,null,null,null,null,null,null,null,null,null,null,null,null,"",null,null,null,null,null,null,null,null,null,null,null,null,null,null,null,null,null,null,null,null,null,null,null,null,null,null,null,null,null,null,null,null,null,null,null,null,null,null,null,"","","","","","","",null,"","",null,null,null,null,null,0,0,0,0,0,0,0,null,0,0]
[1704073,"Absceso pulmonar, drenaje por videotoracoscopia",{"$f":"SUM(I2049:N2049)","v":0},null,null,null,null,{"$f":"+I2049+J2049","v":0},null,null,null,null,null,null,{"$f":"SUM(P2049:Q2049)","v":0},null,null,{"$f":"SUM(S2049:T2049)","v":0},null,null,{"$f":"SUM(V2049:W2049)","v":0},null,null,{"$f":"SUM(Y2049:Z2049)","v":0},null,null,null,null,null,null,null,null,null,null,null,null,null,null,null,null,"",null,null,null,null,null,null,null,null,null,null,null,null,null,null,null,null,null,null,null,null,null,null,null,null,null,null,null,null,null,null,null,null,null,null,null,null,null,null,null,"","","","","","","",null,"","",null,null,null,null,null,0,0,0,0,0,0,0,null,0,0]
[1704096,"Resección de diverticulos esofágicos por vía videotoracoscopica",0,null,null,null,null,0,null,null,null,null,null,null,0,null,null,0,null,null,0,null,null,0,null,null,null,null,null,null,null,null,null,null,null,null,null,null,null,null,"",null,null,null,null,null,null,null,null,null,null,null,null,null,null,null,null,null,null,null,null,null,null,null,null,null,null,null,null,null,null,null,null,null,null,null,null,null,null,null,"","","","","","","",null,"","",null,null,null,null,null,0,0,0,0,0,0,0,null,0,0]
[1704063,"Várices esofágicos, ligadura directa",0,null,null,null,null,0,null,null,null,null,null,null,0,null,null,0,null,null,0,null,null,0,null,null,null,null,null,null,null,null,null,null,null,null,null,null,null,null,"",null,null,null,null,null,null,null,null,null,null,null,null,null,null,null,null,null,null,null,null,null,null,null,null,null,null,null,null,null,null,null,null,null,null,null,null,null,null,null,"","","","","","","",null,"","",null,null,null,null,null,0,0,0,0,0,0,0,null,0,0]
[1707005,"Test de provocación con metacolina (pc20) (incluye espirometría basal y tratamiento de efectos adversos de la metacolina)",0,0,null,null,null,null,null,null,null,null,null,null,null,null,null,null,null,null,null,null,null,null,null,null,null,null,null,null,null,null,null,null,null,null,null,null,null,null,"",null,null,null,null,null,null,null,null,null,null,null,null,null,null,null,null,null,null,null,null,null,null,null,null,null,null,null,null,null,null,null,null,null,null,null,null,null,null,null,"","","","","","","",null,"","",null,null,null,null,null,0,0,0,0,0,0,0,null,0,0]
[1707011,"Curva de relación flujo-volumen basal",0,0,null,null,null,null,null,null,null,null,null,null,null,null,null,null,null,null,null,null,null,null,null,null,null,null,null,null,null,null,null,null,null,null,null,null,null,null,"",null,null,null,null,null,null,null,null,null,null,null,null,null,null,null,null,null,null,null,null,null,null,null,null,null,null,null,null,null,null,null,null,null,null,null,null,null,null,null,"","","","","","","",null,"","",null,null,null,null,null,0,0,0,0,0,0,0,null,0,0]
[1707024,"Pleuroscopia (toracoscopia) c/s biopsia",0,0,null,null,null,null,null,null,null,null,null,null,null,null,null,null,null,null,null,null,null,null,null,null,null,null,null,null,null,null,null,null,null,null,null,null,null,null,"",null,null,null,null,null,null,null,null,null,null,null,null,null,null,null,null,null,null,null,null,null,null,null,null,null,null,null,null,null,null,null,null,null,null,null,null,null,null,null,"","","","","","","",null,"","",null,"","",null,null,0,0,0,0,0,0,0,null,0,0,null,0,0]
[1707055,"Saturación de O2 en reposo y ejercicio y O2 100% (con oxímetro) ",0,0,null,null,null,null,null,null,null,null,null,null,null,null,null,null,null,null,null,null,null,null,null,null,null,null,null,null,null,null,null,null,null,null,null,null,null,null,"",null,null,null,null,null,null,null,null,null,null,null,null,null,null,null,null,null,null,null,null,null,null,null,null,null,null,null,null,null,null,null,null,null,null,null,null,null,null,null,"","","","","","","",null,"","",null,null,null,null,null,0,0,0,0,0,0,0,null,0,0]
[1801002,"Esofagoscopia",0,0,null,null,null,null,null,null,null,null,null,null,null,null,null,null,null,null,null,null,null,null,null,null,null,null,null,null,null,null,null,null,null,null,null,null,null,null,"",null,null,null,null,null,null,null,null,null,null,null,null,null,null,null,null,null,null,null,null,null,null,null,null,null,null,null,null,null,null,null,null,null,null,null,null,null,null,null,"","","","","","","",null,"","",null,"","",null,null,0,0,0,0,0,0,0,null,0,0,null,0,0]
[1801016,"Punción biopsia transparietal de órganos abdominales c/u",0,0,null,null,null,null,null,null,null,null,null,null,null,null,null,null,null,null,null,null,null,null,null,null,null,null,null,null,null,null,null,null,null,null,null,null,null,null,"",null,null,null,null,null,null,null,null,null,null,null,null,null,null,null,null,null,null,null,null,null,null,null,null,null,null,null,null,null,null,null,null,null,null,null,null,null,null,null,"","","","","","","",null,"","",null,"","",null,null,0,0,0,0,0,0,0,null,0,0,null,0,0]
[1801038,"Punción evacuadora de absceso intraabdominales (hepático u otros), c/s toma de muestra, c/s inyección de medicamentos",0,0,null,null,null,null,null,null,null,null,null,null,null,null,null,null,null,null,null,null,null,null,null,null,null,null,null,null,null,null,null,null,null,null,null,null,null,null,"",null,null,null,null,null,null,null,null,null,null,null,null,null,null,null,null,null,null,null,null,null,null,null,null,null,null,null,null,null,null,null,null,null,null,null,null,null,null,null,{"$f":"IF(AND($C2153>0,AA2153=\"\"),\" * No olvide digitar la variable \"&$AA$8&\"\"&\": Atención Cerrada. Digite Cero si no tiene.\",\"\")","v":""},{"$f":"IF(AND($C2153>0,AB2153=\"\"),\" * No olvide digitar la variable \"&$AA$8&\"\"&\": Atención Abierta. Digite Cero si no tiene.\",\"\")","v":""},{"$f":"IF(AND($C2153>0,AC2153=\"\"),\" * No olvide digitar la variable \"&$AA$8&\"\"&\": Emergencia. Digite Cero si no tiene.\",\"\")","v":""},{"$f":"IF(AND(C2153<AA2153+AB2153+AC2153),\" * La Suma de la variable \"&$AA$8&\"\"&\" no puede ser mayor al Total.\",\"\")","v":""},{"$f":"IF(AND($C2153>0,AD2153=\"\"),\" * No olvide digitar la variable \"&$AD$8&\"\"&\": Honorarios. Digite Cero si no tiene.\",\"\")","v":""},{"$f":"IF(AND($C2153>0,AE2153=\"\"),\" * No olvide digitar la variable \"&$AD$8&\"\"&\": Convenios. Digite Cero si no tiene.\",\"\")","v":""},{"$f":"IF(AND($C2153>0,AF2153=\"\"),\" * No olvide digitar la variable \"&$AD$8&\"\"&\": Consultores de llamada. Digite Cero si no tiene.\",\"\")","v":""},null,{"$f":"IF(AND($C2153>0,AH2153=\"\"),\" * No olvide digitar la variable \"&$AH$8&\"\"&\" Al Sistema. Digite Cero si no tiene.\",\"\")","v":""},{"$f":"IF(AND($C2153>0,AI2153=\"\"),\" * No olvide digitar la variable \"&$AH$8&\"\"&\" al Extrasistema. Digite Cero si no tiene.\",\"\")","v":""},null,"","",null,null,{"$f":"IF(AND($C2153>0,AA2153=\"\"),1,0)","v":0},{"$f":"IF(AND($C2153>0,AB2153=\"\"),1,0)","v":0},{"$f":"IF(AND($C2153>0,AC2153=\"\"),1,0)","v":0},{"$f":"IF(AND(C2153<AA2153+AB2153+AC2153),1,0)","v":0},{"$f":"IF(AND($C2153>0,AD2153=\"\"),1,0)","v":0},{"$f":"IF(AND($C2153>0,AE2153=\"\"),1,0)","v":0},{"$f":"IF(AND($C2153>0,AF2153=\"\"),1,0)","v":0},null,{"$f":"IF(AND($C2153>0,AH2153=\"\"),1,0)","v":0},{"$f":"IF(AND($C2153>0,AI2153=\"\"),1,0)","v":0},null,0,0]
[1801056,"Dilatación de acalasia",0,0,null,null,null,null,null,null,null,null,null,null,null,null,null,null,null,null,null,null,null,null,null,null,null,null,null,null,null,null,null,null,null,null,null,null,null,null,"",null,null,null,null,null,null,null,null,null,null,null,null,null,null,null,null,null,null,null,null,null,null,null,null,null,null,null,null,null,null,null,null,null,null,null,null,null,null,null,"","","","","","","",null,"","",null,"","",null,null,0,0,0,0,0,0,0,null,0,0,null,0,0]
[1801059,"Test de hidrógeno en aire espirado ",0,0,null,null,null,null,null,null,null,null,null,null,null,null,null,null,null,null,null,null,null,null,null,null,null,null,null,null,null,null,null,null,null,null,null,null,null,null,"",null,null,null,null,null,null,null,null,null,null,null,null,null,null,null,null,null,null,null,null,null,null,null,null,null,null,null,null,null,null,null,null,null,null,null,null,null,null,null,"","","","","","","",null,"","",null,"","",null,null,0,0,0,0,0,0,0,null,0,0,null,0,0]
[1802004,"Laparotomía exploradora, c/s liberación de adherencias, c/s drenaje, c/s biopsias como proc. aut. o como resultado de una herida penetrante abdominal no complicada o de un hemoperitoneo postoperatorio o como tratamiento de una peritonitis (laparostomía contenida -máximo cuatro-, resuturas, etc.)",0,null,null,null,null,0,null,null,null,null,null,null,0,null,null,0,null,null,0,null,null,0,null,null,null,null,null,null,null,null,null,null,null,null,null,null,null,null,"",null,null,null,null,null,null,null,null,null,null,null,null,null,null,null,null,null,null,null,null,null,null,null,null,null,null,null,null,null,null,null,null,null,null,null,null,null,null,null,{"$f":"IF(AND($C2184>0,AA2184=\"\"),\" * No olvide digitar la variable \"&$AA$8&\"\"&\": Atención Cerrada. Digite Cero si no tiene.\",\"\")","v":""},{"$f":"IF(AND($C2184>0,AB2184=\"\"),\" * No olvide digitar la variable \"&$AA$8&\"\"&\": Atención Abierta. Digite Cero si no tiene.\",\"\")","v":""},{"$f":"IF(AND($C2184>0,AC2184=\"\"),\" * No olvide digitar la variable \"&$AA$8&\"\"&\": Emergencia. Digite Cero si no tiene.\",\"\")","v":""},{"$f":"IF(AND(C2184<AA2184+AB2184+AC2184),\" * La Suma de la variable \"&$AA$8&\"\"&\" no puede ser mayor al Total.\",\"\")","v":""},{"$f":"IF(AND($C2184>0,AD2184=\"\"),\" * No olvide digitar la variable \"&$AD$8&\"\"&\": Honorarios. Digite Cero si no tiene.\",\"\")","v":""},{"$f":"IF(AND($C2184>0,AE2184=\"\"),\" * No olvide digitar la variable \"&$AD$8&\"\"&\": Convenios. Digite Cero si no tiene.\",\"\")","v":""},{"$f":"IF(AND($C2184>0,AF2184=\"\"),\" * No olvide digitar la variable \"&$AD$8&\"\"&\": Consultores de llamada. Digite Cero si no tiene.\",\"\")","v":""},null,{"$f":"IF(AND($C2184>0,AH2184=\"\"),\" * No olvide digitar la variable \"&$AH$8&\"\"&\" Al Sistema. Digite Cero si no tiene.\",\"\")","v":""},{"$f":"IF(AND($C2184>0,AI2184=\"\"),\" * No olvide digitar la variable \"&$AH$8&\"\"&\" al Extrasistema. Digite Cero si no tiene.\",\"\")","v":""},null,null,null,null,null,{"$f":"IF(AND($C2184>0,AA2184=\"\"),1,0)","v":0},{"$f":"IF(AND($C2184>0,AB2184=\"\"),1,0)","v":0},{"$f":"IF(AND($C2184>0,AC2184=\"\"),1,0)","v":0},{"$f":"IF(AND(C2184<AA2184+AB2184+AC2184),1,0)","v":0},{"$f":"IF(AND($C2184>0,AD2184=\"\"),1,0)","v":0},{"$f":"IF(AND($C2184>0,AE2184=\"\"),1,0)","v":0},{"$f":"IF(AND($C2184>0,AF2184=\"\"),1,0)","v":0},null,{"$f":"IF(AND($C2184>0,AH2184=\"\"),1,0)","v":0},{"$f":"IF(AND($C2184>0,AI2184=\"\"),1,0)","v":0}]
[1802016,"Piloroplastía (proc. aut.)",0,null,null,null,null,0,null,null,null,null,null,null,0,null,null,0,null,null,0,null,null,0,null,null,null,null,null,null,null,null,null,null,null,null,null,null,null,null,"",null,null,null,null,null,null,null,null,null,null,null,null,null,null,null,null,null,null,null,null,null,null,null,null,null,null,null,null,null,null,null,null,null,null,null,null,null,null,null,"","","","","","","",null,"","",null,null,null,null,null,0,0,0,0,0,0,0,null,0,0]
[1802024,"Gastropexia y/u otra cirugía antirreflujo, c/s vagotomía",0,null,null,null,null,0,null,null,null,null,null,null,0,null,null,0,null,null,0,null,null,0,null,null,null,null,null,null,null,null,null,null,null,null,null,null,null,null,"",null,null,null,null,null,null,null,null,null,null,null,null,null,null,null,null,null,null,null,null,null,null,null,null,null,null,null,null,null,null,null,null,null,null,null,null,null,null,null,"","","","","","","",null,"","",null,null,null,null,null,0,0,0,0,0,0,0,null,0,0]
[1802152,"Cirugía del quiste de colédoco laparoscópico",0,null,null,null,null,0,null,null,null,null,null,null,0,null,null,0,null,null,0,null,null,0,null,null,null,null,null,null,null,null,null,null,null,null,null,null,null,null,"",null,null,null,null,null,null,null,null,null,null,null,null,null,null,null,null,null,null,null,null,null,null,null,null,null,null,null,null,null,null,null,null,null,null,null,null,null,null,null,"","","","","","","",null,"","",null,null,null,null,null,0,0,0,0,0,0,0,null,0,0]
[1802040,"Herida traumática de hígado y/o vía biliar, trat. quir.",0,null,null,null,null,0,null,null,null,null,null,null,0,null,null,0,null,null,0,null,null,0,null,null,null,null,null,null,null,null,null,null,null,null,null,null,null,null,"",null,null,null,null,null,null,null,null,null,null,null,null,null,null,null,null,null,null,null,null,null,null,null,null,null,null,null,null,null,null,null,null,null,null,null,null,null,null,null,"","","","","","","",null,"","",null,null,null,null,null,0,0,0,0,0,0,0,null,0,0]
[1802091,"Atresia o estenosis duodenal, páncreas anular, reparación quirúrgica laparoscopia",{"$f":"SUM(I2247:N2247)","v":0},null,null,null,null,{"$f":"+I2247+J2247","v":0},null,null,null,null,null,null,{"$f":"SUM(P2247:Q2247)","v":0},null,null,{"$f":"SUM(S2247:T2247)","v":0},null,null,{"$f":"SUM(V2247:W2247)","v":0},null,null,{"$f":"SUM(Y2247:Z2247)","v":0},null,null,null,null,null,null,null,null,null,null,null,null,null,null,null,null,"",null,null,null,null,null,null,null,null,null,null,null,null,null,null,null,null,null,null,null,null,null,null,null,null,null,null,null,null,null,null,null,null,null,null,null,null,null,null,null,"","","","","","","",null,"","",null,null,null,null,null,0,0,0,0,0,0,0,null,0,0]
[1802050,"Esplenectomía total o parcial (proc. aut.)",0,null,null,null,null,0,null,null,null,null,null,null,0,null,null,0,null,null,0,null,null,0,null,null,null,null,null,null,null,null,null,null,null,null,null,null,null,null,"",null,null,null,null,null,null,null,null,null,null,null,null,null,null,null,null,null,null,null,null,null,null,null,null,null,null,null,null,null,null,null,null,null,null,null,null,null,null,null,"","","","","","","",null,"","",null,null,null,null,null,0,0,0,0,0,0,0,null,0,0]
[1802069,"Descenso de colon c/conservación del esfínter, incluye resección de colon",0,null,null,null,null,0,null,null,null,null,null,null,0,null,null,0,null,null,0,null,null,0,null,null,null,null,null,null,null,null,null,null,null,null,null,null,null,null,"",null,null,null,null,null,null,null,null,null,null,null,null,null,null,null,null,null,null,null,null,null,null,null,null,null,null,null,null,null,null,null,null,null,null,null,null,null,null,null,"","","","","","","",null,"","",null,null,null,null,null,0,0,0,0,0,0,0,null,0,0]
[1802082,"Resección intestinal con ostomías proximal y distal",0,null,null,null,null,0,null,null,null,null,null,null,0,null,null,0,null,null,0,null,null,0,null,null,null,null,null,null,null,null,null,null,null,null,null,null,null,null,"",null,null,null,null,null,null,null,null,null,null,null,null,null,null,null,null,null,null,null,null,null,null,null,null,null,null,null,null,null,null,null,null,null,null,null,null,null,null,null,"","","","","","","",null,"","",null,null,null,null,null,0,0,0,0,0,0,0,null,0,0]
[1802105,"Atresia o estenosis yeyuno-ileal, resección y ostomías laparoscopia",0,null,null,null,null,0,null,null,null,null,null,null,0,null,null,0,null,null,0,null,null,0,null,null,null,null,null,null,null,null,null,null,null,null,null,null,null,null,"",null,null,null,null,null,null,null,null,null,null,null,null,null,null,null,null,null,null,null,null,null,null,null,null,null,null,null,null,null,null,null,null,null,null,null,null,null,null,null,"","","","","","","",null,"","",null,null,null,null,null,0,0,0,0,0,0,0,null,0,0]
[1803011,"Estenosis anal, plastía",0,null,null,null,null,0,null,null,null,null,null,null,0,null,null,0,null,null,0,null,null,0,null,null,null,null,null,null,null,null,null,null,null,null,null,null,null,null,"",null,null,null,null,null,null,null,null,null,null,null,null,null,null,null,null,null,null,null,null,null,null,null,null,null,null,null,null,null,null,null,null,null,null,null,null,null,null,null,"","","","","","","",null,"","",null,null,null,null,null,0,0,0,0,0,0,0,null,0,0]
[1803028,"Prolapso rectal, trat.quir. por vía anal",0,null,null,null,null,0,null,null,null,null,null,null,0,null,null,0,null,null,0,null,null,0,null,null,null,null,null,null,null,null,null,null,null,null,null,null,null,null,"",null,null,null,null,null,null,null,null,null,null,null,null,null,null,null,null,null,null,null,null,null,null,null,null,null,null,null,null,null,null,null,null,null,null,null,null,null,null,null,"","","","","","","",null,"","",null,null,null,null,null,0,0,0,0,0,0,0,null,0,0]
[1803029,"Panproctocolectomía (2 equipos)",0,null,null,null,null,0,null,null,null,null,null,null,0,null,null,0,null,null,0,null,null,0,null,null,null,null,null,null,null,null,null,null,null,null,null,null,null,null,"",null,null,null,null,null,null,null,null,null,null,null,null,null,null,null,null,null,null,null,null,null,null,null,null,null,null,null,null,null,null,null,null,null,null,null,null,null,null,null,"","","","","","","",null,"","",null,null,null,null,null,0,0,0,0,0,0,0,null,0,0]
[1901005,"Biopsia prostática transrectal o transperineal con apoyo ecográfico",0,0,null,null,null,null,null,null,null,null,null,null,null,null,null,null,null,null,null,null,null,null,null,null,null,null,null,null,null,null,null,null,null,null,null,null,null,null,"",null,null,null,null,null,null,null,null,null,null,null,null,null,null,null,null,null,null,null,null,null,null,null,null,null,null,null,null,null,null,null,null,null,null,null,null,null,null,null,"","","","","","","",null,"","",null,"","",null,null,0,0,0,0,0,0,0,null,0,0,null,0,0]
[1901020,"Inyección de medicamentos en el pene",0,0,null,null,null,null,null,null,null,null,null,null,null,null,null,null,null,null,null,null,null,null,null,null,null,null,null,null,null,null,null,null,null,null,null,null,null,null,"",null,null,null,null,null,null,null,null,null,null,null,null,null,null,null,null,null,null,null,null,null,null,null,null,null,null,null,null,null,null,null,null,null,null,null,null,null,null,null,"","","","","","","",null,"","",null,"","",null,null,0,0,0,0,0,0,0,null,0,0,null,0,0]
[" 5099109 ","Instalación de sonda vesical ",0,0,null,null,null,null,null,null,null,null,null,null,null,null,null,null,null,null,null,null,null,null,null,null,null,null,null,null,null,null,null,null,null,null,null,null,null,null,"",null,null,null,null,null,null,null,null,null,null,null,null,null,null,null,null,null,null,null,null,null,null,null,null,null,null,null,null,null,null,null,null,null,null,null,null,null,null,null,"","","","","","","",null,"","",null,"","",null,null,0,0,0,0,0,0,0,null,0,0,null,0,0]
["CIRUGÍA UROLÓGICA Y SUPRARRENAL                           "]
[1902015,"Suprarrenalectomía unilateral",0,null,null,null,null,0,null,null,null,null,null,null,0,null,null,0,null,null,0,null,null,0,null,null,null,null,null,null,null,null,null,null,null,null,null,null,null,null,"",null,null,null,null,null,null,null,null,null,null,null,null,null,null,null,null,null,null,null,null,null,null,null,null,null,null,null,null,null,null,null,null,null,null,null,null,null,null,null,"","","","","","","",null,"","",null,null,null,null,null,0,0,0,0,0,0,0,null,0,0]
[1902023,"Ureterorrafia y/o ureterolisis c/u",0,null,null,null,null,0,null,null,null,null,null,null,0,null,null,0,null,null,0,null,null,0,null,null,null,null,null,null,null,null,null,null,null,null,null,null,null,null,"",null,null,null,null,null,null,null,null,null,null,null,null,null,null,null,null,null,null,null,null,null,null,null,null,null,null,null,null,null,null,null,null,null,null,null,null,null,null,null,"","","","","","","",null,"","",null,null,null,null,null,0,0,0,0,0,0,0,null,0,0]
[1902043,"Uretroplastía sin substitución - uretrorrafía",0,null,null,null,null,0,null,null,null,null,null,null,0,null,null,0,null,null,0,null,null,0,null,null,null,null,null,null,null,null,null,null,null,null,null,null,null,null,"",null,null,null,null,null,null,null,null,null,null,null,null,null,null,null,null,null,null,null,null,null,null,null,null,null,null,null,null,null,null,null,null,null,null,null,null,null,null,null,"","","","","","","",null,"","",null,null,null,null,null,0,0,0,0,0,0,0,null,0,0]
[1902044,"Uretroplastía de substitución, cada tiempo",0,null,null,null,null,0,null,null,null,null,null,null,0,null,null,0,null,null,0,null,null,0,null,null,null,null,null,null,null,null,null,null,null,null,null,null,null,null,"",null,null,null,null,null,null,null,null,null,null,null,null,null,null,null,null,null,null,null,null,null,null,null,null,null,null,null,null,null,null,null,null,null,null,null,null,null,null,null,"","","","","","","",null,"","",null,null,null,null,null,0,0,0,0,0,0,0,null,0,0]
[1902068,"Orquidectomía ampliada por cáncer testicular",0,null,null,null,null,0,null,null,null,null,null,null,0,null,null,0,null,null,0,null,null,0,null,null,null,null,null,null,null,null,null,null,null,null,null,null,null,null,"",null,null,null,null,null,null,null,null,null,null,null,null,null,null,null,null,null,null,null,null,null,null,null,null,null,null,null,null,null,null,null,null,null,null,null,null,null,null,null,"","","","","","","",null,"","",null,null,null,null,null,0,0,0,0,0,0,0,null,0,0]
[1902082,"Circuncisión (incluye sección de frenillo, y/o de sinequias bálano-prepuciales, y/o incisión dorsal c/s meatotomía)",0,null,null,null,null,0,null,null,null,null,null,null,0,null,null,0,null,null,0,null,null,0,null,null,null,null,null,null,null,null,null,null,null,null,null,null,null,null,"",null,null,null,null,null,null,null,null,null,null,null,null,null,null,null,null,null,null,null,null,null,null,null,null,null,null,null,null,null,null,null,null,null,null,null,null,null,null,null,"","","","","","","",null,"","",null,null,null,null,null,0,0,0,0,0,0,0,null,0,0]
[2001006,"Amniocentesis",0,0,null,null,null,null,null,null,null,null,null,null,null,null,null,null,null,null,null,null,null,null,null,null,null,null,null,null,null,null,null,null,null,null,null,null,null,null,"",null,null,null,null,null,null,null,null,null,null,null,null,null,null,null,null,null,null,null,null,null,null,null,null,null,null,null,null,null,null,null,null,null,null,null,null,null,null,null,"","","","","","","",null,"","",null,"","",null,null,0,0,0,0,0,0,0,null,0,0,null,0,0]
[2001012,"Galactografía (a.c. 04-02-005)",0,0,null,null,null,null,null,null,null,null,null,null,null,null,null,null,null,null,null,null,null,null,null,null,null,null,null,null,null,null,null,null,null,null,null,null,null,null,"",null,null,null,null,null,null,null,null,null,null,null,null,null,null,null,null,null,null,null,null,null,null,null,null,null,null,null,null,null,null,null,null,null,null,null,null,null,null,null,"","","","","","","",null,"","",null,"","",null,null,0,0,0,0,0,0,0,null,0,0,null,0,0]
["2001026","Instalación o retiro dispositivo subdérmico anticonceptivo",{"$f":"SUM(D2474+G2474)","v":0},{"$f":"SUM(E2474:F2474)","v":0},null,null,null,null,null,null,null,null,null,null,null,null,null,null,null,null,null,null,null,null,null,null,null,null,null,null,null,null,null,null,null,null,null,null,null,null,null,null,null,null,null,null,null,null,null,null,null,null,null,null,null,null,null,null,null,null,null,null,null,null,null,null,null,null,null,null,null,null,null,null,null,null,null,null,null,null,{"$f":"IF(AND($C2474>0,AA2474=\"\"),\" * No olvide digitar la variable \"&$AA$8&\"\"&\": Atención Cerrada. Digite Cero si no tiene.\",\"\")","v":""},{"$f":"IF(AND($C2474>0,AB2474=\"\"),\" * No olvide digitar la variable \"&$AA$8&\"\"&\": Atención Abierta. Digite Cero si no tiene.\",\"\")","v":""},{"$f":"IF(AND($C2474>0,AC2474=\"\"),\" * No olvide digitar la variable \"&$AA$8&\"\"&\": Emergencia. Digite Cero si no tiene.\",\"\")","v":""},{"$f":"IF(AND(C2474<AA2474+AB2474+AC2474),\" * La Suma de la variable \"&$AA$8&\"\"&\" no puede ser mayor al Total.\",\"\")","v":""},{"$f":"IF(AND($C2474>0,AD2474=\"\"),\" * No olvide digitar la variable \"&$AD$8&\"\"&\": Honorarios. Digite Cero si no tiene.\",\"\")","v":""},{"$f":"IF(AND($C2474>0,AE2474=\"\"),\" * No olvide digitar la variable \"&$AD$8&\"\"&\": Convenios. Digite Cero si no tiene.\",\"\")","v":""},{"$f":"IF(AND($C2474>0,AF2474=\"\"),\" * No olvide digitar la variable \"&$AD$8&\"\"&\": Consultores de llamada. Digite Cero si no tiene.\",\"\")","v":""},null,{"$f":"IF(AND($C2474>0,AH2474=\"\"),\" * No olvide digitar la variable \"&$AH$8&\"\"&\" Al Sistema. Digite Cero si no tiene.\",\"\")","v":""},{"$f":"IF(AND($C2474>0,AI2474=\"\"),\" * No olvide digitar la variable \"&$AH$8&\"\"&\" al Extrasistema. Digite Cero si no tiene.\",\"\")","v":""},null,{"$f":"IF(AND($C2474>0,AK2474=\"\"),\" * No olvide digitar la variable Quirófano Cirugía Mayor. Digite Cero si no tiene.\",IF(AK2474>$C2474,\" *  La variable Quirófano Cirugía Mayor No puede ser mayor al Total.\",\"\"))","v":""},{"$f":"IF(AND($C2474>0,AL2474=\"\"),\" * No olvide digitar la variable Asistencia Anestésica. Digite Cero si no tiene.\",IF(AL2474>$C2474,\" *  La variable Asistencia Anestésica No puede ser mayor al Total.\",\"\"))","v":""},null,null,{"$f":"IF(AND($C2474>0,AA2474=\"\"),1,0)","v":0},{"$f":"IF(AND($C2474>0,AB2474=\"\"),1,0)","v":0},{"$f":"IF(AND($C2474>0,AC2474=\"\"),1,0)","v":0},{"$f":"IF(AND(C2474<AA2474+AB2474+AC2474),1,0)","v":0},{"$f":"IF(AND($C2474>0,AD2474=\"\"),1,0)","v":0},{"$f":"IF(AND($C2474>0,AE2474=\"\"),1,0)","v":0},{"$f":"IF(AND($C2474>0,AF2474=\"\"),1,0)","v":0},null,{"$f":"IF(AND($C2474>0,AH2474=\"\"),1,0)","v":0},{"$f":"IF(AND($C2474>0,AI2474=\"\"),1,0)","v":0},null,{"$f":"IF(AND($C2474>0,AK2474=\"\"),1,IF(AK2474>$C2474,1,0))","v":0},{"$f":"IF(AND($C2474>0,AL2474=\"\"),1,IF(AL2474>$C2474,1,0))","v":0}]
["CIRUGÍA GINECOLÓGICA                                  "]
[2003003,"Embarazo tubario, trat. quir.",0,null,null,null,null,0,null,null,null,null,null,null,0,null,null,0,null,null,0,null,null,0,null,null,null,null,null,null,null,null,null,null,null,null,null,null,null,null,"",null,null,null,null,null,null,null,null,null,null,null,null,null,null,null,null,null,null,null,null,null,null,null,null,null,null,null,null,null,null,null,null,null,null,null,null,null,null,null,"","","","","","","",null,"","",null,null,null,null,null,0,0,0,0,0,0,0,null,0,0]
[2003030,"Desgarro cervical trat. quir.",0,null,null,null,null,0,null,null,null,null,null,null,0,null,null,0,null,null,0,null,null,0,null,null,null,null,null,null,null,null,null,null,null,null,null,null,null,null,"",null,null,null,null,null,null,null,null,null,null,null,null,null,null,null,null,null,null,null,null,null,null,null,null,null,null,null,null,null,null,null,null,null,null,null,null,null,null,null,"","","","","","","",null,"","",null,null,null,null,null,0,0,0,0,0,0,0,null,0,0]
[2003029,"Vulvectomía simple",0,null,null,null,null,0,null,null,null,null,null,null,0,null,null,0,null,null,0,null,null,0,null,null,null,null,null,null,null,null,null,null,null,null,null,null,null,null,"",null,null,null,null,null,null,null,null,null,null,null,null,null,null,null,null,null,null,null,null,null,null,null,null,null,null,null,null,null,null,null,null,null,null,null,null,null,null,null,"","","","","","","",null,"","",null,null,null,null,null,0,0,0,0,0,0,0,null,0,0]
[2004017,"Tratamiento quirúrgico de himen imperforado, paciente pediátrico",0,null,null,null,null,0,null,null,null,null,null,null,0,null,null,0,null,null,0,null,null,0,null,null,null,null,null,null,null,null,null,null,null,null,null,null,null,null,"",null,null,null,null,null,null,null,null,null,null,null,null,null,null,null,null,null,null,null,null,null,null,null,null,null,null,null,null,null,null,null,null,null,null,null,null,null,null,null,"","","","","","","",null,"","",null,null,null,null,null,0,0,0,0,0,0,0,null,0,0]
[2105007,"Yeso braquicarpiano",0,0,null,null,null,null,null,null,null,null,null,null,null,null,null,null,null,null,null,null,null,null,null,null,null,null,null,null,null,null,null,null,null,null,null,null,null,null,"",null,null,null,null,null,null,null,null,null,null,null,null,null,null,null,null,null,null,null,null,null,null,null,null,null,null,null,null,null,null,null,null,null,null,null,null,null,null,null,"","","","","","","",null,"","",null,null,null,null,null,0,0,0,0,0,0,0,null,0,0]
[2104002,"Exostosis u osteocondroma, trat. quir.",{"$f":"SUM(I2558:N2558)","v":0},null,null,null,null,0,null,null,null,null,null,null,null,null,null,null,null,null,null,null,null,null,null,null,null,null,null,null,null,null,null,null,null,null,null,null,null,null,"",null,null,null,null,null,null,null,null,null,null,null,null,null,null,null,null,null,null,null,null,null,null,null,null,null,null,null,null,null,null,null,null,null,null,null,null,null,null,null,"","","","","","","",null,"","",null,"","",null,null,0,0,0,0,0,0,0,null,0,0,null,0,0]
[2104010,"Tratamiento completo de fracturas expuestas de brazo, antebrazo, muslo y pierna, c/u",0,null,null,null,null,0,null,null,null,null,null,null,0,null,null,{"$f":"SUM(S2566:T2566)","v":0},null,null,0,null,null,{"$f":"SUM(Y2566:Z2566)","v":0},null,null,null,null,null,null,null,null,null,null,null,null,null,null,null,null,"",null,null,null,null,null,null,null,null,null,null,null,null,null,null,null,null,null,null,null,null,null,null,null,null,null,null,null,null,null,null,null,null,null,null,null,null,null,null,null,"","","","","","","",null,"","",null,null,null,null,null,0,0,0,0,0,0,0,null,0,0]
[2104019,"Injerto esponjoso metafisiario",0,null,null,null,null,0,null,null,null,null,null,null,null,null,null,null,null,null,null,null,null,null,null,null,null,null,null,null,null,null,null,null,null,null,null,null,null,null,"",null,null,null,null,null,null,null,null,null,null,null,null,null,null,null,null,null,null,null,null,null,null,null,null,null,null,null,null,null,null,null,null,null,null,null,null,null,null,null,"","","","","","","",null,"","",null,{"$f":"IF(AND($C2575>0,AK2575=\"\"),\" * No olvide digitar la variable Quirófano Cirugía Mayor. Digite Cero si no tiene.\",IF(AK2575>$C2575,\" *  La variable Quirófano Cirugía Mayor No puede ser mayor al Total.\",\"\"))","v":""},{"$f":"IF(AND($C2575>0,AL2575=\"\"),\" * No olvide digitar la variable Asistencia Anestésica. Digite Cero si no tiene.\",IF(AL2575>$C2575,\" *  La variable Asistencia Anestésica No puede ser mayor al Total.\",\"\"))","v":""},null,null,0,0,0,0,0,0,0,null,0,0,null,{"$f":"IF(AND($C2575>0,AK2575=\"\"),1,IF(AK2575>$C2575,1,0))","v":0},{"$f":"IF(AND($C2575>0,AL2575=\"\"),1,IF(AL2575>$C2575,1,0))","v":0}]
[2104233,"Biopsia vertebral abierta",0,null,null,null,null,0,null,null,null,null,null,null,0,null,null,0,null,null,0,null,null,0,null,null,null,null,null,null,null,null,null,null,null,null,null,null,null,null,"",null,null,null,null,null,null,null,null,null,null,null,null,null,null,null,null,null,null,null,null,null,null,null,null,null,null,null,null,null,null,null,null,null,null,null,null,null,null,null,"","","","","","","",null,"","",null,null,null,null,null,0,0,0,0,0,0,0,null,0,0]
[2104039,"Osteocondrosis o epifisitis, trat. quir.",0,null,null,null,null,0,null,null,null,null,null,null,0,null,null,0,null,null,0,null,null,0,null,null,null,null,null,null,null,null,null,null,null,null,null,null,null,null,"",null,null,null,null,null,null,null,null,null,null,null,null,null,null,null,null,null,null,null,null,null,null,null,null,null,null,null,null,null,null,null,null,null,null,null,null,null,null,null,"","","","","","","",null,"","",null,null,null,null,null,0,0,0,0,0,0,0,null,0,0]
[2104062,"Endoprótesis total de codo, (cualquier técnica)",0,null,null,null,null,0,null,null,null,null,null,null,0,null,null,0,null,null,0,null,null,0,null,null,null,null,null,null,null,null,null,null,null,null,null,null,null,null,"",null,null,null,null,null,null,null,null,null,null,null,null,null,null,null,null,null,null,null,null,null,null,null,null,null,null,null,null,null,null,null,null,null,null,null,null,null,null,null,"","","","","","","",null,"","",null,null,null,null,null,0,0,0,0,0,0,0,null,0,0]
[2104073,"Osteosíntesis, fract.cerrada cúbito y/o radio (cualq. tecn.)",0,null,null,null,null,0,null,null,null,null,null,null,{"$f":"SUM(P2629:Q2629)","v":0},null,null,0,null,null,{"$f":"SUM(V2629:W2629)","v":0},null,null,0,null,null,null,null,null,null,null,null,null,null,null,null,null,null,null,null,"",null,null,null,null,null,null,null,null,null,null,null,null,null,null,null,null,null,null,null,null,null,null,null,null,null,null,null,null,null,null,null,null,null,null,null,null,null,null,null,"","","","","","","",null,"","",null,null,null,null,null,0,0,0,0,0,0,0,null,0,0]
[2104083,"Luxación radiocarpiana, trat. quir.",0,null,null,null,null,0,null,null,null,null,null,null,0,null,null,0,null,null,0,null,null,0,null,null,null,null,null,null,null,null,null,null,null,null,null,null,null,null,"",null,null,null,null,null,null,null,null,null,null,null,null,null,null,null,null,null,null,null,null,null,null,null,null,null,null,null,null,null,null,null,null,null,null,null,null,null,null,null,"","","","","","","",null,"","",null,null,null,null,null,0,0,0,0,0,0,0,null,0,0]
[2104091,"Contractura Dupuytren, trat. quir., cada tiempo",0,null,null,null,null,0,null,null,null,null,null,null,0,null,null,0,null,null,0,null,null,0,null,null,null,null,null,null,null,null,null,null,null,null,null,null,null,null,"",null,null,null,null,null,null,null,null,null,null,null,null,null,null,null,null,null,null,null,null,null,null,null,null,null,null,null,null,null,null,null,null,null,null,null,null,null,null,null,"","","","","","","",null,"","",null,null,null,null,null,0,0,0,0,0,0,0,null,0,0]
[2104104,"Reparación nervio digital con injerto interfascicular: cualquier número",0,null,null,null,null,0,null,null,null,null,null,null,0,null,null,0,null,null,0,null,null,0,null,null,null,null,null,null,null,null,null,null,null,null,null,null,null,null,"",null,null,null,null,null,null,null,null,null,null,null,null,null,null,null,null,null,null,null,null,null,null,null,null,null,null,null,null,null,null,null,null,null,null,null,null,null,null,null,"","","","","","","",null,"","",null,null,null,null,null,0,0,0,0,0,0,0,null,0,0]
[2104213,"Escoliosis, trat. quir., cualquier vía de abordaje, con instrumentación (incluye elementos de osteosíntesis)",0,null,null,null,null,0,null,null,null,null,null,null,0,null,null,0,null,null,0,null,null,0,null,null,null,null,null,null,null,null,null,null,null,null,null,null,null,null,"",null,null,null,null,null,null,null,null,null,null,null,null,null,null,null,null,null,null,null,null,null,null,null,null,null,null,null,null,null,null,null,null,null,null,null,null,null,null,null,"","","","","","","",null,"","",null,null,null,null,null,0,0,0,0,0,0,0,null,0,0]
[2104122,"Osteosíntesis en fractura de arco anterior de pelvis y disyunciones pubianas",0,null,null,null,null,0,null,null,null,null,null,null,0,null,null,0,null,null,0,null,null,0,null,null,null,null,null,null,null,null,null,null,null,null,null,null,null,null,"",null,null,null,null,null,null,null,null,null,null,null,null,null,null,null,null,null,null,null,null,null,null,null,null,null,null,null,null,null,null,null,null,null,null,null,null,null,null,null,"","","","","","","",null,"","",null,null,null,null,null,0,0,0,0,0,0,0,null,0,0]
[2104136,"Osteotomías femorales",0,null,null,null,null,0,null,null,null,null,null,null,0,null,null,0,null,null,0,null,null,0,null,null,null,null,null,null,null,null,null,null,null,null,null,null,null,null,"",null,null,null,null,null,null,null,null,null,null,null,null,null,null,null,null,null,null,null,null,null,null,null,null,null,null,null,null,null,null,null,null,null,null,null,null,null,null,null,"","","","","","","",null,"","",null,null,null,null,null,0,0,0,0,0,0,0,null,0,0]
[2104147,"Osteotomía en rosario con enclavijamiento clavo telescópico",0,null,null,null,null,0,null,null,null,null,null,null,0,null,null,0,null,null,0,null,null,0,null,null,null,null,null,null,null,null,null,null,null,null,null,null,null,null,"",null,null,null,null,null,null,null,null,null,null,null,null,null,null,null,null,null,null,null,null,null,null,null,null,null,null,null,null,null,null,null,null,null,null,null,null,null,null,null,"","","","","","","",null,"","",null,null,null,null,null,0,0,0,0,0,0,0,null,0,0]
[2104153,"Endoprótesis total de rodilla, (cualquier técnica)",0,null,null,null,null,0,null,null,null,null,null,null,0,null,null,0,null,null,0,null,null,0,null,null,null,null,null,null,null,null,null,null,null,null,null,null,null,null,"",null,null,null,null,null,null,null,null,null,null,null,null,null,null,null,null,null,null,null,null,null,null,null,null,null,null,null,null,null,null,null,null,null,null,null,null,null,null,null,"","","","","","","",null,"","",null,null,null,null,null,0,0,0,0,0,0,0,null,0,0]
[2104167,"Osteosíntesis tibio-peroné  (cualquier técnica)",0,null,null,null,null,0,null,null,null,null,null,null,0,null,null,0,null,null,0,null,null,0,null,null,null,null,null,null,null,null,null,null,null,null,null,null,null,null,"",null,null,null,null,null,null,null,null,null,null,null,null,null,null,null,null,null,null,null,null,null,null,null,null,null,null,null,null,null,null,null,null,null,null,null,null,null,null,null,"","","","","","","",null,"","",null,null,null,null,null,0,0,0,0,0,0,0,null,0,0]
[2104180,"Osteoplastía tibio-calcánea",0,null,null,null,null,0,null,null,null,null,null,null,0,null,null,0,null,null,0,null,null,0,null,null,null,null,null,null,null,null,null,null,null,null,null,null,null,null,"",null,null,null,null,null,null,null,null,null,null,null,null,null,null,null,null,null,null,null,null,null,null,null,null,null,null,null,null,null,null,null,null,null,null,null,null,null,null,null,"","","","","","","",null,"","",null,null,null,null,null,0,0,0,0,0,0,0,null,0,0]
[2104187,"Espolón calcáneo, trat. quir.",0,null,null,null,null,0,null,null,null,null,null,null,0,null,null,0,null,null,0,null,null,0,null,null,null,null,null,null,null,null,null,null,null,null,null,null,null,null,"",null,null,null,null,null,null,null,null,null,null,null,null,null,null,null,null,null,null,null,null,null,null,null,null,null,null,null,null,null,null,null,null,null,null,null,null,null,null,null,"","","","","","","",null,"","",null,null,null,null,null,0,0,0,0,0,0,0,null,0,0]
[2104197,"Pie cavo, trat.quir. (cualquier técnica)",0,null,null,null,null,0,null,null,null,null,null,null,{"$f":"SUM(P2760:Q2760)","v":0},null,null,0,null,null,{"$f":"SUM(V2760:W2760)","v":0},null,null,0,null,null,null,null,null,null,null,null,null,null,null,null,null,null,null,null,"",null,null,null,null,null,null,null,null,null,null,null,null,null,null,null,null,null,null,null,null,null,null,null,null,null,null,null,null,null,null,null,null,null,null,null,null,null,null,null,"","","","","","","",null,"","",null,null,null,null,null,0,0,0,0,0,0,0,null,0,0]
[2107003,"Luxaciones de articulaciones menores (el resto)",{"$f":"SUM(D2778+G2778)","v":0},0,null,null,null,null,null,null,null,null,null,null,null,null,null,null,null,null,null,null,null,null,null,null,null,null,null,null,null,null,null,null,null,null,null,null,null,null,"",null,null,null,null,null,null,null,null,null,null,null,null,null,null,null,null,null,null,null,null,null,null,null,null,null,null,null,null,null,null,null,null,null,null,null,null,null,null,null,"","","","","","","",null,"","",null,null,null,null,null,0,0,0,0,0,0,0,null,0,0]
[2107006,"Fracturas menores (el resto)",0,0,null,null,null,null,null,null,null,null,null,null,null,null,null,null,null,null,null,null,null,null,null,null,null,null,null,null,null,null,null,null,null,null,null,null,null,null,"",null,null,null,null,null,null,null,null,null,null,null,null,null,null,null,null,null,null,null,null,null,null,null,null,null,null,null,null,null,null,null,null,null,null,null,null,null,null,null,"","","","","","","",null,"","",null,null,null,null,null,0,0,0,0,0,0,0,null,0,0]
[2301038,"Ortesis Larga de Posición (Extremidad Superior)",0,0,null,null,null,null,null,null,null,null,null,null,null,null,null,null,null,null,null,null,null,null,null,null,null,null,null,null,null,null,null,null,null,null,null,null,null,null,"",null,null,null,null,null,null,null,null,null,null,null,null,null,null,null,null,null,null,null,null,null,null,null,null,null,null,null,null,null,null,null,null,null,null,null,null,null,null,null,"","","","","","","",null,"","",null,null,null,null,null,0,0,0,0,0,0,0,null,0,0]
[5099081,"Pantalón largo ",0,0,null,null,null,null,null,null,null,null,null,null,null,null,null,null,null,null,null,null,null,null,null,null,null,null,null,null,null,null,null,null,null,null,null,null,null,null,"",null,null,null,null,null,null,null,null,null,null,null,null,null,null,null,null,null,null,null,null,null,null,null,null,null,null,null,null,null,null,null,null,null,null,null,null,null,null,null,"","","","","","","",null,"","",null,null,null,null,null,0,0,0,0,0,0,0,null,0,0]
[5099087,"Guante con dedos",0,0,null,null,null,null,null,null,null,null,null,null,null,null,null,null,null,null,null,null,null,null,null,null,null,null,null,null,null,null,null,null,null,null,null,null,null,null,"",null,null,null,null,null,null,null,null,null,null,null,null,null,null,null,null,null,null,null,null,null,null,null,null,null,null,null,null,null,null,null,null,null,null,null,null,null,null,null,"","","","","","","",null,"","",null,null,null,null,null,0,0,0,0,0,0,0,null,0,0]
[2401063,"Rescate medicalizado y/o traslado paciente critico en móvil 3",0,0,null,null,null,null,null,null,null,null,null,null,null,null,null,null,null,null,null,null,null,null,null,null,null,null,null,null,null,null,null,null,null,null,null,null,null,null,"",null,null,null,null,null,null,null,null,null,null,null,null,null,null,null,null,null,null,null,null,null,null,null,null,null,null,null,null,null,null,null,null,null,null,null,null,null,null,null,"","","","","","","",null,"","",null,null,null,null,null,0,0,0,0,0,0,0,null,0,0]
[2701102,"Consulta especialidad Cirugía y Traumatología Buco Maxilofacial",0,0,null,null,null,null,null,null,null,null,null,null,null,null,null,null,null,null,null,null,null,null,null,null,null,null,null,null,null,null,null,null,null,null,null,null,null,null,"",null,null,null,null,null,null,null,null,null,null,null,null,null,null,null,null,null,null,null,null,null,null,null,null,null,null,null,null,null,null,null,null,null,null,null,null,null,null,null,"","","","","","","",null,"","",null,null,null,null,null,0,0,0,0,0,0,0,null,0,0]
[2701112,"Educación grupal",0,0,null,null,null,null,null,null,null,null,null,null,null,null,null,null,null,null,null,null,null,null,null,null,null,null,null,null,null,null,null,null,null,null,null,null,null,null,"",null,null,null,null,null,null,null,null,null,null,null,null,null,null,null,null,null,null,null,null,null,null,null,null,null,null,null,null,null,null,null,null,null,null,null,null,null,null,null,"","","","","","","",null,"","",null,null,null,null,null,0,0,0,0,0,0,0,null,0,0]
[2702106,"Radiografía oclusal (por placa)",0,0,null,null,null,null,null,null,null,null,null,null,null,null,null,null,null,null,null,null,null,null,null,null,null,null,null,null,null,null,null,null,null,null,null,null,null,null,"",null,null,null,null,null,null,null,null,null,null,null,null,null,null,null,null,null,null,null,null,null,null,null,null,null,null,null,null,null,null,null,null,null,null,null,null,null,null,null,"","","","","","","",null,"","",null,null,null,null,null,0,0,0,0,0,0,0,null,0,0]
[2703104,"Mantenedores de espacio",0,0,null,null,null,null,null,null,null,null,null,null,null,null,null,null,null,null,null,null,null,null,null,null,null,null,null,null,null,null,null,null,null,null,null,null,null,null,"",null,null,null,null,null,null,null,null,null,null,null,null,null,null,null,null,null,null,null,null,null,null,null,null,null,null,null,null,null,null,null,null,null,null,null,null,null,null,null,"","","","","","","",null,"","",null,"","",null,null,0,0,0,0,0,0,0,null,0,0,null,0,0]
[2703108,"Exodoncia diente primario",0,0,null,null,null,null,null,null,null,null,null,null,null,null,null,null,null,null,null,null,null,null,null,null,null,null,null,null,null,null,null,null,null,null,null,null,null,null,"",null,null,null,null,null,null,null,null,null,null,null,null,null,null,null,null,null,null,null,null,null,null,null,null,null,null,null,null,null,null,null,null,null,null,null,null,null,null,null,"","","","","","","",null,"","",null,"","",null,null,0,0,0,0,0,0,0,null,0,0,null,0,0]
[2704003,"Prótesis de restitución (fase clínica)",0,0,null,null,null,null,null,null,null,null,null,null,null,null,null,null,null,null,null,null,null,null,null,null,null,null,null,null,null,null,null,null,null,null,null,null,null,null,"",null,null,null,null,null,null,null,null,null,null,null,null,null,null,null,null,null,null,null,null,null,null,null,null,null,null,null,null,null,null,null,null,null,null,null,null,null,null,null,"","","","","","","",null,"","",null,null,null,null,null,0,0,0,0,0,0,0,null,0,0]
[2704019,"Corona Metálica Preformada en diente temporal",0,0,null,null,null,null,null,null,null,null,null,null,null,null,null,null,null,null,null,null,null,null,null,null,null,null,null,null,null,null,null,null,null,null,null,null,null,null,"",null,null,null,null,null,null,null,null,null,null,null,null,null,null,null,null,null,null,null,null,null,null,null,null,null,null,null,null,null,null,null,null,null,null,null,null,null,null,null,"","","","","","","",null,"","",null,"","",null,null,0,0,0,0,0,0,0,null,0,0,null,0,0]
[1301025,"Taponamiento nasal anterior (proc. aut.)",0,0,null,null,null,null,null,null,null,null,null,null,null,null,null,null,null,null,null,null,null,null,null,null,null,null,null,null,null,null,null,null,null,null,null,null,null,null,"",null,null,null,null,null,null,null,null,null,null,null,null,null,null,null,null,null,null,null,null,null,null,null,null,null,null,null,null,null,null,null,null,null,null,null,null,null,null,null,"","","","","","","",null,"","",null,null,null,null,null,0,0,0,0,0,0,0,null,0,0]
[2705006,"Glosectomías",0,null,null,null,null,0,null,null,null,null,null,null,{"$f":"SUM(P2936:Q2936)","v":0},null,null,{"$f":"SUM(S2936:T2936)","v":0},null,null,{"$f":"SUM(V2936:W2936)","v":0},null,null,{"$f":"SUM(Y2936:Z2936)","v":0},null,null,null,null,null,null,null,null,null,null,null,null,null,null,null,null,"",null,null,null,null,null,null,null,null,null,null,null,null,null,null,null,null,null,null,null,null,null,null,null,null,null,null,null,null,null,null,null,null,null,null,null,null,null,null,null,"","","","","","","",null,"","",null,null,null,null,null,0,0,0,0,0,0,0,null,0,0]
[2705015,"Profundización de vestíbulo o reconstrucción de rebordes, con o sin injerto",0,null,null,null,null,0,null,null,null,null,null,null,{"$f":"SUM(P2945:Q2945)","v":0},null,null,{"$f":"SUM(S2945:T2945)","v":0},null,null,{"$f":"SUM(V2945:W2945)","v":0},null,null,{"$f":"SUM(Y2945:Z2945)","v":0},null,null,null,null,null,null,null,null,null,null,null,null,null,null,null,null,"",null,null,null,null,null,null,null,null,null,null,null,null,null,null,null,null,null,null,null,null,null,null,null,null,null,null,null,null,null,null,null,null,null,null,null,null,null,null,null,"","","","","","","",null,"","",null,null,null,null,null,0,0,0,0,0,0,0,null,0,0]
[1302027,"Drenaje de absceso o flegmón de vestíbulo bucal",0,null,null,null,null,0,null,null,null,null,null,null,null,null,null,null,null,null,null,null,null,null,null,null,null,null,null,null,null,null,null,null,null,null,null,null,null,null,"",null,null,null,null,null,null,null,null,null,null,null,null,null,null,null,null,null,null,null,null,null,null,null,null,null,null,null,null,null,null,null,null,null,null,null,null,null,null,null,"","","","","","","",null,"","",null,"","",null,null,0,0,0,0,0,0,0,null,0,0,null,0,0]
[1302045,"Tratamiento quirúrgico de las fistulas buco-sinusales o buco-nasales  y/o retiro cuerpos extraños del seno maxilar",0,null,null,null,null,0,null,null,null,null,null,null,{"$f":"SUM(P2966:Q2966)","v":0},null,null,{"$f":"SUM(S2966:T2966)","v":0},null,null,{"$f":"SUM(V2966:W2966)","v":0},null,null,{"$f":"SUM(Y2966:Z2966)","v":0},null,null,null,null,null,null,null,null,null,null,null,null,null,null,null,null,"",null,null,null,null,null,null,null,null,null,null,null,null,null,null,null,null,null,null,null,null,null,null,null,null,null,null,null,null,null,null,null,null,null,null,null,null,null,null,null,"","","","","","","",null,"","",null,null,null,null,null,0,0,0,0,0,0,0,null,0,0]
[1402052,"Osteotomias segmentarias del maxilar o mandíbula",0,null,null,null,null,0,null,null,null,null,null,null,0,null,null,0,null,null,0,null,null,0,null,null,null,null,null,null,null,null,null,null,null,null,null,null,null,null,"",null,null,null,null,null,null,null,null,null,null,null,null,null,null,null,null,null,null,null,null,null,null,null,null,null,null,null,null,null,null,null,null,null,null,null,null,null,null,null,"","","","","","","",null,"","",null,null,null,null,null,0,0,0,0,0,0,0,null,0,0]
[2104021,"Transplante óseo (auto u homotrasplante)",0,null,null,null,null,0,null,null,null,null,null,null,0,null,null,0,null,null,0,null,null,0,null,null,null,null,null,null,null,null,null,null,null,null,null,null,null,null,"",null,null,null,null,null,null,null,null,null,null,null,null,null,null,null,null,null,null,null,null,null,null,null,null,null,null,null,null,null,null,null,null,null,null,null,null,null,null,null,"","","","","","","",null,"","",null,null,null,null,null,0,0,0,0,0,0,0,null,0,0]
[5099023,"Fenestracion",{"$f":"SUM(I3003:N3003)","v":0},null,null,null,null,0,null,null,null,null,null,null,null,null,null,null,null,null,null,null,null,null,null,null,null,null,null,null,null,null,null,null,null,null,null,null,null,null,"",null,null,null,null,null,null,null,null,null,null,null,null,null,null,null,null,null,null,null,null,null,null,null,null,null,null,null,null,null,null,null,null,null,null,null,null,null,null,null,"","","","","","","",null,"","",null,"","",null,null,0,0,0,0,0,0,0,null,0,0,null,0,0]
[5099035,"Ortopedia prequirurgica actividad (fisura labiopalatina)",0,0,null,null,null,null,null,null,null,null,null,null,null,null,null,null,null,null,null,null,null,null,null,null,null,null,null,null,null,null,null,null,null,null,null,null,null,null,"",null,null,null,null,null,null,null,null,null,null,null,null,null,null,null,null,null,null,null,null,null,null,null,null,null,null,null,null,null,null,null,null,null,null,null,null,null,null,null,{"$f":"IF(AND($C3020>0,AA3020=\"\"),\" * No olvide digitar la variable \"&$AA$8&\"\"&\": Atención Cerrada. Digite Cero si no tiene.\",\"\")","v":""},{"$f":"IF(AND($C3020>0,AB3020=\"\"),\" * No olvide digitar la variable \"&$AA$8&\"\"&\": Atención Abierta. Digite Cero si no tiene.\",\"\")","v":""},{"$f":"IF(AND($C3020>0,AC3020=\"\"),\" * No olvide digitar la variable \"&$AA$8&\"\"&\": Emergencia. Digite Cero si no tiene.\",\"\")","v":""},{"$f":"IF(AND(C3020<AA3020+AB3020+AC3020),\" * La Suma de la variable \"&$AA$8&\"\"&\" no puede ser mayor al Total.\",\"\")","v":""},{"$f":"IF(AND($C3020>0,AD3020=\"\"),\" * No olvide digitar la variable \"&$AD$8&\"\"&\": Honorarios. Digite Cero si no tiene.\",\"\")","v":""},{"$f":"IF(AND($C3020>0,AE3020=\"\"),\" * No olvide digitar la variable \"&$AD$8&\"\"&\": Convenios. Digite Cero si no tiene.\",\"\")","v":""},{"$f":"IF(AND($C3020>0,AF3020=\"\"),\" * No olvide digitar la variable \"&$AD$8&\"\"&\": Consultores de llamada. Digite Cero si no tiene.\",\"\")","v":""},null,{"$f":"IF(AND($C3020>0,AH3020=\"\"),\" * No olvide digitar la variable \"&$AH$8&\"\"&\" Al Sistema. Digite Cero si no tiene.\",\"\")","v":""},{"$f":"IF(AND($C3020>0,AI3020=\"\"),\" * No olvide digitar la variable \"&$AH$8&\"\"&\" al Extrasistema. Digite Cero si no tiene.\",\"\")","v":""},null,null,null,null,null,0,0,0,{"$f":"IF(AND(C3020<AA3020+AB3020+AC3020),1,0)","v":0},0,0,0,null,{"$f":"IF(AND($C3020>0,AH3020=\"\"),1,0)","v":0},{"$f":"IF(AND($C3020>0,AI3020=\"\"),1,0)","v":0}]
["01012610","Instalación Aparato de Contención",0,0,null,null,null,null,null,null,null,null,null,null,null,null,null,null,null,null,null,null,null,null,null,null,null,null,null,null,null,null,null,null,null,null,null,null,null,null,"",null,null,null,null,null,null,null,null,null,null,null,null,null,null,null,null,null,null,null,null,null,null,null,null,null,null,null,null,null,null,null,null,null,null,null,null,null,null,null,"","","","","","","",null,"","",null,null,null,null,null,0,0,0,0,0,0,0,null,0,0]
[5099060,"Examen y diagnóstico ttm eje I y II montaje",0,0,null,null,null,null,null,null,null,null,null,null,null,null,null,null,null,null,null,null,null,null,null,null,null,null,null,null,null,null,null,null,null,null,null,null,null,null,"",null,null,null,null,null,null,null,null,null,null,null,null,null,null,null,null,null,null,null,null,null,null,null,null,null,null,null,null,null,null,null,null,null,null,null,null,null,null,null,{"$f":"IF(AND($C3041>0,AA3041=\"\"),\" * No olvide digitar la variable \"&$AA$8&\"\"&\": Atención Cerrada. Digite Cero si no tiene.\",\"\")","v":""},{"$f":"IF(AND($C3041>0,AB3041=\"\"),\" * No olvide digitar la variable \"&$AA$8&\"\"&\": Atención Abierta. Digite Cero si no tiene.\",\"\")","v":""},{"$f":"IF(AND($C3041>0,AC3041=\"\"),\" * No olvide digitar la variable \"&$AA$8&\"\"&\": Emergencia. Digite Cero si no tiene.\",\"\")","v":""},{"$f":"IF(AND(C3041<AA3041+AB3041+AC3041),\" * La Suma de la variable \"&$AA$8&\"\"&\" no puede ser mayor al Total.\",\"\")","v":""},{"$f":"IF(AND($C3041>0,AD3041=\"\"),\" * No olvide digitar la variable \"&$AD$8&\"\"&\": Honorarios. Digite Cero si no tiene.\",\"\")","v":""},{"$f":"IF(AND($C3041>0,AE3041=\"\"),\" * No olvide digitar la variable \"&$AD$8&\"\"&\": Convenios. Digite Cero si no tiene.\",\"\")","v":""},{"$f":"IF(AND($C3041>0,AF3041=\"\"),\" * No olvide digitar la variable \"&$AD$8&\"\"&\": Consultores de llamada. Digite Cero si no tiene.\",\"\")","v":""},null,{"$f":"IF(AND($C3041>0,AH3041=\"\"),\" * No olvide digitar la variable \"&$AH$8&\"\"&\" Al Sistema. Digite Cero si no tiene.\",\"\")","v":""},{"$f":"IF(AND($C3041>0,AI3041=\"\"),\" * No olvide digitar la variable \"&$AH$8&\"\"&\" al Extrasistema. Digite Cero si no tiene.\",\"\")","v":""},null,null,null,null,null,0,0,0,{"$f":"IF(AND(C3041<AA3041+AB3041+AC3041),1,0)","v":0},0,0,0,null,{"$f":"IF(AND($C3041>0,AH3041=\"\"),1,0)","v":0},{"$f":"IF(AND($C3041>0,AI3041=\"\"),1,0)","v":0}]
["01012665","Test Inmunoquímico de Deposiciones",{"$f":"SUM(D3050+G3050)","v":0},{"$f":"SUM(E3050:F3050)","v":0},null,null,null,null,null,null,null,null,null,null,null,null,null,null,null,null,null,null,null,null,null,null,null,null,null,null,null,null,null,null,null,null,null,null,null,null,{"$f":"CC3050&CD3050&CE3050&CF3050&CG3050&CH3050&CI3050&CJ3050&CK3050&CL3050&CM3050&CN3050&CO3050","v":""},null,null,null,null,null,null,null,null,null,null,null,null,null,null,null,null,null,null,null,null,null,null,null,null,null,null,null,null,null,null,null,null,null,null,null,null,null,null,null,{"$f":"IF(AND($C3050>0,AA3050=\"\"),\" * No olvide digitar la variable \"&$AA$8&\"\"&\": Atención Cerrada. Digite Cero si no tiene.\",\"\")","v":""},{"$f":"IF(AND($C3050>0,AB3050=\"\"),\" * No olvide digitar la variable \"&$AA$8&\"\"&\": Atención Abierta. Digite Cero si no tiene.\",\"\")","v":""},{"$f":"IF(AND($C3050>0,AC3050=\"\"),\" * No olvide digitar la variable \"&$AA$8&\"\"&\": Emergencia. Digite Cero si no tiene.\",\"\")","v":""},{"$f":"IF(AND(C3050<AA3050+AB3050+AC3050),\" * La Suma de la variable \"&$AA$8&\"\"&\" no puede ser mayor al Total.\",\"\")","v":""},{"$f":"IF(AND($C3050>0,AD3050=\"\"),\" * No olvide digitar la variable \"&$AD$8&\"\"&\": Honorarios. Digite Cero si no tiene.\",\"\")","v":""},{"$f":"IF(AND($C3050>0,AE3050=\"\"),\" * No olvide digitar la variable \"&$AD$8&\"\"&\": Convenios. Digite Cero si no tiene.\",\"\")","v":""},{"$f":"IF(AND($C3050>0,AF3050=\"\"),\" * No olvide digitar la variable \"&$AD$8&\"\"&\": Consultores de llamada. Digite Cero si no tiene.\",\"\")","v":""},null,{"$f":"IF(AND($C3050>0,AH3050=\"\"),\" * No olvide digitar la variable \"&$AH$8&\"\"&\" Al Sistema. Digite Cero si no tiene.\",\"\")","v":""},{"$f":"IF(AND($C3050>0,AI3050=\"\"),\" * No olvide digitar la variable \"&$AH$8&\"\"&\" al Extrasistema. Digite Cero si no tiene.\",\"\")","v":""},null,null,null,null,null,{"$f":"IF(AND($C3050>0,AA3050=\"\"),1,0)","v":0},0,0,{"$f":"IF(AND(C3050<AA3050+AB3050+AC3050),1,0)","v":0},{"$f":"IF(AND($C3050>0,AD3050=\"\"),1,0)","v":0},0,0,null,{"$f":"IF(AND($C3050>0,AH3050=\"\"),1,0)","v":0},0]
[2908004,"VTD (Talidomida - Dexametasona - Bortezomib) (ciclo)",{"$f":"SUM(D3066+G3066)","v":0},{"$f":"SUM(E3066:F3066)","v":0},null,null,null,null,null,null,null,null,null,null,null,null,null,null,null,null,null,null,null,null,null,null,null,null,null,null,null,null,null,null,null,null,null,null,null,null,{"$f":"CC3066&CD3066&CE3066&CF3066&CG3066&CH3066&CI3066&CJ3066&CK3066&CL3066&CM3066&CN3066&CO3066","v":""},null,null,null,null,null,null,null,null,null,null,null,null,null,null,null,null,null,null,null,null,null,null,null,null,null,null,null,null,null,null,null,null,null,null,null,null,null,null,null,"","","","","","","",null,"","",null,null,null,null,null,0,0,0,0,0,0,0,null,0,0]
[2908009,"VRD (Lenalidomida - Dexametasona - Bortezomib) (ciclo)",0,0,null,null,null,null,null,null,null,null,null,null,null,null,null,null,null,null,null,null,null,null,null,null,null,null,null,null,null,null,null,null,null,null,null,null,null,null,"",null,null,null,null,null,null,null,null,null,null,null,null,null,null,null,null,null,null,null,null,null,null,null,null,null,null,null,null,null,null,null,null,null,null,null,null,null,null,null,"","","","","","","",null,"","",null,null,null,null,null,0,0,0,0,0,0,0,null,0,0]
[2908022,"Panitumumab (ciclo)",0,0,null,null,null,null,null,null,null,null,null,null,null,null,null,null,null,null,null,null,null,null,null,null,null,null,null,null,null,null,null,null,null,null,null,null,null,null,"",null,null,null,null,null,null,null,null,null,null,null,null,null,null,null,null,null,null,null,null,null,null,null,null,null,null,null,null,null,null,null,null,null,null,null,null,null,null,null,"","","","","","","",null,"","",null,null,null,null,null,0,0,0,0,0,0,0,null,0,0]
[2908042,"Carboplatino (ciclo)",0,0,null,null,null,null,null,null,null,null,null,null,null,null,null,null,null,null,null,null,null,null,null,null,null,null,null,null,null,null,null,null,null,null,null,null,null,null,"",null,null,null,null,null,null,null,null,null,null,null,null,null,null,null,null,null,null,null,null,null,null,null,null,null,null,null,null,null,null,null,null,null,null,null,null,null,null,null,"","","","","","","",null,"","",null,null,null,null,null,0,0,0,0,0,0,0,null,0,0]
[2908060,"Temozolomida (ciclo)",0,0,null,null,null,null,null,null,null,null,null,null,null,null,null,null,null,null,null,null,null,null,null,null,null,null,null,null,null,null,null,null,null,null,null,null,null,null,"",null,null,null,null,null,null,null,null,null,null,null,null,null,null,null,null,null,null,null,null,null,null,null,null,null,null,null,null,null,null,null,null,null,null,null,null,null,null,null,"","","","","","","",null,"","",null,null,null,null,null,0,0,0,0,0,0,0,null,0,0]
[2908071,"Pemetrexed - Cisplatino (ciclo)",0,0,null,null,null,null,null,null,null,null,null,null,null,null,null,null,null,null,null,null,null,null,null,null,null,null,null,null,null,null,null,null,null,null,null,null,null,null,"",null,null,null,null,null,null,null,null,null,null,null,null,null,null,null,null,null,null,null,null,null,null,null,null,null,null,null,null,null,null,null,null,null,null,null,null,null,null,null,"","","","","","","",null,"","",null,null,null,null,null,0,0,0,0,0,0,0,null,0,0]
[2908088,"5 Fluorouracilo - Mitomicina C (ciclo)",0,0,null,null,null,null,null,null,null,null,null,null,null,null,null,null,null,null,null,null,null,null,null,null,null,null,null,null,null,null,null,null,null,null,null,null,null,null,"",null,null,null,null,null,null,null,null,null,null,null,null,null,null,null,null,null,null,null,null,null,null,null,null,null,null,null,null,null,null,null,null,null,null,null,null,null,null,null,"","","","","","","",null,"","",null,null,null,null,null,0,0,0,0,0,0,0,null,0,0]
[2908095,"Abiraterona  (mensual)",0,0,null,null,null,null,null,null,null,null,null,null,null,null,null,null,null,null,null,null,null,null,null,null,null,null,null,null,null,null,null,null,null,null,null,null,null,null,"",null,null,null,null,null,null,null,null,null,null,null,null,null,null,null,null,null,null,null,null,null,null,null,null,null,null,null,null,null,null,null,null,null,null,null,null,null,null,null,"","","","","","","",null,"","",null,null,null,null,null,0,0,0,0,0,0,0,null,0,0]
[2908096,"Leuprolide (ciclo)",0,0,null,null,null,null,null,null,null,null,null,null,null,null,null,null,null,null,null,null,null,null,null,null,null,null,null,null,null,null,null,null,null,null,null,null,null,null,"",null,null,null,null,null,null,null,null,null,null,null,null,null,null,null,null,null,null,null,null,null,null,null,null,null,null,null,null,null,null,null,null,null,null,null,null,null,null,null,"","","","","","","",null,"","",null,null,null,null,null,0,0,0,0,0,0,0,null,0,0]
[2908097,"Alectinib (mensual)",0,0,null,null,null,null,null,null,null,null,null,null,null,null,null,null,null,null,null,null,null,null,null,null,null,null,null,null,null,null,null,null,null,null,null,null,null,null,"",null,null,null,null,null,null,null,null,null,null,null,null,null,null,null,null,null,null,null,null,null,null,null,null,null,null,null,null,null,null,null,null,null,null,null,null,null,null,null,"","","","","","","",null,"","",null,null,null,null,null,0,0,0,0,0,0,0,null,0,0]
[2908098,"Osimertinib (mensual)",0,0,null,null,null,null,null,null,null,null,null,null,null,null,null,null,null,null,null,null,null,null,null,null,null,null,null,null,null,null,null,null,null,null,null,null,null,null,"",null,null,null,null,null,null,null,null,null,null,null,null,null,null,null,null,null,null,null,null,null,null,null,null,null,null,null,null,null,null,null,null,null,null,null,null,null,null,null,"","","","","","","",null,"","",null,null,null,null,null,0,0,0,0,0,0,0,null,0,0]
[2908100,"Afatinib (mensual)",0,0,null,null,null,null,null,null,null,null,null,null,null,null,null,null,null,null,null,null,null,null,null,null,null,null,null,null,null,null,null,null,null,null,null,null,null,null,"",null,null,null,null,null,null,null,null,null,null,null,null,null,null,null,null,null,null,null,null,null,null,null,null,null,null,null,null,null,null,null,null,null,null,null,null,null,null,null,"","","","","","","",null,"","",null,null,null,null,null,0,0,0,0,0,0,0,null,0,0]
[2908101,"Sorafenib (mensual)",0,0,null,null,null,null,null,null,null,null,null,null,null,null,null,null,null,null,null,null,null,null,null,null,null,null,null,null,null,null,null,null,null,null,null,null,null,null,"",null,null,null,null,null,null,null,null,null,null,null,null,null,null,null,null,null,null,null,null,null,null,null,null,null,null,null,null,null,null,null,null,null,null,null,null,null,null,null,"","","","","","","",null,"","",null,null,null,null,null,0,0,0,0,0,0,0,null,0,0]
[2908102,"Crizotinib (mensual)",0,0,null,null,null,null,null,null,null,null,null,null,null,null,null,null,null,null,null,null,null,null,null,null,null,null,null,null,null,null,null,null,null,null,null,null,null,null,"",null,null,null,null,null,null,null,null,null,null,null,null,null,null,null,null,null,null,null,null,null,null,null,null,null,null,null,null,null,null,null,null,null,null,null,null,null,null,null,"","","","","","","",null,"","",null,null,null,null,null,0,0,0,0,0,0,0,null,0,0]
[2908103,"Sunitinib (ciclo)",0,0,null,null,null,null,null,null,null,null,null,null,null,null,null,null,null,null,null,null,null,null,null,null,null,null,null,null,null,null,null,null,null,null,null,null,null,null,"",null,null,null,null,null,null,null,null,null,null,null,null,null,null,null,null,null,null,null,null,null,null,null,null,null,null,null,null,null,null,null,null,null,null,null,null,null,null,null,"","","","","","","",null,"","",null,null,null,null,null,0,0,0,0,0,0,0,null,0,0]
[2908104,"Erlotinib (mensual)",0,0,null,null,null,null,null,null,null,null,null,null,null,null,null,null,null,null,null,null,null,null,null,null,null,null,null,null,null,null,null,null,null,null,null,null,null,null,"",null,null,null,null,null,null,null,null,null,null,null,null,null,null,null,null,null,null,null,null,null,null,null,null,null,null,null,null,null,null,null,null,null,null,null,null,null,null,null,"","","","","","","",null,"","",null,null,null,null,null,0,0,0,0,0,0,0,null,0,0]
[2908105,"Gefitinib (mensual)",0,0,null,null,null,null,null,null,null,null,null,null,null,null,null,null,null,null,null,null,null,null,null,null,null,null,null,null,null,null,null,null,null,null,null,null,null,null,"",null,null,null,null,null,null,null,null,null,null,null,null,null,null,null,null,null,null,null,null,null,null,null,null,null,null,null,null,null,null,null,null,null,null,null,null,null,null,null,"","","","","","","",null,"","",null,null,null,null,null,0,0,0,0,0,0,0,null,0,0]
[2908106,"Pazopanib (mensual)",0,0,null,null,null,null,null,null,null,null,null,null,null,null,null,null,null,null,null,null,null,null,null,null,null,null,null,null,null,null,null,null,null,null,null,null,null,null,"",null,null,null,null,null,null,null,null,null,null,null,null,null,null,null,null,null,null,null,null,null,null,null,null,null,null,null,null,null,null,null,null,null,null,null,null,null,null,null,"","","","","","","",null,"","",null,null,null,null,null,0,0,0,0,0,0,0,null,0,0]
[2908107,"Dasatinib (mensual)",0,0,null,null,null,null,null,null,null,null,null,null,null,null,null,null,null,null,null,null,null,null,null,null,null,null,null,null,null,null,null,null,null,null,null,null,null,null,"",null,null,null,null,null,null,null,null,null,null,null,null,null,null,null,null,null,null,null,null,null,null,null,null,null,null,null,null,null,null,null,null,null,null,null,null,null,null,null,"","","","","","","",null,"","",null,null,null,null,null,0,0,0,0,0,0,0,null,0,0]
[2908113,"Ponatinib (mensual)",0,0,null,null,null,null,null,null,null,null,null,null,null,null,null,null,null,null,null,null,null,null,null,null,null,null,null,null,null,null,null,null,null,null,null,null,null,null,"",null,null,null,null,null,null,null,null,null,null,null,null,null,null,null,null,null,null,null,null,null,null,null,null,null,null,null,null,null,null,null,null,null,null,null,null,null,null,null,"","","","","","","",null,"","",null,null,null,null,null,0,0,0,0,0,0,0,null,0,0]
[2908114,"Midostaurina (ciclo)",0,0,null,null,null,null,null,null,null,null,null,null,null,null,null,null,null,null,null,null,null,null,null,null,null,null,null,null,null,null,null,null,null,null,null,null,null,null,"",null,null,null,null,null,null,null,null,null,null,null,null,null,null,null,null,null,null,null,null,null,null,null,null,null,null,null,null,null,null,null,null,null,null,null,null,null,null,null,"","","","","","","",null,"","",null,null,null,null,null,0,0,0,0,0,0,0,null,0,0]
[2908115,"H-ATG  (linfoglobulina) (por una vez)",0,0,null,null,null,null,null,null,null,null,null,null,null,null,null,null,null,null,null,null,null,null,null,null,null,null,null,null,null,null,null,null,null,null,null,null,null,null,"",null,null,null,null,null,null,null,null,null,null,null,null,null,null,null,null,null,null,null,null,null,null,null,null,null,null,null,null,null,null,null,null,null,null,null,null,null,null,null,"","","","","","","",null,"","",null,null,null,null,null,0,0,0,0,0,0,0,null,0,0]
[2908116,"R-ATG (timoglobulina) (por una vez)",0,0,null,null,null,null,null,null,null,null,null,null,null,null,null,null,null,null,null,null,null,null,null,null,null,null,null,null,null,null,null,null,null,null,null,null,null,null,"",null,null,null,null,null,null,null,null,null,null,null,null,null,null,null,null,null,null,null,null,null,null,null,null,null,null,null,null,null,null,null,null,null,null,null,null,null,null,null,"","","","","","","",null,"","",null,null,null,null,null,0,0,0,0,0,0,0,null,0,0]
[2908117,"Rituximab (complemento)",0,0,null,null,null,null,null,null,null,null,null,null,null,null,null,null,null,null,null,null,null,null,null,null,null,null,null,null,null,null,null,null,null,null,null,null,null,null,"",null,null,null,null,null,null,null,null,null,null,null,null,null,null,null,null,null,null,null,null,null,null,null,null,null,null,null,null,null,null,null,null,null,null,null,null,null,null,null,"","","","","","","",null,"","",null,null,null,null,null,0,0,0,0,0,0,0,null,0,0]
[2908118,"ICE (Ifosfamida + Mesna - Etopósido - Carboplatino:AUC)  (ciclo)",0,0,null,null,null,null,null,null,null,null,null,null,null,null,null,null,null,null,null,null,null,null,null,null,null,null,null,null,null,null,null,null,null,null,null,null,null,null,"",null,null,null,null,null,null,null,null,null,null,null,null,null,null,null,null,null,null,null,null,null,null,null,null,null,null,null,null,null,null,null,null,null,null,null,null,null,null,null,"","","","","","","",null,"","",null,null,null,null,null,0,0,0,0,0,0,0,null,0,0]
[2908119,"ESHAP (Etopósido - Cisplatino - Citarabina) (ciclo)",0,0,null,null,null,null,null,null,null,null,null,null,null,null,null,null,null,null,null,null,null,null,null,null,null,null,null,null,null,null,null,null,null,null,null,null,null,null,"",null,null,null,null,null,null,null,null,null,null,null,null,null,null,null,null,null,null,null,null,null,null,null,null,null,null,null,null,null,null,null,null,null,null,null,null,null,null,null,"","","","","","","",null,"","",null,null,null,null,null,0,0,0,0,0,0,0,null,0,0]
[2908120,"Lenalidomida + Dexametasona (ciclo)",0,0,null,null,null,null,null,null,null,null,null,null,null,null,null,null,null,null,null,null,null,null,null,null,null,null,null,null,null,null,null,null,null,null,null,null,null,null,"",null,null,null,null,null,null,null,null,null,null,null,null,null,null,null,null,null,null,null,null,null,null,null,null,null,null,null,null,null,null,null,null,null,null,null,null,null,null,null,"","","","","","","",null,"","",null,null,null,null,null,0,0,0,0,0,0,0,null,0,0]
[2908121,"Pertuzumab - Trastuzumab -Docetaxel (Primera dosis) (por una vez)",0,0,null,null,null,null,null,null,null,null,null,null,null,null,null,null,null,null,null,null,null,null,null,null,null,null,null,null,null,null,null,null,null,null,null,null,null,null,"",null,null,null,null,null,null,null,null,null,null,null,null,null,null,null,null,null,null,null,null,null,null,null,null,null,null,null,null,null,null,null,null,null,null,null,null,null,null,null,"","","","","","","",null,"","",null,null,null,null,null,0,0,0,0,0,0,0,null,0,0]
[2908122,"Pertuzumab - Trastuzumab -Docetaxel (Dosis de mantención) (ciclo)",0,0,null,null,null,null,null,null,null,null,null,null,null,null,null,null,null,null,null,null,null,null,null,null,null,null,null,null,null,null,null,null,null,null,null,null,null,null,"",null,null,null,null,null,null,null,null,null,null,null,null,null,null,null,null,null,null,null,null,null,null,null,null,null,null,null,null,null,null,null,null,null,null,null,null,null,null,null,{"$f":"IF(AND($C3161>0,AA3161=\"\"),\" * No olvide digitar la variable \"&$AA$8&\"\"&\": Atención Cerrada. Digite Cero si no tiene.\",\"\")","v":""},{"$f":"IF(AND($C3161>0,AB3161=\"\"),\" * No olvide digitar la variable \"&$AA$8&\"\"&\": Atención Abierta. Digite Cero si no tiene.\",\"\")","v":""},{"$f":"IF(AND($C3161>0,AC3161=\"\"),\" * No olvide digitar la variable \"&$AA$8&\"\"&\": Emergencia. Digite Cero si no tiene.\",\"\")","v":""},{"$f":"IF(AND(C3161<AA3161+AB3161+AC3161),\" * La Suma de la variable \"&$AA$8&\"\"&\" no puede ser mayor al Total.\",\"\")","v":""},{"$f":"IF(AND($C3161>0,AD3161=\"\"),\" * No olvide digitar la variable \"&$AD$8&\"\"&\": Honorarios. Digite Cero si no tiene.\",\"\")","v":""},{"$f":"IF(AND($C3161>0,AE3161=\"\"),\" * No olvide digitar la variable \"&$AD$8&\"\"&\": Convenios. Digite Cero si no tiene.\",\"\")","v":""},{"$f":"IF(AND($C3161>0,AF3161=\"\"),\" * No olvide digitar la variable \"&$AD$8&\"\"&\": Consultores de llamada. Digite Cero si no tiene.\",\"\")","v":""},null,{"$f":"IF(AND($C3161>0,AH3161=\"\"),\" * No olvide digitar la variable \"&$AH$8&\"\"&\" Al Sistema. Digite Cero si no tiene.\",\"\")","v":""},{"$f":"IF(AND($C3161>0,AI3161=\"\"),\" * No olvide digitar la variable \"&$AH$8&\"\"&\" al Extrasistema. Digite Cero si no tiene.\",\"\")","v":""},null,null,null,null,null,{"$f":"IF(AND($C3161>0,AA3161=\"\"),1,0)","v":0},{"$f":"IF(AND($C3161>0,AB3161=\"\"),1,0)","v":0},{"$f":"IF(AND($C3161>0,AC3161=\"\"),1,0)","v":0},{"$f":"IF(AND(C3161<AA3161+AB3161+AC3161),1,0)","v":0},{"$f":"IF(AND($C3161>0,AD3161=\"\"),1,0)","v":0},{"$f":"IF(AND($C3161>0,AE3161=\"\"),1,0)","v":0},{"$f":"IF(AND($C3161>0,AF3161=\"\"),1,0)","v":0},null,{"$f":"IF(AND($C3161>0,AH3161=\"\"),1,0)","v":0},{"$f":"IF(AND($C3161>0,AI3161=\"\"),1,0)","v":0}]
[2908123,"Pertuzumab - Trastuzumab - Paclitaxel (ciclo)",0,0,null,null,null,null,null,null,null,null,null,null,null,null,null,null,null,null,null,null,null,null,null,null,null,null,null,null,null,null,null,null,null,null,null,null,null,null,"",null,null,null,null,null,null,null,null,null,null,null,null,null,null,null,null,null,null,null,null,null,null,null,null,null,null,null,null,null,null,null,null,null,null,null,null,null,null,null,"","","","","","","",null,"","",null,null,null,null,null,0,0,0,0,0,0,0,null,0,0]
[2908124,"Palbociclib + Fulvestran (ciclo)",0,0,null,null,null,null,null,null,null,null,null,null,null,null,null,null,null,null,null,null,null,null,null,null,null,null,null,null,null,null,null,null,null,null,null,null,null,null,"",null,null,null,null,null,null,null,null,null,null,null,null,null,null,null,null,null,null,null,null,null,null,null,null,null,null,null,null,null,null,null,null,null,null,null,null,null,null,null,"","","","","","","",null,"","",null,null,null,null,null,0,0,0,0,0,0,0,null,0,0]
[2908125,"Pembrolizumab - Cisplatino -  5 Fluorouracilo (ciclo)",0,0,null,null,null,null,null,null,null,null,null,null,null,null,null,null,null,null,null,null,null,null,null,null,null,null,null,null,null,null,null,null,null,null,null,null,null,null,"",null,null,null,null,null,null,null,null,null,null,null,null,null,null,null,null,null,null,null,null,null,null,null,null,null,null,null,null,null,null,null,null,null,null,null,null,null,null,null,"","","","","","","",null,"","",null,null,null,null,null,0,0,0,0,0,0,0,null,0,0]
[2908126,"Lorlatinib (mensual)",0,0,null,null,null,null,null,null,null,null,null,null,null,null,null,null,null,null,null,null,null,null,null,null,null,null,null,null,null,null,null,null,null,null,null,null,null,null,"",null,null,null,null,null,null,null,null,null,null,null,null,null,null,null,null,null,null,null,null,null,null,null,null,null,null,null,null,null,null,null,null,null,null,null,null,null,null,null,"","","","","","","",null,"","",null,null,null,null,null,0,0,0,0,0,0,0,null,0,0]
[2908127,"Blinatumomab (por una vez)",{"$f":"SUM(D3166+G3166)","v":0},{"$f":"SUM(E3166:F3166)","v":0},null,null,null,null,null,null,null,null,null,null,null,null,null,null,null,null,null,null,null,null,null,null,null,null,null,null,null,null,null,null,null,null,null,null,null,null,{"$f":"CC3166&CD3166&CE3166&CF3166&CG3166&CH3166&CI3166&CJ3166&CK3166&CL3166&CM3166&CN3166&CO3166","v":""},null,null,null,null,null,null,null,null,null,null,null,null,null,null,null,null,null,null,null,null,null,null,null,null,null,null,null,null,null,null,null,null,null,null,null,null,null,null,null,"","","","","","","",null,"","",null,null,null,null,null,0,0,0,0,0,0,0,null,0,0]
[2908128,"Pembrolizumab (ciclo)",0,0,null,null,null,null,null,null,null,null,null,null,null,null,null,null,null,null,null,null,null,null,null,null,null,null,null,null,null,null,null,null,null,null,null,null,null,null,"",null,null,null,null,null,null,null,null,null,null,null,null,null,null,null,null,null,null,null,null,null,null,null,null,null,null,null,null,null,null,null,null,null,null,null,null,null,null,null,"","","","","","","",null,"","",null,null,null,null,null,0,0,0,0,0,0,0,null,0,0]
[2908129,"Ribociclib (ciclo)",0,0,null,null,null,null,null,null,null,null,null,null,null,null,null,null,null,null,null,null,null,null,null,null,null,null,null,null,null,null,null,null,null,null,null,null,null,null,"",null,null,null,null,null,null,null,null,null,null,null,null,null,null,null,null,null,null,null,null,null,null,null,null,null,null,null,null,null,null,null,null,null,null,null,null,null,null,null,"","","","","","","",null,"","",null,null,null,null,null,0,0,0,0,0,0,0,null,0,0]
[2908130,"Lenvatinib (ciclo)",0,0,null,null,null,null,null,null,null,null,null,null,null,null,null,null,null,null,null,null,null,null,null,null,null,null,null,null,null,null,null,null,null,null,null,null,null,null,"",null,null,null,null,null,null,null,null,null,null,null,null,null,null,null,null,null,null,null,null,null,null,null,null,null,null,null,null,null,null,null,null,null,null,null,null,null,null,null,"","","","","","","",null,"","",null,null,null,null,null,0,0,0,0,0,0,0,null,0,0]
[2908131,"Paclitaxel (ciclo)",0,0,null,null,null,null,null,null,null,null,null,null,null,null,null,null,null,null,null,null,null,null,null,null,null,null,null,null,null,null,null,null,null,null,null,null,null,null,"",null,null,null,null,null,null,null,null,null,null,null,null,null,null,null,null,null,null,null,null,null,null,null,null,null,null,null,null,null,null,null,null,null,null,null,null,null,null,null,"","","","","","","",null,"","",null,null,null,null,null,0,0,0,0,0,0,0,null,0,0]
[2908132,"Nivolumab (segunda linea de tratamiento)",0,0,null,null,null,null,null,null,null,null,null,null,null,null,null,null,null,null,null,null,null,null,null,null,null,null,null,null,null,null,null,null,null,null,null,null,null,null,"",null,null,null,null,null,null,null,null,null,null,null,null,null,null,null,null,null,null,null,null,null,null,null,null,null,null,null,null,null,null,null,null,null,null,null,null,null,null,null,"","","","","","","",null,"","",null,null,null,null,null,0,0,0,0,0,0,0,null,0,0]
[2908133,"Nivolumab (despues de  tratamiento previo)",0,0,null,null,null,null,null,null,null,null,null,null,null,null,null,null,null,null,null,null,null,null,null,null,null,null,null,null,null,null,null,null,null,null,null,null,null,null,"",null,null,null,null,null,null,null,null,null,null,null,null,null,null,null,null,null,null,null,null,null,null,null,null,null,null,null,null,null,null,null,null,null,null,null,null,null,null,null,"","","","","","","",null,"","",null,null,null,null,null,0,0,0,0,0,0,0,null,0,0]
[2908134,"Nivolumab (tratamiento adyuvante)",0,0,null,null,null,null,null,null,null,null,null,null,null,null,null,null,null,null,null,null,null,null,null,null,null,null,null,null,null,null,null,null,null,null,null,null,null,null,"",null,null,null,null,null,null,null,null,null,null,null,null,null,null,null,null,null,null,null,null,null,null,null,null,null,null,null,null,null,null,null,null,null,null,null,null,null,null,null,"","","","","","","",null,"","",null,null,null,null,null,0,0,0,0,0,0,0,null,0,0]
[2908135,"Nivolumab (primera linea tratamiento paliativo)",0,0,null,null,null,null,null,null,null,null,null,null,null,null,null,null,null,null,null,null,null,null,null,null,null,null,null,null,null,null,null,null,null,null,null,null,null,null,"",null,null,null,null,null,null,null,null,null,null,null,null,null,null,null,null,null,null,null,null,null,null,null,null,null,null,null,null,null,null,null,null,null,null,null,null,null,null,null,"","","","","","","",null,"","",null,null,null,null,null,0,0,0,0,0,0,0,null,0,0]
[2908136,"Abemaciclib (ciclo)",0,0,null,null,null,null,null,null,null,null,null,null,null,null,null,null,null,null,null,null,null,null,null,null,null,null,null,null,null,null,null,null,null,null,null,null,null,null,"",null,null,null,null,null,null,null,null,null,null,null,null,null,null,null,null,null,null,null,null,null,null,null,null,null,null,null,null,null,null,null,null,null,null,null,null,null,null,null,"","","","","","","",null,"","",null,null,null,null,null,0,0,0,0,0,0,0,null,0,0]
[2908137,"Atezolizumab (ciclo)",0,0,null,null,null,null,null,null,null,null,null,null,null,null,null,null,null,null,null,null,null,null,null,null,null,null,null,null,null,null,null,null,null,null,null,null,null,null,"",null,null,null,null,null,null,null,null,null,null,null,null,null,null,null,null,null,null,null,null,null,null,null,null,null,null,null,null,null,null,null,null,null,null,null,null,null,null,null,"","","","","","","",null,"","",null,null,null,null,null,0,0,0,0,0,0,0,null,0,0]
[2908138,"Brigatinib (ciclo)",0,0,null,null,null,null,null,null,null,null,null,null,null,null,null,null,null,null,null,null,null,null,null,null,null,null,null,null,null,null,null,null,null,null,null,null,null,null,"",null,null,null,null,null,null,null,null,null,null,null,null,null,null,null,null,null,null,null,null,null,null,null,null,null,null,null,null,null,null,null,null,null,null,null,null,null,null,null,"","","","","","","",null,"","",null,null,null,null,null,0,0,0,0,0,0,0,null,0,0]
["TOTAL",null,{"$f":"SUM(C3065:C3177)","v":0},{"$f":"SUM(D3065:D3177)","v":0},{"$f":"SUM(E3065:E3177)","v":0},{"$f":"SUM(F3065:F3177)","v":0},{"$f":"SUM(G3065:G3177)","v":0},null,null,null,null,null,null,null,null,null,null,null,null,null,null,null,null,null,null,null,{"$f":"SUM(AA3065:AA3177)","v":0},0,0,0,0,0,0,0,0,0]
[]
[]
[]
[]
[]
[]
[]
[]
[]
[]
[]
[]
[]
[]
[]
[]
[]
[]
[]
[]
[]
[]
[{"$f":"SUM(C12:D60,C63:D71,C75:D121,C124:D125,C128:D134,C137:D143,C146:D177,C180:D190,C193:D211,C215:D289,C292:D371,C374:D417,C420:D432,C435:D512,C516:D572,C575:D592,C595:D642,C645:D652,C655:D663,C666:D715,C718:D757,C761:D817,C820:D839,C842:D869,C872:D894,C897:D936,C960:D964,C939:D955,C967:D972,C975:D981,C984:D991,C994:D998,C1001:D1002,C1005:D1006,C1009:D1010,C1013:D1018,C1021:D1021,C1024:D1024,C1028:D1032,C1036:D1038,C1041:D1048,C1051:D1051,C1054:D1056,C1059:D1118,C1121:D1163,C1166:D1179,C1182:D1191,C1194:D1200,C1204:D1251,C1254:C1334,C1337:D1390,C1393:C1476,C1479:D1529,C1532:C1639,C1642:D1642,C1645:C1703,C1706:C1776,C1779:D1793,C1796:C1819,C1822:D1895,C1898:C1978,C1981:C2076,C2079:D2118,C2121:D2175,C2178:C2290,C2293:C2330,C2333:D2355,C2359:D2367,C2370:C2448,C2451:D2477,C2480:C2484,C2487:C2524,C2527:D2530,C2531:C2537,C2538:D2539,C2542:D2554,C2557:C2768,C2771:C2773,C2776:D2782,C2785:D2822,C2825:D2830,C2833:D2839,C2843:D2857,C2860:D2876,C2879:D2894,C2897:D2928,C2931:C3005,C3008:D3043,C3046:D3047,C3050:D3055,C3058:D3062,C3065:D3177)","v":0},{"$f":"SUM(CR12:DD3177)","v":0}]

{"sheet":"B17","index":2,"n_rows":250,"n_cols":33,"rows_kept":250,"cut":false,"hidden":false,"merged":[[5,0,5,3],[7,0,7,2],[56,0,56,1],[84,0,84,1],[94,0,94,1],[99,0,99,1],[118,14,119,14],[118,15,119,15],[120,0,120,1],[126,0,129,0],[133,0,133,1],[137,0,140,0],[117,14,117,15],[117,16,119,16],[117,17,119,17],[118,3,119,3],[118,4,118,5],[118,6,119,6],[118,7,119,7],[118,8,119,8],[118,9,119,9],[118,10,119,10],[117,0,119,1],[117,2,119,2],[117,3,117,6],[117,7,117,9],[117,10,117,12],[117,13,119,13],[118,11,119,11],[118,12,119,12],[146,16,148,16],[147,3,148,3],[147,4,147,5],[147,6,148,6],[147,7,148,7],[147,8,148,8],[147,9,148,9],[143,0,143,1],[144,0,144,1],[146,0,148,1],[146,2,148,2],[146,3,146,6],[146,7,146,9],[147,10,148,10],[147,11,148,11],[147,12,148,12],[147,14,148,14],[147,15,148,15],[149,0,149,1],[146,10,146,12],[146,13,148,13],[146,14,146,15],[156,2,158,2],[156,3,156,6],[156,7,156,9],[156,10,156,12],[156,13,158,13],[156,14,156,15],[157,14,158,14],[157,15,158,15],[150,0,150,1],[151,0,151,1],[152,0,152,1],[153,0,153,1],[154,0,154,1],[156,0,158,1],[156,16,158,16],[157,3,158,3],[157,4,157,5],[157,6,158,6],[157,7,158,7],[157,8,158,8],[157,9,158,9],[157,10,158,10],[157,11,158,11],[157,12,158,12],[170,10,172,10],[170,11,171,13],[170,14,172,14],[170,15,171,16],[170,17,172,17],[171,4,171,6],[171,7,171,9],[168,0,168,1],[169,0,169,1],[170,0,172,1],[170,2,172,2],[170,3,172,3],[170,4,170,9],[179,0,179,1],[180,0,180,1],[181,0,181,1],[182,0,182,1],[183,0,183,1],[184,0,184,1],[173,0,173,1],[174,0,174,1],[175,0,175,1],[176,0,176,1],[177,0,177,1],[178,0,178,1],[194,0,194,5],[195,0,196,1],[195,2,196,2],[195,3,196,3],[195,4,196,4],[195,5,196,5],[185,0,185,1],[186,0,189,0],[190,0,190,1],[191,0,191,1],[192,0,192,1],[193,0,193,1],[202,3,203,3],[204,0,204,1],[205,0,205,1],[206,0,206,1],[207,0,209,1],[207,2,209,2],[207,3,207,6],[197,0,197,1],[198,0,198,1],[199,0,200,0],[201,0,201,1],[202,0,203,1],[202,2,203,2],[208,12,209,12],[208,14,209,14],[208,15,209,15],[207,7,207,9],[207,10,207,12],[207,13,209,13],[207,14,207,15],[207,16,209,16],[208,3,209,3],[208,4,208,5],[208,6,209,6],[208,7,209,7],[208,8,209,8],[210,0,210,1],[211,0,211,1],[212,0,212,1],[213,0,213,1],[214,0,214,1],[215,0,215,1],[208,9,209,9],[208,10,209,10],[208,11,209,11],[222,0,222,1],[224,0,224,1],[225,0,225,1],[226,0,226,1],[227,0,227,1],[228,0,228,1],[216,0,216,1],[217,0,217,1],[218,0,218,1],[219,0,219,1],[220,0,220,1],[221,0,221,1],[246,0,246,1],[247,0,249,0],[239,0,239,1],[240,0,240,1],[241,0,241,1],[242,0,242,1],[243,0,243,1],[244,0,244,1],[229,0,229,1],[232,0,232,1],[233,0,233,1],[234,0,234,2],[236,0,237,0],[238,0,238,1]]}
["SERVICIO DE SALUD "]
[{"$f":"CONCATENATE(\"COMUNA: \",NOMBRE!B2,\" (\",NOMBRE!C2,NOMBRE!D2,NOMBRE!E2,NOMBRE!F2,NOMBRE!G2,\" )\")","v":"COMUNA:  ( )"}]
[{"$f":"CONCATENATE(\"ESTABLECIMIENTO/ESTRATEGIA: \",NOMBRE!B3,\" (\",NOMBRE!C3,NOMBRE!D3,NOMBRE!E3,NOMBRE!F3,NOMBRE!G3,NOMBRE!H3,\" )\")","v":"ESTABLECIMIENTO/ESTRATEGIA:  ( )"}]
[{"$f":"CONCATENATE(\"MES: \", NOMBRE!B6, \" (\", NOMBRE!C6,NOMBRE!D6,\")\")","v":"MES:  ()"}]
[{"$f":"CONCATENATE(\"AÑO: \",NOMBRE!B7)","v":"AÑO: 2026"}]
["REM-B17.   RESUMEN ATENCIONES Y ACTIVIDADES DE APOYO DIAGNÓSTICO Y TERAPÉUTICO"]
[]
["SECCION A: CONSULTAS Y ATENCIONES "]
["CÓDIGOS","IDENTIFICACIÓN DE PRESTACIONES","TOTAL ","TOTAL BENEFICIARIOS MAI"]
[null,"CONSULTAS Y ATENCIÓN MÉDICA ",{"$f":"SUM(C11:C17)","v":0},{"$f":"SUM(D11:D17)","v":0}]
[null,"Consulta Médica general",{"$f":"B!C58","v":0},{"$f":"B!E58","v":0}]
[null,"Consulta Médica de Especialidades",{"$f":"SUM(B!C12:C57)","v":0},{"$f":"SUM(B!E12:E57)","v":0}]
[null,"Consulta en Unidades de Urgencia Hospitalaria",{"$f":"B!C60","v":0},{"$f":"B!E60","v":0}]
[null,"Atención médica del recién nacido en sala de parto o pabellón quirúrgico c/s reanimación cardio-respiratoria",{"$f":"B!C59","v":0},{"$f":"B!E59","v":0}]
[null,"Telemedicina/ Teleconsulta por profesional médico",{"$f":"SUM(B!C75:C120)","v":0},{"$f":"SUM(B!E75:E120)","v":0}]
[null,"Teleinterconsulta (Telemedicina)",{"$f":"B!C124","v":0},{"$f":"B!E124","v":0}]
["0903006","Consultoría de salud mental por psiquiatra (sesión 4 hrs.) (mínimo 8 pacientes)",{"$f":"B!C1186","v":0},{"$f":"B!E1186","v":0}]
[null,"CONSULTAS POR OTROS PROFESIONALES DE LA SALUD",{"$f":"SUM(C19:C29)","v":0},{"$f":"SUM(D19:D29)","v":0}]
["0102008","Consulta o control por enfermera/o",{"$f":"B!C66","v":0},{"$f":"B!E66","v":0}]
["0102002","Control de salud niño con EDP por enfermera/o",{"$f":"B!C63","v":0},{"$f":"B!E63","v":0}]
["0102003","Consulta o control por auxiliar de enfermería",{"$f":"B!C64","v":0},{"$f":"B!E64","v":0}]
["0102005","Consulta por fonoaudiólogo/a",{"$f":"B!C65","v":0},{"$f":"B!E65","v":0}]
["0102009","Consulta o control por matrón/a",{"$f":"B!C67","v":0},{"$f":"B!E67","v":0}]
["0102010","Consulta o control por nutricionista",{"$f":"B!C68","v":0},{"$f":"B!E68","v":0}]
["0903002","Consulta o control psicológico clínico",{"$f":"B!C1182","v":0},{"$f":"B!E1182","v":0}]
["0903003","Consulta de salud mental por otros profesionales",{"$f":"B!C1183","v":0},{"$f":"B!E1183","v":0}]
["0903004","Intervención psicosocial grupal (4 a 8 pacientes, familiares o cuidadores)",{"$f":"B!C1184","v":0},{"$f":"B!E1184","v":0}]
["0903005","Psicoterapia de grupo (por psicólogo o psiquiatra) (4 a 8 pacientes)"]
[null,"Telemedicina/ Teleconsulta por profesional no médico",{"$f":"B!C121","v":0},{"$f":"B!E121","v":0}]
[null,"OTRAS CONSULTAS Y ATENCIÓN MEDICA",{"$f":"SUM(C31:C32)","v":0}]
[null,"Consulta por otros profesionales ",{"$f":"B!C70","v":0}]
[null,"Consulta por Trabajador/a Social",{"$f":"B!C71","v":0}]
[null,"PROGRAMA DE REHABILITACIÓN",{"$f":"SUM(C34:C35)","v":0},{"$f":"SUM(D34:D35)","v":0}]
["0903007","Programa de rehabilitación tipo 1 (mensual, grupo 6 a 10 pers.)",{"$f":"B!C1187","v":0},{"$f":"B!E1187","v":0}]
["0903008","Programa de rehabilitación tipo 2 (mensual, grupo 5 a 7 pers.)",{"$f":"B!C1188","v":0},{"$f":"B!E1188","v":0}]
[null,"OTROS PROGRAMAS",{"$f":"C37","v":0}]
["0901003","Sesión de terapia electroconvulsivante (hasta 6 sesiones por ciclo o sesiones de mantención) c/ sesión",{"$f":"B!C1195","v":0}]
[null,"EDUCACION DE GRUPO",{"$f":"SUM(C39:C44)","v":0},{"$f":"SUM(D39:D44)","v":0}]
["0103001","Educación de grupo por médico",{"$f":"B!C128","v":0},{"$f":"B!E128","v":0}]
["0103005","Educación de grupo por enfermera",{"$f":"B!C131","v":0},{"$f":"B!E131","v":0}]
["0103003","Educación de grupo por Trabajador/a Social",{"$f":"B!C129","v":0},{"$f":"B!E129","v":0}]
["0103004","Educación de grupo por auxiliar de enfermería",{"$f":"B!C130","v":0},{"$f":"B!E130","v":0}]
["0103006","Educación de grupo por matrona ",{"$f":"B!C132","v":0},{"$f":"B!E132","v":0}]
["0103007","Educación de grupo por nutricionista",{"$f":"B!C133","v":0},{"$f":"B!E133","v":0}]
[null,"OTRA EDUCACIÓN DE GRUPO",{"$f":"C46","v":0}]
[null,"Educación de grupo por otro integrante del equipo de salud",{"$f":"B!C134","v":0}]
[null,"VISITAS DOMICILIARIAS",{"$f":"SUM(C48:C52)","v":0},{"$f":"SUM(D48:D52)","v":0}]
["0104004","Visita a domicilio por enfermera",{"$f":"B!C139","v":0},{"$f":"B!E139","v":0}]
["0104002","Visita a domicilio por asistente social",{"$f":"B!C137","v":0},{"$f":"B!E137","v":0}]
["0104003","Visita a domicilio por auxiliar de enfermería",{"$f":"B!C138","v":0},{"$f":"B!E138","v":0}]
["0104005","Visita a domicilio por matrona",{"$f":"B!C140","v":0},{"$f":"B!E140","v":0}]
["0104006","Visita a domicilio por nutricionista",{"$f":"B!C141","v":0},{"$f":"B!E141","v":0}]
[null,"OTRAS VISITAS DOMICILIARIAS",{"$f":"SUM(C54:C55)","v":0}]
[null,"Visita a domicilio por otro integrante del equipo de salud",{"$f":"B!C142","v":0}]
[null,"Visita domiciliaria por profesional y técnico paramédico",{"$f":"B!C143","v":0}]
[null,"TOTAL ",{"$f":"C10+C18+C33+C38+C47+C30+C36+C45+C53","v":0},{"$f":"D10+D18+D33+D38+D47","v":0}]
["SECCION B: ATENCIÓN CERRADA, DIAS DE HOSPITALIZACION "]
["CÓDIGOS","IDENTIFICACIÓN DE PRESTACIONES","TOTAL ","TOTAL BENEFICIARIOS MAI"]
[null,"ATENCIÓN CERRADA "]
["0201010","Dia Cama de Hospitalización Integral Cuidados Básicos",{"$f":"B!C193","v":0},{"$f":"B!E193","v":0}]
["0201110","Dia Cama de Hospitalización Integral Cuidados Medios",{"$f":"B!C194","v":0},{"$f":"B!E194","v":0}]
["0201301","Día Cama de Hospitalización Integral Adulto en Unidad de Tratamiento Intermedio (U.T.I)",{"$f":"B!C195","v":0},{"$f":"B!E195","v":0}]
["0201302","Día Cama de Hospitalización Integral Pediátrica en Unidad de Tratamiento Intermedio (U.T.I)",{"$f":"B!C196","v":0},{"$f":"B!E196","v":0}]
["0201303","Día Cama de Hospitalización Integral Neonatal en Unidad de Tratamiento Intermedio (U.T.I)",{"$f":"B!C197","v":0},{"$f":"B!E197","v":0}]
["0201201","Día Cama de Hospitalización Integral Adulto en Unidad de Cuidado Intensivo (U.C.I.) ",{"$f":"B!C198","v":0},{"$f":"B!E198","v":0}]
["0201202","Día Cama de Hospitalización Integral Pediátrica en Unidad de Cuidado Intensivo (U.C.I). ",{"$f":"B!C199","v":0},{"$f":"B!E199","v":0}]
["0201203","Día Cama de Hospitalización Integral Neonatal en Unidad de Cuidado Intensivo (U.C.I.)",{"$f":"B!C200","v":0},{"$f":"B!E200","v":0}]
["0201410","Día Cama de Hospitalización Integral Obstetricia ",{"$f":"B!C201","v":0},{"$f":"B!E201","v":0}]
["0201403","Día Cama de Hospitalización Integral Sala Cuna",{"$f":"B!C202","v":0},{"$f":"B!E202","v":0}]
["0201404","Día Cama de Hospitalización Integral Incubadora",{"$f":"B!C203","v":0},{"$f":"B!E203","v":0}]
["0201406","Día Cama de Hospitalización Integral Psiquiatría Cuidados Medios",{"$f":"B!C205","v":0},{"$f":"B!E205","v":0}]
["0201407","Día Cama de Hospitalizacion Integral de Observación - Ambulatorio",{"$f":"B!C206","v":0},{"$f":"B!E206","v":0}]
["0201501","Dia Cama Hospitalizacion Domiciliaria Cuidados Básicos",{"$f":"B!C207","v":0},{"$f":"B!E207","v":0}]
["0201502","Dia Cama Hospitalizacion Domiciliaria Cuidados Medios ",{"$f":"B!C208","v":0},{"$f":"B!E208","v":0}]
["0201503","Dia Cama Hospitalizacion Domiciliaria Cuidados Alta Complejidad ",{"$f":"B!C209","v":0},{"$f":"B!E209","v":0}]
[null,"TOTAL ",{"$f":"SUM(C60:C75)","v":0},{"$f":"SUM(D60:D75)","v":0}]
["SECCIÓN C:TRATAMIENTO ABREVIADO DE LA TUBERCULOSIS"]
["CÓDIGOS","TRATAMIENTO ABREVIADO DE LA TUBERCULOSIS","TOTAL ","TOTAL BENEFICIARIOS MAI"]
[3003001,"TBC, Esquema primario (mensual)",{"$f":"B!C3058","v":0},{"$f":"B!E3058","v":0}]
["3003002","TBC, Esquema primario simplificado (mensual)",{"$f":"B!C3059","v":0},{"$f":"B!E3059","v":0}]
["3003003","TBC, Esquema secundario (mensual)",{"$f":"B!C3060","v":0},{"$f":"B!E3060","v":0}]
["3003004","TBC, Esquema normado de retratamiento (mensual)",{"$f":"B!C3061","v":0},{"$f":"B!E3061","v":0}]
["3003005","TBC, Esquema especial de retratamiento (mensual)",{"$f":"B!C3062","v":0},{"$f":"B!E3062","v":0}]
[null,"TOTAL ",{"$f":"SUM(C79:C83)","v":0},{"$f":"SUM(D79:D83)","v":0}]
["SECCIÓN D:TRASLADO, RESCATES Y RONDAS RURALES"]
["CÓDIGOS","TRASLADO, RESCATES Y RONDAS RURALES","TOTAL ","TOTAL BENEFICIARIOS MAI"]
[2401061,"Rescate simple y/o traslado en móvil 1",{"$f":"B!C2833","v":0},{"$f":"B!E2833","v":0}]
["2401062","Rescate profesionalizado y/o traslado paciente complejo móvil 2",{"$f":"B!C2834","v":0},{"$f":"B!E2834","v":0}]
["2401063","Rescate medicalizado y/o traslado paciente critico en móvil 3",{"$f":"B!C2835","v":0},{"$f":"B!E2835","v":0}]
["2401064","Traslado en ambulancia",{"$f":"B!C2836","v":0},{"$f":"B!E2836","v":0}]
["2401065","Ronda rural terrestre, c/ km recorrido",{"$f":"B!C2837","v":0},{"$f":"B!E2837","v":0}]
["2401066","Ronda rural aérea, c/ hora de vuelo",{"$f":"B!C2838","v":0},{"$f":"B!E2838","v":0}]
["2401067","Ronda rural marítima, c/ hora de navegación",{"$f":"B!C2839","v":0},{"$f":"B!E2839","v":0}]
[null,"TOTAL ",{"$f":"SUM(C87:C93)","v":0},{"$f":"SUM(D87:D93)","v":0}]
["SECCION E: PARTOS"]
["CÓDIGOS","IDENTIFICACION DE PRESTACIONES","TOTAL ","TOTAL BENEFICIARIOS MAI"]
[2004103,"Parto normal",{"$f":"B!C2538","v":0},{"$f":"B!E2538","v":0}]
["2004113","Parto distócico vaginal",{"$f":"B!C2539","v":0},{"$f":"B!E2539","v":0}]
[null,"TOTAL ",{"$f":"SUM(C97:C98)","v":0},{"$f":"SUM(D97:D98)","v":0}]
["SECCION F: ATENCIÓN ODONTOLOGICA"]
["CÓDIGOS","PRESTACIONES","TOTAL ","TOTAL BENEFICIARIOS MAI"]
["2701XXX","Consulta y atención odontológica",{"$f":"B!C2858","v":0},{"$f":"B!E2858","v":0}]
["2702XXX","Exámenes imagenológicos odontológico",{"$f":"B!C2877","v":0},{"$f":"B!E2877","v":0}]
["2703XXX","Odontología general: Actividades preventivas y recuperativas",{"$f":"B!C2895","v":0},{"$f":"B!E2895","v":0}]
["2704XXX","Especialidades",{"$f":"B!C2929","v":0},{"$f":"B!E2929","v":0}]
["2705XXX","Cirugías",{"$f":"SUM(B!C2931:C3002)","v":0},{"$f":"SUM(B!H2931:H3002)","v":0}]
[null,"Otras prestaciones odontológicas",{"$f":"B!C3044","v":0}]
[null,"TOTAL",{"$f":"SUM(C102:C107)","v":0},{"$f":"SUM(D102:D106)","v":0}]
["SECCION G: LENTES, AUDIFONOS"]
["CÓDIGOS","IDENTIFICACIÓN DE PRESTACIONES","TOTAL  ","TOTAL BENEFICIARIOS MAI"]
[3001001,"Lentes ópticos ",{"$f":"B!C3046","v":0},{"$f":"B!E3046","v":0}]
["3001002","Audífonos ",{"$f":"B!C3047","v":0},{"$f":"B!E3047","v":0}]
[null,"TOTAL",{"$f":"SUM(C111:C112)","v":0},{"$f":"SUM(D111:D112)","v":0}]
["SECCIÓN H: MEDICINA TRANSFUSIONAL"]
["CÓDIGOS","IDENTIFICACIÓN DE PRESTACIONES","TOTAL  ","TOTAL BENEFICIARIOS MAI"]
["Grupo 07","Medicina Transfusional",{"$f":"B!C1164","v":0},{"$f":"B!E1164","v":0}]
["SECCION I: EXÁMENES DE DIAGNÓSTICO"]
["TIPO DE EXAMEN",null,"TOTAL","EXAMENES REALIZADOS",null,null,null,"PROCEDENCIA",null,null,"PRODUCCION INTRA HOSPITAL",null,null,"OPERATIVO","COMPRAS REALIZADAS",null,"VENTAS DE SERVICIOS","TOTAL DE PROCEDIMIENTOS INFORMADOS"]
[null,null,null,"TOTAL Beneficiarios","Beneficiarios",null,"NO Beneficiarios","Atención Cerrada","Atención Abierta","Emergencia","Por Honorarios","Por Convenios","Por Consultores de llamada",null,"Al Sistema","Extrasistema"]
[null,null,null,null,"MAI","MLE"]
["TOTAL EXÁMENES LABORATORIO",null,{"$f":"+C122+C123+C124+C125+C126+C127+C131+C132+C133","v":0},{"$f":"+D122+D123+D124+D125+D126+D127+D131+D132+D133","v":0},0,0,0,0,0,0,0,0,0,0,0,0,{"$f":"+Q122+Q123+Q124+Q125+Q126+Q127+Q131+Q132+Q133","v":0},null,null,null,null,null,null,null,null,null,{"$f":"IF(C121<D121,\"Beneficiarios no puede ser mayor al TOTAL\",\"\")","v":""},null,null,null,null,{"$f":"IF(C121<D121,1,0)","v":0}]
["I  ","Hematológicos",{"$f":"B!C290","v":0},{"$f":"B!D290","v":0},{"$f":"B!E290","v":0},{"$f":"B!F290","v":0},{"$f":"B!G290","v":0},{"$f":"B!AA290","v":0},{"$f":"B!AB290","v":0},{"$f":"B!AC290","v":0},{"$f":"B!AD290","v":0},{"$f":"B!AE290","v":0},{"$f":"B!AF290","v":0},{"$f":"B!AG290","v":0},{"$f":"B!AH290","v":0},{"$f":"B!AI290","v":0},{"$f":"B!AJ290","v":0},null,null,null,null,null,null,null,null,null,{"$f":"IF(C122<D122,\"Beneficiarios no puede ser mayor al TOTAL\",\"\")","v":""},null,null,null,null,0]
["II  ","Bioquímicos",{"$f":"B!C372","v":0},{"$f":"B!D372","v":0},{"$f":"B!E372","v":0},{"$f":"B!F372","v":0},{"$f":"B!G372","v":0},{"$f":"B!AA372","v":0},{"$f":"B!AB372","v":0},{"$f":"B!AC372","v":0},{"$f":"B!AD372","v":0},{"$f":"B!AE372","v":0},{"$f":"B!AF372","v":0},{"$f":"B!AG372","v":0},{"$f":"B!AH372","v":0},{"$f":"B!AI372","v":0},{"$f":"B!AJ372","v":0},null,null,null,null,null,null,null,null,null,"",null,null,null,null,0]
["III","Hormonales",{"$f":"B!C418","v":0},{"$f":"B!D418","v":0},{"$f":"B!E418","v":0},{"$f":"B!F418","v":0},{"$f":"B!G418","v":0},{"$f":"B!AA418","v":0},{"$f":"B!AB418","v":0},{"$f":"B!AC418","v":0},{"$f":"B!AD418","v":0},{"$f":"B!AE418","v":0},{"$f":"B!AF418","v":0},{"$f":"B!AG418","v":0},{"$f":"B!AH418","v":0},{"$f":"B!AI418","v":0},{"$f":"B!AJ418","v":0},null,null,null,null,null,null,null,null,null,"",null,null,null,null,0]
["IV","Genética",{"$f":"B!C433","v":0},{"$f":"B!D433","v":0},{"$f":"B!E433","v":0},{"$f":"B!F433","v":0},{"$f":"B!G433","v":0},{"$f":"B!AA433","v":0},{"$f":"B!AB433","v":0},{"$f":"B!AC433","v":0},{"$f":"B!AD433","v":0},{"$f":"B!AE433","v":0},{"$f":"B!AF433","v":0},{"$f":"B!AG433","v":0},{"$f":"B!AH433","v":0},{"$f":"B!AI433","v":0},{"$f":"B!AJ433","v":0},null,null,null,null,null,null,null,null,null,"",null,null,null,null,0]
["V","Inmunológicos",{"$f":"B!C513","v":0},{"$f":"B!D513","v":0},{"$f":"B!E513","v":0},{"$f":"B!F513","v":0},{"$f":"B!G513","v":0},{"$f":"B!AA513","v":0},{"$f":"B!AB513","v":0},{"$f":"B!AC513","v":0},{"$f":"B!AD513","v":0},{"$f":"B!AE513","v":0},{"$f":"B!AF513","v":0},{"$f":"B!AG513","v":0},{"$f":"B!AH513","v":0},{"$f":"B!AI513","v":0},{"$f":"B!AJ513","v":0},null,null,null,null,null,null,null,null,null,"",null,null,null,null,0]
["VI  ","Microbiológicos",{"$f":"SUM(C128:C130)","v":0},{"$f":"SUM(D128:D130)","v":0},{"$f":"SUM(E128:E130)","v":0},0,0,0,0,0,0,0,0,0,0,0,{"$f":"SUM(Q128:Q130)","v":0},null,null,null,null,null,null,null,null,null,"",null,null,null,null,0]
[null,"a) Bacterias y Hongos",{"$f":"B!C573","v":0},{"$f":"B!D573","v":0},{"$f":"B!E573","v":0},{"$f":"B!F573","v":0},{"$f":"B!G573","v":0},{"$f":"B!AA573","v":0},{"$f":"B!AB573","v":0},{"$f":"B!AC573","v":0},{"$f":"B!AD573","v":0},{"$f":"B!AE573","v":0},{"$f":"B!AF573","v":0},{"$f":"B!AG573","v":0},{"$f":"B!AH573","v":0},{"$f":"B!AI573","v":0},{"$f":"B!AJ573","v":0},null,null,null,null,null,null,null,null,null,"",null,null,null,null,0]
[null,"b) Parásitos",{"$f":"B!C593","v":0},{"$f":"B!D593","v":0},{"$f":"B!E593","v":0},{"$f":"B!F593","v":0},{"$f":"B!G593","v":0},{"$f":"B!AA593","v":0},{"$f":"B!AB593","v":0},{"$f":"B!AC593","v":0},{"$f":"B!AD593","v":0},{"$f":"B!AE593","v":0},{"$f":"B!AF593","v":0},{"$f":"B!AG593","v":0},{"$f":"B!AH593","v":0},{"$f":"B!AI593","v":0},{"$f":"B!AJ593","v":0},null,null,null,null,null,null,null,null,null,"",null,null,null,null,0]
[null,"c) Virus",{"$f":"B!C643","v":0},{"$f":"B!D643","v":0},{"$f":"B!E643","v":0},{"$f":"B!F643","v":0},{"$f":"B!G643","v":0},{"$f":"B!AA643","v":0},{"$f":"B!AB643","v":0},{"$f":"B!AC643","v":0},{"$f":"B!AD643","v":0},{"$f":"B!AE643","v":0},{"$f":"B!AF643","v":0},{"$f":"B!AG643","v":0},{"$f":"B!AH643","v":0},{"$f":"B!AI643","v":0},{"$f":"B!AJ643","v":0},null,null,null,null,null,null,null,null,null,"",null,null,null,null,0]
["VII","Procedimiento o Determinación Directa c/Paciente",{"$f":"B!C653","v":0},{"$f":"B!D653","v":0},{"$f":"B!E653","v":0},{"$f":"B!F653","v":0},{"$f":"B!G653","v":0},{"$f":"B!AA653","v":0},{"$f":"B!AB653","v":0},{"$f":"B!AC653","v":0},{"$f":"B!AD653","v":0},{"$f":"B!AE653","v":0},{"$f":"B!AF653","v":0},{"$f":"B!AG653","v":0},{"$f":"B!AH653","v":0},{"$f":"B!AI653","v":0},{"$f":"B!AJ653","v":0},null,null,null,null,null,null,null,null,null,"",null,null,null,null,0]
["VIII  ","Ex. De Deposiciones Exudados. Secrec. y Otros Liq.  ",{"$f":"B!C716","v":0},{"$f":"B!D716","v":0},{"$f":"B!E716","v":0},{"$f":"B!F716","v":0},{"$f":"B!G716","v":0},{"$f":"B!AA716","v":0},{"$f":"B!AB716","v":0},{"$f":"B!AC716","v":0},{"$f":"B!AD716","v":0},{"$f":"B!AE716","v":0},{"$f":"B!AF716","v":0},{"$f":"B!AG716","v":0},{"$f":"B!AH716","v":0},{"$f":"B!AI716","v":0},{"$f":"B!AJ716","v":0},null,null,null,null,null,null,null,null,null,"",null,null,null,null,0]
["IX   ","Orina",{"$f":"B!C758","v":0},{"$f":"B!D758","v":0},{"$f":"B!E758","v":0},{"$f":"B!F758","v":0},{"$f":"B!G758","v":0},{"$f":"B!AA758","v":0},{"$f":"B!AB758","v":0},{"$f":"B!AC758","v":0},{"$f":"B!AD758","v":0},{"$f":"B!AE758","v":0},{"$f":"B!AF758","v":0},{"$f":"B!AG758","v":0},{"$f":"B!AH758","v":0},{"$f":"B!AI758","v":0},{"$f":"B!AJ758","v":0},null,null,null,null,null,null,null,null,null,"",null,null,null,null,0]
["TOTAL EXAMENES IMAGENOLOGIA",null,{"$f":"+C135+C136+C137+C138+C142+C143","v":0},{"$f":"+D135+D136+D137+D138+D142+D143","v":0},0,0,0,0,0,0,0,0,0,0,0,0,{"$f":"+Q135+Q136+Q137+Q138+Q142+Q143","v":0},{"$f":"+R135+R136+R137","v":0},null,null,null,null,null,null,null,null,"",null,null,null,null,0]
["I. a)","Ex. Radiológicos Simples",{"$f":"B!C818","v":0},{"$f":"B!D818","v":0},{"$f":"B!E818","v":0},{"$f":"B!F818","v":0},{"$f":"B!G818","v":0},{"$f":"B!AA818","v":0},{"$f":"B!AB818","v":0},{"$f":"B!AC818","v":0},{"$f":"B!AD818","v":0},{"$f":"B!AE818","v":0},{"$f":"B!AF818","v":0},{"$f":"B!AG818","v":0},{"$f":"B!AH818","v":0},{"$f":"B!AI818","v":0},{"$f":"B!AJ818","v":0},null,null,null,null,null,null,null,null,null,"",null,null,null,null,0]
["I. b)","Ex. Radiológicos Complejos",{"$f":"B!C840","v":0},{"$f":"B!D840","v":0},{"$f":"B!E840","v":0},{"$f":"B!F840","v":0},{"$f":"B!G840","v":0},{"$f":"B!AA840","v":0},{"$f":"B!AB840","v":0},{"$f":"B!AC840","v":0},{"$f":"B!AD840","v":0},{"$f":"B!AE840","v":0},{"$f":"B!AF840","v":0},{"$f":"B!AG840","v":0},{"$f":"B!AH840","v":0},{"$f":"B!AI840","v":0},{"$f":"B!AJ840","v":0},null,null,null,null,null,null,null,null,null,"",null,null,null,null,0]
["II.","Tomografía Axial Comp.",{"$f":"B!C870","v":0},{"$f":"B!D870","v":0},{"$f":"B!E870","v":0},{"$f":"B!F870","v":0},{"$f":"B!G870","v":0},{"$f":"B!AA870","v":0},{"$f":"B!AB870","v":0},{"$f":"B!AC870","v":0},{"$f":"B!AD870","v":0},{"$f":"B!AE870","v":0},{"$f":"B!AF870","v":0},{"$f":"B!AG870","v":0},{"$f":"B!AH870","v":0},{"$f":"B!AI870","v":0},{"$f":"B!AJ870","v":0},null,null,null,null,null,null,null,null,null,"",null,null,null,null,0]
["III","Ultrasonografía",{"$f":"SUM(C139:C141)","v":0},{"$f":"SUM(D139:D141)","v":0},{"$f":"SUM(E139:E141)","v":0},0,0,0,0,0,0,0,0,{"$f":"SUM(N139:N141)","v":0},0,0,{"$f":"SUM(Q139:Q141)","v":0},{"$f":"SUM(R139:R142)","v":0},null,null,null,null,null,null,null,null,"",null,null,null,null,0]
[null,"Ecotomografias ( Sin Ecografía Obstetr. Y Abdominal )",{"$f":"SUM(B!C874:C894)","v":0},{"$f":"SUM(B!D874:D894)","v":0},{"$f":"SUM(B!E874:E894)","v":0},{"$f":"SUM(B!F874:F894)","v":0},{"$f":"SUM(B!G874:G894)","v":0},{"$f":"SUM(B!AA874:AA894)","v":0},{"$f":"SUM(B!AB874:AB894)","v":0},{"$f":"SUM(B!AC874:AC894)","v":0},{"$f":"SUM(B!AD874:AD894)","v":0},{"$f":"SUM(B!AE874:AE894)","v":0},{"$f":"SUM(B!AF874:AF894)","v":0},{"$f":"SUM(B!AG874:AG894)","v":0},{"$f":"SUM(B!AH874:AH894)","v":0},{"$f":"SUM(B!AI874:AI894)","v":0},{"$f":"SUM(B!AJ874:AJ894)","v":0},null,null,null,null,null,null,null,null,null,"",null,null,null,null,0]
[null,"Ecografías Obstétricas",{"$f":"B!C872","v":0},{"$f":"B!D872","v":0},{"$f":"B!E872","v":0},{"$f":"B!F872","v":0},{"$f":"B!G872","v":0},{"$f":"B!AA872","v":0},{"$f":"B!AB872","v":0},{"$f":"B!AC872","v":0},{"$f":"B!AD872","v":0},{"$f":"B!AE872","v":0},{"$f":"B!AF872","v":0},{"$f":"B!AG872","v":0},{"$f":"B!AH872","v":0},{"$f":"B!AI872","v":0},{"$f":"B!AJ872","v":0},null,null,null,null,null,null,null,null,null,"",null,null,null,null,0]
[null,"Ecotomografias abdominal ",{"$f":"B!C873","v":0},{"$f":"B!D873","v":0},{"$f":"B!E873","v":0},{"$f":"B!F873","v":0},{"$f":"B!G873","v":0},{"$f":"B!AA873","v":0},{"$f":"B!AB873","v":0},{"$f":"B!AC873","v":0},{"$f":"B!AD873","v":0},{"$f":"B!AE873","v":0},{"$f":"B!AF873","v":0},{"$f":"B!AG873","v":0},{"$f":"B!AH873","v":0},{"$f":"B!AI873","v":0},{"$f":"B!AJ873","v":0},null,null,null,null,null,null,null,null,null,"",null,null,null,null,0]
["IV","Resonancia Magnética",{"$f":"B!C937","v":0},{"$f":"B!D937","v":0},{"$f":"B!E937","v":0},{"$f":"B!F937","v":0},{"$f":"B!G937","v":0},{"$f":"B!AA937","v":0},{"$f":"B!AB937","v":0},{"$f":"B!AC937","v":0},{"$f":"B!AD937","v":0},{"$f":"B!AE937","v":0},{"$f":"B!AF937","v":0},{"$f":"B!AG937","v":0},{"$f":"B!AH937","v":0},{"$f":"B!AI937","v":0},{"$f":"B!AJ937","v":0},null,null,null,null,null,null,null,null,null,"",null,null,null,null,0]
[null,"Otros Exámenes de Imágenes",{"$f":"B!C956","v":0},{"$f":"B!D956","v":0},{"$f":"B!E956","v":0},{"$f":"B!F956","v":0},{"$f":"B!G956","v":0},{"$f":"B!AA956","v":0},{"$f":"B!AB956","v":0},{"$f":"B!AC956","v":0},{"$f":"B!AD956","v":0},{"$f":"B!AE956","v":0},{"$f":"B!AF956","v":0},{"$f":"B!AG956","v":0},{"$f":"B!AH956","v":0},{"$f":"B!AI956","v":0},{"$f":"B!AJ956","v":0},null,null,null,null,null,null,null,null,null,"",null,null,null,null,0]
["Toma de Muestras",null,{"$f":"B!C664","v":0},{"$f":"B!D664","v":0},{"$f":"B!E664","v":0},{"$f":"B!F664","v":0},{"$f":"B!G664","v":0},{"$f":"B!AA664","v":0},{"$f":"B!AB664","v":0},{"$f":"B!AC664","v":0},{"$f":"B!AD664","v":0},{"$f":"B!AE664","v":0},{"$f":"B!AF664","v":0},{"$f":"B!AG664","v":0},{"$f":"B!AH664","v":0},{"$f":"B!AI664","v":0},{"$f":"B!AJ664","v":0},null,null,null,null,null,null,null,null,null,"",null,null,null,null,0]
["Exámenes Anatomía Patológica",null,{"$f":"B!C1180","v":0},{"$f":"B!D1180","v":0},{"$f":"B!E1180","v":0},{"$f":"B!F1180","v":0},{"$f":"B!G1180","v":0},{"$f":"B!AA1180","v":0},{"$f":"B!AB1180","v":0},{"$f":"B!AC1180","v":0},{"$f":"B!AD1180","v":0},{"$f":"B!AE1180","v":0},{"$f":"B!AF1180","v":0},{"$f":"B!AG1180","v":0},{"$f":"B!AH1180","v":0},{"$f":"B!AI1180","v":0},{"$f":"B!AJ1180","v":0},null,null,null,null,null,null,null,null,null,"",null,null,null,null,0]
["SECCION J:  MEDICINA NUCLEAR Y RADIOTERAPIA"]
["TIPO DE PROCEDIMIENTO",null,"TOTAL","PROCEDIMIENTOS",null,null,null,"PROCEDENCIA",null,null,"PRODUCCION INTRA HOSPITAL",null,null,"OPERATIVO","COMPRAS REALIZADAS",null,"VENTAS DE SERVICIOS"]
[null,null,null,"TOTAL Beneficiarios","Beneficiarios",null,"No Beneficiarios","Atención Cerrada","Atención Abierta","Emergencia","Por Honorarios","Por Convenios","Por Consultores de llamada",null,"Al Sistema","Extrasistema"]
[null,null,null,null,"MAI","MLE"]
["Medicina Nuclear",null,{"$f":"SUM(B!C965,B!C973,B!C982,B!C992,B!C999,B!C1003,B!C1007,B!C1011,B!C1019,B!C1022,B!C1025,B!C1033)","v":0},{"$f":"SUM(B!D965,B!D973,B!D982,B!D992,B!D999,B!D1003,B!D1007,B!D1011,B!D1019,B!D1022,B!D1025,B!D1033)","v":0},{"$f":"SUM(B!E965,B!E973,B!E982,B!E992,B!E999,B!E1003,B!E1007,B!E1011,B!E1019,B!E1022,B!E1025,B!E1033)","v":0},{"$f":"SUM(B!F965,B!F973,B!F982,B!F992,B!F999,B!F1003,B!F1007,B!F1011,B!F1019,B!F1022,B!F1025,B!F1033)","v":0},{"$f":"SUM(B!G965,B!G973,B!G982,B!G992,B!G999,B!G1003,B!G1007,B!G1011,B!G1019,B!G1022,B!G1025,B!G1033)","v":0},{"$f":"SUM(B!AA965,B!AA973,B!AA982,B!AA992,B!AA999,B!AA1003,B!AA1007,B!AA1011,B!AA1019,B!AA1022,B!AA1025,B!AA1033)","v":0},{"$f":"SUM(B!AB965,B!AB973,B!AB982,B!AB992,B!AB999,B!AB1003,B!AB1007,B!AB1011,B!AB1019,B!AB1022,B!AB1025,B!AB1033)","v":0},{"$f":"SUM(B!AC965,B!AC973,B!AC982,B!AC992,B!AC999,B!AC1003,B!AC1007,B!AC1011,B!AC1019,B!AC1022,B!AC1025,B!AC1033)","v":0},{"$f":"SUM(B!AD965,B!AD973,B!AD982,B!AD992,B!AD999,B!AD1003,B!AD1007,B!AD1011,B!AD1019,B!AD1022,B!AD1025,B!AD1033)","v":0},{"$f":"SUM(B!AE965,B!AE973,B!AE982,B!AE992,B!AE999,B!AE1003,B!AE1007,B!AE1011,B!AE1019,B!AE1022,B!AE1025,B!AE1033)","v":0},{"$f":"SUM(B!AF965,B!AF973,B!AF982,B!AF992,B!AF999,B!AF1003,B!AF1007,B!AF1011,B!AF1019,B!AF1022,B!AF1025,B!AF1033)","v":0},{"$f":"SUM(B!AG965,B!AG973,B!AG982,B!AG992,B!AG999,B!AG1003,B!AG1007,B!AG1011,B!AG1019,B!AG1022,B!AG1025,B!AG1033)","v":0},{"$f":"SUM(B!AH965,B!AH973,B!AH982,B!AH992,B!AH999,B!AH1003,B!AH1007,B!AH1011,B!AH1019,B!AH1022,B!AH1025,B!AH1033)","v":0},{"$f":"SUM(B!AI965,B!AI973,B!AI982,B!AI992,B!AI999,B!AI1003,B!AI1007,B!AI1011,B!AI1019,B!AI1022,B!AI1025,B!AI1033)","v":0},{"$f":"SUM(B!AJ965,B!AJ973,B!AJ982,B!AJ992,B!AJ999,B!AJ1003,B!AJ1007,B!AJ1011,B!AJ1019,B!AJ1022,B!AJ1025,B!AJ1033)","v":0}]
["Braquiterapia",null,{"$f":"B!C1039","v":0},{"$f":"B!D1039","v":0},{"$f":"B!E1039","v":0},{"$f":"B!F1039","v":0},{"$f":"B!G1039","v":0},{"$f":"B!AA1039","v":0},{"$f":"B!AB1039","v":0},{"$f":"B!AC1039","v":0},{"$f":"B!AD1039","v":0},{"$f":"B!AE1039","v":0},{"$f":"B!AF1039","v":0},{"$f":"B!AG1039","v":0},{"$f":"B!AH1039","v":0},{"$f":"B!AI1039","v":0},{"$f":"B!AJ1039","v":0}]
["Radioterapia",null,{"$f":"B!C1049","v":0},{"$f":"B!D1049","v":0},{"$f":"B!E1049","v":0},{"$f":"B!F1049","v":0},{"$f":"B!G1049","v":0},{"$f":"B!AA1049","v":0},{"$f":"B!AB1049","v":0},{"$f":"B!AC1049","v":0},{"$f":"B!AD1049","v":0},{"$f":"B!AE1049","v":0},{"$f":"B!AF1049","v":0},{"$f":"B!AG1049","v":0},{"$f":"B!AH1049","v":0},{"$f":"B!AI1049","v":0},{"$f":"B!AJ1049","v":0}]
["Quimioterapia",null,{"$f":"B!C3178","v":0},{"$f":"B!D3178","v":0},{"$f":"B!E3178","v":0},{"$f":"B!F3178","v":0},{"$f":"B!G3178","v":0},{"$f":"B!AA3178","v":0},{"$f":"B!AB3178","v":0},{"$f":"B!AC3178","v":0},{"$f":"B!AD3178","v":0},{"$f":"B!AE3178","v":0},{"$f":"B!AF3178","v":0},{"$f":"B!AG3178","v":0},{"$f":"B!AH3178","v":0},{"$f":"B!AI3178","v":0},{"$f":"B!AJ3178","v":0}]
["Radiocirugía",null,{"$f":"B!C1052","v":0},{"$f":"B!D1052","v":0},{"$f":"B!E1052","v":0},{"$f":"B!F1052","v":0},{"$f":"B!G1052","v":0},{"$f":"B!AA1052","v":0},{"$f":"B!AB1052","v":0},{"$f":"B!AC1052","v":0},{"$f":"B!AD1052","v":0},{"$f":"B!AE1052","v":0},{"$f":"B!AF1052","v":0},{"$f":"B!AG1052","v":0},{"$f":"B!AH1052","v":0},{"$f":"B!AI1052","v":0},{"$f":"B!AJ1052","v":0}]
["TOTAL ",null,{"$f":"SUM(C150:C154)","v":0},{"$f":"SUM(D150+D151+D152+D153+D154)","v":0},{"$f":"SUM(E150+E151+E152+E153+E154)","v":0},{"$f":"SUM(F150+F151+F152+F153+F154)","v":0},0,{"$f":"SUM(H150+H151+H152+H153+H154)","v":0},0,0,0,0,0,0,0,0,0]
["SECCION K:  HEMODIÁLISIS"]
["HEMODIÁLISIS",null,"TOTAL","PROCEDIMIENTOS",null,null,null,"PROCEDENCIA",null,null,"PRODUCCION INTRA HOSPITAL",null,null,"OPERATIVO","COMPRAS REALIZADAS",null,"VENTAS DE SERVICIOS"]
[null,null,null,"TOTAL Beneficiarios","Beneficiarios",null,"No Beneficiarios","Atención Cerrada","Atención Abierta","Emergencia","Por Honorarios","Por Convenios","Por Consultores de llamada",null,"Al Sistema","Extrasistema"]
[null,null,null,null,"MAI","MLE"]
["1901025","Peritoneodiálisis por sesión (incluye insumos)",{"$f":"B!C2359","v":0},{"$f":"B!D2359","v":0},{"$f":"B!E2359","v":0},{"$f":"B!F2359","v":0},{"$f":"B!G2359","v":0},{"$f":"B!AA2359","v":0},{"$f":"B!AB2359","v":0},{"$f":"B!AC2359","v":0},{"$f":"B!AD2359","v":0},{"$f":"B!AE2359","v":0},{"$f":"B!AF2359","v":0},{"$f":"B!AG2359","v":0},{"$f":"B!AH2359","v":0},{"$f":"B!AI2359","v":0},{"$f":"B!AJ2359","v":0}]
["1901026","Peritoneodiálisis continua en paciente crónico (adulto o niños) (tratamiento mensual)",{"$f":"B!C2360","v":0},{"$f":"B!D2360","v":0},{"$f":"B!E2360","v":0},{"$f":"B!F2360","v":0},{"$f":"B!G2360","v":0},{"$f":"B!AA2360","v":0},{"$f":"B!AB2360","v":0},{"$f":"B!AC2360","v":0},{"$f":"B!AD2360","v":0},{"$f":"B!AE2360","v":0},{"$f":"B!AF2360","v":0},{"$f":"B!AG2360","v":0},{"$f":"B!AH2360","v":0},{"$f":"B!AI2360","v":0},{"$f":"B!AJ2360","v":0}]
["1901126","Instalación de Catéter para Peritoneodiálisis",{"$f":"B!C2361","v":0},{"$f":"B!D2361","v":0},{"$f":"B!E2361","v":0},{"$f":"B!F2361","v":0},{"$f":"B!G2361","v":0},{"$f":"B!AA2361","v":0},{"$f":"B!AB2361","v":0},{"$f":"B!AC2361","v":0},{"$f":"B!AD2361","v":0},{"$f":"B!AE2361","v":0},{"$f":"B!AF2361","v":0},{"$f":"B!AG2361","v":0},{"$f":"B!AH2361","v":0},{"$f":"B!AI2361","v":0},{"$f":"B!AJ2361","v":0}]
["1901028","Hemodiálisis con bicarbonato con insumos (por sesión, incluye traslado paciente)",{"$f":"B!C2362","v":0},{"$f":"B!D2362","v":0},{"$f":"B!E2362","v":0},{"$f":"B!F2362","v":0},{"$f":"B!G2362","v":0},{"$f":"B!AA2362","v":0},{"$f":"B!AB2362","v":0},{"$f":"B!AC2362","v":0},{"$f":"B!AD2362","v":0},{"$f":"B!AE2362","v":0},{"$f":"B!AF2362","v":0},{"$f":"B!AG2362","v":0},{"$f":"B!AH2362","v":0},{"$f":"B!AI2362","v":0},{"$f":"B!AJ2362","v":0}]
["1901128","Hemodiálisis con bicarbonato con insumos (por sesión, sin traslado paciente)",{"$f":"B!C2363","v":0},{"$f":"B!D2363","v":0},{"$f":"B!E2363","v":0},{"$f":"B!F2363","v":0},{"$f":"B!G2363","v":0},{"$f":"B!AA2363","v":0},{"$f":"B!AB2363","v":0},{"$f":"B!AC2363","v":0},{"$f":"B!AD2363","v":0},{"$f":"B!AE2363","v":0},{"$f":"B!AF2363","v":0},{"$f":"B!AG2363","v":0},{"$f":"B!AH2363","v":0},{"$f":"B!AI2363","v":0},{"$f":"B!AJ2363","v":0}]
["1901029","Hemodiálisis con bicarbonato con insumos (tratamiento mensual)",{"$f":"B!C2364","v":0},{"$f":"B!D2364","v":0},{"$f":"B!E2364","v":0},{"$f":"B!F2364","v":0},{"$f":"B!G2364","v":0},{"$f":"B!AA2364","v":0},{"$f":"B!AB2364","v":0},{"$f":"B!AC2364","v":0},{"$f":"B!AD2364","v":0},{"$f":"B!AE2364","v":0},{"$f":"B!AF2364","v":0},{"$f":"B!AG2364","v":0},{"$f":"B!AH2364","v":0},{"$f":"B!AI2364","v":0},{"$f":"B!AJ2364","v":0}]
[1901031,"Instalación de catéter de peritoneodiálisis laparoscopia",{"$f":"B!C2365","v":0},{"$f":"B!D2365","v":0},{"$f":"B!E2365","v":0},{"$f":"B!F2365","v":0},{"$f":"B!G2365","v":0},{"$f":"B!AA2365","v":0},{"$f":"B!AB2365","v":0},{"$f":"B!AC2365","v":0},{"$f":"B!AD2365","v":0},{"$f":"B!AE2365","v":0},{"$f":"B!AF2365","v":0},{"$f":"B!AG2365","v":0},{"$f":"B!AH2365","v":0},{"$f":"B!AI2365","v":0},{"$f":"B!AJ2365","v":0}]
["1901032","Retiro de catéter de peritoneodiálisis",{"$f":"B!C2366","v":0},{"$f":"B!D2366","v":0},{"$f":"B!E2366","v":0},{"$f":"B!F2366","v":0},{"$f":"B!G2366","v":0},{"$f":"B!AA2366","v":0},{"$f":"B!AB2366","v":0},{"$f":"B!AC2366","v":0},{"$f":"B!AD2366","v":0},{"$f":"B!AE2366","v":0},{"$f":"B!AF2366","v":0},{"$f":"B!AG2366","v":0},{"$f":"B!AH2366","v":0},{"$f":"B!AI2366","v":0},{"$f":"B!AJ2366","v":0}]
[1901033,"Revisión de catéter de peritoneodiálisis laparoscopia",{"$f":"B!C2367","v":0},{"$f":"B!D2367","v":0},{"$f":"B!E2367","v":0},{"$f":"B!F2367","v":0},{"$f":"B!G2367","v":0},{"$f":"B!AA2367","v":0},{"$f":"B!AB2367","v":0},{"$f":"B!AC2367","v":0},{"$f":"B!AD2367","v":0},{"$f":"B!AE2367","v":0},{"$f":"B!AF2367","v":0},{"$f":"B!AG2367","v":0},{"$f":"B!AH2367","v":0},{"$f":"B!AI2367","v":0},{"$f":"B!AJ2367","v":0}]
["TOTAL",null,{"$f":"SUM(C160:C168)","v":0},0,0,{"$f":"SUM(F160:F168)","v":0},0,0,0,0,0,0,0,0,0,0,0]
["SECCION L: INTERVENCIONES QUIRÚRGICAS"]
["TIPO DE INTERVENCIÓN QUIRÚRGICA",null,"TOTAL ","TOTAL Beneficiarios","INTERVENCIONES QUIRÚRGICAS",null,null,null,null,null,"CIRUGÍAS MENORES","PRODUCCION INTRA HOSPITAL",null,null,"OPERATIVO","COMPRAS REALIZADAS",null,"VENTAS DE SERVICIOS"]
[null,null,null,null,"PRINCIPAL",null,null,"SECUNDARIA"]
[null,null,null,null,"MAI","MLE","No Beneficiarios","MAI","MLE","No Beneficiarios",null,"Por Honorarios","Por Convenios","Por Consultores de llamada",null,"Al sistema","Extrasistema"]
["Neurocirugía",null,{"$f":"B!C1335","v":0},{"$f":"B!H1335","v":0},{"$f":"B!I1335","v":0},{"$f":"B!J1335","v":0},{"$f":"B!K1335","v":0},{"$f":"B!L1335","v":0},{"$f":"B!M1335","v":0},{"$f":"B!N1335","v":0},{"$f":"B!C1334","v":0},{"$f":"B!AD1335","v":0},{"$f":"B!AE1335","v":0},{"$f":"B!AF1335","v":0},{"$f":"B!AG1335","v":0},{"$f":"B!AH1335","v":0},{"$f":"B!AI1335","v":0},{"$f":"B!AJ1335","v":0},null,null,null,null,null,null,null,null,{"$f":"IF(C174<D174,\"Beneficiarios no puede ser mayor al TOTAL\",\"\")","v":""},null,null,null,null,{"$f":"IF(C174<D174,1,0)","v":0}]
["Cirugía Oftalmológica",null,{"$f":"B!C1477","v":0},{"$f":"B!H1477","v":0},{"$f":"B!I1477","v":0},{"$f":"B!J1477","v":0},{"$f":"B!K1477","v":0},{"$f":"B!L1477","v":0},{"$f":"B!M1477","v":0},{"$f":"B!N1477","v":0},{"$f":"SUM(B!C1393:C1398,B!C1402:C1404,B!C1406:C1408,B!C1410:C1412,B!C1414,B!C1416:C1417,B!C1419:C1420,B!C1424:C1425,B!C1440:C1441,B!C1456,B!C1458:C1459,B!C1472:C1475)","v":0},{"$f":"B!AD1477","v":0},{"$f":"B!AE1477","v":0},{"$f":"B!AF1477","v":0},{"$f":"B!AG1477","v":0},{"$f":"B!AH1477","v":0},{"$f":"B!AI1477","v":0},{"$f":"B!AJ1477","v":0},null,null,null,null,null,null,null,null,{"$f":"IF(C175<D175,\"Beneficiarios no puede ser mayor al TOTAL\",\"\")","v":""},null,null,null,null,0]
["Cirugía Otorrinológica",null,{"$f":"B!C1640","v":0},{"$f":"B!H1640","v":0},{"$f":"B!I1640","v":0},{"$f":"B!J1640","v":0},{"$f":"B!K1640","v":0},{"$f":"B!L1640","v":0},{"$f":"B!M1640","v":0},{"$f":"B!N1640","v":0},{"$f":"SUM(B!C1532:C1536,B!C1540,B!C1544,B!C1569:C1574,B!C1577:C1578,B!C1585:C1586,B!C1588:C1589,B!C1594,B!C1596:C1597,B!C1604,B!C1617,B!C1623:C1624,B!C1633,B!C1636)","v":0},{"$f":"B!AD1640","v":0},{"$f":"B!AE1640","v":0},{"$f":"B!AF1640","v":0},{"$f":"B!AG1640","v":0},{"$f":"B!AH1640","v":0},{"$f":"B!AI1640","v":0},{"$f":"B!AJ1640","v":0},null,null,null,null,null,null,null,null,"",null,null,null,null,0]
["Cirugía de Cabeza y Cuello",null,{"$f":"B!C1704","v":0},{"$f":"B!H1704","v":0},{"$f":"B!I1704","v":0},{"$f":"B!J1704","v":0},{"$f":"B!K1704","v":0},{"$f":"B!L1704","v":0},{"$f":"B!M1704","v":0},{"$f":"B!N1704","v":0},{"$f":"SUM(B!C1663,B!C1665:C1666,B!C1670:C1671,B!C1673,B!C1697,B!C1699,B!C1702:C1703)","v":0},{"$f":"B!AD1704","v":0},{"$f":"B!AE1704","v":0},{"$f":"B!AF1704","v":0},{"$f":"B!AG1704","v":0},{"$f":"B!AH1704","v":0},{"$f":"B!AI1704","v":0},{"$f":"B!AJ1704","v":0},null,null,null,null,null,null,null,null,{"$f":"IF(C177<D177,\"Beneficiarios no puede ser mayor al TOTAL\",\"\")","v":""},null,null,null,null,{"$f":"IF(C177<D177,1,0)","v":0}]
["Cirugía Plástica y Reparadora",null,{"$f":"B!C1777","v":0},{"$f":"B!H1777","v":0},{"$f":"B!I1777","v":0},{"$f":"B!J1777","v":0},{"$f":"B!K1777","v":0},{"$f":"B!L1777","v":0},{"$f":"B!M1777","v":0},{"$f":"B!N1777","v":0},{"$f":"SUM(B!C1706:C1712,B!C1717,B!C1719,B!C1724,B!C1735:C1736,B!C1767,B!C1771:C1774)","v":0},{"$f":"B!AD1777","v":0},{"$f":"B!AE1777","v":0},{"$f":"B!AF1777","v":0},{"$f":"B!AG1777","v":0},{"$f":"B!AH1777","v":0},{"$f":"B!AI1777","v":0},{"$f":"B!AJ1777","v":0},null,null,null,null,null,null,null,null,"",null,null,null,null,0]
["Dermatología y Tegumentos     ",null,{"$f":"B!C1820","v":0},{"$f":"B!H1820","v":0},{"$f":"B!I1820","v":0},{"$f":"B!J1820","v":0},{"$f":"B!K1820","v":0},{"$f":"B!L1820","v":0},{"$f":"B!M1820","v":0},{"$f":"B!N1820","v":0},{"$f":"SUM(B!C1796:C1818)","v":0},{"$f":"B!AD1820","v":0},{"$f":"B!AE1820","v":0},{"$f":"B!AF1820","v":0},{"$f":"B!AG1820","v":0},{"$f":"B!AH1820","v":0},{"$f":"B!AI1820","v":0},{"$f":"B!AJ1820","v":0},null,null,null,null,null,null,null,null,"",null,null,null,null,0]
["Cirugía Cardiovascular",null,{"$f":"B!C1979","v":0},{"$f":"B!H1979","v":0},{"$f":"B!I1979","v":0},{"$f":"B!J1979","v":0},{"$f":"B!K1979","v":0},{"$f":"B!L1979","v":0},{"$f":"B!M1979","v":0},{"$f":"B!N1979","v":0},{"$f":"SUM(B!C1920,B!C1924,B!C1934:C1935,B!C1937,B!C1940:C1941,B!C1978)","v":0},{"$f":"B!AD1979","v":0},{"$f":"B!AE1979","v":0},{"$f":"B!AF1979","v":0},{"$f":"B!AG1979","v":0},{"$f":"B!AH1979","v":0},{"$f":"B!AI1979","v":0},{"$f":"B!AJ1979","v":0},null,null,null,null,null,null,null,null,"",null,null,null,null,0]
["Cirugía de Tórax",null,{"$f":"B!C2077","v":0},{"$f":"B!H2077","v":0},{"$f":"B!I2077","v":0},{"$f":"B!J2077","v":0},{"$f":"B!K2077","v":0},{"$f":"B!L2077","v":0},{"$f":"B!M2077","v":0},{"$f":"B!N2077","v":0},{"$f":"B!C2020","v":0},{"$f":"B!AD2077","v":0},{"$f":"B!AE2077","v":0},{"$f":"B!AF2077","v":0},{"$f":"B!AG2077","v":0},{"$f":"B!AH2077","v":0},{"$f":"B!AI2077","v":0},{"$f":"B!AJ2077","v":0},null,null,null,null,null,null,null,null,"",null,null,null,null,0]
["Cirugía Abdominal",null,{"$f":"B!C2291","v":0},{"$f":"B!H2291","v":0},{"$f":"B!I2291","v":0},{"$f":"B!J2291","v":0},{"$f":"B!K2291","v":0},{"$f":"B!L2291","v":0},{"$f":"B!M2291","v":0},{"$f":"B!N2291","v":0},{"$f":"B!C2290","v":0},{"$f":"B!AD2291","v":0},{"$f":"B!AE2291","v":0},{"$f":"B!AF2291","v":0},{"$f":"B!AG2291","v":0},{"$f":"B!AH2291","v":0},{"$f":"B!AI2291","v":0},{"$f":"B!AJ2291","v":0},null,null,null,null,null,null,null,null,"",null,null,null,null,0]
["Cirugía Proctológica",null,{"$f":"B!C2331","v":0},{"$f":"B!H2331","v":0},{"$f":"B!I2331","v":0},{"$f":"B!J2331","v":0},{"$f":"B!K2331","v":0},{"$f":"B!L2331","v":0},{"$f":"B!M2331","v":0},{"$f":"B!N2331","v":0},{"$f":"SUM(B!C2294:C2295,B!C2298,B!C2310)","v":0},{"$f":"B!AD2331","v":0},{"$f":"B!AE2331","v":0},{"$f":"B!AF2331","v":0},{"$f":"B!AG2331","v":0},{"$f":"B!AH2331","v":0},{"$f":"B!AI2331","v":0},{"$f":"B!AJ2331","v":0},null,null,null,null,null,null,null,null,"",null,null,null,null,0]
["Cirugía Urológica y Suprarrenal",null,{"$f":"B!C2449","v":0},{"$f":"B!H2449","v":0},{"$f":"B!I2449","v":0},{"$f":"B!J2449","v":0},{"$f":"B!K2449","v":0},{"$f":"B!L2449","v":0},{"$f":"B!M2449","v":0},{"$f":"B!N2449","v":0},{"$f":"SUM(B!C2443,B!C2447)","v":0},{"$f":"B!AD2449","v":0},{"$f":"B!AE2449","v":0},{"$f":"B!AF2449","v":0},{"$f":"B!AG2449","v":0},{"$f":"B!AH2449","v":0},{"$f":"B!AI2449","v":0},{"$f":"B!AJ2449","v":0},null,null,null,null,null,null,null,null,"",null,null,null,null,0]
["Cirugía de la Mama",null,{"$f":"B!C2485","v":0},{"$f":"B!H2485","v":0},{"$f":"B!I2485","v":0},{"$f":"B!J2485","v":0},{"$f":"B!K2485","v":0},{"$f":"B!L2485","v":0},{"$f":"B!M2485","v":0},{"$f":"B!N2485","v":0},{"$f":"B!C2480","v":0},{"$f":"B!AD2485","v":0},{"$f":"B!AE2485","v":0},{"$f":"B!AF2485","v":0},{"$f":"B!AG2485","v":0},{"$f":"B!AH2485","v":0},{"$f":"B!AI2485","v":0},{"$f":"B!AJ2485","v":0},null,null,null,null,null,null,null,null,"",null,null,null,null,0]
["Cirugía Ginecológica",null,{"$f":"B!C2525","v":0},{"$f":"B!H2525","v":0},{"$f":"B!I2525","v":0},{"$f":"B!J2525","v":0},{"$f":"B!K2525","v":0},{"$f":"B!L2525","v":0},{"$f":"B!M2525","v":0},{"$f":"B!N2525","v":0},{"$f":"SUM(B!C2512,B!C2521)","v":0},{"$f":"B!AD2525","v":0},{"$f":"B!AE2525","v":0},{"$f":"B!AF2525","v":0},{"$f":"B!AG2525","v":0},{"$f":"B!AH2525","v":0},{"$f":"B!AI2525","v":0},{"$f":"B!AJ2525","v":0},null,null,null,null,null,null,null,null,"",null,null,null,null,0]
["Cirugía Obstétrica","Total",{"$f":"SUM(C188:C190)","v":0},{"$f":"SUM(D188:D190)","v":0},{"$f":"SUM(E188:E190)","v":0},{"$f":"SUM(F188:F190)","v":0},0,0,0,0,null,0,0,0,0,0,0,{"$f":"SUM(R188:R190)","v":0},null,null,null,null,null,null,null,null,"",null,null,null,null,0]
[null,"Cesárea c/s salpingoligadura o salpingectomía",{"$f":"B!C2531","v":0},{"$f":"B!H2531","v":0},{"$f":"B!I2531","v":0},{"$f":"B!J2531","v":0},{"$f":"B!K2531","v":0},{"$f":"B!L2531","v":0},{"$f":"B!M2531","v":0},{"$f":"B!N2531","v":0},null,{"$f":"B!AD2531","v":0},{"$f":"B!AE2531","v":0},{"$f":"B!AF2531","v":0},{"$f":"B!AG2531","v":0},{"$f":"B!AH2531","v":0},{"$f":"B!AI2531","v":0},{"$f":"B!AJ2531","v":0},null,null,null,null,null,null,null,null,"",null,null,null,null,0]
[null,"Cesárea con histerectomía",{"$f":"B!C2532","v":0},{"$f":"B!H2532","v":0},{"$f":"B!I2532","v":0},{"$f":"B!J2532","v":0},{"$f":"B!K2532","v":0},{"$f":"B!L2532","v":0},{"$f":"B!M2532","v":0},{"$f":"B!N2532","v":0},null,{"$f":"B!AD2532","v":0},{"$f":"B!AE2532","v":0},{"$f":"B!AF2532","v":0},{"$f":"B!AG2532","v":0},{"$f":"B!AH2532","v":0},{"$f":"B!AI2532","v":0},{"$f":"B!AJ2532","v":0},null,null,null,null,null,null,null,null,"",null,null,null,null,0]
[null,"Otras cirugías obstétricas ",{"$f":"SUM(B!C2533:C2537)","v":0},{"$f":"SUM(B!H2533:H2537)","v":0},{"$f":"SUM(B!I2533:I2537)","v":0},{"$f":"SUM(B!J2533:J2537)","v":0},{"$f":"SUM(B!K2533:K2537)","v":0},{"$f":"SUM(B!L2533:L2537)","v":0},{"$f":"SUM(B!M2533:M2537)","v":0},{"$f":"SUM(B!N2533:N2537)","v":0},null,{"$f":"SUM(B!AD2533:AD2537)","v":0},{"$f":"SUM(B!AE2533:AE2537)","v":0},{"$f":"SUM(B!AF2533:AF2537)","v":0},{"$f":"SUM(B!AG2533:AG2537)","v":0},{"$f":"SUM(B!AH2533:AH2537)","v":0},{"$f":"SUM(B!AI2533:AI2537)","v":0},{"$f":"SUM(B!AJ2533:AJ2537)","v":0},null,null,null,null,null,null,null,null,"",null,null,null,null,0]
["Traumatología",null,{"$f":"B!C2769","v":0},{"$f":"B!H2769","v":0},{"$f":"B!I2769","v":0},{"$f":"B!J2769","v":0},{"$f":"B!K2769","v":0},{"$f":"B!L2769","v":0},{"$f":"B!M2769","v":0},{"$f":"B!N2769","v":0},{"$f":"SUM(B!C2557:C2563,B!C2565,B!C2575:C2576,B!C2588,B!C2590:C2592,B!C2595,B!C2643,B!C2645,B!C2648:C2650,B!C2654:C2655,B!C2664,B!C2667,B!C2723)","v":0},{"$f":"B!AD2769","v":0},{"$f":"B!AE2769","v":0},{"$f":"B!AF2769","v":0},{"$f":"B!AG2769","v":0},{"$f":"B!AH2769","v":0},{"$f":"B!AI2769","v":0},{"$f":"B!AJ2769","v":0},null,null,null,null,null,null,null,null,"",null,null,null,null,0]
["Odontología",null,{"$f":"B!C3006","v":0},{"$f":"B!H3006","v":0},{"$f":"B!I3006","v":0},{"$f":"B!J3006","v":0},{"$f":"B!K3006","v":0},{"$f":"B!L3006","v":0},{"$f":"B!M3006","v":0},{"$f":"B!N3006","v":0},{"$f":"SUM(B!C2931:C2932,B!C2937,B!C2939:C2940,B!C2943:C2944,B!C2946:C2950,B!C2958:C2964,B!C2968,B!C2970:C2971,B!C2981,B!C2983:C2985,B!C2995,B!C3002:C3005)","v":0},{"$f":"B!AD3006","v":0},{"$f":"B!AE3006","v":0},{"$f":"B!AF3006","v":0},{"$f":"B!AG3006","v":0},{"$f":"B!AH3006","v":0},{"$f":"B!AI3006","v":0},{"$f":"B!AJ3006","v":0},null,null,null,null,null,null,null,null,"",null,null,null,null,0]
["Retiro Elementos Osteosíntesis",null,{"$f":"B!C2774","v":0},{"$f":"B!H2774","v":0},{"$f":"B!I2774","v":0},{"$f":"B!J2774","v":0},{"$f":"B!K2774","v":0},{"$f":"B!L2774","v":0},{"$f":"B!M2774","v":0},{"$f":"B!N2774","v":0},null,{"$f":"B!AD2774","v":0},{"$f":"B!AE2774","v":0},{"$f":"B!AF2774","v":0},{"$f":"B!AG2774","v":0},{"$f":"B!AH2774","v":0},{"$f":"B!AI2774","v":0},{"$f":"B!AJ2774","v":0},null,null,null,null,null,null,null,null,"",null,null,null,null,0]
["TOTAL  ",null,{"$f":"SUM(C174:C187)+C191+C192+C193","v":0},0,0,0,0,0,0,0,{"$f":"SUM(K174:K193)","v":0},{"$f":"SUM(L174:L187)+L191+L192+L193","v":0},0,0,0,0,0,0]
["SECCIÓN M: INTERVENCIONES QUIRÚRGICAS POR TIPO DE INTERVENCIÓN "]
["TIPO DE INTERVENCIÓN",null,"TOTAL","Beneficiarios MAI","< 15 AÑOS","15 Y MÁS AÑOS","COMPRAS REALIZADAS AL SISTEMA ","COMPRAS REALIZADAS AL SISTEMA","COMPRAS REALIZADAS AL EXTRASISTEMA","COMPRAS REALIZADAS AL EXTRASISTEMA"]
[null,null,null,null,null,null,"< 15 años","15 y más años","< 15 años","15 y más años"]
["Electivas Mayores No Ambulatorias ",null,{"$f":"SUM(E198:F198)","v":0},null,{"$f":"SUM(B!P1335,B!P1477,B!P1640,B!P1704,B!P1777,B!P1820,B!P1979,B!P2077,B!P2291,B!P2331,B!P2449,B!P2485,B!P2525,B!P2540,B!P2769,B!P2774,B!P3006)","v":0},{"$f":"SUM(B!Q1335,B!Q1477,B!Q1640,B!Q1704,B!Q1777,B!Q1820,B!Q1979,B!Q2077,B!Q2291,B!Q2331,B!Q2449,B!Q2485,B!Q2525,B!Q2540,B!Q2769,B!Q2774,B!Q3006)","v":0},null,null,null,null,{"$f":"AA198","v":""},null,null,null,null,null,null,null,null,null,null,null,null,null,null,null,{"$f":"IF(C198<D198,\"BeneficiariosMAI no puede ser mayor al TOTAL\",\"\")","v":""},null,null,null,null,{"$f":"IF(C198<D198,1,0)","v":0}]
["Electivas Mayores Ambulatorias  ",null,{"$f":"SUM(E199:F199)","v":0},null,{"$f":"SUM(B!S1335,B!S1477,B!S1640,B!S1704,B!S1777,B!S1820,B!S1979,B!S2077,B!S2291,B!S2331,B!S2449,B!S2485,B!S2525,B!S2540,B!S2769,B!S2774,B!S3006)","v":0},{"$f":"SUM(B!T1335,B!T1477,B!T1640,B!T1704,B!T1777,B!T1820,B!T1979,B!T2077,B!T2291,B!T2331,B!T2449,B!T2485,B!T2525,B!T2540,B!T2769,B!T2774,B!T3006)","v":0},null,null,null,null,{"$f":"AA199","v":""},null,null,null,null,null,null,null,null,null,null,null,null,null,null,null,{"$f":"IF(C199<D199,\"BeneficiariosMAI no puede ser mayor al TOTAL\",\"\")","v":""},null,null,null,null,{"$f":"IF(C199<D199,1,0)","v":0}]
["Urgencia","Mayor No Ambulatorias",{"$f":"SUM(E200:F200)","v":0},null,{"$f":"SUM(B!Y1335,B!Y1477,B!Y1640,B!Y1704,B!Y1777,B!Y1820,B!Y1979,B!Y2077,B!Y2291,B!Y2331,B!Y2449,B!Y2485,B!Y2525,B!Y2540,B!Y2769,B!Y2774,B!Y3006)","v":0},{"$f":"SUM(B!Z1335,B!Z1477,B!Z1640,B!Z1704,B!Z1777,B!Z1820,B!Z1979,B!Z2077,B!Z2291,B!Z2331,B!Z2449,B!Z2485,B!Z2525,B!Z2540,B!Z2769,B!Z2774,B!Z3006)","v":0},null,null,null,null,{"$f":"AA200","v":""},null,null,null,null,null,null,null,null,null,null,null,null,null,null,null,{"$f":"IF(C200<D200,\"BeneficiariosMAI no puede ser mayor al TOTAL\",\"\")","v":""},null,null,null,null,{"$f":"IF(C200<D200,1,0)","v":0}]
[null,"Mayor Ambulatorias",{"$f":"SUM(E201:F201)","v":0},null,{"$f":"SUM(B!V1335,B!V1477,B!V1640,B!V1704,B!V1777,B!V1820,B!V1979,B!V2077,B!V2291,B!V2331,B!V2449,B!V2485,B!V2525,B!V2540,B!V2769,B!V2774,B!V3006)","v":0},{"$f":"SUM(B!W1335,B!W1477,B!W1640,B!W1704,B!W1777,B!W1820,B!W1979,B!W2077,B!W2291,B!W2331,B!W2449,B!W2485,B!W2525,B!W2540,B!W2769,B!W2774,B!W3006)","v":0},null,null,null,null,{"$f":"AA201","v":""},null,null,null,null,null,null,null,null,null,null,null,null,null,null,null,{"$f":"IF(C201<D201,\"BeneficiariosMAI no puede ser mayor al TOTAL\",\"\")","v":""},null,null,null,null,{"$f":"IF(C201<D201,1,0)","v":0}]
["SECCIÓN N:  AMPUTACIÓN POR PIE DIABÉTICO"]
["TIPO DE INTERVENCIÓN QUIRÚRGICA",null,"TOTAL ","TOTAL Beneficiarios MAI"]
[]
["Amputación de Ortejo(s) Por Pie Diabético",null,{"$f":"B!C2767","v":0},{"$f":"B!I2767","v":0}]
["Amputación de Pie Completo Por Pie Diabético",null,{"$f":"SUM(B!C2766,B!C2768)","v":0},{"$f":"SUM(B!I2766,B!I2768)","v":0}]
["SECCIÓN O: PROCEDIMIENTOS DIAGNÓSTICOS Y TERAPÉUTICOS"]
["TIPO DE PROCEDIMIENTO",null,"TOTAL","PROCEDIMIENTOS",null,null,null,"PROCEDENCIA",null,null,"PRODUCCION INTRA HOSPITAL",null,null,"OPERATIVO","COMPRAS REALIZADAS",null,"VENTAS DE SERVICIOS"]
[null,null,null,"TOTAL Beneficiarios","Beneficiarios",null,"No Beneficiarios","Atención Cerrada","Atención Abierta","Emergencia","Por Honorarios","Por Convenios","Por Consultores de llamada",null,"Al Sistema","Extrasistema"]
[null,null,null,null,"MAI","MLE"]
["Neurología",null,{"$f":"B!C1252","v":0},{"$f":"B!D1252","v":0},{"$f":"B!E1252","v":0},{"$f":"B!F1252","v":0},{"$f":"B!G1252","v":0},{"$f":"B!AA1252","v":0},{"$f":"B!AB1252","v":0},{"$f":"B!AC1252","v":0},{"$f":"B!AD1252","v":0},{"$f":"B!AE1252","v":0},{"$f":"B!AF1252","v":0},{"$f":"B!AG1252","v":0},{"$f":"B!AH1252","v":0},{"$f":"B!AI1252","v":0},{"$f":"B!AJ1252","v":0}]
["Oftalmología",null,{"$f":"B!C1391","v":0},{"$f":"B!D1391","v":0},{"$f":"B!E1391","v":0},{"$f":"B!F1391","v":0},{"$f":"B!G1391","v":0},{"$f":"B!AA1391","v":0},{"$f":"B!AB1391","v":0},{"$f":"B!AC1391","v":0},{"$f":"B!AD1391","v":0},{"$f":"B!AE1391","v":0},{"$f":"B!AF1391","v":0},{"$f":"B!AG1391","v":0},{"$f":"B!AH1391","v":0},{"$f":"B!AI1391","v":0},{"$f":"B!AJ1391","v":0}]
["Otorrinolaringología",null,{"$f":"B!C1530","v":0},{"$f":"B!D1530","v":0},{"$f":"B!E1530","v":0},{"$f":"B!F1530","v":0},{"$f":"B!G1530","v":0},{"$f":"B!AA1530","v":0},{"$f":"B!AB1530","v":0},{"$f":"B!AC1530","v":0},{"$f":"B!AD1530","v":0},{"$f":"B!AE1530","v":0},{"$f":"B!AF1530","v":0},{"$f":"B!AG1530","v":0},{"$f":"B!AH1530","v":0},{"$f":"B!AI1530","v":0},{"$f":"B!AJ1530","v":0}]
["Cabeza y Cuello",null,{"$f":"B!C1643","v":0},{"$f":"B!D1643","v":0},{"$f":"B!E1643","v":0},{"$f":"B!F1643","v":0},{"$f":"B!G1643","v":0},{"$f":"B!AA1643","v":0},{"$f":"B!AB1643","v":0},{"$f":"B!AC1643","v":0},{"$f":"B!AD1643","v":0},{"$f":"B!AE1643","v":0},{"$f":"B!AF1643","v":0},{"$f":"B!AG1643","v":0},{"$f":"B!AH1643","v":0},{"$f":"B!AI1643","v":0},{"$f":"B!AJ1643","v":0}]
["Dermatología",null,{"$f":"B!C1794","v":0},{"$f":"B!D1794","v":0},{"$f":"B!E1794","v":0},{"$f":"B!F1794","v":0},{"$f":"B!G1794","v":0},{"$f":"B!AA1794","v":0},{"$f":"B!AB1794","v":0},{"$f":"B!AC1794","v":0},{"$f":"B!AD1794","v":0},{"$f":"B!AE1794","v":0},{"$f":"B!AF1794","v":0},{"$f":"B!AG1794","v":0},{"$f":"B!AH1794","v":0},{"$f":"B!AI1794","v":0},{"$f":"B!AJ1794","v":0}]
["Cardiología",null,{"$f":"B!C1896","v":0},{"$f":"B!D1896","v":0},{"$f":"B!E1896","v":0},{"$f":"B!F1896","v":0},{"$f":"B!G1896","v":0},{"$f":"B!AA1896","v":0},{"$f":"B!AB1896","v":0},{"$f":"B!AC1896","v":0},{"$f":"B!AD1896","v":0},{"$f":"B!AE1896","v":0},{"$f":"B!AF1896","v":0},{"$f":"B!AG1896","v":0},{"$f":"B!AH1896","v":0},{"$f":"B!AI1896","v":0},{"$f":"B!AJ1896","v":0}]
["Respiratorio",null,{"$f":"B!C2119","v":0},{"$f":"B!D2119","v":0},{"$f":"B!E2119","v":0},{"$f":"B!F2119","v":0},{"$f":"B!G2119","v":0},{"$f":"B!AA2119","v":0},{"$f":"B!AB2119","v":0},{"$f":"B!AC2119","v":0},{"$f":"B!AD2119","v":0},{"$f":"B!AE2119","v":0},{"$f":"B!AF2119","v":0},{"$f":"B!AG2119","v":0},{"$f":"B!AH2119","v":0},{"$f":"B!AI2119","v":0},{"$f":"B!AJ2119","v":0}]
["Gastroenterología",null,{"$f":"B!C2176","v":0},{"$f":"B!D2176","v":0},{"$f":"B!E2176","v":0},{"$f":"B!F2176","v":0},{"$f":"B!G2176","v":0},{"$f":"B!AA2176","v":0},{"$f":"B!AB2176","v":0},{"$f":"B!AC2176","v":0},{"$f":"B!AD2176","v":0},{"$f":"B!AE2176","v":0},{"$f":"B!AF2176","v":0},{"$f":"B!AG2176","v":0},{"$f":"B!AH2176","v":0},{"$f":"B!AI2176","v":0},{"$f":"B!AJ2176","v":0}]
["Urología y Nefrología",null,{"$f":"B!C2356","v":0},{"$f":"B!D2356","v":0},{"$f":"B!E2356","v":0},{"$f":"B!F2356","v":0},{"$f":"B!G2356","v":0},{"$f":"B!AA2356","v":0},{"$f":"B!AB2356","v":0},{"$f":"B!AC2356","v":0},{"$f":"B!AD2356","v":0},{"$f":"B!AE2356","v":0},{"$f":"B!AF2356","v":0},{"$f":"B!AG2356","v":0},{"$f":"B!AH2356","v":0},{"$f":"B!AI2356","v":0},{"$f":"B!AJ2356","v":0}]
["Ginecología y Obstetricia (Se Incluyen Abortos)",null,{"$f":"SUM(B!C2478,B!C2527:C2529)","v":0},{"$f":"SUM(B!D2478,B!D2527:D2529)","v":0},{"$f":"SUM(B!E2478,B!E2527:E2529)","v":0},{"$f":"SUM(B!F2478,B!F2527:F2529)","v":0},{"$f":"SUM(B!G2478,B!G2527:G2529)","v":0},{"$f":"SUM(B!AA2478,B!AA2527:AA2529)","v":0},{"$f":"SUM(B!AB2478,B!AB2527:AB2529)","v":0},{"$f":"SUM(B!AC2478,B!AC2527:AC2529)","v":0},{"$f":"SUM(B!AD2478,B!AD2527:AD2529)","v":0},{"$f":"SUM(B!AE2478,B!AE2527:AE2529)","v":0},{"$f":"SUM(B!AF2478,B!AF2527:AF2529)","v":0},{"$f":"SUM(B!AG2478,B!AG2527:AG2529)","v":0},{"$f":"SUM(B!AH2478,B!AH2527:AH2529)","v":0},{"$f":"SUM(B!AI2478,B!AI2527:AI2529)","v":0},{"$f":"SUM(B!AJ2478,B!AJ2527:AJ2529)","v":0}]
["Traumatología",null,{"$f":"B!C2555","v":0},{"$f":"B!D2555","v":0},{"$f":"B!E2555","v":0},{"$f":"B!F2555","v":0},{"$f":"B!G2555","v":0},{"$f":"B!AA2555","v":0},{"$f":"B!AB2555","v":0},{"$f":"B!AC2555","v":0},{"$f":"B!AD2555","v":0},{"$f":"B!AE2555","v":0},{"$f":"B!AF2555","v":0},{"$f":"B!AG2555","v":0},{"$f":"B!AH2555","v":0},{"$f":"B!AI2555","v":0},{"$f":"B!AJ2555","v":0}]
["Kinesiología y Fisioterapia",null,{"$f":"B!C1119","v":0},{"$f":"B!D1119","v":0},{"$f":"B!E1119","v":0},{"$f":"B!F1119","v":0},{"$f":"B!G1119","v":0},{"$f":"B!AA1119","v":0},{"$f":"B!AB1119","v":0},{"$f":"B!AC1119","v":0},{"$f":"B!AD1119","v":0},{"$f":"B!AE1119","v":0},{"$f":"B!AF1119","v":0},{"$f":"B!AG1119","v":0},{"$f":"B!AH1119","v":0},{"$f":"B!AI1119","v":0},{"$f":"B!AJ1119","v":0}]
["TOTAL ",null,{"$f":"SUM(C211:C222)","v":0},0,0,0,0,0,0,0,0,0,0,0,0,0,0]
["SECCION P:  MISCELÁNEOS"]
["TIPO DE PRESTACIÓN",null,"TOTAL","TOTAL Beneficiarios MAI"]
["Otras Prestaciones Psiquiátricas",null,{"$f":"B!C1201","v":0},{"$f":"B!E1201","v":0}]
["Anestesia Epidural (Partos)",null,{"$f":"B!C2827","v":0},{"$f":"B!E2827","v":0}]
["Otros Procedimientos Anestésicos",null,{"$f":"B!C2831","v":0},{"$f":"B!E2831","v":0}]
["Curacion Simple Ambulatoria",null,{"$f":"B!C146","v":0},{"$f":"B!E146","v":0}]
["Procedimiento De Podología",null,{"$f":"B!C151","v":0},{"$f":"B!E151","v":0}]
["Autocuidado Pacientes DID",null,{"$f":"B!C149","v":0},{"$f":"B!E149","v":0}]
["Oxigenoterapia Domicilio",null,{"$f":"B!C150","v":0},{"$f":"B!E150","v":0}]
["Protesis y Órtesis",null,{"$f":"B!C2823","v":0},{"$f":"B!E2823","v":0}]
["TOTAL ",null,{"$f":"SUM(C226:C233)","v":0},{"$f":"SUM(D226:D233)","v":0}]
["SECCIÓN Q: ACTIVIDADES EN UNIDAD DE FARMACIA HOSPITALARIA"]
[null,null,"TOTAL"]
["Preparados Magistrales","Estériles"]
[null,"No Estériles"]
["TOTAL",null,{"$f":"SUM(C237:C238)","v":0}]
["Nutriciones Parenterales"]
["Preparados Citostáticos"]
["Evaluaciones Farmacéuticas"]
["Preparados Oficinal"]
["Dosis Unitaria Preparadas"]
["TOTAL",null,{"$f":"SUM(C240:C244)","v":0}]
["SECCIÓN R: OTROS TRASLADOS DE PACIENTES"]
["TIPO DE ACCIÓN",null,"TOTAL","A \nBeneficiarios","POR COMPRA \nDE SERVICIO",null,null,null,null,null,null," "]
[" Traslados No de Urgencia","Ambulancia",null,null,null,{"$f":"AA248","v":""},null,null,null,null,null,null,null,null,null,null,null,null,null,null,null,null,null,null,null,null,{"$f":"IF(D248>C248,\"El Total de  OTROS TRASLADOS DE PACIENTES no puede ser menor que los A Beneficiarios\",\"\")","v":""},{"$f":"IF(E248>C248,\"El Total de  OTROS TRASLADOS DE PACIENTES no puede ser menor que los POR COMPRA DE SERVICIO\",\"\")","v":""},null,null,null,{"$f":"IF(D248>C248,1,0)","v":0},{"$f":"IF(E248>C248,1,0)","v":0}]
[null,"Marítimo",null,null,null,{"$f":"AA249","v":""},null,null,null,null,null,null,null,null,null,null,null,null,null,null,null,null,null,null,null,null,{"$f":"IF(D249>C249,\"El Total de  OTROS TRASLADOS DE PACIENTES no puede ser menor que los A Beneficiarios\",\"\")","v":""},{"$f":"IF(E249>C249,\"El Total de  OTROS TRASLADOS DE PACIENTES no puede ser menor que los POR COMPRA DE SERVICIO\",\"\")","v":""},null,null,null,{"$f":"IF(D249>C249,1,0)","v":0},{"$f":"IF(E249>C249,1,0)","v":0}]
[null,"Aéreo",null,null,null,{"$f":"AA250","v":""},null,null,null,null,null,null,null,null,null,null,null,null,null,null,null,null,null,null,null,null,"","",null,null,null,{"$f":"IF(D250>C250,1,0)","v":0},0]

{"sheet":"Control","index":3,"n_rows":16,"n_cols":3,"rows_kept":16,"cut":false,"hidden":false,"merged":[[15,0,15,1]]}
["SERVICIO DE SALUD / ESTABLECIMIENTO MUNICIPAL"]
[{"$f":"CONCATENATE(\"COMUNA: \",NOMBRE!B2,\" (\",NOMBRE!C2,NOMBRE!D2,NOMBRE!E2,NOMBRE!F2,NOMBRE!G2,\" )\")","v":"COMUNA:  ( )"}]
[{"$f":"CONCATENATE(\"ESTABLECIMIENTO/ESTRATEGIA: \",NOMBRE!B3,\" (\",NOMBRE!C3,NOMBRE!D3,NOMBRE!E3,NOMBRE!F3,NOMBRE!G3,NOMBRE!H3,\" )\")","v":"ESTABLECIMIENTO/ESTRATEGIA:  ( )"}]
[{"$f":"CONCATENATE(\"MES: \", NOMBRE!B6, \" (\", NOMBRE!C6,NOMBRE!D6,\")\")","v":"MES:  ()"}]
[{"$f":"CONCATENATE(\"AÑO: \",NOMBRE!B7)","v":"AÑO: 2026"}]
[]
["HOJA","SECCIÓN","Nº Errores"]
["NOMBRE","Código comuna",{"$f":"+NOMBRE!AG2","v":1}]
["NOMBRE","Código establecimiento/estrategia",{"$f":"+NOMBRE!AG3","v":1}]
["NOMBRE","Código Mes",{"$f":"+NOMBRE!AG6","v":1}]
["B","CONSULTAS Y ATENCIÓN MEDICA ",{"$f":"SUM(B!B3201)","v":0}]
["B17","SECCION I: EXÁMENES DE DIAGNÓSTICO",0]
["B17","SECCION L: INTERVENCIONES QUIRÚRGICAS",0]
["B17","SECCIÓN M: INTERVENCIONES QUIRÚRGICAS POR TIPO DE INTERVENCIÓN ",0]
["B17","SECCIÓN R: OTROS TRASLADOS DE PACIENTES",0]
["TOTAL ERRORES",null,{"$f":"SUM(C8:C15)","v":3}]

{"sheet":"MACROS","index":4,"n_rows":7,"n_cols":2,"rows_kept":7,"cut":false,"hidden":false,"merged":[[0,0,0,13],[6,1,7,7]]}
["Hoja de Macros y Utilidades"]
[{"$f":"CONCATENATE(\"ESTABLECIMIENTO/ESTRATEGIA: \",NOMBRE!B2,\" (\",NOMBRE!C2,NOMBRE!D2,NOMBRE!E2,NOMBRE!F2,NOMBRE!G2,NOMBRE!H2,\" )\")","v":"ESTABLECIMIENTO/ESTRATEGIA:  ( )"}]
[]
[]
[null,"CREA UNA COPIA  DEL ARCHIVO  (TRANFORMA HOJAS A VALORES)\nA ESTE NUEVO ARCHIVO DEBERÁ ASIGNARLE UN NOMBRE"]
[null,"Contraseña para copia del archivo :DEIS"]
[null,"REVISE LA HOJA CONTROL, EXISTEN ERRORES"]